Workbook

Sheet START
A1: =muni -> NW375 Moses Kotane

Sheet Instructions
D2: 2020
X4: Yes
X5: No
W7: Type of Entities Range: | X7: Parent Municipality
X8: Consolidated Information
W10: Date of Adjustment | X10: 2020-12-06
W19: MTREF Range: | X19: 2008
X20: 2009
X21: 2010
X22: 2011
X23: 2012
X24: 2013
X25: 2014
X26: 2015
X27: 2016
X28: 2017
X29: 2018
X30: 2019
X31: 2020
X32: 2021
W33: MTREF Linked: | X33: 2022
W34: MTREF:
X35: 12
W36: Fin Year: | X36: =INDEX(X19:X33,X35,1) -> 2019
X38: =MTREF&"/"&RIGHT(MTREF,2)+1 -> 2019/20

Sheet Template names (hidden)
A1: Common sheet headings
A2: Head1 | B2: =HLOOKUP(MTREF,Headings,2) -> 2018/19 | C2: Prior year -1
A3: Head1A | B3: =HLOOKUP(MTREF,Headings,3) -> 2017/18 | C3: Prior year -2
A4: Head1B | B4: =HLOOKUP(MTREF,Headings,4) -> 2016/17 | C4: Prior year -3
A5: Head2 | B5: =HLOOKUP(MTREF,Headings,7) -> Budget Year 2019/20 | C5: Year of approved budget
A6: Head2A | B6: =HLOOKUP(MTREF,Headings,6) -> 2019/20 | C6: Approved budget year
A7: Head3 | B7: =HLOOKUP(MTREF,Headings,5) -> 2019/20 Medium Term Revenue & Expenditure Framework | C7: MTREF header name
A8: Head3A | B8: Medium Term Revenue and Expenditure Framework
A9: Head4 | B9: Current year
A10: Head5 | B10: Audited Outcome
A11: Head5A | B11: Outcome
A12: Head5B | B12: Pre-audit outcome
A13: Head6 | B13: Original Budget
A14: Head7 | B14: Adjusted Budget
A15: Head8 | B15: Full Year Forecast
A16: Head9 | B16: =HLOOKUP(MTREF,Headings,7) -> Budget Year 2019/20 | C16: 1st year of MTREF | D16: Year1
A17: Head10 | B17: =HLOOKUP(MTREF,Headings,8) -> Budget Year +1 2020/21 | C17: 2nd year of MTREF | D17: Year2
A18: Head11 | B18: =HLOOKUP(MTREF,Headings,9) -> Budget Year +2 2021/22 | C18: 3rd year of MTREF | D18: Year3
A19: Head24 | B19: Description | D19: Desc
A20: Head26 | B20: Vote Description | D20: VDesc
A21: Head27 | B21: Ref
A22: Head27a | B22: References
A23: Head28 | B23: Surplus/ (Deficit) for the year | D23: Result
A24: Head29 | B24: Annual target 2007/08
A25: Head30 | B25: Revised target 2007/08
A26: Head31 | B26: Quarter ended 30 September
A27: Head32 | B27: Quarter ended 31 December
A28: Head33 | B28: Quarter ended 31 March
A29: Head34 | B29: Quarter ended 30 June
A30: Head35 | B30: Variance explanation
A31: Head36 | B31: YTD Actual 31 Dec
A32: Head37 | B32: YTD Budget 31 Dec
A33: Head38 | B33: Monthly actual
A34: Head39 | B34: YearTD actual
A35: Head40 | B35: YearTD budget
A36: Head41 | B36: YTD variance
A37: Head42 | B37: Surplus/ (Deficit) for the yr/period
A38: Head43 | B38: =Head3&" Summary" -> 2019/20 Medium Term Revenue & Expenditure Framework Summary
A39: Head44 | B39: 2001 Census
A40: Head45 | B40: 2011 Census
A41: Head46 | B41: - Adjustments Budget - January 2007
A42: Head47 | B42: Previous target year to complete
A43: Head48 | B43: Present value
A44: Head49
A45: Head50 | B45: Other Adjusts.
A46: Head51 | B46: Accum. Funds
A47: Head52 | B47: Multi-year capital
A48: Head53 | B48: Unfore. Unavoid.
A49: Head54 | B49: Prior Adjusted
A50: Head55 | B50: Nat. or Prov. Govt
A51: Head56 | B51: Total Adjusts.
A52: Head57 | B52: Month DD, YYYY -
A53: Head58 | B53: Parent muni.
A54: Head59 | B54: Downward adjusts
A55: SFPerf1 | B55: Budgeted Financial Performance
A56: SFPerf2 | B56: Forecast Financial Performance
A57: SFPos1 | B57: Budgeted Financial Position
A58: SFPos2 | B58: Forecast Financial Position
A59: Cash1 | B59: Budget Cash Flow
A60: Cash2 | B60: Forecast Cash Flow
A61: RandM | B61: Expenditure includes repairs & maintenance of R'000
A62: Standard nomenclature
A63: Muni | B63: ='Lookup and lists'!B28 -> NW375 Moses Kotane
A64: Municipal Entities | B64: 2 | C64: Type of report: | D64: 1
A65: =IF((MuniEntities=1)*(MuniType=2),"YES","NO") -> NO | B65: Does this municipality have entities (consolidated budget and entity budgets required)? YES/NO
A66: Mid Year Review/Adjustment Budget schedules & tables | E66: Consolidated header | F66: Parent municipality header
A67: ADJSum | B67: =D67&IF(Consolques="YES",E67,F67) -> Table B1 Adjustments Budget Summary | D67: Table B1 | E67: ="Consolidated "&F67 -> Consolidated Adjustments Budget Summary | F67: ="Adjustments Budget Summary" -> Adjustments Budget Summary
A68: ADJ2 | B68: Table B3 Adjustments Budget Financial Performance (revenue and expenditure by municipal vote) | D68: Table B3 | E68: ="Consolidated "&F68 -> Consolidated Adjustments Budget Financial Performance (revenue and expenditure by municipal vote) | F68: ="Adjustments Budget Financial Performance (revenue and expenditure by municipal vote)" -> Adjustments Budget Financial Performance (revenue and expenditure by municipal vote)
A69: ADJ3 | B69: Table B2 Adjustments Budget Financial Performance (functional classification) | D69: Table B2 | E69: Consolidated Adjustments Budget Financial Performance (functional classification) | F69: ="Adjustments Budget Financial Performance (functional classification)" -> Adjustments Budget Financial Performance (functional classification)
A70: ADJ4 | B70: Table B4 Adjustments Budget Financial Performance (revenue and expenditure) | D70: Table B4 | E70: Consolidated Adjustments Budget Financial Performance (revenue and expenditure) | F70: ="Adjustments Budget Financial Performance (revenue and expenditure)" -> Adjustments Budget Financial Performance (revenue and expenditure)
A71: ADJ5 | B71: Table B5 Adjustments Capital Expenditure Budget by vote and funding | D71: Table B5 | E71: Consolidated Adjustments Capital Expenditure Budget by vote and funding | F71: ="Adjustments Capital Expenditure Budget by vote and funding" -> Adjustments Capital Expenditure Budget by vote and funding
A72: ADJ6 | B72: Table B6 Adjustments Budget Financial Position | D72: Table B6 | E72: Consolidated Adjustments Budget Financial Position | F72: ="Adjustments Budget Financial Position" -> Adjustments Budget Financial Position
A73: ADJ7 | B73: Table B7 Adjustments Budget Cash Flows | D73: Table B7 | E73: Consolidated Adjustments Budget Cash Flows | F73: ="Adjustments Budget Cash Flows" -> Adjustments Budget Cash Flows
A74: ADJ8 | B74: Table B8 Cash backed reserves/accumulated surplus reconciliation | D74: Table B8 | E74: Consolidated Cash backed reserves/accumulated surplus reconciliation | F74: ="Cash backed reserves/accumulated surplus reconciliation" -> Cash backed reserves/accumulated surplus reconciliation
A75: ADJ9 | B75: Table B9 Asset Management | D75: Table B9 | E75: Consolidated Asset Management | F75: ="Asset Management" -> Asset Management
A76: ADJ10 | B76: Table B10 Basic service delivery measurement | D76: Table B10 | E76: Consolidated Basic service delivery measurement | F76: ="Basic service delivery measurement" -> Basic service delivery measurement
A77: ADJB1 | B77: Supporting Table SB1 Supporting detail to 'Budgeted Financial Performance' | D77: =D101&"Table SB1 " -> Supporting Table SB1 | E77: Consolidated Supporting detail to 'Budgeted Financial Performance' | F77: ="Supporting detail to 'Budgeted Financial Performance'" -> Supporting detail to 'Budgeted Financial Performance'
A78: ADJB2 | B78: Supporting Table SB2 Supporting detail to 'Financial Position Budget' | D78: =D101&"Table SB2 " -> Supporting Table SB2 | E78: Consolidated Supporting detail to 'Financial Position Budget' | F78: ="Supporting detail to 'Financial Position Budget'" -> Supporting detail to 'Financial Position Budget'
A79: ADJB3 | B79: Supporting Table SB3 Adjustments to the SDBIP - performance objectives | D79: =D101&"Table SB3 " -> Supporting Table SB3 | E79: Consolidated Adjustments to the SDBIP - performance objectives | F79: ="Adjustments to the SDBIP - performance objectives" -> Adjustments to the SDBIP - performance objectives
A80: ADJB4 | B80: Supporting Table SB4 Adjustments to budgeted performance indicators and benchmarks | D80: =D101&"Table SB4 " -> Supporting Table SB4 | E80: Consolidated Adjustments to budgeted performance indicators and benchmarks | F80: ="Adjustments to budgeted performance indicators and benchmarks" -> Adjustments to budgeted performance indicators and benchmarks
A81: ADJB5 | B81: Supporting Table SB5 Adjustments Budget - social, economic and demographic statistics and assumptions | D81: =D101&"Table SB5 " -> Supporting Table SB5 | E81: Consolidated Adjustments Budget - social, economic and demographic statistics and assumptions | F81: ="Adjustments Budget - social, economic and demographic statistics and assumptions" -> Adjustments Budget - social, economic and demographic statistics and assumptions
A82: ADJB6 | B82: Supporting Table SB6 Adjustments Budget - funding measurement | D82: =D101&"Table SB6 " -> Supporting Table SB6 | E82: Consolidated Adjustments Budget - funding measurement | F82: ="Adjustments Budget - funding measurement" -> Adjustments Budget - funding measurement
A83: ADJB7 | B83: Supporting Table SB7 Adjustments Budget - transfers and grant receipts | D83: =D101&"Table SB7 " -> Supporting Table SB7 | E83: Consolidated Adjustments Budget - transfers and grant receipts | F83: ="Adjustments Budget - transfers and grant receipts" -> Adjustments Budget - transfers and grant receipts
A84: ADJB8 | B84: Supporting Table SB8 Adjustments Budget - expenditure on transfers and grant programme | D84: =D101&"Table SB8 " -> Supporting Table SB8 | E84: Consolidated Adjustments Budget - expenditure on transfers and grant programme | F84: ="Adjustments Budget - expenditure on transfers and grant programme" -> Adjustments Budget - expenditure on transfers and grant programme
A85: ADJB9 | B85: Supporting Table SB9 Adjustments Budget - reconciliation of transfers, grant receipts, and unspent funds | D85: =D101&"Table SB9 " -> Supporting Table SB9 | E85: Consolidated Adjustments Budget - reconciliation of transfers, grant receipts, and unspent funds | F85: ="Adjustments Budget - reconciliation of transfers, grant receipts, and unspent funds" -> Adjustments Budget - reconciliation of transfers, grant receipts, and unspent funds
A86: ADJB10 | B86: Supporting Table SB10 Adjustments Budget - transfers and grants made by the municipality | D86: =D101&"Table SB10 " -> Supporting Table SB10 | E86: Consolidated Adjustments Budget - transfers and grants made by the municipality | F86: ="Adjustments Budget - transfers and grants made by the municipality" -> Adjustments Budget - transfers and grants made by the municipality
A87: ADJB11 | B87: Supporting Table SB11 Adjustments Budget - councillor and staff benefits | D87: =D101&"Table SB11 " -> Supporting Table SB11 | E87: Consolidated Adjustments Budget - councillor and staff benefits | F87: ="Adjustments Budget - councillor and staff benefits" -> Adjustments Budget - councillor and staff benefits
A88: ADJB12 | B88: Supporting Table SB12 Adjustments Budget - monthly revenue and expenditure (municipal vote) | D88: =D101&"Table SB12 " -> Supporting Table SB12 | E88: Consolidated Adjustments Budget - monthly revenue and expenditure (municipal vote) | F88: ="Adjustments Budget - monthly revenue and expenditure (municipal vote)" -> Adjustments Budget - monthly revenue and expenditure (municipal vote)
A89: ADJB13 | B89: Supporting Table SB13 Adjustments Budget - monthly revenue and expenditure (functional classification) | D89: =D101&"Table SB13 " -> Supporting Table SB13 | E89: Consolidated Adjustments Budget - monthly revenue and expenditure (functional classification) | F89: ="Adjustments Budget - monthly revenue and expenditure (functional classification)" -> Adjustments Budget - monthly revenue and expenditure (functional classification)
A90: ADJB14 | B90: Supporting Table SB14 Adjustments Budget - monthly revenue and expenditure | D90: =D101&"Table SB14 " -> Supporting Table SB14 | E90: Consolidated Adjustments Budget - monthly revenue and expenditure | F90: ="Adjustments Budget - monthly revenue and expenditure" -> Adjustments Budget - monthly revenue and expenditure
A91: ADJB15 | B91: Supporting Table SB15 Adjustments Budget - monthly cash flow | D91: =D101&"Table SB15 " -> Supporting Table SB15 | E91: Consolidated Adjustments Budget - monthly cash flow | F91: ="Adjustments Budget - monthly cash flow" -> Adjustments Budget - monthly cash flow
A92: ADJB16 | B92: Supporting Table SB16 Adjustments Budget - monthly capital expenditure (municipal vote) | D92: =D101&"Table SB16 " -> Supporting Table SB16 | E92: Consolidated Adjustments Budget - monthly capital expenditure (municipal vote) | F92: ="Adjustments Budget - monthly capital expenditure (municipal vote)" -> Adjustments Budget - monthly capital expenditure (municipal vote)
A93: ADJB17 | B93: Supporting Table SB17 Adjustments Budget - monthly capital expenditure (functional classification) | D93: =D101&"Table SB17 " -> Supporting Table SB17 | E93: Consolidated Adjustments Budget - monthly capital expenditure (functional classification) | F93: ="Adjustments Budget - monthly capital expenditure (functional classification)" -> Adjustments Budget - monthly capital expenditure (functional classification)
A94: ADJB18a | B94: Supporting Table SB18a Adjustments Budget - capital expenditure on new assets by asset class | D94: =D101&"Table SB18a " -> Supporting Table SB18a | E94: Consolidated Adjustments Budget - capital expenditure on new assets by asset class | F94: ="Adjustments Budget - capital expenditure on new assets by asset class" -> Adjustments Budget - capital expenditure on new assets by asset class
A95: ADJB18b | B95: Supporting Table SB18b Adjustments Budget - capital expenditure on renewal of existing assets by asset class | D95: =D101&"Table SB18b " -> Supporting Table SB18b | E95: ="Consolidated "&F95 -> Consolidated Adjustments Budget - capital expenditure on renewal of existing assets by asset class | F95: ="Adjustments Budget - capital expenditure on renewal of existing assets by asset class" -> Adjustments Budget - capital expenditure on renewal of existing assets by asset class
A96: ADJB18c | B96: Supporting Table SB18c Adjustments Budget - expenditure on repairs and maintenance by asset class | D96: =D101&"Table SB18c " -> Supporting Table SB18c | E96: ="Consolidated "&F96 -> Consolidated Adjustments Budget - expenditure on repairs and maintenance by asset class | F96: ="Adjustments Budget - expenditure on repairs and maintenance by asset class" -> Adjustments Budget - expenditure on repairs and maintenance by asset class
A97: ADJB18d | B97: Supporting Table SB18d Adjustments Budget - depreciation by asset class | D97: =D101&"Table SB18d " -> Supporting Table SB18d | E97: ="Consolidated "&F97 -> Consolidated Adjustments Budget - depreciation by asset class | F97: ="Adjustments Budget - depreciation by asset class" -> Adjustments Budget - depreciation by asset class
A98: ADJB18e | B98: Supporting Table SB18d Adjustments Budget - capital expenditure on upgrading of existing assets by asset class | D98: =D101&"Table SB18d " -> Supporting Table SB18d | E98: ="Consolidated "&F98 -> Consolidated Adjustments Budget - capital expenditure on upgrading of existing assets by asset class | F98: ="Adjustments Budget - capital expenditure on upgrading of existing assets by asset class" -> Adjustments Budget - capital expenditure on upgrading of existing assets by asset class
A99: ADJB19 | B99: Supporting Table SB19 List of capital programmes and projects affected by Adjustments Budget | D99: =D101&"Table SB19 " -> Supporting Table SB19 | E99: Consolidated List of capital programmes and projects affected by Adjustments Budget | F99: ="List of capital programmes and projects affected by Adjustments Budget" -> List of capital programmes and projects affected by Adjustments Budget
A100: ADJB20 | B100: Supporting Table SB20 Not required | D100: =D101&"Table SB20 " -> Supporting Table SB20 | E100: ="Adjusted Budget Municipal Entity Performance Summary" -> Adjusted Budget Municipal Entity Performance Summary | F100: Not required
D101: Supporting

Sheet Lookup and lists (hidden)
A1: Description | B1: 2007 | C1: 2008 | D1: 2009 | E1: 2010 | F1: 2011 | G1: 2012 | H1: 2013 | I1: 2014 | J1: 2015 | K1: 2016 | L1: 2017 | M1: 2018 | N1: 2019 | O1: 2020 | Q1: Grants: | R1: National - opex | S1: Provincial - opex | T1: National - capex | U1: Provincial - capex | V1: YESNO
A2: ='Template names'!C2 -> Prior year -1 | B2: 2006/07 | C2: 2007/08 | D2: 2008/09 | E2: =E1-1&"/"&RIGHT(E1,2)-0 -> 2009/10 | F2: 2010/11 | G2: 2011/12 | H2: 2012/13 | I2: 2013/14 | J2: 2014/15 | K2: 2015/16 | L2: 2016/17 | M2: 2017/18 | N2: 2018/19 | O2: 2019/20 | R2: Local Government Equitable Share | S2: Health subsidy | T2: Municipal Infrastructure Grant (MIG) | U2: Agriculture | V2: Yes
A3: ='Template names'!C3 -> Prior year -2 | B3: 2005/06 | C3: 2006/07 | D3: 2007/08 | E3: =E1-2&"/"&RIGHT(E1,2)-1 -> 2008/9 | F3: 2009/10 | G3: 2010/11 | H3: 2011/12 | I3: 2012/13 | J3: 2013/14 | K3: 2014/15 | L3: 2015/16 | M3: 2016/17 | N3: 2017/18 | O3: 2018/19 | R3: RSC Levy Replacement | S3: Ambulance subsidy | T3: Public Transport and Systems | U3: Education | V3: No
A4: ='Template names'!C4 -> Prior year -3 | B4: 2004/05 | C4: 2005/06 | D4: 2006/07 | E4: =E1-3&"/"&RIGHT(E1,2)-2 -> 2007/8 | F4: 2008/9 | G4: 2009/10 | H4: 2010/11 | I4: 2011/12 | J4: 2012/13 | K4: 2013/14 | L4: 2014/15 | M4: 2015/16 | N4: 2016/17 | O4: 2017/18 | R4: Finance Management | S4: Housing | T4: Rural Transport Services and Infrastructure | U4: Health
A5: ='Template names'!C7 -> MTREF header name | B5: 2007/08 Medium Term Revenue & Expenditure Framework | C5: 2008/09 Medium Term Revenue & Expenditure Framework | D5: 2009/10 Medium Term Revenue & Expenditure Framework | E5: =E1&"/"&RIGHT(E1,2)+1&" Medium Term Revenue & Expenditure Framework" -> 2010/11 Medium Term Revenue & Expenditure Framework | F5: 2011/12 Medium Term Revenue & Expenditure Framework | G5: 2012/13 Medium Term Revenue & Expenditure Framework | H5: 2013/14 Medium Term Revenue & Expenditure Framework | I5: 2014/15 Medium Term Revenue & Expenditure Framework | J5: 2015/16 Medium Term Revenue & Expenditure Framework | K5: 2016/17 Medium Term Revenue & Expenditure Framework | L5: 2017/18 Medium Term Revenue & Expenditure Framework | M5: 2018/19 Medium Term Revenue & Expenditure Framework | N5: 2019/20 Medium Term Revenue & Expenditure Framework | O5: 2020/21 Medium Term Revenue & Expenditure Framework | R5: Municipal Systems Improvement | S5: Sport and Recreation | T5: Regional Bulk Infrastructure | U5: Housing and Local Government
A6: ='Template names'!C6 -> Approved budget year | B6: 2007/08 | C6: 2008/09 | D6: 2009/10 | E6: =E1&"/"&RIGHT(E1,2)+1 -> 2010/11 | F6: 2011/12 | G6: 2012/13 | H6: 2013/14 | I6: 2014/15 | J6: 2015/16 | K6: 2016/17 | L6: 2017/18 | M6: 2018/19 | N6: 2019/20 | O6: 2020/21 | R6: Water Services Operating Subsidy | T6: Rural Households Infrastructure | U6: Other Departments
A7: ='Template names'!C16 -> 1st year of MTREF | B7: Budget Year 2007/08 | C7: Budget Year 2008/09 | D7: Budget Year 2009/10 | E7: ="Budget Year "&E1&"/"&RIGHT(E1,2)+1 -> Budget Year 2010/11 | F7: Budget Year 2011/12 | G7: Budget Year 2012/13 | H7: Budget Year 2013/14 | I7: Budget Year 2014/15 | J7: Budget Year 2015/16 | K7: Budget Year 2016/17 | L7: Budget Year 2017/18 | M7: Budget Year 2018/19 | N7: Budget Year 2019/20 | O7: Budget Year 2020/21 | R7: Energy Efficiency and Demand Management | T7: Neighbourhood Development Partnership | U7: Public Works, Roads, Transport
A8: ='Template names'!C17 -> 2nd year of MTREF | B8: Budget Year +1 2008/09 | C8: Budget Year +1 2009/10 | D8: Budget Year +1 2010/11 | E8: ="Budget Year +1 "&E1+1&"/"&RIGHT(E1,2)+2 -> Budget Year +1 2011/12 | F8: Budget Year +1 2012/13 | G8: Budget Year +1 2013/14 | H8: Budget Year +1 2014/15 | I8: Budget Year +1 2015/16 | J8: Budget Year +1 2016/17 | K8: Budget Year +1 2017/18 | L8: Budget Year +1 2018/19 | M8: Budget Year +1 2019/20 | N8: Budget Year +1 2020/21 | O8: Budget Year +1 2021/22 | R8: Integrated National Electrification Programme | T8: 2010 FIFA World Cup Stadiums Development | U8: Sport and Recreation
A9: ='Template names'!C18 -> 3rd year of MTREF | B9: Budget Year +2 2009/10 | C9: Budget Year +2 2010/11 | D9: Budget Year +2 2011/12 | E9: ="Budget Year +2 "&E1+2&"/"&RIGHT(E1,2)+3 -> Budget Year +2 2012/13 | F9: Budget Year +2 2013/14 | G9: Budget Year +2 2014/15 | H9: Budget Year +2 2015/16 | I9: Budget Year +2 2016/17 | J9: Budget Year +2 2017/18 | K9: Budget Year +2 2018/19 | L9: Budget Year +2 2019/20 | M9: Budget Year +2 2020/21 | N9: Budget Year +2 2021/22 | O9: Budget Year +2 2022/23 | R9: Municipal Drought Relief
A10: Adjustments Budget | B10: Annual target 2007/08 | C10: Annual target 2008/09 | D10: Annual target 2009/10 | E10: ="Annual target " & E1&"/"&RIGHT(E1,2)+1 -> Annual target 2010/11 | F10: Annual target 2011/12 | G10: Annual target 2012/13 | H10: Annual target 2013/14 | I10: Annual target 2014/15 | J10: Annual target 2015/16 | K10: Annual target 2016/17 | L10: Annual target 2017/18 | M10: Annual target 2018/19 | N10: Annual target 2019/20 | O10: Annual target 2020/21 | R10: 2010 FIFA World Cup Operating
A11: NOTE: This sheet should not be directly amended - select headings from sheet 'S' | R11: Electricity Demand Side Management
R12: EPWP Incentive
R15: Asset Class | S15: Asset sub-class Old | T15: Asset sub-class | U15: IUDF | V15: MTSF
R17: Roads Infrastructure | S17: Roads, Pavements & Bridges | T17: Roads | U17: Spatial integration | V17: Quality basic education
R18: Storm water Infrastructure | S18: Storm water | T18: Road Structures | U18: Inclusion and access | V18: A long and healthy life for all South Africans
R19: Electrical Infrastructure | S19: Generation | T19: Road Furniture | U19: Growth | V19: All people in South Africa are and feel safe
R20: Water Supply Infrastructure | S20: Transmission & Reticulation | T20: Capital Spares | U20: Governance | V20: Decent employment through inclusive growth
R21: Sanitation Infrastructure | S21: Street Lighting | T21: Drainage Collection | V21: A skilled and capable workforce to support an inclusive growth path
R22: Solid Waste Infrastructure | S22: Dams & Reservoirs | T22: Storm water Conveyance | V22: An efficient, competitive and responsive economic infrastructure network
R23: Rail Infrastructure | S23: Water purification | T23: Attenuation | V23: Vibrant, equitable, sustainable rural communities contributing towards food security for all
R24: Coastal Infrastructure | S24: Reticulation | T24: Power Plants | V24: Sustainable human settlements and improved quality of household life
R25: Information and Communication Infrastructure | S25: Sewerage purification | T25: HV Substations | V25: Responsive, accountable, effective and efficient local government
R26: Community Facilities | S26: Waste Management | T26: HV Switching Station | V26: Protect and enhance our environmental assets and natural resources
A27: Name link | B27: 211 | R27: Sport and Recreation Facilities | S27: Transportation | T27: HV Transmission Conductors | V27: Create a better South Africa and contribute to a better Africa and a better world
A28: Name of Muni | B28: =INDEX(B29:B312,B27,1) -> NW375 Moses Kotane | R28: Heritage assets | S28: Gas | T28: MV Substations | V28: An efficient, effective and development-oriented public service
B29: Choose name from list | C29: Set name on 'Instructions' sheet | R29: Revenue Generating | S29: Parks & gardens | T29: MV Switching Stations | V29: A comprehensive, responsive and sustainable social protection system
B30: BUF Buffalo City | C30: EC EASTERN CAPE | R30: Non-revenue Generating | S30: Sportsfields & stadia | T30: MV Networks | V30: A diverse, socially cohesive society with a common national identity
B31: NMA Nelson Mandela Bay | C31: EC EASTERN CAPE | R31: Operational Buildings | S31: Swimming pools | T31: LV Networks
B32: EC101 Dr Beyers Naude | C32: EC EASTERN CAPE | R32: Housing | S32: Community halls | T32: Capital Spares
B33: EC102 Blue Crane Route | C33: EC EASTERN CAPE | R33: Biological or Cultivated Assets | S33: Libraries | T33: Dams and Weirs
B34: EC104 Makana | C34: EC EASTERN CAPE | R34: Servitudes | S34: Recreational facilities | T34: Boreholes
B35: EC105 Ndlambe | C35: EC EASTERN CAPE | R35: Licences and Rights | S35: Fire, safety & emergency | T35: Reservoirs
B36: EC106 Sundays River Valley | C36: EC EASTERN CAPE | R36: Computer Equipment | S36: Security and policing | T36: Pump Stations
B37: EC108 Kouga | C37: EC EASTERN CAPE | R37: Furniture and Office Equipment | S37: Buses | T37: Water Treatment Works
B38: EC109 Kou-Kamma | C38: EC EASTERN CAPE | R38: Machinery and Equipment | S38: Clinics | T38: Bulk Mains
B39: DC10 Sarah Baartman | C39: EC EASTERN CAPE | R39: Transport Assets | S39: Museums & Art Galleries | T39: Distribution
B40: EC121 Mbhashe | C40: EC EASTERN CAPE | R40: Land | S40: Cemeteries | T40: Distribution Points
B41: EC122 Mnquma | C41: EC EASTERN CAPE | R41: Zoo's, Marine and Non-biological Animals | S41: Social rental housing | T41: PRV Stations
B42: EC123 Great Kei | C42: EC EASTERN CAPE | S42: Buildings | T42: Capital Spares
B43: EC124 Amahlathi | C43: EC EASTERN CAPE | S43: Housing development | T43: Pump Station
B44: EC126 Ngqushwa | C44: EC EASTERN CAPE | S44: General vehicles | T44: Reticulation
B45: EC129 Raymond Mhlaba | C45: EC EASTERN CAPE | S45: Specialised vehicles - Refuse | T45: Waste Water Treatment Works
B46: DC12 Amathole | C46: EC EASTERN CAPE | S46: Specialised vehicles - Fire | T46: Outfall Sewers
B47: EC131 Inxuba Yethemba | C47: EC EASTERN CAPE | S47: Specialised vehicles - Conservancy | T47: Toilet Facilities
B48: EC135 Intsika Yethu | C48: EC EASTERN CAPE | S48: Specialised vehicles - Ambulances | T48: Capital Spares
B49: EC136 Emalahleni (Ec) | C49: EC EASTERN CAPE | S49: Plant & equipment | T49: Landfill Sites
B50: EC137 Engcobo | C50: EC EASTERN CAPE | S50: Computers - hardware/equipment | T50: Waste Transfer Stations
B51: EC138 Sakhisizwe | C51: EC EASTERN CAPE | S51: Furniture and other office equipment | T51: Waste Processing Facilities
B52: EC139 Enoch Mgijima | C52: EC EASTERN CAPE | S52: Abattoirs | T52: Waste Drop-off Points
B53: DC13 Chris Hani | C53: EC EASTERN CAPE | S53: Markets | T53: Waste Separation Facilities
B54: EC141 Elundini | C54: EC EASTERN CAPE | S54: Civic Land and Buildings | T54: Electricity Generation Facilities
B55: EC142 Senqu | C55: EC EASTERN CAPE | S55: Other Buildings | T55: Capital Spares
B56: EC145 Walter Sisulu | C56: EC EASTERN CAPE | S56: Other Land | T56: Rail Lines
B57: DC14 Joe Gqabi | C57: EC EASTERN CAPE | S57: Surplus Assets - (Investment or Inventory) | T57: Rail Structures
B58: EC153 Ngquza Hills | C58: EC EASTERN CAPE | S58: Computers - software & programming | T58: Rail Furniture
B59: EC154 Port St Johns | C59: EC EASTERN CAPE | S59: Other | T59: Drainage Collection
B60: EC155 Nyandeni | C60: EC EASTERN CAPE | T60: Storm water Conveyance
B61: EC156 Mhlontlo | C61: EC EASTERN CAPE | R61: SB 19 | T61: Attenuation
B62: EC157 King Sabata Dalindyebo | C62: EC EASTERN CAPE | R62: Yes | T62: MV Substations
B63: DC15 O .R. Tambo | C63: EC EASTERN CAPE | R63: No | T63: LV Networks
B64: EC441 Matatiele | C64: EC EASTERN CAPE | T64: Capital Spares
B65: EC442 Umzimvubu | C65: EC EASTERN CAPE | T65: Sand Pumps
B66: EC443 Mbizana | C66: EC EASTERN CAPE | T66: Piers
B67: EC444 Ntabankulu | C67: EC EASTERN CAPE | T67: Revetments
B68: DC44 Alfred Nzo | C68: EC EASTERN CAPE | T68: Promenades
B69: MAN Mangaung | C69: FS FREE STATE | T69: Capital Spares
B70: FS161 Letsemeng | C70: FS FREE STATE | T70: Data Centres
B71: FS162 Kopanong | C71: FS FREE STATE | T71: Core Layers
B72: FS163 Mohokare | C72: FS FREE STATE | T72: Distribution Layers
B73: DC16 Xhariep | C73: FS FREE STATE | T73: Capital Spares
B74: FS181 Masilonyana | C74: FS FREE STATE | T74: Halls
B75: FS182 Tokologo | C75: FS FREE STATE | T75: Centres
B76: FS183 Tswelopele | C76: FS FREE STATE | T76: Crèches
B77: FS184 Matjhabeng | C77: FS FREE STATE | T77: Clinics/Care Centres
B78: FS185 Nala | C78: FS FREE STATE | T78: Fire/Ambulance Stations
B79: DC18 Lejweleputswa | C79: FS FREE STATE | T79: Testing Stations
B80: FS191 Setsoto | C80: FS FREE STATE | T80: Museums
B81: FS192 Dihlabeng | C81: FS FREE STATE | T81: Galleries
B82: FS193 Nketoana | C82: FS FREE STATE | T82: Theatres
B83: FS194 Maluti-a-Phofung | C83: FS FREE STATE | T83: Libraries
B84: FS195 Phumelela | C84: FS FREE STATE | T84: Cemeteries/Crematoria
B85: FS196 Mantsopa | C85: FS FREE STATE | T85: Police
B86: DC19 Thabo Mofutsanyana | C86: FS FREE STATE | T86: Purls
B87: FS201 Moqhaka | C87: FS FREE STATE | T87: Public Open Space
B88: FS203 Ngwathe | C88: FS FREE STATE | T88: Nature Reserves
B89: FS204 Metsimaholo | C89: FS FREE STATE | T89: Public Ablution Facilities
B90: FS205 Mafube | C90: FS FREE STATE | T90: Markets
B91: DC20 Fezile Dabi | C91: FS FREE STATE | T91: Stalls
B92: EKU City of Ekurhuleni | C92: GT GAUTENG | T92: Abattoirs
B93: JHB City Of Johannesburg | C93: GT GAUTENG | T93: Airports
B94: TSH City Of Tshwane | C94: GT GAUTENG | T94: Taxi Ranks/Bus Terminals
B95: GT421 Emfuleni | C95: GT GAUTENG | T95: Capital Spares
B96: GT422 Midvaal | C96: GT GAUTENG | T96: Indoor Facilities
B97: GT423 Lesedi | C97: GT GAUTENG | T97: Outdoor Facilities
B98: DC42 Sedibeng | C98: GT GAUTENG | T98: Capital Spares
B99: GT481 Mogale City | C99: GT GAUTENG | T99: Monuments
B100: GT484 Merafong City | C100: GT GAUTENG | T100: Historic Buildings
B101: GT485 Rand West City | C101: GT GAUTENG | T101: Works of Art
B102: DC48 West Rand | C102: GT GAUTENG | T102: Conservation Areas
B103: ETH eThekwini | C103: KZN KWAZULU-NATAL | T103: Other Heritage
B104: KZN212 Umdoni | C104: KZN KWAZULU-NATAL | T104: Improved Property
B105: KZN213 Umzumbe | C105: KZN KWAZULU-NATAL | T105: Unimproved Property
B106: KZN214 uMuziwabantu | C106: KZN KWAZULU-NATAL | T106: Municipal Offices
B107: KZN216 Ray Nkonyeni | C107: KZN KWAZULU-NATAL | T107: Pay/Enquiry Points
B108: DC21 Ugu | C108: KZN KWAZULU-NATAL | T108: Building Plan Offices
B109: KZN221 uMshwathi | C109: KZN KWAZULU-NATAL | T109: Workshops
B110: KZN222 uMngeni | C110: KZN KWAZULU-NATAL | T110: Yards
B111: KZN223 Mpofana | C111: KZN KWAZULU-NATAL | T111: Stores
B112: KZN224 Impendle | C112: KZN KWAZULU-NATAL | T112: Laboratories
B113: KZN225 Msunduzi | C113: KZN KWAZULU-NATAL | T113: Training Centres
B114: KZN226 Mkhambathini | C114: KZN KWAZULU-NATAL | T114: Manufacturing Plant
B115: KZN227 Richmond | C115: KZN KWAZULU-NATAL | T115: Depots
B116: DC22 uMgungundlovu | C116: KZN KWAZULU-NATAL | T116: Capital Spares
B117: KZN235 Okhahlamba | C117: KZN KWAZULU-NATAL | T117: Staff Housing
B118: KZN237 Inkosi Langalibalele | C118: KZN KWAZULU-NATAL | T118: Social Housing
B119: KZN238 Alfred Duma | C119: KZN KWAZULU-NATAL | T119: Capital Spares
B120: DC23 Uthukela | C120: KZN KWAZULU-NATAL | T120: Water Rights
B121: KZN241 Endumeni | C121: KZN KWAZULU-NATAL | T121: Effluent Licenses
B122: KZN242 Nquthu | C122: KZN KWAZULU-NATAL | T122: Solid Waste Licenses
B123: KZN244 Msinga | C123: KZN KWAZULU-NATAL | T123: Computer Software and Applications
B124: KZN245 Umvoti | C124: KZN KWAZULU-NATAL | T124: Load Settlement Software Applications
B125: DC24 Umzinyathi | C125: KZN KWAZULU-NATAL | T125: Unspecified
B126: KZN252 Newcastle | C126: KZN KWAZULU-NATAL
B127: KZN253 Emadlangeni | C127: KZN KWAZULU-NATAL
B128: KZN254 Dannhauser | C128: KZN KWAZULU-NATAL
B129: DC25 Amajuba | C129: KZN KWAZULU-NATAL
B130: KZN261 eDumbe | C130: KZN KWAZULU-NATAL
B131: KZN262 uPhongolo | C131: KZN KWAZULU-NATAL
B132: KZN263 Abaqulusi | C132: KZN KWAZULU-NATAL
B133: KZN265 Nongoma | C133: KZN KWAZULU-NATAL
B134: KZN266 Ulundi | C134: KZN KWAZULU-NATAL
B135: DC26 Zululand | C135: KZN KWAZULU-NATAL
B136: KZN271 Umhlabuyalingana | C136: KZN KWAZULU-NATAL
B137: KZN272 Jozini | C137: KZN KWAZULU-NATAL
B138: KZN275 Mtubatuba | C138: KZN KWAZULU-NATAL
B139: KZN276 Hlabisa Big Five | C139: KZN KWAZULU-NATAL
B140: DC27 Umkhanyakude | C140: KZN KWAZULU-NATAL
B141: KZN281 Mfolozi | C141: KZN KWAZULU-NATAL
B142: KZN282 uMhlathuze | C142: KZN KWAZULU-NATAL
B143: KZN284 uMlalazi | C143: KZN KWAZULU-NATAL
B144: KZN285 Mthonjaneni | C144: KZN KWAZULU-NATAL
B145: KZN286 Nkandla | C145: KZN KWAZULU-NATAL
B146: DC28 King Cetshwayo | C146: KZN KWAZULU-NATAL
B147: KZN291 Mandeni | C147: KZN KWAZULU-NATAL
B148: KZN292 KwaDukuza | C148: KZN KWAZULU-NATAL
B149: KZN293 Ndwedwe | C149: KZN KWAZULU-NATAL
B150: KZN294 Maphumulo | C150: KZN KWAZULU-NATAL
B151: DC29 iLembe | C151: KZN KWAZULU-NATAL
B152: KZN433 Greater Kokstad | C152: KZN KWAZULU-NATAL
B153: KZN434 Ubuhlebezwe | C153: KZN KWAZULU-NATAL
B154: KZN435 Umzimkhulu | C154: KZN KWAZULU-NATAL
B155: KZN436 Dr Nkosazana Dlamini Zuma | C155: KZN KWAZULU-NATAL
B156: DC43 Harry Gwala | C156: KZN KWAZULU-NATAL
B157: LIM331 Greater Giyani | C157: LIM LIMPOPO
B158: LIM332 Greater Letaba | C158: LIM LIMPOPO
B159: LIM333 Greater Tzaneen | C159: LIM LIMPOPO
B160: LIM334 Ba-Phalaborwa | C160: LIM LIMPOPO
B161: LIM335 Maruleng | C161: LIM LIMPOPO
B162: DC33 Mopani | C162: LIM LIMPOPO
B163: LIM341 Musina | C163: LIM LIMPOPO
B164: LIM343 Thulamela | C164: LIM LIMPOPO
B165: LIM344 Makhado | C165: LIM LIMPOPO
B166: LIM345 Collins Chabane | C166: LIM LIMPOPO
B167: DC34 Vhembe | C167: LIM LIMPOPO
B168: LIM351 Blouberg | C168: LIM LIMPOPO
B169: LIM353 Molemole | C169: LIM LIMPOPO
B170: LIM354 Polokwane | C170: LIM LIMPOPO
B171: LIM355 Lepelle-Nkumpi | C171: LIM LIMPOPO
B172: DC35 Capricorn | C172: LIM LIMPOPO
B173: LIM361 Thabazimbi | C173: LIM LIMPOPO
B174: LIM362 Lephalale | C174: LIM LIMPOPO
B175: LIM366 Bela Bela | C175: LIM LIMPOPO
B176: LIM367 Mogalakwena | C176: LIM LIMPOPO
B177: LIM368 Modimolle-Mookgopong | C177: LIM LIMPOPO
B178: DC36 Waterberg | C178: LIM LIMPOPO
B179: LIM471 Ephraim Mogale | C179: LIM LIMPOPO
B180: LIM472 Elias Motsoaledi | C180: LIM LIMPOPO
B181: LIM473 Makhuduthamaga | C181: LIM LIMPOPO
B182: LIM476 Tubatse Fetakgomo | C182: LIM LIMPOPO
B183: DC47 Sekhukhune | C183: LIM LIMPOPO
B184: MP301 Albert Luthuli | C184: MP MPUMALANGA
B185: MP302 Msukaligwa | C185: MP MPUMALANGA
B186: MP303 Mkhondo | C186: MP MPUMALANGA
B187: MP304 Pixley Ka Seme (MP) | C187: MP MPUMALANGA
B188: MP305 Lekwa | C188: MP MPUMALANGA
B189: MP306 Dipaleseng | C189: MP MPUMALANGA
B190: MP307 Govan Mbeki | C190: MP MPUMALANGA
B191: DC30 Gert Sibande | C191: MP MPUMALANGA
B192: MP311 Victor Khanye | C192: MP MPUMALANGA
B193: MP312 Emalahleni (Mp) | C193: MP MPUMALANGA
B194: MP313 Steve Tshwete | C194: MP MPUMALANGA
B195: MP314 Emakhazeni | C195: MP MPUMALANGA
B196: MP315 Thembisile Hani | C196: MP MPUMALANGA
B197: MP316 Dr J.S. Moroka | C197: MP MPUMALANGA
B198: DC31 Nkangala | C198: MP MPUMALANGA
B199: MP321 Thaba Chweu | C199: MP MPUMALANGA
B200: MP324 Nkomazi | C200: MP MPUMALANGA
B201: MP325 Bushbuckridge | C201: MP MPUMALANGA
B202: MP326 City of Mbombela | C202: MP MPUMALANGA
B203: DC32 Ehlanzeni | C203: MP MPUMALANGA
... 84 more rows

Sheet Org structure
A1: Organisational Structure Votes | C1: Organisational Structure Sub-Votes | E1: Display Sub-Votes
A2: =B2&" - "&C2 -> Vote 01 - Municipal Council | B2: Vote 01 | C2: Municipal Council
A3: =B8&" - "&C8 -> Vote 02 - Office Of The Accounting Officer | B3: 01.1 | C3: Office Of The Mayor | D3: =CONCATENATE(B3, " - ", C3) -> 01.1 - Office Of The Mayor | E3: 01.1 - Office Of The Mayor
A4: =B15&" - "&C15 -> Vote 03 - Budget And Treasury Office | B4: 01.2 | C4: Office Of The Speaker | D4: =CONCATENATE(B4, " - ", C4) -> 01.2 - Office Of The Speaker | E4: 01.2 - Office Of The Speaker
A5: =B23&" - "&C23 -> Vote 04 - Corporate Services | B5: 01.3 | C5: Office Of The Chief Whip | D5: =CONCATENATE(B5, " - ", C5) -> 01.3 - Office Of The Chief Whip | E5: 01.3 - Office Of The Chief Whip
A6: =B32&" - "&C32 -> Vote 05 - Community Services | B6: 01.4 | C6: Mpac | D6: =CONCATENATE(B6, " - ", C6) -> 01.4 - Mpac | E6: 01.4 - Mpac
A7: =B47&" - "&C47 -> Vote 06 - Planning & Development | B7: 01.5 | C7: Council General Administration | D7: =CONCATENATE(B7, " - ", C7) -> 01.5 - Council General Administration | E7: 01.5 - Council General Administration
A8: =B58&" - "&C58 -> Vote 07 - Infrastructure & Technical Services | B8: Vote 02 | C8: Office Of The Accounting Officer
A9: =B78&" - "&C78 -> Vote 08 - | B9: 02.1 | C9: Office Of The Ao Admin | D9: =CONCATENATE(B9, " - ", C9) -> 02.1 - Office Of The Ao Admin | E9: 02.1 - Office Of The Ao Admin
A10: Vote 09 - | B10: 02.2 | C10: Strategic Planning Monitoring & Evaluat | D10: 02.2 - Strategic Planning Monitoring & Evaluat | E10: 02.2 - Strategic Planning Monitoring & Evaluat
A11: Vote 10 - | B11: 02.3 | C11: Perfomance Management System | D11: 02.3 - Perfomance Management System | E11: 02.3 - Perfomance Management System
A12: Vote 11 - | B12: 02.4 | C12: Internal Audit | D12: 02.4 - Internal Audit | E12: 02.4 - Internal Audit
A13: Vote 12 - | B13: 02.5 | C13: Municipal Planning Idp | D13: 02.5 - Municipal Planning Idp | E13: 02.5 - Municipal Planning Idp
A14: Vote 13 - | B14: 02.6 | C14: Risk | D14: 02.6 - Risk | E14: 02.6 - Risk
A15: Vote 14 - | B15: Vote 03 | C15: Budget And Treasury Office
A16: Vote 15 - Other | B16: 03.1 | C16: Chief Financial Officer Admin | D16: =CONCATENATE(B16, " - ", C16) -> 03.1 - Chief Financial Officer Admin | E16: 03.1 - Chief Financial Officer Admin
B17: 03.2 | C17: Budget Expenditure & Reporting | D17: 03.2 - Budget Expenditure & Reporting | E17: 03.2 - Budget Expenditure & Reporting
B18: 03.3 | C18: Budget Expenditure & Reporting | D18: 03.3 - Budget Expenditure & Reporting | E18: 03.3 - Budget Expenditure & Reporting
B19: 03.4 | C19: Revenue Management | D19: 03.4 - Revenue Management | E19: 03.4 - Revenue Management
B20: 03.5 | C20: Supply Chain Management | D20: 03.5 - Supply Chain Management | E20: 03.5 - Supply Chain Management
B21: 03.6 | C21: Assets Management | D21: 03.6 - Assets Management | E21: 03.6 - Assets Management
B22: 03.7 | C22: Expenditure | D22: 03.7 - Expenditure | E22: 03.7 - Expenditure
B23: Vote 04 | C23: Corporate Services
B24: 04.1 | C24: Legal Services | D24: =CONCATENATE(B24, " - ", C24) -> 04.1 - Legal Services | E24: 04.1 - Legal Services
B25: 04.2 | C25: Corporate Service Administration | D25: 04.2 - Corporate Service Administration | E25: 04.2 - Corporate Service Administration
B26: 04.3 | C26: Human Resources | D26: 04.3 - Human Resources | E26: 04.3 - Human Resources
B27: 04.4 | C27: Media & Communication | D27: 04.4 - Media & Communication | E27: 04.4 - Media & Communication
B28: 04.5 | C28: Organisational Development | D28: 04.5 - Organisational Development | E28: 04.5 - Organisational Development
B29: 04.6 | C29: Labour Relations | D29: 04.6 - Labour Relations | E29: 04.6 - Labour Relations
B30: 04.7 | C30: Legal Services | D30: 04.7 - Legal Services | E30: 04.7 - Legal Services
B31: 04.8 | C31: Information Technology Services | D31: 04.8 - Information Technology Services | E31: 04.8 - Information Technology Services
B32: Vote 05 | C32: Community Services
B33: 05.1 | C33: Municipal Buildings | D33: =CONCATENATE(B33, " - ", C33) -> 05.1 - Municipal Buildings | E33: 05.1 - Municipal Buildings
B34: 05.2 | C34: Fleet Management | D34: 05.2 - Fleet Management | E34: 05.2 - Fleet Management
B35: 05.3 | C35: Community Services Administration | D35: 05.3 - Community Services Administration | E35: 05.3 - Community Services Administration
B36: 05.4 | C36: Cemeteries | D36: 05.4 - Cemeteries | E36: 05.4 - Cemeteries
B37: 05.5 | C37: Disaster Management | D37: 05.5 - Disaster Management | E37: 05.5 - Disaster Management
B38: 05.6 | C38: Fires Service | D38: 05.6 - Fires Service | E38: 05.6 - Fires Service
B39: 05.7 | C39: Libraries | D39: 05.7 - Libraries | E39: 05.7 - Libraries
B40: 05.8 | C40: Municipal Buildings | D40: 05.8 - Municipal Buildings | E40: 05.8 - Municipal Buildings
B41: 05.9 | C41: Sports Recreation & Social Amenitie | D41: 05.9 - Sports Recreation & Social Amenitie | E41: 05.9 - Sports Recreation & Social Amenitie
B42: 05.10 | C42: Waste Management Solid Waste | D42: 05.10 - Waste Management Solid Waste | E42: 05.10 - Waste Management Solid Waste
B43: 05.11 | C43: Safety And Security | D43: 05.11 - Safety And Security | E43: 05.11 - Safety And Security
B44: 05.12 | C44: Traffic Service | D44: 05.12 - Traffic Service | E44: 05.12 - Traffic Service
B45: 05.13 | C45: Traffic Service | D45: 05.13 - Traffic Service | E45: 05.13 - Traffic Service
B46: 05.14 | C46: Fleet Management | D46: 05.14 - Fleet Management | E46: 05.14 - Fleet Management
B47: Vote 06 | C47: Planning & Development
B48: 06.1 | C48: Planning And Development Admin | D48: =CONCATENATE(B48, " - ", C48) -> 06.1 - Planning And Development Admin | E48: 06.1 - Planning And Development Admin
B49: 06.2 | C49: Municipal Planning Idp | D49: 06.2 - Municipal Planning Idp | E49: 06.2 - Municipal Planning Idp
B50: 06.3 | C50: Pms | D50: 06.3 - Pms | E50: 06.3 - Pms
B51: 06.4 | C51: Town Planning | D51: 06.4 - Town Planning | E51: 06.4 - Town Planning
B52: 06.5 | C52: Land Use And Housing Admin | D52: 06.5 - Land Use And Housing Admin | E52: 06.5 - Land Use And Housing Admin
B53: 06.6 | C53: Local Economic Development | D53: 06.6 - Local Economic Development | E53: 06.6 - Local Economic Development
B54: 06.7 | C54: Led | D54: 06.7 - Led | E54: 06.7 - Led
B55: 06.8 | C55: Agriculture & Rural Development | D55: 06.8 - Agriculture & Rural Development | E55: 06.8 - Agriculture & Rural Development
B56: 06.9 | C56: Tourism & Business Development | D56: 06.9 - Tourism & Business Development | E56: 06.9 - Tourism & Business Development
B57: 06.10 | C57: Arts & Culture | D57: 06.10 - Arts & Culture | E57: 06.10 - Arts & Culture
B58: Vote 07 | C58: Infrastructure & Technical Services
B59: 07.1 | C59: Infrastructure Admin & Tech Admin | D59: =CONCATENATE(B59, " - ", C59) -> 07.1 - Infrastructure Admin & Tech Admin | E59: 07.1 - Infrastructure Admin & Tech Admin
B60: 07.2 | C60: Fleet Management | D60: 07.2 - Fleet Management | E60: 07.2 - Fleet Management
B61: 07.3 | C61: Roads | D61: 07.3 - Roads | E61: 07.3 - Roads
B62: 07.4 | C62: Storm Water | D62: 07.4 - Storm Water | E62: 07.4 - Storm Water
B63: 07.5 | C63: Street Lighting | D63: 07.5 - Street Lighting | E63: 07.5 - Street Lighting
B64: 07.6 | C64: Project Management Unit | D64: 07.6 - Project Management Unit | E64: 07.6 - Project Management Unit
B65: 07.7 | C65: Sanitation Treatment Plant: Mogwase | D65: 07.7 - Sanitation Treatment Plant: Mogwase | E65: 07.7 - Sanitation Treatment Plant: Mogwase
B66: 07.8 | C66: Sanitation Treatment Plant: Madikwe | D66: 07.8 - Sanitation Treatment Plant: Madikwe | E66: 07.8 - Sanitation Treatment Plant: Madikwe
B67: 07.9 | C67: Sanitation Reticulation | D67: 07.9 - Sanitation Reticulation | E67: 07.9 - Sanitation Reticulation
B68: 07.10 | C68: Water Administration | D68: 07.10 - Water Administration | E68: 07.10 - Water Administration
B69: 07.11 | C69: Water Madikwe: Water Treatment Work | D69: 07.11 - Water Madikwe: Water Treatment Work | E69: 07.11 - Water Madikwe: Water Treatment Work
B70: 07.12 | C70: Water: Pella Water Treatment Works | D70: 07.12 - Water: Pella Water Treatment Works | E70: 07.12 - Water: Pella Water Treatment Works
B71: 07.13 | C71: Water: Madikwe Retail & Bulk Lines | D71: 07.13 - Water: Madikwe Retail & Bulk Lines | E71: 07.13 - Water: Madikwe Retail & Bulk Lines
B72: 07.14 | C72: Water: Madikwe Rural | D72: 07.14 - Water: Madikwe Rural | E72: 07.14 - Water: Madikwe Rural
B73: 07.15 | C73: Water: Molatedi | D73: 07.15 - Water: Molatedi | E73: 07.15 - Water: Molatedi
B74: 07.16 | C74: Water Eastern: Retail Mankwe | D74: 07.16 - Water Eastern: Retail Mankwe | E74: 07.16 - Water Eastern: Retail Mankwe
B75: 07.17 | C75: Water Vaalkopdam: Mankwe | D75: 07.17 - Water Vaalkopdam: Mankwe | E75: 07.17 - Water Vaalkopdam: Mankwe
B76: 07.18 | C76: Water Eastern: Retail Mankwe | D76: 07.18 - Water Eastern: Retail Mankwe | E76: 07.18 - Water Eastern: Retail Mankwe
B77: 07.19 | C77: Reporting Function Electricity | D77: 07.19 - Reporting Function Electricity | E77: 07.19 - Reporting Function Electricity
B78: Vote 08
B79: Vote 09
B80: Vote 10
B81: Vote 11
B82: Vote 12
B83: Vote 13
B84: Vote 14
B85: Vote 15 | C85: Other

Sheet Contacts
A1: ='Template names'!$B$63&" - "&" Contact Information" -> NW375 Moses Kotane - Contact Information
A3: A. GENERAL INFORMATION
A4: Municipality | B4: ='Template names'!$B$63 -> NW375 Moses Kotane | C4: Set name on 'Instructions' sheet
A6: Grade | B6: 2 | C6: 1 Grade in terms of the Remuneration of Public Office Bearers Act.
A8: Province | B8: =IF(B4>" ",VLOOKUP(B4,'Lookup and lists'!B29:C312,2, FALSE)," ") -> NW NORTH WEST
A10: Web Address | B10: www.moseskotane.gov.za
A12: e-mail Address | B12: municipalmanager@moseskotane.gov.za
A14: B. CONTACT INFORMATION
A15: Postal address:
A16: P.O. Box | B16: 1011
A17: City / Town | B17: Mogwase
A18: Postal Code | B18: 0314
A20: Street address
A21: Building | B21: Mogwase Shopping Complex
A22: Street No. & Name | B22: 935 Station Road
A23: City / Town | B23: Mogwase
A24: Postal Code | B24: 0314
A26: General Contacts
A27: Telephone number | B27: 014 555 1300
A28: Fax number | B28: 014 555 6368
A30: C. POLITICAL LEADERSHIP
A31: Speaker: | C31: Secretary/PA to the Speaker:
A32: ID Number | B32: 7206135791081 | C32: ID Number
A33: Title | B33: Clr | C33: Title | D33: Ms
A34: Name | B34: Sipho Vava | C34: Name | D34: D MANAME
A35: Telephone number | B35: 014 555 1309 | C35: Telephone number | D35: 014 555 1309
A36: Cell number | B36: 0823079727 | C36: Cell number | D36: 073 973 7862
A37: Fax number | B37: 014 555 6368 | C37: Fax number | D37: 014 555 7635
A38: E-mail address | B38: speakersecretary@moseskotane.gov.za | C38: E-mail address | D38: speakersecretary@moseskotane.gov.za
A40: Mayor/Executive Mayor: | C40: Secretary/PA to the Mayor/Executive Mayor:
A41: ID Number | C41: ID Number
A42: Title | B42: Clr | C42: Title | D42: Mrs
A43: Name | B43: A R DIALE | C43: Name | D43: M MORUPI
A44: Telephone number | B44: 014 555 1305 | C44: Telephone number | D44: 014 555 1305
A45: Cell number | B45: 082 467 2895 | C45: Cell number | D45: 079 342 0861
A46: Fax number | B46: 014 555 6368 | C46: Fax number | D46: 014 555 6368
A47: E-mail address | B47: mayorssecretary@moseskotane.gov.za | C47: E-mail address | D47: mayorsecretary@moseskotane.gov.za
A49: Deputy Mayor/Executive Mayor: | C49: Secretary/PA to the Deputy Mayor/Executive Mayor:
A50: ID Number | C50: ID Number
A51: Title | C51: Title
A52: Name | C52: Name
A53: Telephone number | C53: Telephone number
A54: Cell number | C54: Cell number
A55: Fax number | C55: Fax number
A56: E-mail address | C56: E-mail address
A58: D. MANAGEMENT LEADERSHIP
A59: Municipal Manager: | C59: Secretary/PA to the Municipal Manager:
A60: ID Number | C60: ID Number
A61: Title | B61: Mr | C61: Title | D61: Ms
A62: Name | B62: M V LETSOALO | C62: Name | D62: WINNIE MABALANE
A63: Telephone number | B63: 014 555 1307 | C63: Telephone number | D63: 014 555 1307
A64: Cell number | B64: 066 300 6349 | C64: Cell number | D64: 082 543 4845
A65: Fax number | B65: 086 654 5962 | C65: Fax number | D65: 086 654 5962
A66: E-mail address | B66: 066 300 6349 | C66: E-mail address | D66: municipalmanager@moseskotane.gov.za
A68: Chief Financial Officer | C68: Secretary/PA to the Chief Financial Officer
A69: ID Number | B69: 8409265857081 | C69: ID Number
A70: Title | B70: Mr | C70: Title
A71: Name | B71: MR Mkhize | C71: Name
A72: Telephone number | B72: 014 555 1332 | C72: Telephone number
A73: Cell number | B73: 0609782021 | C73: Cell number
A74: Fax number | C74: Fax number
A75: E-mail address | B75: cfo@moseskotane.gov.za | C75: E-mail address
A77: Official responsible for submitting financial information | C77: Official responsible for submitting financial information
A78: ID Number | C78: ID Number
A79: Title | B79: Ms T Lebusa | C79: Title
A80: Name | B80: T LEBUSA | C80: Name
A81: Telephone number | B81: 014 555 1333 | C81: Telephone number
A82: Cell number | B82: 082 051 2347 | C82: Cell number
A83: Fax number | B83: 086 232 1786 | C83: Fax number
A84: E-mail address | B84: tlebusa@moseskotane.gov.za | C84: E-mail address
A85: Official responsible for submitting financial information | C85: Official responsible for submitting financial information
A86: ID Number | C86: ID Number
A87: Title | C87: Title
A88: Name | C88: Name
A89: Telephone number | C89: Telephone number
A90: Cell number | C90: Cell number
A91: Fax number | C91: Fax number
A92: E-mail address | C92: E-mail address
A93: Official responsible for submitting financial information | C93: Official responsible for submitting financial information
A94: ID Number | C94: ID Number
A95: Title | C95: Title
A96: Name | C96: Name
A97: Telephone number | C97: Telephone number
A98: Cell number | C98: Cell number
A99: Fax number | C99: Fax number
A100: E-mail address | C100: E-mail address
A101: Official responsible for submitting financial information | C101: Official responsible for submitting financial information
A102: ID Number | C102: ID Number
A103: Title | C103: Title
A104: Name | C104: Name
A105: Telephone number | C105: Telephone number
A106: Cell number | C106: Cell number
A107: Fax number | C107: Fax number
A108: E-mail address | C108: E-mail address
A109: Official responsible for submitting financial information | C109: Official responsible for submitting financial information
A110: ID Number | C110: ID Number
A111: Title | C111: Title
A112: Name | C112: Name
A113: Telephone number | C113: Telephone number
A114: Cell number | C114: Cell number
A115: Fax number | C115: Fax number
A116: E-mail address | C116: E-mail address
A117: Official responsible for submitting financial information | C117: Official responsible for submitting financial information
A118: ID Number | C118: ID Number
A119: Title | C119: Title
A120: Name | C120: Name
A121: Telephone number | C121: Telephone number
A122: Cell number | C122: Cell number
A123: Fax number | C123: Fax number
A124: E-mail address | C124: E-mail address
A125: Official responsible for submitting financial information | C125: Official responsible for submitting financial information
A126: ID Number | C126: ID Number
A127: Title | C127: Title
A128: Name | C128: Name
A129: Telephone number | C129: Telephone number
A130: Cell number | C130: Cell number
A131: Fax number | C131: Fax number
A132: E-mail address | C132: E-mail address
A133: Official responsible for submitting financial information
A134: ID Number
A135: Title
A136: Name
A137: Telephone number
A138: Cell number
A139: Fax number
A140: E-mail address
H170: 12/06/2020

Sheet B1-Sum
A1: =muni&" - "&adjsum&" - "&Date -> NW375 Moses Kotane - Table B1 Adjustments Budget Summary - 44171
A2: =desc -> Description | B2: =Head2 -> Budget Year 2019/20 | K2: =Head10 -> Budget Year +1 2020/21 | L2: =Head11 -> Budget Year +2 2021/22
B3: =Head6 -> Original Budget | C3: =Head54 -> Prior Adjusted | D3: =Head51 -> Accum. Funds | E3: =Head52 -> Multi-year capital | F3: =Head53 -> Unfore. Unavoid. | G3: =Head55 -> Nat. or Prov. Govt | H3: =Head50 -> Other Adjusts. | I3: =Head56 -> Total Adjusts. | J3: =Head7 -> Adjusted Budget | K3: =Head7 -> Adjusted Budget | L3: =Head7 -> Adjusted Budget
C4: 1 | D4: 2 | E4: 3 | F4: 4 | G4: 5 | H4: 6 | I4: 7 | J4: 8
A5: R thousands | B5: A | C5: A1 | D5: B | E5: C | F5: D | G5: E | H5: F | I5: G | J5: H
A6: Financial Performance
A7: Property rates | B7: =SUM('B4-FinPerf RE'!C7:C7) -> 142163600 | C7: =SUM('B4-FinPerf RE'!D7:D7) -> 142163600 | D7: =SUM('B4-FinPerf RE'!E7:E7) -> 0 | E7: =SUM('B4-FinPerf RE'!F7:F7) -> 0 | F7: =SUM('B4-FinPerf RE'!G7:G7) -> 0 | G7: =SUM('B4-FinPerf RE'!H7:H7) -> 0 | H7: =SUM('B4-FinPerf RE'!I7:I7) -> 0 | I7: =SUM(D7:H7) -> 0 | J7: =IF(C7=0,B7+I7,C7+I7) -> 142163600 | K7: =SUM('B4-FinPerf RE'!L7:L7) -> 169026146 | L7: =SUM('B4-FinPerf RE'!M7:M7) -> 176817777
A8: Service charges | B8: =SUM('B4-FinPerf RE'!C8:C11) -> 184251428 | C8: =SUM('B4-FinPerf RE'!D8:D11) -> 184251428 | D8: =SUM('B4-FinPerf RE'!E8:E11) -> 0 | E8: =SUM('B4-FinPerf RE'!F8:F11) -> 0 | F8: =SUM('B4-FinPerf RE'!G8:G11) -> 0 | G8: =SUM('B4-FinPerf RE'!H8:H11) -> 0 | H8: =SUM('B4-FinPerf RE'!I8:I11) -> 0 | I8: =SUM('B4-FinPerf RE'!J8:J11) -> 0 | J8: =SUM('B4-FinPerf RE'!K8:K11) -> 184251428 | K8: =SUM('B4-FinPerf RE'!L8:L11) -> 186492720 | L8: =SUM('B4-FinPerf RE'!M8:M11) -> 186680737
A9: Investment revenue | B9: ='B4-FinPerf RE'!C14 -> 5400000 | C9: ='B4-FinPerf RE'!D14 -> 6400000 | D9: ='B4-FinPerf RE'!E14 -> 0 | E9: ='B4-FinPerf RE'!F14 -> 0 | F9: ='B4-FinPerf RE'!G14 -> 0 | G9: ='B4-FinPerf RE'!H14 -> 0 | H9: ='B4-FinPerf RE'!I14 -> 0 | I9: 0 | J9: 6400000 | K9: ='B4-FinPerf RE'!L14 -> 5400000 | L9: ='B4-FinPerf RE'!M14 -> 5200000
A10: Transfers recognised - operational | B10: ='B4-FinPerf RE'!C20 -> 437829637 | C10: ='B4-FinPerf RE'!D20 -> 374462124 | D10: ='B4-FinPerf RE'!E20 -> 0 | E10: ='B4-FinPerf RE'!F20 -> 0 | F10: ='B4-FinPerf RE'!G20 -> 0 | G10: ='B4-FinPerf RE'!H20 -> 0 | H10: ='B4-FinPerf RE'!I20 -> 88513 | I10: 88513 | J10: 374550637 | K10: ='B4-FinPerf RE'!L20 -> 467694767 | L10: ='B4-FinPerf RE'!M20 -> 500553630
A11: Other own revenue | B11: ='B4-FinPerf RE'!C13+'B4-FinPerf RE'!C15+'B4-FinPerf RE'!C16+'B4-FinPerf RE'!C17+'B4-FinPerf RE'!C18+'B4-FinPerf RE'!C19+'B4-FinPerf RE'!C21+'B4-FinPerf RE'!C22 -> 66921500 | C11: ='B4-FinPerf RE'!D13+'B4-FinPerf RE'!D15+'B4-FinPerf RE'!D16+'B4-FinPerf RE'!D17+'B4-FinPerf RE'!D18+'B4-FinPerf RE'!D19+'B4-FinPerf RE'!D21+'B4-FinPerf RE'!D22 -> 66628290 | D11: ='B4-FinPerf RE'!E13+'B4-FinPerf RE'!E15+'B4-FinPerf RE'!E16+'B4-FinPerf RE'!E17+'B4-FinPerf RE'!E18+'B4-FinPerf RE'!E19+'B4-FinPerf RE'!E21+'B4-FinPerf RE'!E22 -> 0 | E11: ='B4-FinPerf RE'!F13+'B4-FinPerf RE'!F15+'B4-FinPerf RE'!F16+'B4-FinPerf RE'!F17+'B4-FinPerf RE'!F18+'B4-FinPerf RE'!F19+'B4-FinPerf RE'!F21+'B4-FinPerf RE'!F22 -> 0 | F11: ='B4-FinPerf RE'!G13+'B4-FinPerf RE'!G15+'B4-FinPerf RE'!G16+'B4-FinPerf RE'!G17+'B4-FinPerf RE'!G18+'B4-FinPerf RE'!G19+'B4-FinPerf RE'!G21+'B4-FinPerf RE'!G22 -> 0 | G11: ='B4-FinPerf RE'!H13+'B4-FinPerf RE'!H15+'B4-FinPerf RE'!H16+'B4-FinPerf RE'!H17+'B4-FinPerf RE'!H18+'B4-FinPerf RE'!H19+'B4-FinPerf RE'!H21+'B4-FinPerf RE'!H22 -> 0 | H11: ='B4-FinPerf RE'!I13+'B4-FinPerf RE'!I15+'B4-FinPerf RE'!I16+'B4-FinPerf RE'!I17+'B4-FinPerf RE'!I18+'B4-FinPerf RE'!I19+'B4-FinPerf RE'!I21+'B4-FinPerf RE'!I22 -> 290000 | I11: 290000 | J11: 66918290 | K11: ='B4-FinPerf RE'!L13+'B4-FinPerf RE'!L15+'B4-FinPerf RE'!L16+'B4-FinPerf RE'!L17+'B4-FinPerf RE'!L18+'B4-FinPerf RE'!L19+'B4-FinPerf RE'!L21+'B4-FinPerf RE'!L22 -> 67591050 | L11: ='B4-FinPerf RE'!M13+'B4-FinPerf RE'!M15+'B4-FinPerf RE'!M16+'B4-FinPerf RE'!M17+'B4-FinPerf RE'!M18+'B4-FinPerf RE'!M19+'B4-FinPerf RE'!M21+'B4-FinPerf RE'!M22 -> 70515156
A12: Total Revenue (excluding capital transfers and contributions) | B12: =SUM(B7:B11) -> 836566165 | C12: 773905442 | D12: 0 | E12: 0 | F12: 0 | G12: 0 | H12: 378513 | I12: 378513 | J12: 774283955 | K12: 896204683 | L12: 939767300
A13: Employee costs | B13: ='B4-FinPerf RE'!C26 -> 270274660 | C13: ='B4-FinPerf RE'!D26 -> 248852359.4 | D13: ='B4-FinPerf RE'!E26 -> 0 | E13: ='B4-FinPerf RE'!F26 -> 0 | F13: ='B4-FinPerf RE'!G26 -> 0 | G13: ='B4-FinPerf RE'!H26 -> 0 | H13: ='B4-FinPerf RE'!I26 -> -2300000 | I13: =SUM(D13:H13) -> -2300000 | J13: =IF(C13=0,B13+I13,C13+I13) -> 246552359.4 | K13: ='B4-FinPerf RE'!L26 -> 278331407 | L13: ='B4-FinPerf RE'!M26 -> 293509032
A14: Remuneration of councillors | B14: ='B4-FinPerf RE'!C27 -> 25371420 | C14: ='B4-FinPerf RE'!D27 -> 25371420 | D14: ='B4-FinPerf RE'!E27 -> 0 | E14: ='B4-FinPerf RE'!F27 -> 0 | F14: ='B4-FinPerf RE'!G27 -> 0 | G14: ='B4-FinPerf RE'!H27 -> 0 | H14: ='B4-FinPerf RE'!I27 -> 2300000 | I14: 2300000 | J14: 27671420 | K14: ='B4-FinPerf RE'!L27 -> 24819114 | L14: ='B4-FinPerf RE'!M27 -> 26060071
A15: Depreciation & asset impairment | B15: ='B4-FinPerf RE'!C29 -> 154536733 | C15: ='B4-FinPerf RE'!D29 -> 154536733 | D15: ='B4-FinPerf RE'!E29 -> 0 | E15: ='B4-FinPerf RE'!F29 -> 0 | F15: ='B4-FinPerf RE'!G29 -> 0 | G15: ='B4-FinPerf RE'!H29 -> 0 | H15: ='B4-FinPerf RE'!I29 -> 0 | I15: 0 | J15: 154536733 | K15: ='B4-FinPerf RE'!L29 -> 133503316 | L15: ='B4-FinPerf RE'!M29 -> 139644469
A16: Finance charges | B16: ='B4-FinPerf RE'!C30 -> 3688959 | C16: ='B4-FinPerf RE'!D30 -> 3688959 | D16: ='B4-FinPerf RE'!E30 -> 0 | E16: ='B4-FinPerf RE'!F30 -> 0 | F16: ='B4-FinPerf RE'!G30 -> 0 | G16: ='B4-FinPerf RE'!H30 -> 0 | H16: ='B4-FinPerf RE'!I30 -> 0 | I16: 0 | J16: 3688959 | K16: ='B4-FinPerf RE'!L30 -> 3043808 | L16: ='B4-FinPerf RE'!M30 -> 2729218
A17: Materials and bulk purchases | B17: =SUM('B4-FinPerf RE'!C31:C32) -> 109277250 | C17: =SUM('B4-FinPerf RE'!D31:D32) -> 92304189.02 | D17: =SUM('B4-FinPerf RE'!E31:E32) -> 0 | E17: =SUM('B4-FinPerf RE'!F31:F32) -> 0 | F17: =SUM('B4-FinPerf RE'!G31:G32) -> 0 | G17: =SUM('B4-FinPerf RE'!H31:H32) -> 0 | H17: =SUM('B4-FinPerf RE'!I31:I32) -> 268000 | I17: 268000 | J17: 92572189.02 | K17: =SUM('B4-FinPerf RE'!L31:L32) -> 116127300 | L17: =SUM('B4-FinPerf RE'!M31:M32) -> 121467500
A18: Transfers and grants | B18: ='B4-FinPerf RE'!C34 -> 0 | C18: ='B4-FinPerf RE'!D34 -> 0 | D18: ='B4-FinPerf RE'!E34 -> 0 | E18: ='B4-FinPerf RE'!F34 -> 0 | F18: ='B4-FinPerf RE'!G34 -> 0 | G18: ='B4-FinPerf RE'!H34 -> 0 | H18: ='B4-FinPerf RE'!I34 -> 0 | I18: 0 | J18: 0 | K18: ='B4-FinPerf RE'!L34 -> 0 | L18: ='B4-FinPerf RE'!M34 -> 0
A19: Other expenditure | B19: ='B4-FinPerf RE'!C37-SUM('B1-Sum'!B13:B18) -> 404091300 | C19: ='B4-FinPerf RE'!D37-SUM('B1-Sum'!C13:C18) -> 380833574.5 | D19: ='B4-FinPerf RE'!E37-SUM('B1-Sum'!D13:D18) -> 0 | E19: ='B4-FinPerf RE'!F37-SUM('B1-Sum'!E13:E18) -> 0 | F19: ='B4-FinPerf RE'!G37-SUM('B1-Sum'!F13:F18) -> 0 | G19: ='B4-FinPerf RE'!H37-SUM('B1-Sum'!G13:G18) -> 0 | H19: ='B4-FinPerf RE'!I37-SUM('B1-Sum'!H13:H18) -> -179487 | I19: -179487 | J19: 380654087.5 | K19: ='B4-FinPerf RE'!L37-SUM('B1-Sum'!K13:K18) -> 382680317 | L19: ='B4-FinPerf RE'!M37-SUM('B1-Sum'!L13:L18) -> 396878502
A20: Total Expenditure | B20: =SUM(B13:B19) -> 967240322 | C20: 905587234.9 | D20: 0 | E20: 0 | F20: 0 | G20: 0 | H20: 88513 | I20: 88513 | J20: 905675747.9 | K20: 938505262 | L20: 980288792
A21: Surplus/(Deficit) | B21: =B12-B20 -> -130674157 | C21: -131681792.9 | D21: 0 | E21: 0 | F21: 0 | G21: 0 | H21: 290000 | I21: 290000 | J21: -131391792.9 | K21: -42300579 | L21: -40521492
A22: ='B4-FinPerf RE'!A40 -> Transfers and subsidies - capital (monetary allocations) (National / Provincial and District) | B22: ='B4-FinPerf RE'!C40 -> 87086153 | C22: ='B4-FinPerf RE'!D40 -> 93773318 | D22: ='B4-FinPerf RE'!E40 -> 0 | E22: ='B4-FinPerf RE'!F40 -> 0 | F22: ='B4-FinPerf RE'!G40 -> 0 | G22: ='B4-FinPerf RE'!H40 -> 0 | H22: ='B4-FinPerf RE'!I40 -> 0 | I22: =SUM(D22:H22) -> 0 | J22: =IF(C22=0,B22+I22,C22+I22) -> 93773318 | K22: ='B4-FinPerf RE'!L40 -> 202495233 | L22: ='B4-FinPerf RE'!M40 -> 218925370
A23: ='B4-FinPerf RE'!A41&" & "&'B4-FinPerf RE'!A42 -> Transfers and subsidies - capital (monetary allocations) (National / Provincial Departmental Agencies, Households, Non-profit Institutions, Private Enterprises, Public Corporatons, Higher Educational Institutions) & Transfers and subsidies - capital (in-kind - all) | B23: =SUM('B4-FinPerf RE'!C41:C42) -> 112438210 | C23: =SUM('B4-FinPerf RE'!D41:D42) -> 112332045 | D23: =SUM('B4-FinPerf RE'!E41:E42) -> 0 | E23: =SUM('B4-FinPerf RE'!F41:F42) -> 0 | F23: =SUM('B4-FinPerf RE'!G41:G42) -> 0 | G23: =SUM('B4-FinPerf RE'!H41:H42) -> 0 | H23: =SUM('B4-FinPerf RE'!I41:I42) -> 0 | I23: =SUM(D23:H23) -> 0 | J23: =IF(C23=0,B23+I23,C23+I23) -> 112332045 | K23: =SUM('B4-FinPerf RE'!L41:L42) -> 0 | L23: =SUM('B4-FinPerf RE'!M41:M42) -> 0
A24: Surplus/(Deficit) after capital transfers & contributions | B24: =B21+SUM(B22:B23) -> 68850206 | C24: 74423570.12 | D24: 0 | E24: 0 | F24: 0 | G24: 0 | H24: 290000 | I24: =SUM(D24:H24) -> 290000 | J24: =IF(C24=0,B24+I24,C24+I24) -> 74713570.12 | K24: 160194654 | L24: 178403878
A25: Share of surplus/ (deficit) of associate | B25: ='B4-FinPerf RE'!C48 -> 0 | C25: ='B4-FinPerf RE'!D48 -> 0 | D25: ='B4-FinPerf RE'!E48 -> 0 | E25: ='B4-FinPerf RE'!F48 -> 0 | F25: ='B4-FinPerf RE'!G48 -> 0 | G25: ='B4-FinPerf RE'!H48 -> 0 | H25: ='B4-FinPerf RE'!I48 -> 0 | I25: =SUM(D25:H25) -> 0 | J25: =IF(C25=0,B25+I25,C25+I25) -> 0 | K25: ='B4-FinPerf RE'!L48 -> 0 | L25: ='B4-FinPerf RE'!M48 -> 0
A26: Surplus/ (Deficit) for the year | B26: =B24+B25 -> 68850206 | C26: 74423570.12 | D26: 0 | E26: 0 | F26: 0 | G26: 0 | H26: 290000 | I26: 290000 | J26: 74713570.12 | K26: 160194654 | L26: 178403878
A28: Capital expenditure & funds sources
A29: Capital expenditure | B29: ='B5-Capex'!C42 -> 204802147 | C29: ='B5-Capex'!D42 -> 206105362.2 | D29: ='B5-Capex'!E42 -> 0 | E29: ='B5-Capex'!F42 -> 0 | F29: ='B5-Capex'!G42 -> 0 | G29: ='B5-Capex'!H42 -> 0 | H29: ='B5-Capex'!I42 -> 113975 | I29: =SUM(D29:H29) -> 113975 | J29: =IF(C29=0,B29+I29,C29+I29) -> 206219337.2 | K29: ='B5-Capex'!L42 -> 202495233 | L29: ='B5-Capex'!M42 -> 218925369
A30: Transfers recognised - capital | B30: ='B5-Capex'!C72 -> 201361894 | C30: ='B5-Capex'!D72 -> 206105362.1 | D30: ='B5-Capex'!E72 -> 0 | E30: ='B5-Capex'!F72 -> 0 | F30: ='B5-Capex'!G72 -> 0 | G30: ='B5-Capex'!H72 -> 0 | H30: ='B5-Capex'!I72 -> 0 | I30: =SUM(D30:H30) -> 0 | J30: =IF(C30=0,B30+I30,C30+I30) -> 206105362.1 | K30: ='B5-Capex'!L72 -> 202495233 | L30: ='B5-Capex'!M72 -> 218925369
A32: Borrowing | B32: ='B5-Capex'!C74 -> 0 | C32: ='B5-Capex'!D74 -> 0 | D32: ='B5-Capex'!E74 -> 0 | E32: ='B5-Capex'!F74 -> 0 | F32: ='B5-Capex'!G74 -> 0 | G32: ='B5-Capex'!H74 -> 0 | H32: ='B5-Capex'!I74 -> 0 | I32: =SUM(D32:H32) -> 0 | J32: =IF(C32=0,B32+I32,C32+I32) -> 0 | K32: ='B5-Capex'!L74 -> 0 | L32: ='B5-Capex'!M74 -> 0
A33: Internally generated funds | B33: ='B5-Capex'!C75 -> 3440253 | C33: ='B5-Capex'!D75 -> 0.06 | D33: ='B5-Capex'!E75 -> 0 | E33: ='B5-Capex'!F75 -> 0 | F33: ='B5-Capex'!G75 -> 0 | G33: ='B5-Capex'!H75 -> 0 | H33: ='B5-Capex'!I75 -> 113975 | I33: =SUM(D33:H33) -> 113975 | J33: =IF(C33=0,B33+I33,C33+I33) -> 113975.06 | K33: ='B5-Capex'!L75 -> 0 | L33: ='B5-Capex'!M75 -> 0
A34: Total sources of capital funds | B34: =+B30+B32+B33 -> 204802147 | C34: =+C30+C32+C33 -> 206105362.2 | D34: 0 | E34: 0 | F34: 0 | G34: 0 | H34: 113975 | I34: =SUM(D34:H34) -> 113975 | J34: =IF(C34=0,B34+I34,C34+I34) -> 206219337.2 | K34: 202495233 | L34: 218925369
A36: Financial position
A37: Total current assets | B37: ='B6-FinPos'!C14 -> 572098000 | C37: ='B6-FinPos'!D14 -> 572098000 | D37: ='B6-FinPos'!E14 -> 0 | E37: ='B6-FinPos'!F14 -> 0 | F37: ='B6-FinPos'!G14 -> 0 | G37: ='B6-FinPos'!H14 -> 0 | H37: ='B6-FinPos'!I14 -> 0 | I37: =SUM(D37:H37) -> 0 | J37: =IF(C37=0,B37+I37,C37+I37) -> 572098000 | K37: ='B6-FinPos'!L14 -> 469097414 | L37: ='B6-FinPos'!M14 -> 777478912
A38: Total non current assets | B38: ='B6-FinPos'!C26 -> 1785427147 | C38: ='B6-FinPos'!D26 -> 1786730362 | D38: ='B6-FinPos'!E26 -> 0 | E38: ='B6-FinPos'!F26 -> 0 | F38: ='B6-FinPos'!G26 -> 0 | G38: ='B6-FinPos'!H26 -> 0 | H38: ='B6-FinPos'!I26 -> 113975 | I38: =SUM(D38:H38) -> 113975 | J38: =IF(C38=0,B38+I38,C38+I38) -> 1786844337 | K38: ='B6-FinPos'!L26 -> 3685970409 | L38: ='B6-FinPos'!M26 -> 3945578770
A39: Total current liabilities | B39: ='B6-FinPos'!C36 -> 172503000 | C39: ='B6-FinPos'!D36 -> 172503000 | D39: ='B6-FinPos'!E36 -> 0 | E39: ='B6-FinPos'!F36 -> 0 | F39: ='B6-FinPos'!G36 -> 0 | G39: ='B6-FinPos'!H36 -> 0 | H39: ='B6-FinPos'!I36 -> 0 | I39: =SUM(D39:H39) -> 0 | J39: =IF(C39=0,B39+I39,C39+I39) -> 172503000 | K39: ='B6-FinPos'!L36 -> 86362000 | L39: ='B6-FinPos'!M36 -> 88264652
A40: Total non current liabilities | B40: ='B6-FinPos'!C41 -> 24600000 | C40: ='B6-FinPos'!D41 -> 24600000 | D40: ='B6-FinPos'!E41 -> 0 | E40: ='B6-FinPos'!F41 -> 0 | F40: ='B6-FinPos'!G41 -> 0 | G40: ='B6-FinPos'!H41 -> 0 | H40: ='B6-FinPos'!I41 -> 0 | I40: =SUM(D40:H40) -> 0 | J40: =IF(C40=0,B40+I40,C40+I40) -> 24600000 | K40: ='B6-FinPos'!L41 -> 29829314 | L40: ='B6-FinPos'!M41 -> 31171633
A41: Community wealth/Equity | B41: ='B6-FinPos'!C50 -> 2160422147 | C41: ='B6-FinPos'!D50 -> 2190922327 | D41: ='B6-FinPos'!E50 -> 0 | E41: ='B6-FinPos'!F50 -> 0 | F41: ='B6-FinPos'!G50 -> 0 | G41: ='B6-FinPos'!H50 -> 0 | H41: ='B6-FinPos'!I50 -> 290000 | I41: =SUM(D41:H41) -> 290000 | J41: =IF(C41=0,B41+I41,C41+I41) -> 2191212327 | K41: ='B6-FinPos'!L50 -> 4038876509 | L41: ='B6-FinPos'!M50 -> 4603621397
A43: Cash flows
A44: Net cash from (used) operating | B44: ='B7-CFlow'!C19 -> 215041000 | C44: ='B7-CFlow'!D19 -> 211101051 | D44: ='B7-CFlow'!E19 -> 0 | E44: ='B7-CFlow'!F19 -> 0 | F44: ='B7-CFlow'!G19 -> 0 | G44: ='B7-CFlow'!H19 -> 0 | H44: ='B7-CFlow'!I19 -> -61155776 | I44: =SUM(D44:H44) -> -61155776 | J44: =IF(C44=0,B44+I44,C44+I44) -> 149945275 | K44: ='B7-CFlow'!L19 -> 15083177.4 | L44: ='B7-CFlow'!M19 -> 27403786.27
A45: Net cash from (used) investing | B45: ='B7-CFlow'!C29 -> 200374000 | C45: ='B7-CFlow'!D29 -> -206106150 | D45: ='B7-CFlow'!E29 -> 0 | E45: ='B7-CFlow'!F29 -> 0 | F45: ='B7-CFlow'!G29 -> 0 | G45: ='B7-CFlow'!H29 -> 0 | H45: ='B7-CFlow'!I29 -> -113975 | I45: =SUM(D45:H45) -> -113975 | J45: =IF(C45=0,B45+I45,C45+I45) -> -206220125 | K45: ='B7-CFlow'!L29 -> 211771000 | L45: ='B7-CFlow'!M29 -> 227138000
A46: Net cash from (used) financing | B46: ='B7-CFlow'!C38 -> -7960000 | C46: ='B7-CFlow'!D38 -> 0 | D46: ='B7-CFlow'!E38 -> 0 | E46: ='B7-CFlow'!F38 -> 0 | F46: ='B7-CFlow'!G38 -> 0 | G46: ='B7-CFlow'!H38 -> 0 | H46: ='B7-CFlow'!I38 -> 0 | I46: =SUM(D46:H46) -> 0 | J46: =IF(C46=0,B46+I46,C46+I46) -> -7960000 | K46: ='B7-CFlow'!L38 -> -8425000 | L46: ='B7-CFlow'!M38 -> -8722000
A47: Cash/cash equivalents at the year end | B47: ='B7-CFlow'!C42 -> 454854000 | C47: ='B7-CFlow'!D42 -> 69688047 | D47: ='B7-CFlow'!E42 -> 0 | E47: ='B7-CFlow'!F42 -> 0 | F47: ='B7-CFlow'!G42 -> 0 | G47: ='B7-CFlow'!H42 -> 0 | H47: ='B7-CFlow'!I42 -> -61269751 | I47: =SUM(D47:H47) -> -61269751 | J47: =IF(C47=0,B47+I47,C47+I47) -> 8418296 | K47: ='B7-CFlow'!L42 -> 218887473.4 | L47: ='B7-CFlow'!M42 -> 890274082.3
A49: Cash backing/surplus reconciliation
A50: Cash and investments available | B50: ='B8-ResRecon'!C10 -> 24377000 | C50: ='B8-ResRecon'!D10 -> 24377000 | D50: ='B8-ResRecon'!E10 -> 0 | E50: ='B8-ResRecon'!F10 -> 0 | F50: ='B8-ResRecon'!G10 -> 0 | G50: ='B8-ResRecon'!H10 -> 0 | H50: ='B8-ResRecon'!I10 -> 0 | I50: =SUM(D50:H50) -> 0 | J50: =IF(C50=0,B50+I50,C50+I50) -> 24377000 | K50: ='B8-ResRecon'!L10 -> 18712753 | L50: ='B8-ResRecon'!M10 -> 24851089
A51: Application of cash and investments | B51: ='B8-ResRecon'!C20 -> -301620816 | C51: ='B8-ResRecon'!D20 -> -189181134 | D51: ='B8-ResRecon'!E20 -> 0 | E51: ='B8-ResRecon'!F20 -> 0 | F51: ='B8-ResRecon'!G20 -> 0 | G51: ='B8-ResRecon'!H20 -> 0 | H51: ='B8-ResRecon'!I20 -> 43561982 | I51: =SUM(D51:H51) -> 43561982 | J51: =IF(C51=0,B51+I51,C51+I51) -> -145619152 | K51: ='B8-ResRecon'!L20 -> -78173331 | L51: ='B8-ResRecon'!M20 -> -184062299
A52: Balance - surplus (shortfall) | B52: =B50-B51 -> 325997816 | C52: 213558134 | D52: 0 | E52: 0 | F52: 0 | G52: 0 | H52: -43561982 | I52: -43561982 | J52: 169996152 | K52: 96886084 | L52: 208913388
A54: Asset Management
A55: Asset register summary (WDV) | B55: ='B9-Asset'!C167 -> 1785427147 | C55: ='B9-Asset'!D167 -> 1786730362 | D55: ='B9-Asset'!E167 -> 0 | E55: ='B9-Asset'!F167 -> 0 | F55: ='B9-Asset'!G167 -> 0 | G55: ='B9-Asset'!H167 -> 0 | H55: ='B9-Asset'!I167 -> 113975 | I55: =SUM(D55:H55) -> 113975 | J55: =IF(C55=0,B55+I55,C55+I55) -> 1786844337 | K55: ='B9-Asset'!L167 -> 3685970409 | L55: ='B9-Asset'!M167 -> 3945578770
A56: Depreciation & asset impairment | B56: ='B9-Asset'!C170 -> 154536733 | C56: ='B9-Asset'!D170 -> 154536733 | D56: ='B9-Asset'!E170 -> 0 | E56: ='B9-Asset'!F170 -> 0 | F56: ='B9-Asset'!G170 -> 0 | G56: ='B9-Asset'!H170 -> 0 | H56: ='B9-Asset'!I170 -> 0 | I56: =SUM(D56:H56) -> 0 | J56: =IF(C56=0,B56+I56,C56+I56) -> 154536733 | K56: ='B9-Asset'!L170 -> 133503316 | L56: ='B9-Asset'!M170 -> 139644469
A57: Renewal and Upgrading of Existing Assets | B57: ='B9-Asset'!C39+'B9-Asset'!C71 -> 70840253 | C57: ='B9-Asset'!D39+'B9-Asset'!D71 -> 102838664 | D57: ='B9-Asset'!E39+'B9-Asset'!E71 -> 0 | E57: ='B9-Asset'!F39+'B9-Asset'!F71 -> 0 | F57: ='B9-Asset'!G39+'B9-Asset'!G71 -> 0 | G57: ='B9-Asset'!H39+'B9-Asset'!H71 -> 0 | H57: ='B9-Asset'!I39+'B9-Asset'!I71 -> 0 | I57: =SUM(D57:H57) -> 0 | J57: =IF(C57=0,B57+I57,C57+I57) -> 102838664 | K57: ='B9-Asset'!L39+'B9-Asset'!L71 -> 70846258 | L57: ='B9-Asset'!M39+'B9-Asset'!M71 -> 68000000
A58: Repairs and Maintenance | B58: ='B9-Asset'!C171 -> 65140000 | C58: ='B9-Asset'!D171 -> 47038475.02 | D58: ='B9-Asset'!E171 -> 0 | E58: ='B9-Asset'!F171 -> 0 | F58: ='B9-Asset'!G171 -> 0 | G58: ='B9-Asset'!H171 -> 0 | H58: ='B9-Asset'!I171 -> 0 | I58: =SUM(D58:H58) -> 0 | J58: =IF(C58=0,B58+I58,C58+I58) -> 47038475.02 | K58: ='B9-Asset'!L171 -> 42480000 | L58: ='B9-Asset'!M171 -> 46588800
A60: Free services
A61: Cost of Free Basic Services provided | B61: ='B10-SerDel'!C62 -> 66033000 | C61: ='B10-SerDel'!D62 -> 35533000 | D61: ='B10-SerDel'!E62 -> 0 | E61: ='B10-SerDel'!F62 -> 0 | F61: ='B10-SerDel'!G62 -> 0 | G61: ='B10-SerDel'!H62 -> 0 | H61: ='B10-SerDel'!I62 -> 0 | I61: ='B10-SerDel'!J62 -> 0 | J61: ='B10-SerDel'!K62 -> 66033000 | K61: ='B10-SerDel'!L62 -> 67010735 | L61: ='B10-SerDel'!M62 -> 38015217
A62: Revenue cost of free services provided | B62: ='B10-SerDel'!C81 -> 4261000 | C62: ='B10-SerDel'!D81 -> 2668000 | D62: ='B10-SerDel'!E81 -> 0 | E62: ='B10-SerDel'!F81 -> 0 | F62: ='B10-SerDel'!G81 -> 0 | G62: ='B10-SerDel'!H81 -> 0 | H62: ='B10-SerDel'!I81 -> 0 | I62: ='B10-SerDel'!J81 -> 0 | J62: ='B10-SerDel'!K81 -> 4261000 | K62: ='B10-SerDel'!L81 -> 4339947 | L62: ='B10-SerDel'!M81 -> 4449879
A63: Households below minimum service level
A64: Water: | B64: ='B10-SerDel'!C16 -> 12000 | C64: ='B10-SerDel'!D16 -> 0 | D64: ='B10-SerDel'!E16 -> 0 | E64: ='B10-SerDel'!F16 -> 0 | F64: ='B10-SerDel'!G16 -> 0 | G64: ='B10-SerDel'!H16 -> 0 | H64: ='B10-SerDel'!I16 -> 0 | I64: =SUM(D64:H64) -> 0 | J64: =IF(C64=0,B64+I64,C64+I64) -> 12000 | K64: ='B10-SerDel'!L16 -> 12000 | L64: ='B10-SerDel'!M16 -> 12000
A65: Sanitation/sewerage: | B65: ='B10-SerDel'!C28 -> 39000 | C65: ='B10-SerDel'!D28 -> 0 | D65: ='B10-SerDel'!E28 -> 0 | E65: ='B10-SerDel'!F28 -> 0 | F65: ='B10-SerDel'!G28 -> 0 | G65: ='B10-SerDel'!H28 -> 0 | H65: ='B10-SerDel'!I28 -> 0 | I65: =SUM(D65:H65) -> 0 | J65: =IF(C65=0,B65+I65,C65+I65) -> 39000 | K65: ='B10-SerDel'!L28 -> 39000 | L65: ='B10-SerDel'!M28 -> 39000
A66: Energy: | B66: ='B10-SerDel'!C37 -> 0 | C66: ='B10-SerDel'!D37 -> 0 | D66: ='B10-SerDel'!E37 -> 0 | E66: ='B10-SerDel'!F37 -> 0 | F66: ='B10-SerDel'!G37 -> 0 | G66: ='B10-SerDel'!H37 -> 0 | H66: ='B10-SerDel'!I37 -> 0 | I66: =SUM(D66:H66) -> 0 | J66: =IF(C66=0,B66+I66,C66+I66) -> 0 | K66: ='B10-SerDel'!L37 -> 0 | L66: ='B10-SerDel'!M37 -> 0
A67: Refuse: | B67: ='B10-SerDel'!C47 -> 0 | C67: ='B10-SerDel'!D47 -> 0 | D67: ='B10-SerDel'!E47 -> 0 | E67: ='B10-SerDel'!F47 -> 0 | F67: ='B10-SerDel'!G47 -> 0 | G67: ='B10-SerDel'!H47 -> 0 | H67: ='B10-SerDel'!I47 -> 0 | I67: =SUM(D67:H67) -> 0 | J67: =IF(C67=0,B67+I67,C67+I67) -> 0 | K67: ='B10-SerDel'!L47 -> 0 | L67: ='B10-SerDel'!M47 -> 0
A69: References
A70: 1. Only complete if a previous adjusted budget has been approved in the same financial year. Reflect most recent adjusted budget.
A71: 2. Additional cash-backed accumulated funds/unspent funds (MFMA section 18(1)(b) and section 28(2)(e)) identified after the Original Budget approved and after annual financial statements audited (note: only where underspending could not reasonably have been foreseen)
A72: 3. Increases of funds approved under MFMA section 31
A73: 4. Adjustments approved in accordance with MFMA section 29
A74: 5. Adjustments to transfers from National or Provincial Government
A75: 6. Adjusts. = 'Other' Adjustments proposed to be approved; including revenue under-collection (MFMA section 28(2)(a)); additional revenue appropriation on existing programmes (section 28(2))(b); projected savings (section 28(2)(d)); error correction (section 28(2)(f))
A76: 7. G = B + C + D + E + F
A77: 8. Adjusted Budget H = (A or A1/2 etc) + G

Sheet B2-FinPerf SC
A1: =muni&" - "&_ADJ3&" - "&Date -> NW375 Moses Kotane - Table B2 Adjustments Budget Financial Performance (functional classification) - 44171
A2: ="Standard "&desc -> Standard Description | B2: =head27 -> Ref | C2: =Head2 -> Budget Year 2019/20 | L2: =Head10 -> Budget Year +1 2020/21 | M2: =Head11 -> Budget Year +2 2021/22
C3: =Head6 -> Original Budget | D3: =Head54 -> Prior Adjusted | E3: =Head51 -> Accum. Funds | F3: =Head52 -> Multi-year capital | G3: =Head53 -> Unfore. Unavoid. | H3: =Head55 -> Nat. or Prov. Govt | I3: =Head50 -> Other Adjusts. | J3: =Head56 -> Total Adjusts. | K3: =Head7 -> Adjusted Budget | L3: =Head7 -> Adjusted Budget | M3: =Head7 -> Adjusted Budget
D4: 5 | E4: =D4+1 -> 6 | F4: 7 | G4: 8 | H4: 9 | I4: 10 | J4: 11 | K4: 12
A5: R thousands | B5: 1, 4 | C5: A | D5: A1 | E5: B | F5: C | G5: D | H5: E | I5: F | J5: G | K5: H
A6: Revenue - Functional
A7: Governance and administration | C7: =SUM(C8:C10) -> 481392100 | D7: =SUM(D8:D10) -> 420101890 | E7: 0 | F7: 0 | G7: 0 | H7: 0 | I7: 558000 | J7: =SUM(J8:J10) -> 558000 | K7: =SUM(K8:K10) -> 420659890 | L7: =SUM(L8:L10) -> 528562196 | M7: =SUM(M8:M10) -> 556613433
A8: Executive and council | C8: =B2B!C8 -> 1695000 | D8: =B2B!D8 -> 1695000 | E8: =B2B!E8 -> 0 | F8: =B2B!F8 -> 0 | G8: =B2B!G8 -> 0 | H8: =B2B!H8 -> 0 | I8: =B2B!I8 -> 0 | J8: =SUM(E8:I8) -> 0 | K8: =IF(D8=0,C8+J8,D8+J8) -> 1695000 | L8: =B2B!L8 -> 1827000 | M8: =B2B!M8 -> 940
A9: Finance and administration | C9: =B2B!C11 -> 479697100 | D9: =B2B!D11 -> 418406890 | E9: =B2B!E11 -> 0 | F9: =B2B!F11 -> 0 | G9: =B2B!G11 -> 0 | H9: =B2B!H11 -> 0 | I9: =B2B!I11 -> 558000 | J9: =SUM(E9:I9) -> 558000 | K9: =IF(D9=0,C9+J9,D9+J9) -> 418964890 | L9: =B2B!L11 -> 526735196 | M9: =B2B!M11 -> 556612493
A10: Internal audit | C10: =B2B!C25 -> 0 | D10: =B2B!D25 -> 0 | E10: =B2B!E25 -> 0 | F10: =B2B!F25 -> 0 | G10: =B2B!G25 -> 0 | H10: =B2B!H25 -> 0 | I10: =B2B!I25 -> 0 | J10: =SUM(E10:I10) -> 0 | K10: =IF(D10=0,C10+J10,D10+J10) -> 0 | L10: =B2B!L25 -> 0 | M10: =B2B!M25 -> 0
A11: Community and public safety | C11: =SUM(C12:C16) -> 19245253 | D11: =SUM(D12:D16) -> 35546241 | E11: 0 | F11: 0 | G11: 0 | H11: 0 | I11: -179487 | J11: =SUM(J12:J16) -> -179487 | K11: =SUM(K12:K16) -> 35366754 | L11: =SUM(L12:L16) -> 12998475 | M11: =SUM(M12:M16) -> 11134000
A12: Community and social services | C12: =B2B!C28 -> 14640253 | D12: =B2B!D28 -> 31941241 | E12: =B2B!E28 -> 0 | F12: =B2B!F28 -> 0 | G12: =B2B!G28 -> 0 | H12: =B2B!H28 -> 0 | I12: =B2B!I28 -> -179487 | J12: =SUM(E12:I12) -> -179487 | K12: =IF(D12=0,C12+J12,D12+J12) -> 31761754 | L12: =B2B!L28 -> 50000 | M12: =B2B!M28 -> 8050000
A13: Sport and recreation | C13: =B2B!C50 -> 55000 | D13: =B2B!D50 -> 55000 | E13: =B2B!E50 -> 0 | F13: =B2B!F50 -> 0 | G13: =B2B!G50 -> 0 | H13: =B2B!H50 -> 0 | I13: =B2B!I50 -> 0 | J13: =SUM(E13:I13) -> 0 | K13: =IF(D13=0,C13+J13,D13+J13) -> 55000 | L13: =B2B!L50 -> 9898475 | M13: =B2B!M50 -> 34000
A14: Public safety | C14: =B2B!C56 -> 4550000 | D14: =B2B!D56 -> 3550000 | E14: =B2B!E56 -> 0 | F14: =B2B!F56 -> 0 | G14: =B2B!G56 -> 0 | H14: =B2B!H56 -> 0 | I14: =B2B!I56 -> 0 | J14: =SUM(E14:I14) -> 0 | K14: =IF(D14=0,C14+J14,D14+J14) -> 3550000 | L14: =B2B!L56 -> 3050000 | M14: =B2B!M56 -> 3050000
A15: Housing | C15: =B2B!C65 -> 0 | D15: =B2B!D65 -> 0 | E15: =B2B!E65 -> 0 | F15: =B2B!F65 -> 0 | G15: =B2B!G65 -> 0 | H15: =B2B!H65 -> 0 | I15: =B2B!I65 -> 0 | J15: =SUM(E15:I15) -> 0 | K15: =IF(D15=0,C15+J15,D15+J15) -> 0 | L15: =B2B!L65 -> 0 | M15: =B2B!M65 -> 0
A16: Health | C16: =B2B!C68 -> 0 | D16: =B2B!D68 -> 0 | E16: =B2B!E68 -> 0 | F16: =B2B!F68 -> 0 | G16: =B2B!G68 -> 0 | H16: =B2B!H68 -> 0 | I16: =B2B!I68 -> 0 | J16: =SUM(E16:I16) -> 0 | K16: =IF(D16=0,C16+J16,D16+J16) -> 0 | L16: =B2B!L68 -> 0 | M16: =B2B!M68 -> 0
A17: Economic and environmental services | C17: =SUM(C18:C20) -> 67460875 | D17: =SUM(D18:D20) -> 64920955 | E17: 0 | F17: 0 | G17: 0 | H17: 0 | I17: 0 | J17: =SUM(J18:J20) -> 0 | K17: =SUM(K18:K20) -> 64920955 | L17: =SUM(L18:L20) -> 65260549 | M17: =SUM(M18:M20) -> 64504631
A18: Planning and development | C18: =B2B!C77 -> 5267637 | D18: =B2B!D77 -> 3732637 | E18: =B2B!E77 -> 0 | F18: =B2B!F77 -> 0 | G18: =B2B!G77 -> 0 | H18: =B2B!H77 -> 0 | I18: =B2B!I77 -> 0 | J18: =SUM(E18:I18) -> 0 | K18: =IF(D18=0,C18+J18,D18+J18) -> 3732637 | L18: =B2B!L77 -> 4278767 | M18: =B2B!M77 -> 4504630
A19: Road transport | C19: =B2B!C88 -> 62193238 | D19: =B2B!D88 -> 61188318 | E19: =B2B!E88 -> 0 | F19: =B2B!F88 -> 0 | G19: =B2B!G88 -> 0 | H19: =B2B!H88 -> 0 | I19: =B2B!I88 -> 0 | J19: =SUM(E19:I19) -> 0 | K19: =IF(D19=0,C19+J19,D19+J19) -> 61188318 | L19: =B2B!L88 -> 60981782 | M19: =B2B!M88 -> 60000001
A20: Environmental protection | C20: =B2B!C93 -> 0 | D20: =B2B!D93 -> 0 | E20: =B2B!E93 -> 0 | F20: =B2B!F93 -> 0 | G20: =B2B!G93 -> 0 | H20: =B2B!H93 -> 0 | I20: =B2B!I93 -> 0 | J20: =SUM(E20:I20) -> 0 | K20: =IF(D20=0,C20+J20,D20+J20) -> 0 | L20: =B2B!L93 -> 0 | M20: =B2B!M93 -> 0
A21: Trading services | C21: =SUM(C22:C25) -> 467992300 | D21: =SUM(D22:D25) -> 459441719 | E21: 0 | F21: 0 | G21: 0 | H21: 0 | I21: 0 | J21: 0 | K21: 459441719 | L21: 491878696 | M21: 526440606
A22: Energy sources | C22: =B2B!C101 -> 19857810 | D22: =B2B!D101 -> 20416973 | E22: =B2B!E101 -> 0 | F22: =B2B!F101 -> 0 | G22: =B2B!G101 -> 0 | H22: =B2B!H101 -> 0 | I22: =B2B!I101 -> 0 | J22: =SUM(E22:I22) -> 0 | K22: =IF(D22=0,C22+J22,D22+J22) -> 20416973 | L22: =B2B!L101 -> 11577741 | M22: =B2B!M101 -> 12557370
A23: Water management | C23: =B2B!C105 -> 324371603 | D23: =B2B!D105 -> 340838082 | E23: =B2B!E105 -> 0 | F23: =B2B!F105 -> 0 | G23: =B2B!G105 -> 0 | H23: =B2B!H105 -> 0 | I23: =B2B!I105 -> 0 | J23: =SUM(E23:I23) -> 0 | K23: =IF(D23=0,C23+J23,D23+J23) -> 340838082 | L23: =B2B!L105 -> 358598493 | M23: =B2B!M105 -> 371165069
A24: Waste water management | C24: =B2B!C109 -> 43021550 | D24: =B2B!D109 -> 33242236 | E24: =B2B!E109 -> 0 | F24: =B2B!F109 -> 0 | G24: =B2B!G109 -> 0 | H24: =B2B!H109 -> 0 | I24: =B2B!I109 -> 0 | J24: =SUM(E24:I24) -> 0 | K24: =IF(D24=0,C24+J24,D24+J24) -> 33242236 | L24: =B2B!L109 -> 47377755 | M24: =B2B!M109 -> 47595969
A25: Waste management | C25: =B2B!C114 -> 80741337 | D25: =B2B!D114 -> 64944427.99 | E25: =B2B!E114 -> 0 | F25: =B2B!F114 -> 0 | G25: =B2B!G114 -> 0 | H25: =B2B!H114 -> 0 | I25: =B2B!I114 -> 0 | J25: =SUM(E25:I25) -> 0 | K25: =IF(D25=0,C25+J25,D25+J25) -> 64944427.99 | L25: =B2B!L114 -> 74324707 | M25: =B2B!M114 -> 95122198
A26: Other | C26: =B2B!C119 -> 0 | D26: =B2B!D119 -> 0 | E26: =B2B!E119 -> 0 | F26: =B2B!F119 -> 0 | G26: =B2B!G119 -> 0 | H26: =B2B!H119 -> 0 | I26: =B2B!I119 -> 0 | J26: =SUM(E26:I26) -> 0 | K26: =IF(D26=0,C26+J26,D26+J26) -> 0 | L26: =B2B!L119 -> 0 | M26: =B2B!M119 -> 0
A27: ="Total "&A6 -> Total Revenue - Functional | B27: 2 | C27: =C7+C11+C17+C21+C26 -> 1036090528 | D27: =D7+D11+D17+D21+D26 -> 980010805 | E27: 0 | F27: 0 | G27: 0 | H27: 0 | I27: 378513 | J27: 378513 | K27: 980389318 | L27: 1098699916 | M27: 1158692670
A29: Expenditure - Functional
A30: Governance and administration | C30: =SUM(C31:C33) -> 395399683 | D30: =SUM(D31:D33) -> 330043524.5 | E30: 0 | F30: 0 | G30: 0 | H30: 0 | I30: 2568000 | J30: =SUM(J31:J33) -> 2568000 | K30: =SUM(K31:K33) -> 332611524.5 | L30: =SUM(L31:L33) -> 349715191 | M30: =SUM(M31:M33) -> 368351423
A31: Executive and council | C31: =B2B!C130 -> 107752328 | D31: =B2B!D130 -> 83503014.24 | E31: =B2B!E130 -> 0 | F31: =B2B!F130 -> 0 | G31: =B2B!G130 -> 0 | H31: =B2B!H130 -> 0 | I31: =B2B!I130 -> 2300000 | J31: =SUM(E31:I31) -> 2300000 | K31: =IF(D31=0,C31+J31,D31+J31) -> 85803014.24 | L31: =B2B!L130 -> 87162222 | M31: =B2B!M130 -> 93378791
A32: Finance and administration | C32: =B2B!C133 -> 283949994 | D32: =B2B!D133 -> 243078499.2 | E32: =B2B!E133 -> 0 | F32: =B2B!F133 -> 0 | G32: =B2B!G133 -> 0 | H32: =B2B!H133 -> 0 | I32: =B2B!I133 -> 268000 | J32: =SUM(E32:I32) -> 268000 | K32: =IF(D32=0,C32+J32,D32+J32) -> 243346499.2 | L32: =B2B!L133 -> 258527601 | M32: =B2B!M133 -> 270737504
A33: Internal audit | C33: =B2B!C147 -> 3697361 | D33: =B2B!D147 -> 3462011.01 | E33: =B2B!E147 -> 0 | F33: =B2B!F147 -> 0 | G33: =B2B!G147 -> 0 | H33: =B2B!H147 -> 0 | I33: =B2B!I147 -> 0 | J33: =SUM(E33:I33) -> 0 | K33: =IF(D33=0,C33+J33,D33+J33) -> 3462011.01 | L33: =B2B!L147 -> 4025368 | M33: =B2B!M147 -> 4235128
A34: Community and public safety | C34: =SUM(C35:C39) -> 101814686 | D34: =SUM(D35:D39) -> 81103906.04 | E34: 0 | F34: 0 | G34: 0 | H34: 0 | I34: -179487 | J34: =SUM(J35:J39) -> -179487 | K34: =SUM(K35:K39) -> 80924419.04 | L34: =SUM(L35:L39) -> 103872294 | M34: =SUM(M35:M39) -> 108711163
A35: Community and social services | C35: =B2B!C150 -> 30482848 | D35: =B2B!D150 -> 23105416 | E35: =B2B!E150 -> 0 | F35: =B2B!F150 -> 0 | G35: =B2B!G150 -> 0 | H35: =B2B!H150 -> 0 | I35: =B2B!I150 -> -179487 | J35: =SUM(E35:I35) -> -179487 | K35: =IF(D35=0,C35+J35,D35+J35) -> 22925929 | L35: =B2B!L150 -> 26180426 | M35: =B2B!M150 -> 27495935
A36: Sport and recreation | C36: =B2B!C172 -> 29288851 | D36: =B2B!D172 -> 25715503.01 | E36: =B2B!E172 -> 0 | F36: =B2B!F172 -> 0 | G36: =B2B!G172 -> 0 | H36: =B2B!H172 -> 0 | I36: =B2B!I172 -> 0 | J36: =SUM(E36:I36) -> 0 | K36: =IF(D36=0,C36+J36,D36+J36) -> 25715503.01 | L36: =B2B!L172 -> 42725232 | M36: =B2B!M172 -> 44784178
A37: Public safety | C37: =B2B!C178 -> 42042987 | D37: =B2B!D178 -> 32282987.03 | E37: =B2B!E178 -> 0 | F37: =B2B!F178 -> 0 | G37: =B2B!G178 -> 0 | H37: =B2B!H178 -> 0 | I37: =B2B!I178 -> 0 | J37: =SUM(E37:I37) -> 0 | K37: =IF(D37=0,C37+J37,D37+J37) -> 32282987.03 | L37: =B2B!L178 -> 34966636 | M37: =B2B!M178 -> 36431050
A38: Housing | C38: =B2B!C187 -> 0 | D38: =B2B!D187 -> 0 | E38: =B2B!E187 -> 0 | F38: =B2B!F187 -> 0 | G38: =B2B!G187 -> 0 | H38: =B2B!H187 -> 0 | I38: =B2B!I187 -> 0 | J38: =SUM(E38:I38) -> 0 | K38: =IF(D38=0,C38+J38,D38+J38) -> 0 | L38: =B2B!L187 -> 0 | M38: =B2B!M187 -> 0
A39: Health | C39: =B2B!C190 -> 0 | D39: =B2B!D190 -> 0 | E39: =B2B!E190 -> 0 | F39: =B2B!F190 -> 0 | G39: =B2B!G190 -> 0 | H39: =B2B!H190 -> 0 | I39: =B2B!I190 -> 0 | J39: =SUM(E39:I39) -> 0 | K39: =IF(D39=0,C39+J39,D39+J39) -> 0 | L39: =B2B!L190 -> 0 | M39: =B2B!M190 -> 0
A40: Economic and environmental services | C40: =SUM(C41:C43) -> 115203608 | D40: =SUM(D41:D43) -> 97236854.06 | E40: 0 | F40: 0 | G40: 0 | H40: 0 | I40: 0 | J40: =SUM(J41:J43) -> 0 | K40: =SUM(K41:K43) -> 97236854.06 | L40: =SUM(L41:L43) -> 86089149 | M40: =SUM(M41:M43) -> 90942754
A41: Planning and development | C41: =B2B!C199 -> 31369359 | D41: =B2B!D199 -> 25454605.02 | E41: =B2B!E199 -> 0 | F41: =B2B!F199 -> 0 | G41: =B2B!G199 -> 0 | H41: =B2B!H199 -> 0 | I41: =B2B!I199 -> 0 | J41: =SUM(E41:I41) -> 0 | K41: =IF(D41=0,C41+J41,D41+J41) -> 25454605.02 | L41: =B2B!L199 -> 24460808 | M41: =B2B!M199 -> 26477739
A42: Road transport | C42: =B2B!C210 -> 83834249 | D42: =B2B!D210 -> 71782249.04 | E42: =B2B!E210 -> 0 | F42: =B2B!F210 -> 0 | G42: =B2B!G210 -> 0 | H42: =B2B!H210 -> 0 | I42: =B2B!I210 -> 0 | J42: =SUM(E42:I42) -> 0 | K42: =IF(D42=0,C42+J42,D42+J42) -> 71782249.04 | L42: =B2B!L210 -> 61628341 | M42: =B2B!M210 -> 64465015
A43: Environmental protection | C43: =B2B!C215 -> 0 | D43: =B2B!D215 -> 0 | E43: =B2B!E215 -> 0 | F43: =B2B!F215 -> 0 | G43: =B2B!G215 -> 0 | H43: =B2B!H215 -> 0 | I43: =B2B!I215 -> 0 | J43: =SUM(E43:I43) -> 0 | K43: =IF(D43=0,C43+J43,D43+J43) -> 0 | L43: =B2B!L215 -> 0 | M43: =B2B!M215 -> 0
A44: Trading services | C44: =SUM(C45:C48) -> 354822345 | D44: =SUM(D45:D48) -> 397202950.3 | E44: 0 | F44: 0 | G44: 0 | H44: 0 | I44: -2300000 | J44: -2300000 | K44: 394902950.3 | L44: 398828628 | M44: 412283452
A45: Energy sources | C45: =B2B!C223 -> 31908720 | D45: =B2B!D223 -> 31753758 | E45: =B2B!E223 -> 0 | F45: =B2B!F223 -> 0 | G45: =B2B!G223 -> 0 | H45: =B2B!H223 -> 0 | I45: =B2B!I223 -> 0 | J45: =SUM(E45:I45) -> 0 | K45: =IF(D45=0,C45+J45,D45+J45) -> 31753758 | L45: =B2B!L223 -> 19598588 | M45: =B2B!M223 -> 20384798
A46: Water management | C46: =B2B!C227 -> 241659927 | D46: =B2B!D227 -> 290898577.3 | E46: =B2B!E227 -> 0 | F46: =B2B!F227 -> 0 | G46: =B2B!G227 -> 0 | H46: =B2B!H227 -> 0 | I46: =B2B!I227 -> -2300000 | J46: =SUM(E46:I46) -> -2300000 | K46: =IF(D46=0,C46+J46,D46+J46) -> 288598577.3 | L46: =B2B!L227 -> 306488832 | M46: =B2B!M227 -> 314139435
A47: Waste water management | C47: =B2B!C231 -> 18784460 | D47: =B2B!D231 -> 24789565.03 | E47: =B2B!E231 -> 0 | F47: =B2B!F231 -> 0 | G47: =B2B!G231 -> 0 | H47: =B2B!H231 -> 0 | I47: =B2B!I231 -> 0 | J47: =SUM(E47:I47) -> 0 | K47: =IF(D47=0,C47+J47,D47+J47) -> 24789565.03 | L47: =B2B!L231 -> 21228371 | M47: =B2B!M231 -> 22743337
A48: Waste management | C48: =B2B!C236 -> 62469238 | D48: =B2B!D236 -> 49761050.02 | E48: =B2B!E236 -> 0 | F48: =B2B!F236 -> 0 | G48: =B2B!G236 -> 0 | H48: =B2B!H236 -> 0 | I48: =B2B!I236 -> 0 | J48: =SUM(E48:I48) -> 0 | K48: =IF(D48=0,C48+J48,D48+J48) -> 49761050.02 | L48: =B2B!L236 -> 51512837 | M48: =B2B!M236 -> 55015882
A49: Other | C49: =B2B!C241 -> 0 | D49: =B2B!D241 -> 0 | E49: =B2B!E241 -> 0 | F49: =B2B!F241 -> 0 | G49: =B2B!G241 -> 0 | H49: =B2B!H241 -> 0 | I49: =B2B!I241 -> 0 | J49: =SUM(E49:I49) -> 0 | K49: =IF(D49=0,C49+J49,D49+J49) -> 0 | L49: =B2B!L241 -> 0 | M49: =B2B!M241 -> 0
A50: ="Total "&A29 -> Total Expenditure - Functional | B50: 3 | C50: =C30+C34+C40+C44+C49 -> 967240322 | D50: =D30+D34+D40+D44+D49 -> 905587234.9 | E50: 0 | F50: 0 | G50: 0 | H50: 0 | I50: 88513 | J50: 88513 | K50: 905675747.9 | L50: 938505262 | M50: 980288792
A51: Surplus/ (Deficit) for the year | C51: =C27-C50 -> 68850206 | D51: 74423570.12 | E51: 0 | F51: 0 | G51: 0 | H51: 0 | I51: 290000 | J51: 290000 | K51: 74713570.12 | L51: 160194654 | M51: 178403878
A52: =head27a -> References
A53: 1. Government Finance Statistics Functions and Sub-functions are standardised to assist the compilation of national and international accounts for comparison purposes
A54: 2. Total Revenue by standard classification must reconcile to Total Operating Revenue shown in the Adjustments Budget Financial Performance (revenue and expenditure)
A55: 3. Total Operating Expenditure by standard classification must reconcile to Total Operating Expenditure shown in the Adjustments Budget Financial Performance (revenue and expenditure)
A56: 4. All amounts must be classified under a standard classification (modified GFS). The GFS function 'Other' is only for Abbatoirs, Air Transport, Markets and Tourism - and if used must be supported by footnotes. Nothing else may be placed under 'Other'. Assign associate share to relevant classification
A57: 5. Only complete if a previous adjusted budget has been approved in the same financial year. Reflect most recent adjusted budget.
A58: 6. Additional cash-backed accumulated funds/unspent funds (MFMA section 18(1)(b) and section 28(2)(e)) identified after the Original Budget approved and after annual financial statements audited (note: only where underspending could not reasonably have been foreseen)
A59: 7. Increases of funds approved under MFMA section 31
A60: 8. Adjustments approved in accordance with MFMA section 29
A61: 9. Adjustments to transfers from National or Provincial Government
A62: 10. Adjusts. = 'Other' Adjustments proposed to be approved; including revenue under-collection (MFMA section 28(2)(a)); additional revenue appropriation on existing programmes (section 28(2))(b); projected savings (section 28(2)(d)); error correction (section 28(2)(f))
A63: 11. G = B + C + D + E + F
A64: 12. Adjusted Budget H = (A or A1/2 etc) + G

Sheet B2B
A1: =muni&" - "&_ADJ3&" - B"&" - "&Date -> NW375 Moses Kotane - Table B2 Adjustments Budget Financial Performance (functional classification) - B - 44171
A2: ="Standard Classification "&desc -> Standard Classification Description | B2: =head27 -> Ref | C2: =Head2 -> Budget Year 2019/20 | L2: =Head10 -> Budget Year +1 2020/21 | M2: =Head11 -> Budget Year +2 2021/22
C3: =Head6 -> Original Budget | D3: =Head54 -> Prior Adjusted | E3: =Head51 -> Accum. Funds | F3: =Head52 -> Multi-year capital | G3: =Head53 -> Unfore. Unavoid. | H3: =Head55 -> Nat. or Prov. Govt | I3: =Head50 -> Other Adjusts. | J3: =Head56 -> Total Adjusts. | K3: =Head7 -> Adjusted Budget | L3: =Head7 -> Adjusted Budget | M3: =Head7 -> Adjusted Budget
D4: 5 | E4: =D4+1 -> 6 | F4: 7 | G4: 8 | H4: 9 | I4: 10 | J4: 11 | K4: 12
A5: R thousand | B5: 1 | C5: A | D5: A1 | E5: B | F5: C | G5: D | H5: E | I5: F | J5: G | K5: H
A6: Revenue - Functional
A7: Municipal governance and administration | C7: =C8+C11+C25 -> 481392100 | D7: 420101890 | E7: 0 | F7: 0 | G7: 0 | H7: 0 | I7: 558000 | J7: =SUM(E7:I7) -> 558000 | K7: =IF(D7=0,C7+J7,D7+J7) -> 420659890 | L7: =L8+L11+L25 -> 528562196 | M7: =M8+M11+M25 -> 556613433
A8: Executive and council | C8: =SUM(C9:C10) -> 1695000 | D8: =SUM(D9:D10) -> 1695000 | E8: 0 | F8: 0 | G8: 0 | H8: 0 | I8: 0 | J8: =SUM(E8:I8) -> 0 | K8: =IF(D8=0,C8+J8,D8+J8) -> 1695000 | L8: =SUM(L9:L10) -> 1827000 | M8: =SUM(M9:M10) -> 940
A9: Mayor and Council | C9: 1695000 | D9: 1695000 | E9: 0 | F9: 0 | G9: 0 | H9: 0 | I9: 0 | J9: =SUM(E9:I9) -> 0 | K9: =IF(D9=0,C9+J9,D9+J9) -> 1695000 | L9: 1827000 | M9: 940
A10: Municipal Manager, Town Secretary and Chief Executive | J10: =SUM(E10:I10) -> 0 | K10: =IF(D10=0,C10+J10,D10+J10) -> 0
A11: Finance and administration | C11: =SUM(C12:C24) -> 479697100 | D11: 418406890 | E11: 0 | F11: 0 | G11: 0 | H11: 0 | I11: 558000 | J11: 558000 | K11: 418964890 | L11: =SUM(L12:L24) -> 526735196 | M11: =SUM(M12:M24) -> 556612493
A12: Administrative and Corporate Support | C12: 0 | D12: 0 | E12: 0 | F12: 0 | G12: 0 | H12: 0 | I12: 0 | J12: 0 | K12: 0 | L12: 0 | M12: 0
A13: Asset Management | J13: 0 | K13: 0
A14: Finance | C14: 479197100 | D14: 417906890 | E14: 0 | F14: 0 | G14: 0 | H14: 0 | I14: 290000 | J14: 290000 | K14: 418196890 | L14: 526235196 | M14: 556112493
A15: Fleet Management | C15: 0 | D15: 0 | E15: 0 | F15: 0 | G15: 0 | H15: 0 | I15: 0 | J15: 0 | K15: 0 | L15: 0 | M15: 0
A16: Human Resources | C16: 500000 | D16: 500000 | E16: 0 | F16: 0 | G16: 0 | H16: 0 | I16: 268000 | J16: 268000 | K16: 768000 | L16: 500000 | M16: 500000
A17: Information Technology | C17: 0 | D17: 0 | E17: 0 | F17: 0 | G17: 0 | H17: 0 | I17: 0 | J17: 0 | K17: 0 | L17: 0 | M17: 0
A18: Legal Services | J18: 0 | K18: 0
A19: Marketing, Customer Relations, Publicity and Media Co-ordination | J19: 0 | K19: 0
A20: Property Services | J20: 0 | K20: 0
A21: Risk Management | J21: 0 | K21: 0
A22: Security Services | J22: 0 | K22: 0
A23: Supply Chain Management | J23: 0 | K23: 0
A24: Valuation Service | J24: 0 | K24: 0
A25: Internal audit | C25: =SUM(C26:C26) -> 0 | D25: 0 | E25: 0 | F25: 0 | G25: 0 | H25: 0 | I25: 0 | J25: 0 | K25: 0 | L25: 0 | M25: 0
A26: Governance Function | J26: 0 | K26: 0
A27: Community and public safety | C27: =C28+C50+C56+C65+C68 -> 19245253 | D27: 35546241 | E27: 0 | F27: 0 | G27: 0 | H27: 0 | I27: -179487 | J27: -179487 | K27: 35366754 | L27: =L28+L50+L56+L65+L68 -> 12998475 | M27: =M28+M50+M56+M65+M68 -> 11134000
A28: Community and social services | C28: =SUM(C29:C49) -> 14640253 | D28: 31941241 | E28: 0 | F28: 0 | G28: 0 | H28: 0 | I28: -179487 | J28: -179487 | K28: 31761754 | L28: 50000 | M28: 8050000
A29: Aged Care | J29: 0 | K29: 0
A30: Agricultural | J30: 0 | K30: 0
A31: Animal Care and Diseases | J31: 0 | K31: 0
A32: Cemeteries, Funeral Parlours and Crematoriums | C32: 10000 | D32: 10000 | E32: 0 | F32: 0 | G32: 0 | H32: 0 | I32: 0 | J32: 0 | K32: 10000 | L32: 10000 | M32: 10000
A33: Child Care Facilities | J33: 0 | K33: 0
A34: Community Halls and Facilities | C34: 14590253 | D34: 30726754 | E34: 0 | F34: 0 | G34: 0 | H34: 0 | I34: 0 | J34: 0 | K34: 30726754 | L34: 0 | M34: 8000000
A35: Consumer Protection | J35: 0 | K35: 0
A36: Cultural Matters | J36: 0 | K36: 0
A37: Disaster Management | J37: 0 | K37: 0
A38: Education | J38: 0 | K38: 0
A39: Indigenous and Customary Law | J39: 0 | K39: 0
A40: Industrial Promotion | J40: 0 | K40: 0
A41: Language Policy | J41: 0 | K41: 0
A42: Libraries and Archives | C42: 40000 | D42: 1204487 | E42: 0 | F42: 0 | G42: 0 | H42: 0 | I42: -179487 | J42: -179487 | K42: 1025000 | L42: 40000 | M42: 40000
A43: Literacy Programmes | J43: 0 | K43: 0
A44: Media Services | J44: 0 | K44: 0
A45: Museums and Art Galleries | J45: 0 | K45: 0
A46: Population Development | J46: 0 | K46: 0
A47: Provincial Cultural Matters | J47: 0 | K47: 0
A48: Theatres | J48: 0 | K48: 0
A49: Zoo's | J49: 0 | K49: 0
A50: Sport and recreation | C50: =SUM(C51:C55) -> 55000 | D50: 55000 | E50: 0 | F50: 0 | G50: 0 | H50: 0 | I50: 0 | J50: 0 | K50: 55000 | L50: 9898475 | M50: 34000
A51: Beaches and Jetties | J51: 0 | K51: 0
A52: Casinos, Racing, Gambling, Wagering | J52: 0 | K52: 0
A53: Community Parks (including Nurseries) | J53: 0 | K53: 0
A54: Recreational Facilities | C54: 55000 | D54: 55000 | E54: 0 | F54: 0 | G54: 0 | H54: 0 | I54: 0 | J54: 0 | K54: 55000 | L54: 9898475 | M54: 34000
A55: Sports Grounds and Stadiums | J55: 0 | K55: 0
A56: Public safety | C56: =SUM(C57:C64) -> 4550000 | D56: 3550000 | E56: 0 | F56: 0 | G56: 0 | H56: 0 | I56: 0 | J56: 0 | K56: 3550000 | L56: 3050000 | M56: 3050000
A57: Civil Defence | C57: 0 | D57: 0 | E57: 0 | F57: 0 | G57: 0 | H57: 0 | I57: 0 | J57: 0 | K57: 0 | L57: 0 | M57: 0
A58: Cleansing | J58: 0 | K58: 0
A59: Control of Public Nuisances | J59: 0 | K59: 0
A60: Fencing and Fences | J60: 0 | K60: 0
A61: Fire Fighting and Protection | J61: 0 | K61: 0
A62: Licensing and Control of Animals | J62: 0 | K62: 0
A63: Police Forces, Traffic and Street Parking Control | C63: 4550000 | D63: 3550000 | E63: 0 | F63: 0 | G63: 0 | H63: 0 | I63: 0 | J63: =SUM(E63:I63) -> 0 | K63: =IF(D63=0,C63+J63,D63+J63) -> 3550000 | L63: 3050000 | M63: 3050000
A64: Pounds | J64: 0 | K64: 0
A65: Housing | C65: =SUM(C66:C67) -> 0 | D65: =SUM(D66:D67) -> 0 | E65: 0 | F65: 0 | G65: 0 | H65: 0 | I65: 0 | J65: 0 | K65: 0 | L65: =SUM(L66:L67) -> 0 | M65: =SUM(M66:M67) -> 0
A66: Housing | J66: 0 | K66: 0
A67: Informal Settlements | J67: 0 | K67: 0
A68: Health | C68: =SUM(C69:C75) -> 0 | D68: =SUM(D69:D75) -> 0 | E68: 0 | F68: 0 | G68: 0 | H68: 0 | I68: 0 | J68: 0 | K68: 0 | L68: =SUM(L69:L75) -> 0 | M68: =SUM(M69:M75) -> 0
A69: Ambulance | J69: 0 | K69: 0
A70: Health Services | J70: 0 | K70: 0
A71: Laboratory Services | J71: 0 | K71: 0
A72: Food Control | J72: 0 | K72: 0
A73: Health Surveillance and Prevention of Communicable Diseases including immunizations | J73: 0 | K73: 0
A74: Vector Control | J74: 0 | K74: 0
A75: Chemical Safety | J75: =SUM(E75:I75) -> 0 | K75: =IF(D75=0,C75+J75,D75+J75) -> 0
A76: Economic and environmental services | C76: =C77+C88+C93 -> 67460875 | D76: 64920955 | E76: 0 | F76: 0 | G76: 0 | H76: 0 | I76: 0 | J76: 0 | K76: 64920955 | L76: =L77+L88+L93 -> 65260549 | M76: =M77+M88+M93 -> 64504631
A77: Planning and development | C77: =SUM(C78:C87) -> 5267637 | D77: =SUM(D78:D87) -> 3732637 | E77: 0 | F77: 0 | G77: 0 | H77: 0 | I77: 0 | J77: 0 | K77: 3732637 | L77: =SUM(L78:L87) -> 4278767 | M77: =SUM(M78:M87) -> 4504630
A78: Billboards | J78: 0 | K78: 0
A79: Corporate Wide Strategic Planning (IDPs, LEDs) | J79: 0 | K79: 0
A80: Central City Improvement District | J80: 0 | K80: 0
A81: Development Facilitation | J81: 0 | K81: 0
A82: Economic Development/Planning | C82: 0 | D82: 0 | E82: 0 | F82: 0 | G82: 0 | H82: 0 | I82: 0 | J82: 0 | K82: 0 | L82: 0 | M82: 0
A83: Regional Planning and Development | J83: 0 | K83: 0
A84: Town Planning, Building Regulations and Enforcement, and City Engineer | C84: 100000 | D84: 150000 | E84: 0 | F84: 0 | G84: 0 | H84: 0 | I84: 0 | J84: 0 | K84: 150000 | L84: 100000 | M84: 100000
A85: Project Management Unit | C85: 5167637 | D85: 3582637 | E85: 0 | F85: 0 | G85: 0 | H85: 0 | I85: 0 | J85: 0 | K85: 3582637 | L85: 4178767 | M85: 4404630
A86: Provincial Planning | J86: 0 | K86: 0
A87: Support to Local Municipalities | J87: 0 | K87: 0
A88: Road transport | C88: =SUM(C89:C92) -> 62193238 | D88: 61188318 | E88: 0 | F88: 0 | G88: 0 | H88: 0 | I88: 0 | J88: 0 | K88: 61188318 | L88: =SUM(L89:L92) -> 60981782 | M88: =SUM(M89:M92) -> 60000001
A89: Public Transport | J89: 0 | K89: 0
A90: Road and Traffic Regulation | J90: 0 | K90: 0
A91: Roads | C91: 62193238 | D91: 61188318 | E91: 0 | F91: 0 | G91: 0 | H91: 0 | I91: 0 | J91: 0 | K91: 61188318 | L91: 60981782 | M91: 60000001
A92: Taxi Ranks | J92: 0 | K92: 0
A93: Environmental protection | C93: =SUM(C94:C99) -> 0 | D93: =SUM(D94:D99) -> 0 | E93: 0 | F93: 0 | G93: 0 | H93: 0 | I93: 0 | J93: 0 | K93: 0 | L93: =SUM(L94:L99) -> 0 | M93: =SUM(M94:M99) -> 0
A94: Biodiversity and Landscape | J94: 0 | K94: 0
A95: Coastal Protection | J95: 0 | K95: 0
A96: Indigenous Forests | J96: 0 | K96: 0
A97: Nature Conservation | J97: 0 | K97: 0
A98: Pollution Control | J98: 0 | K98: 0
A99: Soil Conservation | J99: 0 | K99: 0
A100: Trading services | C100: =C101+C105+C109+C114 -> 467992300 | D100: =D101+D105+D109+D114 -> 459441719 | E100: 0 | F100: 0 | G100: 0 | H100: 0 | I100: 0 | J100: 0 | K100: 459441719 | L100: 491878696 | M100: 526440606
A101: Energy sources | C101: =SUM(C102:C104) -> 19857810 | D101: =SUM(D102:D104) -> 20416973 | E101: 0 | F101: 0 | G101: 0 | H101: 0 | I101: 0 | J101: 0 | K101: 20416973 | L101: =SUM(L102:L104) -> 11577741 | M101: =SUM(M102:M104) -> 12557370
A102: Electricity | J102: 0 | K102: 0
A103: Street Lighting and Signal Systems | C103: 19857810 | D103: 20416973 | E103: 0 | F103: 0 | G103: 0 | H103: 0 | I103: 0 | J103: 0 | K103: 20416973 | L103: 11577741 | M103: 12557370
A104: Nonelectric Energy | J104: 0 | K104: 0
A105: Water management | C105: =SUM(C106:C108) -> 324371603 | D105: =SUM(D106:D108) -> 340838082 | E105: 0 | F105: 0 | G105: 0 | H105: 0 | I105: 0 | J105: 0 | K105: 340838082 | L105: =SUM(L106:L108) -> 358598493 | M105: =SUM(M106:M108) -> 371165069
A106: Water Treatment | C106: 236371603 | D106: 252838082 | E106: 0 | F106: 0 | G106: 0 | H106: 0 | I106: 0 | J106: 0 | K106: 252838082 | L106: 262711493 | M106: 265760069
A107: Water Distribution | C107: 88000000 | D107: 88000000 | E107: 0 | F107: 0 | G107: 0 | H107: 0 | I107: 0 | J107: 0 | K107: 88000000 | L107: 95887000 | M107: 105405000
A108: Water Storage | J108: 0 | K108: 0
A109: Waste water management | C109: =SUM(C110:C113) -> 43021550 | D109: =SUM(D110:D113) -> 33242236 | E109: 0 | F109: 0 | G109: 0 | H109: 0 | I109: 0 | J109: 0 | K109: 33242236 | L109: =SUM(L110:L113) -> 47377755 | M109: =SUM(M110:M113) -> 47595969
A110: Public Toilets | J110: 0 | K110: 0
A111: Sewerage | C111: 43021550 | D111: 33242236 | E111: 0 | F111: 0 | G111: 0 | H111: 0 | I111: 0 | J111: 0 | K111: 33242236 | L111: 47377755 | M111: 47595969
A112: Storm Water Management | C112: 0 | D112: 0 | E112: 0 | F112: 0 | G112: 0 | H112: 0 | I112: 0 | J112: 0 | K112: 0 | L112: 0 | M112: 0
A113: Waste Water Treatment | J113: 0 | K113: 0
A114: Waste management | C114: =SUM(C115:C118) -> 80741337 | D114: =SUM(D115:D118) -> 64944427.99 | E114: 0 | F114: 0 | G114: 0 | H114: 0 | I114: 0 | J114: 0 | K114: 64944427.99 | L114: 74324707 | M114: =SUM(M115:M118) -> 95122198
A115: Recycling | J115: 0 | K115: 0
A116: Solid Waste Disposal (Landfill Sites) | J116: 0 | K116: 0
A117: Solid Waste Removal | C117: 80741337 | D117: 64944427.99 | E117: 0 | F117: 0 | G117: 0 | H117: 0 | I117: 0 | J117: 0 | K117: 64944427.99 | L117: 74324707 | M117: 95122198
A118: Street Cleaning | J118: 0 | K118: 0
A119: Other | C119: =SUM(C120:C125) -> 0 | D119: 0 | E119: 0 | F119: 0 | G119: 0 | H119: 0 | I119: 0 | J119: 0 | K119: 0 | L119: 0 | M119: 0
A120: Abattoirs | J120: 0 | K120: 0
A121: Air Transport | J121: 0 | K121: 0
A122: Forestry | J122: 0 | K122: 0
A123: Licensing and Regulation | J123: 0 | K123: 0
A124: Markets | J124: 0 | K124: 0
A125: Tourism | J125: 0 | K125: 0
A126: ="Total "&A6 -> Total Revenue - Functional | B126: 2 | C126: =C7+C27+C76+C100+C119 -> 1036090528 | D126: 980010805 | E126: 0 | F126: 0 | G126: 0 | H126: 0 | I126: 378513 | J126: 378513 | K126: 980389318 | L126: =L7+L27+L76+L100+L119 -> 1098699916 | M126: =M7+M27+M76+M100+M119 -> 1158692670
J127: 0 | K127: 0
A128: Expenditure - Functional | J128: 0 | K128: 0
A129: =A7 -> Municipal governance and administration | C129: =C130+C133+C147 -> 395399683 | D129: 330043524.5 | E129: 0 | F129: 0 | G129: 0 | H129: 0 | I129: 2568000 | J129: 2568000 | K129: 332611524.5 | L129: =L130+L133+L147 -> 349715191 | M129: =M130+M133+M147 -> 368351423
A130: Executive and council | C130: =SUM(C131:C132) -> 107752328 | D130: 83503014.24 | E130: 0 | F130: 0 | G130: 0 | H130: 0 | I130: 2300000 | J130: 2300000 | K130: 85803014.24 | L130: =SUM(L131:L132) -> 87162222 | M130: =SUM(M131:M132) -> 93378791
A131: Mayor and Council | C131: 82049260 | D131: 66834252.14 | E131: 0 | F131: 0 | G131: 0 | H131: 0 | I131: 2300000 | J131: 2300000 | K131: 69134252.14 | L131: 69748020 | M131: 74930833
A132: Municipal Manager, Town Secretary and Chief Executive | C132: 25703068 | D132: 16668762.1 | E132: 0 | F132: 0 | G132: 0 | H132: 0 | I132: 0 | J132: 0 | K132: 16668762.1 | L132: 17414202 | M132: 18447958
A133: Finance and administration | C133: =SUM(C134:C146) -> 283949994 | D133: 243078499.2 | E133: 0 | F133: 0 | G133: 0 | H133: 0 | I133: 268000 | J133: 268000 | K133: 243346499.2 | L133: =SUM(L134:L146) -> 258527601 | M133: =SUM(M134:M146) -> 270737504
A134: Administrative and Corporate Support | C134: 46926909 | D134: 39692827.02 | E134: 0 | F134: 0 | G134: 0 | H134: 0 | I134: 0 | J134: 0 | K134: 39692827.02 | L134: 44617622 | M134: 46699544
A135: Asset Management | C135: 11318519 | D135: 6766219 | E135: 0 | F135: 0 | G135: 0 | H135: 0 | I135: 0 | J135: 0 | K135: 6766219 | L135: 13650935 | M135: 14219330
A136: Finance | C136: 108624212 | D136: 107446118.1 | E136: 0 | F136: 0 | G136: 0 | H136: 0 | I136: 0 | J136: =SUM(E136:I136) -> 0 | K136: =IF(D136=0,C136+J136,D136+J136) -> 107446118.1 | L136: 123655478 | M136: 129584839
A137: Fleet Management | C137: 17935850 | D137: 15293850.03 | E137: 0 | F137: 0 | G137: 0 | H137: 0 | I137: 0 | J137: 0 | K137: 15293850.03 | L137: 19271527 | M137: 20217468
A138: Human Resources | C138: 16861620 | D138: 11699680.02 | E138: 0 | F138: 0 | G138: 0 | H138: 0 | I138: 268000 | J138: 268000 | K138: 11967680.02 | L138: 14849578 | M138: 15695857
A139: Information Technology | C139: 74955189 | D139: 54785380.04 | E139: 0 | F139: 0 | G139: 0 | H139: 0 | I139: 0 | J139: 0 | K139: 54785380.04 | L139: 32329546 | M139: 33659955
A140: Legal Services | C140: 1178495 | D140: 1148495.02 | E140: 0 | F140: 0 | G140: 0 | H140: 0 | I140: 0 | J140: 0 | K140: 1148495.02 | L140: 1309413 | M140: 1374883
A141: Marketing, Customer Relations, Publicity and Media Co-ordination | J141: 0 | K141: 0
A142: Property Services | J142: 0 | K142: 0
A143: Risk Management | C143: 0 | D143: 0 | E143: 0 | F143: 0 | G143: 0 | H143: 0 | I143: 0 | J143: 0 | K143: 0 | L143: 941888 | M143: 988982
A144: Security Services | J144: 0 | K144: 0
A145: Supply Chain Management | C145: 6149200 | D145: 6245930 | E145: 0 | F145: 0 | G145: 0 | H145: 0 | I145: 0 | J145: 0 | K145: 6245930 | L145: 7901614 | M145: 8296646
A146: Valuation Service | J146: 0 | K146: 0
A147: Internal audit | C147: =SUM(C148:C148) -> 3697361 | D147: 3462011.01 | E147: 0 | F147: 0 | G147: 0 | H147: 0 | I147: 0 | J147: 0 | K147: 3462011.01 | L147: 4025368 | M147: 4235128
A148: Governance Function | C148: 3697361 | D148: 3462011.01 | E148: 0 | F148: 0 | G148: 0 | H148: 0 | I148: 0 | J148: 0 | K148: 3462011.01 | L148: 4025368 | M148: 4235128
A149: Community and public safety | C149: =C150+C172+C178+C187+C190 -> 101814686 | D149: 81103906.04 | E149: 0 | F149: 0 | G149: 0 | H149: 0 | I149: -179487 | J149: -179487 | K149: 80924419.04 | L149: =L150+L172+L178+L187+L190 -> 103872294 | M149: =M150+M172+M178+M187+M190 -> 108711163
A150: Community and social services | C150: =SUM(C151:C171) -> 30482848 | D150: 23105416 | E150: 0 | F150: 0 | G150: 0 | H150: 0 | I150: -179487 | J150: -179487 | K150: 22925929 | L150: =SUM(L151:L171) -> 26180426 | M150: =SUM(M151:M171) -> 27495935
A151: Aged Care | J151: 0 | K151: 0
A152: Agricultural | C152: 0 | D152: 0 | E152: 0 | F152: 0 | G152: 0 | H152: 0 | I152: 0 | J152: 0 | K152: 0 | L152: 8157250 | M152: 8565113
A153: Animal Care and Diseases | J153: 0 | K153: 0
A154: Cemeteries, Funeral Parlours and Crematoriums | C154: 605000 | D154: 605000 | E154: 0 | F154: 0 | G154: 0 | H154: 0 | I154: 0 | J154: 0 | K154: 605000 | L154: 3978010 | M154: 4165699
A155: Child Care Facilities | J155: 0 | K155: 0
A156: Community Halls and Facilities | C156: 26561133 | D156: 19069214 | E156: 0 | F156: 0 | G156: 0 | H156: 0 | I156: 0 | J156: 0 | K156: 19069214 | L156: 9784996 | M156: 10271545
A157: Consumer Protection | J157: 0 | K157: 0
A158: Cultural Matters | J158: 0 | K158: 0
A159: Disaster Management | C159: 660000 | D159: 110000 | E159: 0 | F159: 0 | G159: 0 | H159: 0 | I159: 0 | J159: 0 | K159: 110000 | L159: 2486022 | M159: 2624448
A160: Education | J160: 0 | K160: 0
A161: =A39 -> Indigenous and Customary Law | J161: 0 | K161: 0
A162: Industrial Promotion | J162: 0 | K162: 0
A163: Language Policy | J163: 0 | K163: 0
A164: Libraries and Archives | C164: 2656715 | D164: 3321202 | E164: 0 | F164: 0 | G164: 0 | H164: 0 | I164: -179487 | J164: -179487 | K164: 3141715 | L164: 1774148 | M164: 1869130
A165: Literacy Programmes | J165: 0 | K165: 0
A166: Media Services | C166: 0 | D166: 0 | E166: 0 | F166: 0 | G166: 0 | H166: 0 | I166: 0 | J166: 0 | K166: 0 | L166: 0 | M166: 0
A167: Museums and Art Galleries | C167: 0 | D167: 0 | E167: 0 | F167: 0 | G167: 0 | H167: 0 | I167: 0 | J167: 0 | K167: 0 | L167: 0 | M167: 0
A168: Population Development | J168: 0 | K168: 0
A169: Provincial Cultural Matters | J169: 0 | K169: 0
A170: Theatres | J170: 0 | K170: 0
A171: Zoo's | J171: 0 | K171: 0
A172: Sport and recreation | C172: =SUM(C173:C177) -> 29288851 | D172: 25715503.01 | E172: 0 | F172: 0 | G172: 0 | H172: 0 | I172: 0 | J172: 0 | K172: 25715503.01 | L172: =SUM(L173:L177) -> 42725232 | M172: =SUM(M173:M177) -> 44784178
A173: Beaches and Jetties | J173: 0 | K173: 0
A174: Casinos, Racing, Gambling, Wagering | J174: 0 | K174: 0
A175: Community Parks (including Nurseries) | J175: 0 | K175: 0
A176: Recreational Facilities | C176: 29288851 | D176: 25715503.01 | E176: 0 | F176: 0 | G176: 0 | H176: 0 | I176: 0 | J176: 0 | K176: 25715503.01 | L176: 42725232 | M176: 44784178
A177: Sports Grounds and Stadiums | J177: 0 | K177: 0
A178: Public safety | C178: =SUM(C179:C186) -> 42042987 | D178: 32282987.03 | E178: 0 | F178: 0 | G178: 0 | H178: 0 | I178: 0 | J178: 0 | K178: 32282987.03 | L178: =SUM(L179:L186) -> 34966636 | M178: =SUM(M179:M186) -> 36431050
A179: Civil Defence | C179: 29150069 | D179: 21620069.02 | E179: 0 | F179: 0 | G179: 0 | H179: 0 | I179: 0 | J179: 0 | K179: 21620069.02 | L179: 24897500 | M179: 25944375
A180: Cleansing | J180: 0 | K180: 0
A181: Control of Public Nuisances | J181: 0 | K181: 0
A182: Fencing and Fences | J182: 0 | K182: 0
A183: Fire Fighting and Protection | C183: 0 | D183: 0 | E183: 0 | F183: 0 | G183: 0 | H183: 0 | I183: 0 | J183: 0 | K183: 0 | L183: 0 | M183: 0
A184: Licensing and Control of Animals | J184: =SUM(E184:I184) -> 0 | K184: =IF(D184=0,C184+J184,D184+J184) -> 0
A185: Police Forces, Traffic and Street Parking Control | C185: 12892918 | D185: 10662918.01 | E185: 0 | F185: 0 | G185: 0 | H185: 0 | I185: 0 | J185: =SUM(E185:I185) -> 0 | K185: =IF(D185=0,C185+J185,D185+J185) -> 10662918.01 | L185: 10069136 | M185: 10486675
A186: Pounds | J186: 0 | K186: 0
A187: Housing | C187: =SUM(C188:C189) -> 0 | D187: =SUM(D188:D189) -> 0 | E187: 0 | F187: 0 | G187: 0 | H187: 0 | I187: 0 | J187: 0 | K187: 0 | L187: 0 | M187: 0
A188: Housing | J188: 0 | K188: 0
A189: Informal Settlements | J189: 0 | K189: 0
A190: Health | C190: =SUM(C191:C197) -> 0 | D190: 0 | E190: 0 | F190: 0 | G190: 0 | H190: 0 | I190: 0 | J190: 0 | K190: 0 | L190: =SUM(L191:L197) -> 0 | M190: =SUM(M191:M197) -> 0
A191: Ambulance | J191: 0 | K191: 0
A192: Health Services | J192: 0 | K192: 0
A193: =A71 -> Laboratory Services | J193: 0 | K193: 0
A194: Food Control | J194: 0 | K194: 0
A195: Health Surveillance and Prevention of Communicable Diseases including immunizations | J195: 0 | K195: 0
A196: Vector Control | J196: 0 | K196: 0
A197: Chemical Safety | J197: 0 | K197: 0
A198: Economic and environmental services | C198: =C199+C210+C215 -> 115203608 | D198: 97236854.06 | E198: 0 | F198: 0 | G198: 0 | H198: 0 | I198: 0 | J198: 0 | K198: 97236854.06 | L198: =L199+L210+L215 -> 86089149 | M198: =M199+M210+M215 -> 90942754
A199: Planning and development | C199: =SUM(C200:C209) -> 31369359 | D199: 25454605.02 | E199: 0 | F199: 0 | G199: 0 | H199: 0 | I199: 0 | J199: 0 | K199: 25454605.02 | L199: =SUM(L200:L209) -> 24460808 | M199: =SUM(M200:M209) -> 26477739
A200: Billboards | J200: 0 | K200: 0
... 54 more rows

Sheet B3-FinPerf V
A1: =muni&" - "&_ADJ2&" - "&Date -> NW375 Moses Kotane - Table B3 Adjustments Budget Financial Performance (revenue and expenditure by municipal vote) - 44171
A2: =Vdesc -> Vote Description | B2: =head27 -> Ref | C2: =Head2 -> Budget Year 2019/20 | L2: =Head10 -> Budget Year +1 2020/21 | M2: =Head11 -> Budget Year +2 2021/22
C3: =Head6 -> Original Budget | D3: =Head54 -> Prior Adjusted | E3: =Head51 -> Accum. Funds | F3: =Head52 -> Multi-year capital | G3: =Head53 -> Unfore. Unavoid. | H3: =Head55 -> Nat. or Prov. Govt | I3: =Head50 -> Other Adjusts. | J3: =Head56 -> Total Adjusts. | K3: =Head7 -> Adjusted Budget | L3: =Head7 -> Adjusted Budget | M3: =Head7 -> Adjusted Budget
A4: [Insert departmental structure etc] | D4: 3 | E4: 4 | F4: 5 | G4: 6 | H4: 7 | I4: 8 | J4: 9 | K4: 10
A5: R thousands | C5: A | D5: A1 | E5: B | F5: C | G5: D | H5: E | I5: F | J5: G | K5: H
A6: Revenue by Vote | B6: 1
A7: =B3B!A7 -> Vote 01 - Municipal Council | C7: =B3B!C7 -> 1695000 | D7: =B3B!D7 -> 1695000 | E7: =B3B!E7 -> 0 | F7: =B3B!F7 -> 0 | G7: =B3B!G7 -> 0 | H7: =B3B!H7 -> 0 | I7: =B3B!I7 -> 0 | J7: =B3B!J7 -> 0 | K7: =B3B!K7 -> 1695000 | L7: =B3B!L7 -> 1827000 | M7: =B3B!M7 -> 940
A8: =B3B!A13 -> Vote 02 - Office Of The Accounting Officer | C8: =B3B!C13 -> 0 | D8: =B3B!D13 -> 0 | E8: =B3B!E13 -> 0 | F8: =B3B!F13 -> 0 | G8: =B3B!G13 -> 0 | H8: =B3B!H13 -> 0 | I8: =B3B!I13 -> 0 | J8: =B3B!J13 -> 0 | K8: =B3B!K13 -> 0 | L8: =B3B!L13 -> 0 | M8: =B3B!M13 -> 0
A9: =B3B!A20 -> Vote 03 - Budget And Treasury Office | C9: =B3B!C20 -> 479197100 | D9: =B3B!D20 -> 417906890 | E9: =B3B!E20 -> 0 | F9: =B3B!F20 -> 0 | G9: =B3B!G20 -> 0 | H9: =B3B!H20 -> 0 | I9: =B3B!I20 -> 290000 | J9: =B3B!J20 -> 290000 | K9: =B3B!K20 -> 418196890 | L9: =B3B!L20 -> 526235196 | M9: =B3B!M20 -> 556112493
A10: =B3B!A28 -> Vote 04 - Corporate Services | C10: =B3B!C28 -> 500000 | D10: =B3B!D28 -> 500000 | E10: =B3B!E28 -> 0 | F10: =B3B!F28 -> 0 | G10: =B3B!G28 -> 0 | H10: =B3B!H28 -> 0 | I10: =B3B!I28 -> 268000 | J10: =B3B!J28 -> 268000 | K10: =B3B!K28 -> 768000 | L10: =B3B!L28 -> 500000 | M10: =B3B!M28 -> 500000
A11: =B3B!A37 -> Vote 05 - Community Services | C11: =B3B!C37 -> 99986590 | D11: =B3B!D37 -> 100490669 | E11: =B3B!E37 -> 0 | F11: =B3B!F37 -> 0 | G11: =B3B!G37 -> 0 | H11: =B3B!H37 -> 0 | I11: =B3B!I37 -> -179487 | J11: =B3B!J37 -> -179487 | K11: =B3B!K37 -> 100311182 | L11: =B3B!L37 -> 87323182 | M11: =B3B!M37 -> 106256198
A12: =B3B!A52 -> Vote 06 - Planning & Development | C12: =B3B!C52 -> 100000 | D12: =B3B!D52 -> 150000 | E12: =B3B!E52 -> 0 | F12: =B3B!F52 -> 0 | G12: =B3B!G52 -> 0 | H12: =B3B!H52 -> 0 | I12: =B3B!I52 -> 0 | J12: =B3B!J52 -> 0 | K12: =B3B!K52 -> 150000 | L12: =B3B!L52 -> 100000 | M12: =B3B!M52 -> 100000
A13: =B3B!A63 -> Vote 07 - Infrastructure & Technical Services | C13: =B3B!C63 -> 454611838 | D13: =B3B!D63 -> 459268246 | E13: =B3B!E63 -> 0 | F13: =B3B!F63 -> 0 | G13: =B3B!G63 -> 0 | H13: =B3B!H63 -> 0 | I13: =B3B!I63 -> 0 | J13: =B3B!J63 -> 0 | K13: =B3B!K63 -> 459268246 | L13: =B3B!L63 -> 482714538 | M13: =B3B!M63 -> 495723039
A14: ='Org structure'!A9 -> Vote 08 - | C14: =B3B!C83 -> 0 | D14: =B3B!D83 -> 0 | E14: =B3B!E83 -> 0 | F14: =B3B!F83 -> 0 | G14: =B3B!G83 -> 0 | H14: =B3B!H83 -> 0 | I14: =B3B!I83 -> 0 | J14: =SUM(E14:I14) -> 0 | K14: =IF(D14=0,C14+J14,D14+J14) -> 0 | L14: =B3B!L83 -> 0 | M14: =B3B!M83 -> 0
A15: ='Org structure'!A10 -> Vote 09 - | C15: =B3B!C84 -> 0 | D15: =B3B!D84 -> 0 | E15: =B3B!E84 -> 0 | F15: =B3B!F84 -> 0 | G15: =B3B!G84 -> 0 | H15: =B3B!H84 -> 0 | I15: =B3B!I84 -> 0 | J15: 0 | K15: 0 | L15: =B3B!L84 -> 0 | M15: =B3B!M84 -> 0
A16: ='Org structure'!A11 -> Vote 10 - | C16: =B3B!C85 -> 0 | D16: =B3B!D85 -> 0 | E16: =B3B!E85 -> 0 | F16: =B3B!F85 -> 0 | G16: =B3B!G85 -> 0 | H16: =B3B!H85 -> 0 | I16: =B3B!I85 -> 0 | J16: 0 | K16: 0 | L16: =B3B!L85 -> 0 | M16: =B3B!M85 -> 0
A17: ='Org structure'!A12 -> Vote 11 - | C17: =B3B!C86 -> 0 | D17: =B3B!D86 -> 0 | E17: =B3B!E86 -> 0 | F17: =B3B!F86 -> 0 | G17: =B3B!G86 -> 0 | H17: =B3B!H86 -> 0 | I17: =B3B!I86 -> 0 | J17: 0 | K17: 0 | L17: =B3B!L86 -> 0 | M17: =B3B!M86 -> 0
A18: ='Org structure'!A13 -> Vote 12 - | C18: =B3B!C87 -> 0 | D18: =B3B!D87 -> 0 | E18: =B3B!E87 -> 0 | F18: =B3B!F87 -> 0 | G18: =B3B!G87 -> 0 | H18: =B3B!H87 -> 0 | I18: =B3B!I87 -> 0 | J18: 0 | K18: 0 | L18: =B3B!L87 -> 0 | M18: =B3B!M87 -> 0
A19: ='Org structure'!A14 -> Vote 13 - | C19: =B3B!C88 -> 0 | D19: =B3B!D88 -> 0 | E19: =B3B!E88 -> 0 | F19: =B3B!F88 -> 0 | G19: =B3B!G88 -> 0 | H19: =B3B!H88 -> 0 | I19: =B3B!I88 -> 0 | J19: 0 | K19: 0 | L19: =B3B!L88 -> 0 | M19: =B3B!M88 -> 0
A20: ='Org structure'!A15 -> Vote 14 - | C20: =B3B!C89 -> 0 | D20: =B3B!D89 -> 0 | E20: =B3B!E89 -> 0 | F20: =B3B!F89 -> 0 | G20: =B3B!G89 -> 0 | H20: =B3B!H89 -> 0 | I20: =B3B!I89 -> 0 | J20: 0 | K20: 0 | L20: =B3B!L89 -> 0 | M20: =B3B!M89 -> 0
A21: ='Org structure'!A16 -> Vote 15 - Other | C21: =B3B!C90 -> 0 | D21: =B3B!D90 -> 0 | E21: =B3B!E90 -> 0 | F21: =B3B!F90 -> 0 | G21: =B3B!G90 -> 0 | H21: =B3B!H90 -> 0 | I21: =B3B!I90 -> 0 | J21: 0 | K21: 0 | L21: =B3B!L90 -> 0 | M21: =B3B!M90 -> 0
A22: Total Revenue by Vote | B22: 2 | C22: =SUM(C7:C21) -> 1036090528 | D22: =SUM(D7:D21) -> 980010805 | E22: 0 | F22: 0 | G22: 0 | H22: 0 | I22: 378513 | J22: =SUM(J7:J21) -> 378513 | K22: 980389318 | L22: =SUM(L7:L21) -> 1098699916 | M22: =SUM(M7:M21) -> 1158692670
A24: Expenditure by Vote | B24: 1
A25: =B3B!A94 -> Vote 01 - Municipal Council | C25: =B3B!C94 -> 86146330 | D25: =B3B!D94 -> 67177252.22 | E25: =B3B!E94 -> 0 | F25: =B3B!F94 -> 0 | G25: =B3B!G94 -> 0 | H25: =B3B!H94 -> 0 | I25: =B3B!I94 -> 2300000 | J25: =B3B!J94 -> 2300000 | K25: =B3B!K94 -> 69477252.22 | L25: =B3B!L94 -> 70271020 | M25: =B3B!M94 -> 75483033
A26: =B3B!A100 -> Vote 02 - Office Of The Accounting Officer | C26: =B3B!C100 -> 25303359 | D26: =B3B!D100 -> 19787773.03 | E26: =B3B!E100 -> 0 | F26: =B3B!F100 -> 0 | G26: =B3B!G100 -> 0 | H26: =B3B!H100 -> 0 | I26: =B3B!I100 -> 0 | J26: =B3B!J100 -> 0 | K26: =B3B!K100 -> 19787773.03 | L26: =B3B!L100 -> 25008311 | M26: =B3B!M100 -> 26427215
A27: =B3B!A107 -> Vote 03 - Budget And Treasury Office | C27: =B3B!C107 -> 126091931 | D27: =B3B!D107 -> 120458267.1 | E27: =B3B!E107 -> 0 | F27: =B3B!F107 -> 0 | G27: =B3B!G107 -> 0 | H27: =B3B!H107 -> 0 | I27: =B3B!I107 -> 0 | J27: =B3B!J107 -> 0 | K27: =B3B!K107 -> 120458267.1 | L27: =B3B!L107 -> 145208027 | M27: =B3B!M107 -> 152100815
A28: =B3B!A115 -> Vote 04 - Corporate Services | C28: =B3B!C115 -> 137336122 | D28: =B3B!D115 -> 104950279.1 | E28: =B3B!E115 -> 0 | F28: =B3B!F115 -> 0 | G28: =B3B!G115 -> 0 | H28: =B3B!H115 -> 0 | I28: =B3B!I115 -> 268000 | J28: =B3B!J115 -> 268000 | K28: =B3B!K115 -> 105218279.1 | L28: =B3B!L115 -> 90642312 | M28: =B3B!M115 -> 94844362
A29: =B3B!A124 -> Vote 05 - Community Services | C29: =B3B!C124 -> 182219774 | D29: =B3B!D124 -> 146158806.1 | E29: =B3B!E124 -> 0 | F29: =B3B!F124 -> 0 | G29: =B3B!G124 -> 0 | H29: =B3B!H124 -> 0 | I29: =B3B!I124 -> -179487 | J29: =B3B!J124 -> -179487 | K29: =B3B!K124 -> 145979319.1 | L29: =B3B!L124 -> 166499408 | M29: =B3B!M124 -> 175379400
A30: =B3B!A139 -> Vote 06 - Planning & Development | C30: =B3B!C139 -> 26201722 | D30: =B3B!D139 -> 21871968.02 | E30: =B3B!E139 -> 0 | F30: =B3B!F139 -> 0 | G30: =B3B!G139 -> 0 | H30: =B3B!H139 -> 0 | I30: =B3B!I139 -> 0 | J30: =B3B!J139 -> 0 | K30: =B3B!K139 -> 21871968.02 | L30: =B3B!L139 -> 25289438 | M30: =B3B!M139 -> 27330875
A31: =B3B!A150 -> Vote 07 - Infrastructure & Technical Services | C31: =B3B!C150 -> 383941084 | D31: =B3B!D150 -> 425182889.3 | E31: =B3B!E150 -> 0 | F31: =B3B!F150 -> 0 | G31: =B3B!G150 -> 0 | H31: =B3B!H150 -> 0 | I31: =B3B!I150 -> -2300000 | J31: =B3B!J150 -> -2300000 | K31: =B3B!K150 -> 422882889.3 | L31: =B3B!L150 -> 415586746 | M31: =B3B!M150 -> 428723092
A32: ='Org structure'!A9 -> Vote 08 - | C32: =B3B!C170 -> 0 | D32: =B3B!D170 -> 0 | E32: =B3B!E170 -> 0 | F32: =B3B!F170 -> 0 | G32: =B3B!G170 -> 0 | H32: =B3B!H170 -> 0 | I32: =B3B!I170 -> 0 | J32: =SUM(E32:I32) -> 0 | K32: =IF(D32=0,C32+J32,D32+J32) -> 0 | L32: =B3B!L170 -> 0 | M32: =B3B!M170 -> 0
A33: ='Org structure'!A10 -> Vote 09 - | C33: =B3B!C171 -> 0 | D33: =B3B!D171 -> 0 | E33: =B3B!E171 -> 0 | F33: =B3B!F171 -> 0 | G33: =B3B!G171 -> 0 | H33: =B3B!H171 -> 0 | I33: =B3B!I171 -> 0 | J33: 0 | K33: 0 | L33: =B3B!L171 -> 0 | M33: =B3B!M171 -> 0
A34: ='Org structure'!A11 -> Vote 10 - | C34: =B3B!C172 -> 0 | D34: =B3B!D172 -> 0 | E34: =B3B!E172 -> 0 | F34: =B3B!F172 -> 0 | G34: =B3B!G172 -> 0 | H34: =B3B!H172 -> 0 | I34: =B3B!I172 -> 0 | J34: 0 | K34: 0 | L34: =B3B!L172 -> 0 | M34: =B3B!M172 -> 0
A35: ='Org structure'!A12 -> Vote 11 - | C35: =B3B!C173 -> 0 | D35: =B3B!D173 -> 0 | E35: =B3B!E173 -> 0 | F35: =B3B!F173 -> 0 | G35: =B3B!G173 -> 0 | H35: =B3B!H173 -> 0 | I35: =B3B!I173 -> 0 | J35: 0 | K35: 0 | L35: =B3B!L173 -> 0 | M35: =B3B!M173 -> 0
A36: ='Org structure'!A13 -> Vote 12 - | C36: =B3B!C174 -> 0 | D36: =B3B!D174 -> 0 | E36: =B3B!E174 -> 0 | F36: =B3B!F174 -> 0 | G36: =B3B!G174 -> 0 | H36: =B3B!H174 -> 0 | I36: =B3B!I174 -> 0 | J36: 0 | K36: 0 | L36: =B3B!L174 -> 0 | M36: =B3B!M174 -> 0
A37: ='Org structure'!A14 -> Vote 13 - | C37: =B3B!C175 -> 0 | D37: =B3B!D175 -> 0 | E37: =B3B!E175 -> 0 | F37: =B3B!F175 -> 0 | G37: =B3B!G175 -> 0 | H37: =B3B!H175 -> 0 | I37: =B3B!I175 -> 0 | J37: 0 | K37: 0 | L37: =B3B!L175 -> 0 | M37: =B3B!M175 -> 0
A38: ='Org structure'!A15 -> Vote 14 - | C38: =B3B!C176 -> 0 | D38: =B3B!D176 -> 0 | E38: =B3B!E176 -> 0 | F38: =B3B!F176 -> 0 | G38: =B3B!G176 -> 0 | H38: =B3B!H176 -> 0 | I38: =B3B!I176 -> 0 | J38: 0 | K38: 0 | L38: =B3B!L176 -> 0 | M38: =B3B!M176 -> 0
A39: ='Org structure'!A16 -> Vote 15 - Other | C39: =B3B!C177 -> 0 | D39: =B3B!D177 -> 0 | E39: =B3B!E177 -> 0 | F39: =B3B!F177 -> 0 | G39: =B3B!G177 -> 0 | H39: =B3B!H177 -> 0 | I39: =B3B!I177 -> 0 | J39: 0 | K39: 0 | L39: =B3B!L177 -> 0 | M39: =B3B!M177 -> 0
A40: Total Expenditure by Vote | B40: 2 | C40: =SUM(C25:C39) -> 967240322 | D40: =SUM(D25:D39) -> 905587234.9 | E40: 0 | F40: 0 | G40: 0 | H40: 0 | I40: 88513 | J40: =SUM(J25:J39) -> 88513 | K40: =SUM(K25:K39) -> 905675747.9 | L40: =SUM(L25:L39) -> 938505262 | M40: =SUM(M25:M39) -> 980288792
A41: =result -> Surplus/ (Deficit) for the year | B41: 2 | C41: =C22-C40 -> 68850206 | D41: =D22-D40 -> 74423570.12 | E41: 0 | F41: 0 | G41: 0 | H41: 0 | I41: 290000 | J41: 290000 | K41: 74713570.12 | L41: 160194654 | M41: 178403878
A42: =head27a -> References
A43: 1. Insert 'Vote'; e.g. Department, if different to standard classification structure
A44: 2. Must reconcile to Budgeted Financial Performance (revenue and expenditure)
A45: 3. Only complete if a previous adjusted budget has been approved in the same financial year. Reflect most recent adjusted budget.
A46: 4. Additional cash-backed accumulated funds/unspent funds (MFMA section 18(1)(b) and section 28(2)(e)) identified after the Original Budget approved and after annual financial statements audited (note: only where underspending could not reasonably have been foreseen)
A47: 5. Increases of funds approved under MFMA section 31
A48: 6. Adjustments approved in accordance with MFMA section 29
A49: 7. Adjustments to transfers from National or Provincial Government
A50: 8. Adjusts. = 'Other' Adjustments proposed to be approved; including revenue under-collection (MFMA section 28(2)(a)); additional revenue appropriation on existing programmes (section 28(2))(b); projected savings (section 28(2)(d)); error correction (section 28(2)(f))
A51: 9. G = B + C + D + E + F
A52: 10. Adjusted Budget H = (A or A1/2 etc) + G
A54: check revenue | C54: =C22-'B4-FinPerf RE'!C62 -> 0 | D54: =D22-'B4-FinPerf RE'!D62 -> 0 | E54: =E22-'B4-FinPerf RE'!E62 -> 0 | F54: =F22-'B4-FinPerf RE'!F62 -> 0 | G54: =G22-'B4-FinPerf RE'!G62 -> 0 | H54: =H22-'B4-FinPerf RE'!H62 -> 0 | I54: =I22-'B4-FinPerf RE'!I62 -> 0 | J54: =J22-'B4-FinPerf RE'!J62 -> 0 | K54: =K22-'B4-FinPerf RE'!K62 -> 0 | L54: =L22-'B4-FinPerf RE'!L62 -> 0 | M54: =M22-'B4-FinPerf RE'!M62 -> 0
A55: check expenditure | C55: =C40-'B4-FinPerf RE'!C37 -> 0 | D55: =D40-'B4-FinPerf RE'!D37 -> 0 | E55: =E40-'B4-FinPerf RE'!E37 -> 0 | F55: =F40-'B4-FinPerf RE'!F37 -> 0 | G55: =G40-'B4-FinPerf RE'!G37 -> 0 | H55: =H40-'B4-FinPerf RE'!H37 -> 0 | I55: =I40-'B4-FinPerf RE'!I37 -> 0 | J55: =J40-'B4-FinPerf RE'!J37 -> 0 | K55: =K40-'B4-FinPerf RE'!K37 -> 0 | L55: =L40-'B4-FinPerf RE'!L37 -> 0 | M55: =M40-'B4-FinPerf RE'!M37 -> 0

Sheet B3B
A1: =muni&" - "&_ADJ2&" - B"&" - "&Date -> NW375 Moses Kotane - Table B3 Adjustments Budget Financial Performance (revenue and expenditure by municipal vote) - B - 44171
A2: =Vdesc -> Vote Description | B2: =head27 -> Ref | C2: =Head2 -> Budget Year 2019/20 | L2: =Head10 -> Budget Year +1 2020/21 | M2: =Head11 -> Budget Year +2 2021/22
C3: =Head6 -> Original Budget | D3: =Head54 -> Prior Adjusted | E3: =Head51 -> Accum. Funds | F3: =Head52 -> Multi-year capital | G3: =Head53 -> Unfore. Unavoid. | H3: =Head55 -> Nat. or Prov. Govt | I3: =Head50 -> Other Adjusts. | J3: =Head56 -> Total Adjusts. | K3: =Head7 -> Adjusted Budget | L3: =Head7 -> Adjusted Budget | M3: =Head7 -> Adjusted Budget
A4: [Insert departmental structure etc] | D4: 3 | E4: 4 | F4: 5 | G4: 6 | H4: 7 | I4: 8 | J4: 9 | K4: 10
A5: R thousands | C5: A | D5: A1 | E5: B | F5: C | G5: D | H5: E | I5: F | J5: G | K5: H
A6: Revenue by Vote | B6: 1
A7: ='Org structure'!A2 -> Vote 01 - Municipal Council | C7: =SUM(C8:C12) -> 1695000 | D7: 1695000 | E7: 0 | F7: 0 | G7: 0 | H7: 0 | I7: 0 | J7: =SUM(E7:I7) -> 0 | K7: =IF(D7=0,C7+J7,D7+J7) -> 1695000 | L7: =SUM(L8:L12) -> 1827000 | M7: =SUM(M8:M12) -> 940
A8: ='Org structure'!E3 -> 01.1 - Office Of The Mayor | C8: 1695000 | D8: 1695000 | E8: 0 | F8: 0 | G8: 0 | H8: 0 | I8: 0 | J8: 0 | K8: 1695000 | L8: 1827000 | M8: 0
A9: ='Org structure'!E4 -> 01.2 - Office Of The Speaker | C9: 0 | D9: 0 | E9: 0 | F9: 0 | G9: 0 | H9: 0 | I9: 0 | J9: 0 | K9: 0 | L9: 0 | M9: 0
A10: ='Org structure'!E5 -> 01.3 - Office Of The Chief Whip | C10: 0 | D10: 0 | E10: 0 | F10: 0 | G10: 0 | H10: 0 | I10: 0 | J10: 0 | K10: 0 | L10: 0 | M10: 0
A11: ='Org structure'!E6 -> 01.4 - Mpac | C11: 0 | D11: 0 | E11: 0 | F11: 0 | G11: 0 | H11: 0 | I11: 0 | J11: 0 | K11: 0 | L11: 0 | M11: 0
A12: ='Org structure'!E7 -> 01.5 - Council General Administration | C12: 0 | D12: 0 | E12: 0 | F12: 0 | G12: 0 | H12: 0 | I12: 0 | J12: 0 | K12: 0 | L12: 0 | M12: 940
A13: ='Org structure'!A3 -> Vote 02 - Office Of The Accounting Officer | C13: =SUM(C14:C19) -> 0 | D13: 0 | E13: 0 | F13: 0 | G13: 0 | H13: 0 | I13: 0 | J13: =SUM(E13:I13) -> 0 | K13: =IF(D13=0,C13+J13,D13+J13) -> 0 | L13: =SUM(L14:L19) -> 0 | M13: =SUM(M14:M19) -> 0
A14: ='Org structure'!E9 -> 02.1 - Office Of The Ao Admin | C14: 0 | D14: 0 | E14: 0 | F14: 0 | G14: 0 | H14: 0 | I14: 0 | J14: =SUM(E14:I14) -> 0 | K14: =IF(D14=0,C14+J14,D14+J14) -> 0 | L14: 0 | M14: 0
A15: ='Org structure'!E10 -> 02.2 - Strategic Planning Monitoring & Evaluat | C15: 0 | D15: 0 | E15: 0 | F15: 0 | G15: 0 | H15: 0 | I15: 0 | J15: 0 | K15: 0 | L15: 0 | M15: 0
A16: ='Org structure'!E11 -> 02.3 - Perfomance Management System | C16: 0 | D16: 0 | E16: 0 | F16: 0 | G16: 0 | H16: 0 | I16: 0 | J16: 0 | K16: 0 | L16: 0 | M16: 0
A17: ='Org structure'!E12 -> 02.4 - Internal Audit | C17: 0 | D17: 0 | E17: 0 | F17: 0 | G17: 0 | H17: 0 | I17: 0 | J17: 0 | K17: 0 | L17: 0 | M17: 0
A18: ='Org structure'!E13 -> 02.5 - Municipal Planning Idp | C18: 0 | D18: 0 | E18: 0 | F18: 0 | G18: 0 | H18: 0 | I18: 0 | J18: 0 | K18: 0 | L18: 0 | M18: 0
A19: ='Org structure'!E14 -> 02.6 - Risk | C19: 0 | D19: 0 | E19: 0 | F19: 0 | G19: 0 | H19: 0 | I19: 0 | J19: 0 | K19: 0 | L19: 0 | M19: 0
A20: ='Org structure'!A4 -> Vote 03 - Budget And Treasury Office | C20: =SUM(C21:C27) -> 479197100 | D20: 417906890 | E20: 0 | F20: 0 | G20: 0 | H20: 0 | I20: 290000 | J20: 290000 | K20: 418196890 | L20: =SUM(L21:L27) -> 526235196 | M20: =SUM(M21:M27) -> 556112493
A21: ='Org structure'!E16 -> 03.1 - Chief Financial Officer Admin | C21: 142163600 | D21: 142163600 | E21: 0 | F21: 0 | G21: 0 | H21: 0 | I21: 0 | J21: =SUM(E21:I21) -> 0 | K21: =IF(D21=0,C21+J21,D21+J21) -> 142163600 | L21: 169026146 | M21: 176816837
A22: ='Org structure'!E17 -> 03.2 - Budget Expenditure & Reporting | C22: 0 | D22: 0 | E22: 0 | F22: 0 | G22: 0 | H22: 0 | I22: 0 | J22: 0 | K22: 0 | L22: 0 | M22: 0
A23: ='Org structure'!E18 -> 03.3 - Budget Expenditure & Reporting | C23: 0 | D23: 0 | E23: 0 | F23: 0 | G23: 0 | H23: 0 | I23: 0 | J23: 0 | K23: 0 | L23: 0 | M23: 0
A24: ='Org structure'!E19 -> 03.4 - Revenue Management | C24: 337033500 | D24: 275743290 | E24: 0 | F24: 0 | G24: 0 | H24: 0 | I24: 290000 | J24: 290000 | K24: 276033290 | L24: 357209050 | M24: 379295656
A25: ='Org structure'!E20 -> 03.5 - Supply Chain Management | C25: 0 | D25: 0 | E25: 0 | F25: 0 | G25: 0 | H25: 0 | I25: 0 | J25: 0 | K25: 0 | L25: 0 | M25: 0
A26: ='Org structure'!E21 -> 03.6 - Assets Management | C26: 0 | D26: 0 | E26: 0 | F26: 0 | G26: 0 | H26: 0 | I26: 0 | J26: 0 | K26: 0 | L26: 0 | M26: 0
A27: ='Org structure'!E22 -> 03.7 - Expenditure | C27: 0 | D27: 0 | E27: 0 | F27: 0 | G27: 0 | H27: 0 | I27: 0 | J27: 0 | K27: 0 | L27: 0 | M27: 0
A28: ='Org structure'!A5 -> Vote 04 - Corporate Services | C28: =SUM(C29:C36) -> 500000 | D28: 500000 | E28: 0 | F28: 0 | G28: 0 | H28: 0 | I28: 268000 | J28: 268000 | K28: 768000 | L28: =SUM(L29:L36) -> 500000 | M28: =SUM(M29:M36) -> 500000
A29: ='Org structure'!E24 -> 04.1 - Legal Services | C29: 0 | D29: 0 | E29: 0 | F29: 0 | G29: 0 | H29: 0 | I29: 0 | J29: =SUM(E29:I29) -> 0 | K29: =IF(D29=0,C29+J29,D29+J29) -> 0 | L29: 0 | M29: 0
A30: ='Org structure'!E25 -> 04.2 - Corporate Service Administration | C30: 0 | D30: 0 | E30: 0 | F30: 0 | G30: 0 | H30: 0 | I30: 0 | J30: 0 | K30: 0 | L30: 0 | M30: 0
A31: ='Org structure'!E26 -> 04.3 - Human Resources | C31: 500000 | D31: 500000 | E31: 0 | F31: 0 | G31: 0 | H31: 0 | I31: 268000 | J31: 268000 | K31: 768000 | L31: 500000 | M31: 500000
A32: ='Org structure'!E27 -> 04.4 - Media & Communication | C32: 0 | D32: 0 | E32: 0 | F32: 0 | G32: 0 | H32: 0 | I32: 0 | J32: 0 | K32: 0 | L32: 0 | M32: 0
A33: ='Org structure'!E28 -> 04.5 - Organisational Development | C33: 0 | D33: 0 | E33: 0 | F33: 0 | G33: 0 | H33: 0 | I33: 0 | J33: 0 | K33: 0 | L33: 0 | M33: 0
A34: ='Org structure'!E29 -> 04.6 - Labour Relations | C34: 0 | D34: 0 | E34: 0 | F34: 0 | G34: 0 | H34: 0 | I34: 0 | J34: 0 | K34: 0 | L34: 0 | M34: 0
A35: ='Org structure'!E30 -> 04.7 - Legal Services | C35: 0 | D35: 0 | E35: 0 | F35: 0 | G35: 0 | H35: 0 | I35: 0 | J35: 0 | K35: 0 | L35: 0 | M35: 0
A36: ='Org structure'!E31 -> 04.8 - Information Technology Services | C36: 0 | D36: 0 | E36: 0 | F36: 0 | G36: 0 | H36: 0 | I36: 0 | J36: 0 | K36: 0 | L36: 0 | M36: 0
A37: ='Org structure'!A6 -> Vote 05 - Community Services | C37: =SUM(C38:C51) -> 99986590 | D37: 100490669 | E37: 0 | F37: 0 | G37: 0 | H37: 0 | I37: -179487 | J37: -179487 | K37: 100311182 | L37: =SUM(L38:L51) -> 87323182 | M37: =SUM(M38:M51) -> 106256198
A38: ='Org structure'!E33 -> 05.1 - Municipal Buildings | C38: 14590253 | D38: 30726754 | E38: 0 | F38: 0 | G38: 0 | H38: 0 | I38: 0 | J38: =SUM(E38:I38) -> 0 | K38: =IF(D38=0,C38+J38,D38+J38) -> 30726754 | L38: 0 | M38: 8000000
A39: ='Org structure'!E34 -> 05.2 - Fleet Management | C39: 0 | D39: 0 | E39: 0 | F39: 0 | G39: 0 | H39: 0 | I39: 0 | J39: 0 | K39: 0 | L39: 0 | M39: 0
A40: ='Org structure'!E35 -> 05.3 - Community Services Administration | C40: 0 | D40: 0 | E40: 0 | F40: 0 | G40: 0 | H40: 0 | I40: 0 | J40: 0 | K40: 0 | L40: 0 | M40: 0
A41: ='Org structure'!E36 -> 05.4 - Cemeteries | C41: 10000 | D41: 10000 | E41: 0 | F41: 0 | G41: 0 | H41: 0 | I41: 0 | J41: 0 | K41: 10000 | L41: 10000 | M41: 10000
A42: ='Org structure'!E37 -> 05.5 - Disaster Management | C42: 0 | D42: 0 | E42: 0 | F42: 0 | G42: 0 | H42: 0 | I42: 0 | J42: 0 | K42: 0 | L42: 0 | M42: 0
A43: ='Org structure'!E38 -> 05.6 - Fires Service | C43: 0 | D43: 0 | E43: 0 | F43: 0 | G43: 0 | H43: 0 | I43: 0 | J43: 0 | K43: 0 | L43: 0 | M43: 0
A44: ='Org structure'!E39 -> 05.7 - Libraries | C44: 40000 | D44: 1204487 | E44: 0 | F44: 0 | G44: 0 | H44: 0 | I44: -179487 | J44: -179487 | K44: 1025000 | L44: 40000 | M44: 40000
A45: ='Org structure'!E40 -> 05.8 - Municipal Buildings | C45: 0 | D45: 0 | E45: 0 | F45: 0 | G45: 0 | H45: 0 | I45: 0 | J45: 0 | K45: 0 | L45: 0 | M45: 0
A46: ='Org structure'!E41 -> 05.9 - Sports Recreation & Social Amenitie | C46: 55000 | D46: 55000 | E46: 0 | F46: 0 | G46: 0 | H46: 0 | I46: 0 | J46: 0 | K46: 55000 | L46: 9898475 | M46: 34000
A47: ='Org structure'!E42 -> 05.10 - Waste Management Solid Waste | C47: 80741337 | D47: 64944427.99 | E47: 0 | F47: 0 | G47: 0 | H47: 0 | I47: 0 | J47: 0 | K47: 64944427.99 | L47: 74324707 | M47: 95122198
A48: ='Org structure'!E43 -> 05.11 - Safety And Security | C48: 0 | D48: 0 | E48: 0 | F48: 0 | G48: 0 | H48: 0 | I48: 0 | J48: 0 | K48: 0 | L48: 0 | M48: 0
A49: ='Org structure'!E44 -> 05.12 - Traffic Service | C49: 0 | D49: 0 | E49: 0 | F49: 0 | G49: 0 | H49: 0 | I49: 0 | J49: 0 | K49: 0 | L49: 0 | M49: 0
A50: ='Org structure'!E45 -> 05.13 - Traffic Service | C50: 4550000 | D50: 3550000 | E50: 0 | F50: 0 | G50: 0 | H50: 0 | I50: 0 | J50: 0 | K50: 3550000 | L50: 3050000 | M50: 3050000
A51: ='Org structure'!E46 -> 05.14 - Fleet Management | C51: 0 | D51: 0 | E51: 0 | F51: 0 | G51: 0 | H51: 0 | I51: 0 | J51: 0 | K51: 0 | L51: 0 | M51: 0
A52: ='Org structure'!A7 -> Vote 06 - Planning & Development | C52: =SUM(C53:C62) -> 100000 | D52: 150000 | E52: 0 | F52: 0 | G52: 0 | H52: 0 | I52: 0 | J52: 0 | K52: 150000 | L52: =SUM(L53:L62) -> 100000 | M52: =SUM(M53:M62) -> 100000
A53: ='Org structure'!E48 -> 06.1 - Planning And Development Admin | C53: 0 | D53: 0 | E53: 0 | F53: 0 | G53: 0 | H53: 0 | I53: 0 | J53: =SUM(E53:I53) -> 0 | K53: =IF(D53=0,C53+J53,D53+J53) -> 0 | L53: 0 | M53: 0
A54: ='Org structure'!E49 -> 06.2 - Municipal Planning Idp | C54: 0 | D54: 0 | E54: 0 | F54: 0 | G54: 0 | H54: 0 | I54: 0 | J54: 0 | K54: 0 | L54: 0 | M54: 0
A55: ='Org structure'!E50 -> 06.3 - Pms | C55: 0 | D55: 0 | E55: 0 | F55: 0 | G55: 0 | H55: 0 | I55: 0 | J55: 0 | K55: 0 | L55: 0 | M55: 0
A56: ='Org structure'!E51 -> 06.4 - Town Planning | C56: 100000 | D56: 150000 | E56: 0 | F56: 0 | G56: 0 | H56: 0 | I56: 0 | J56: 0 | K56: 150000 | L56: 100000 | M56: 100000
A57: ='Org structure'!E52 -> 06.5 - Land Use And Housing Admin | C57: 0 | D57: 0 | E57: 0 | F57: 0 | G57: 0 | H57: 0 | I57: 0 | J57: 0 | K57: 0 | L57: 0 | M57: 0
A58: ='Org structure'!E53 -> 06.6 - Local Economic Development | C58: 0 | D58: 0 | E58: 0 | F58: 0 | G58: 0 | H58: 0 | I58: 0 | J58: 0 | K58: 0 | L58: 0 | M58: 0
A59: ='Org structure'!E54 -> 06.7 - Led | C59: 0 | D59: 0 | E59: 0 | F59: 0 | G59: 0 | H59: 0 | I59: 0 | J59: 0 | K59: 0 | L59: 0 | M59: 0
A60: ='Org structure'!E55 -> 06.8 - Agriculture & Rural Development | C60: 0 | D60: 0 | E60: 0 | F60: 0 | G60: 0 | H60: 0 | I60: 0 | J60: 0 | K60: 0 | L60: 0 | M60: 0
A61: ='Org structure'!E56 -> 06.9 - Tourism & Business Development | C61: 0 | D61: 0 | E61: 0 | F61: 0 | G61: 0 | H61: 0 | I61: 0 | J61: 0 | K61: 0 | L61: 0 | M61: 0
A62: ='Org structure'!E57 -> 06.10 - Arts & Culture | C62: 0 | D62: 0 | E62: 0 | F62: 0 | G62: 0 | H62: 0 | I62: 0 | J62: 0 | K62: 0 | L62: 0 | M62: 0
A63: ='Org structure'!A8 -> Vote 07 - Infrastructure & Technical Services | C63: =SUM(C64:C82) -> 454611838 | D63: 459268246 | E63: 0 | F63: 0 | G63: 0 | H63: 0 | I63: 0 | J63: =SUM(E63:I63) -> 0 | K63: =IF(D63=0,C63+J63,D63+J63) -> 459268246 | L63: =SUM(L64:L82) -> 482714538 | M63: =SUM(M64:M82) -> 495723039
A64: ='Org structure'!E59 -> 07.1 - Infrastructure Admin & Tech Admin | C64: 0 | D64: 0 | E64: 0 | F64: 0 | G64: 0 | H64: 0 | I64: 0 | J64: =SUM(E64:I64) -> 0 | K64: =IF(D64=0,C64+J64,D64+J64) -> 0 | L64: 0 | M64: 0
A65: ='Org structure'!E60 -> 07.2 - Fleet Management | C65: 0 | D65: 0 | E65: 0 | F65: 0 | G65: 0 | H65: 0 | I65: 0 | J65: 0 | K65: 0 | L65: 0 | M65: 0
A66: ='Org structure'!E61 -> 07.3 - Roads | C66: 62193238 | D66: 61188318 | E66: 0 | F66: 0 | G66: 0 | H66: 0 | I66: 0 | J66: 0 | K66: 61188318 | L66: 60981782 | M66: 60000001
A67: ='Org structure'!E62 -> 07.4 - Storm Water | C67: 0 | D67: 0 | E67: 0 | F67: 0 | G67: 0 | H67: 0 | I67: 0 | J67: 0 | K67: 0 | L67: 0 | M67: 0
A68: ='Org structure'!E63 -> 07.5 - Street Lighting | C68: 19857810 | D68: 20416973 | E68: 0 | F68: 0 | G68: 0 | H68: 0 | I68: 0 | J68: 0 | K68: 20416973 | L68: 11577741 | M68: 12557370
A69: ='Org structure'!E64 -> 07.6 - Project Management Unit | C69: 5167637 | D69: 3582637 | E69: 0 | F69: 0 | G69: 0 | H69: 0 | I69: 0 | J69: 0 | K69: 3582637 | L69: 4178767 | M69: 4404630
A70: ='Org structure'!E65 -> 07.7 - Sanitation Treatment Plant: Mogwase | C70: 0 | D70: 0 | E70: 0 | F70: 0 | G70: 0 | H70: 0 | I70: 0 | J70: 0 | K70: 0 | L70: 0 | M70: 0
A71: ='Org structure'!E66 -> 07.8 - Sanitation Treatment Plant: Madikwe | C71: 0 | D71: 0 | E71: 0 | F71: 0 | G71: 0 | H71: 0 | I71: 0 | J71: 0 | K71: 0 | L71: 0 | M71: 0
A72: ='Org structure'!E67 -> 07.9 - Sanitation Reticulation | C72: 43021550 | D72: 33242236 | E72: 0 | F72: 0 | G72: 0 | H72: 0 | I72: 0 | J72: 0 | K72: 33242236 | L72: 47377755 | M72: 47595969
A73: ='Org structure'!E68 -> 07.10 - Water Administration | C73: 236371603 | D73: 252838082 | E73: 0 | F73: 0 | G73: 0 | H73: 0 | I73: 0 | J73: 0 | K73: 252838082 | L73: 262711493 | M73: 265760069
A74: ='Org structure'!E69 -> 07.11 - Water Madikwe: Water Treatment Work | C74: 0 | D74: 0 | E74: 0 | F74: 0 | G74: 0 | H74: 0 | I74: 0 | J74: 0 | K74: 0 | L74: 0 | M74: 0
A75: ='Org structure'!E70 -> 07.12 - Water: Pella Water Treatment Works | C75: 0 | D75: 0 | E75: 0 | F75: 0 | G75: 0 | H75: 0 | I75: 0 | J75: 0 | K75: 0 | L75: 0 | M75: 0
A76: ='Org structure'!E71 -> 07.13 - Water: Madikwe Retail & Bulk Lines | C76: 0 | D76: 0 | E76: 0 | F76: 0 | G76: 0 | H76: 0 | I76: 0 | J76: 0 | K76: 0 | L76: 0 | M76: 0
A77: ='Org structure'!E72 -> 07.14 - Water: Madikwe Rural | C77: 0 | D77: 0 | E77: 0 | F77: 0 | G77: 0 | H77: 0 | I77: 0 | J77: 0 | K77: 0 | L77: 0 | M77: 0
A78: ='Org structure'!E73 -> 07.15 - Water: Molatedi | C78: 0 | D78: 0 | E78: 0 | F78: 0 | G78: 0 | H78: 0 | I78: 0 | J78: 0 | K78: 0 | L78: 0 | M78: 0
A79: ='Org structure'!E74 -> 07.16 - Water Eastern: Retail Mankwe | C79: 0 | D79: 0 | E79: 0 | F79: 0 | G79: 0 | H79: 0 | I79: 0 | J79: 0 | K79: 0 | L79: 0 | M79: 0
A80: ='Org structure'!E75 -> 07.17 - Water Vaalkopdam: Mankwe | C80: 0 | D80: 0 | E80: 0 | F80: 0 | G80: 0 | H80: 0 | I80: 0 | J80: 0 | K80: 0 | L80: 0 | M80: 0
A81: ='Org structure'!E76 -> 07.18 - Water Eastern: Retail Mankwe | C81: 88000000 | D81: 88000000 | E81: 0 | F81: 0 | G81: 0 | H81: 0 | I81: 0 | J81: 0 | K81: 88000000 | L81: 95887000 | M81: 105405000
A82: ='Org structure'!E77 -> 07.19 - Reporting Function Electricity | C82: 0 | D82: 0 | E82: 0 | F82: 0 | G82: 0 | H82: 0 | I82: 0 | J82: 0 | K82: 0 | L82: 0 | M82: 0
A83: ='Org structure'!A9 -> Vote 08 - | C83: 0 | D83: 0 | E83: 0 | F83: 0 | G83: 0 | H83: 0 | I83: 0 | J83: 0 | K83: 0 | L83: 0 | M83: 0
A84: ='Org structure'!A10 -> Vote 09 - | C84: 0 | D84: 0 | E84: 0 | F84: 0 | G84: 0 | H84: 0 | I84: 0 | J84: 0 | K84: 0 | L84: 0 | M84: 0
A85: ='Org structure'!A11 -> Vote 10 - | C85: 0 | D85: 0 | E85: 0 | F85: 0 | G85: 0 | H85: 0 | I85: 0 | J85: 0 | K85: 0 | L85: 0 | M85: 0
A86: ='Org structure'!A12 -> Vote 11 - | C86: 0 | D86: 0 | E86: 0 | F86: 0 | G86: 0 | H86: 0 | I86: 0 | J86: 0 | K86: 0 | L86: 0 | M86: 0
A87: ='Org structure'!A13 -> Vote 12 - | C87: 0 | D87: 0 | E87: 0 | F87: 0 | G87: 0 | H87: 0 | I87: 0 | J87: 0 | K87: 0 | L87: 0 | M87: 0
A88: ='Org structure'!A14 -> Vote 13 - | C88: 0 | D88: 0 | E88: 0 | F88: 0 | G88: 0 | H88: 0 | I88: 0 | J88: =SUM(E88:I88) -> 0 | K88: =IF(D88=0,C88+J88,D88+J88) -> 0 | L88: 0 | M88: 0
A89: ='Org structure'!A15 -> Vote 14 - | C89: 0 | D89: 0 | E89: 0 | F89: 0 | G89: 0 | H89: 0 | I89: 0 | J89: 0 | K89: 0 | L89: 0 | M89: 0
A90: ='Org structure'!A16 -> Vote 15 - Other | C90: 0 | D90: 0 | E90: 0 | F90: 0 | G90: 0 | H90: 0 | I90: 0 | J90: 0 | K90: 0 | L90: 0 | M90: 0
A91: Total Revenue by Vote | B91: 2 | C91: =C7+C13+C20+C28+C37+C52+C63+C83+C84+C85+C86+C87+C88+C89+C90 -> 1036090528 | D91: 980010805 | E91: 0 | F91: 0 | G91: 0 | H91: 0 | I91: 378513 | J91: 378513 | K91: 980389318 | L91: 1098699916 | M91: 1158692670
A93: Expenditure by Vote | B93: 1
A94: ='Org structure'!A2 -> Vote 01 - Municipal Council | C94: =SUM(C95:C99) -> 86146330 | D94: 67177252.22 | E94: 0 | F94: 0 | G94: 0 | H94: 0 | I94: 2300000 | J94: =SUM(E94:I94) -> 2300000 | K94: =IF(D94=0,C94+J94,D94+J94) -> 69477252.22 | L94: =SUM(L95:L99) -> 70271020 | M94: =SUM(M95:M99) -> 75483033
A95: ='Org structure'!E3 -> 01.1 - Office Of The Mayor | C95: 11081407 | D95: 7965947.08 | E95: 0 | F95: 0 | G95: 0 | H95: 0 | I95: 0 | J95: 0 | K95: 7965947.08 | L95: 8528021 | M95: 10198930
A96: ='Org structure'!E4 -> 01.2 - Office Of The Speaker | C96: 10550463 | D96: 8665463.03 | E96: 0 | F96: 0 | G96: 0 | H96: 0 | I96: 0 | J96: 0 | K96: 8665463.03 | L96: 6651849 | M96: 6979089
A97: ='Org structure'!E5 -> 01.3 - Office Of The Chief Whip | C97: 1641146 | D97: 1596146.01 | E97: 0 | F97: 0 | G97: 0 | H97: 0 | I97: 0 | J97: 0 | K97: 1596146.01 | L97: 3311676 | M97: 3477260
A98: ='Org structure'!E6 -> 01.4 - Mpac | C98: 4097070 | D98: 343000.08 | E98: 0 | F98: 0 | G98: 0 | H98: 0 | I98: 0 | J98: 0 | K98: 343000.08 | L98: 523000 | M98: 552200
A99: ='Org structure'!E7 -> 01.5 - Council General Administration | C99: 58776244 | D99: 48606696.02 | E99: 0 | F99: 0 | G99: 0 | H99: 0 | I99: 2300000 | J99: 2300000 | K99: 50906696.02 | L99: 51256474 | M99: 54275554
A100: ='Org structure'!A3 -> Vote 02 - Office Of The Accounting Officer | C100: =SUM(C101:C106) -> 25303359 | D100: 19787773.03 | E100: 0 | F100: 0 | G100: 0 | H100: 0 | I100: 0 | J100: =SUM(E100:I100) -> 0 | K100: =IF(D100=0,C100+J100,D100+J100) -> 19787773.03 | L100: =SUM(L101:L106) -> 25008311 | M100: =SUM(M101:M106) -> 26427215
A101: ='Org structure'!E9 -> 02.1 - Office Of The Ao Admin | C101: 18771203 | D101: 13790967 | E101: 0 | F101: 0 | G101: 0 | H101: 0 | I101: 0 | J101: =SUM(E101:I101) -> 0 | K101: =IF(D101=0,C101+J101,D101+J101) -> 13790967 | L101: 13987364 | M101: 14794729
A102: ='Org structure'!E10 -> 02.2 - Strategic Planning Monitoring & Evaluat | C102: 0 | D102: 0 | E102: 0 | F102: 0 | G102: 0 | H102: 0 | I102: 0 | J102: 0 | K102: 0 | L102: 0 | M102: 0
A103: ='Org structure'!E11 -> 02.3 - Perfomance Management System | C103: 2834795 | D103: 2534795.02 | E103: 0 | F103: 0 | G103: 0 | H103: 0 | I103: 0 | J103: 0 | K103: 2534795.02 | L103: 2903838 | M103: 3101029
A104: ='Org structure'!E12 -> 02.4 - Internal Audit | C104: 3697361 | D104: 3462011.01 | E104: 0 | F104: 0 | G104: 0 | H104: 0 | I104: 0 | J104: 0 | K104: 3462011.01 | L104: 4025368 | M104: 4235128
A105: ='Org structure'!E13 -> 02.5 - Municipal Planning Idp | C105: 0 | D105: 0 | E105: 0 | F105: 0 | G105: 0 | H105: 0 | I105: 0 | J105: 0 | K105: 0 | L105: 3149853 | M105: 3307347
A106: ='Org structure'!E14 -> 02.6 - Risk | C106: 0 | D106: 0 | E106: 0 | F106: 0 | G106: 0 | H106: 0 | I106: 0 | J106: 0 | K106: 0 | L106: 941888 | M106: 988982
A107: ='Org structure'!A4 -> Vote 03 - Budget And Treasury Office | C107: =SUM(C108:C114) -> 126091931 | D107: 120458267.1 | E107: 0 | F107: 0 | G107: 0 | H107: 0 | I107: 0 | J107: 0 | K107: 120458267.1 | L107: =SUM(L108:L114) -> 145208027 | M107: =SUM(M108:M114) -> 152100815
A108: ='Org structure'!E16 -> 03.1 - Chief Financial Officer Admin | C108: 7608358 | D108: 10349464.02 | E108: 0 | F108: 0 | G108: 0 | H108: 0 | I108: 0 | J108: =SUM(E108:I108) -> 0 | K108: =IF(D108=0,C108+J108,D108+J108) -> 10349464.02 | L108: 7963583 | M108: 8185261
A109: ='Org structure'!E17 -> 03.2 - Budget Expenditure & Reporting | C109: 0 | D109: 0 | E109: 0 | F109: 0 | G109: 0 | H109: 0 | I109: 0 | J109: 0 | K109: 0 | L109: 0 | M109: 0
A110: ='Org structure'!E18 -> 03.3 - Budget Expenditure & Reporting | C110: 14019292 | D110: 8176292.03 | E110: 0 | F110: 0 | G110: 0 | H110: 0 | I110: 0 | J110: 0 | K110: 8176292.03 | L110: 9443932 | M110: 9916213
A111: ='Org structure'!E19 -> 03.4 - Revenue Management | C111: 86996562 | D111: 88920362.03 | E111: 0 | F111: 0 | G111: 0 | H111: 0 | I111: 0 | J111: 0 | K111: 88920362.03 | L111: 106247963 | M111: 111483365
A112: ='Org structure'!E20 -> 03.5 - Supply Chain Management | C112: 6149200 | D112: 6245930 | E112: 0 | F112: 0 | G112: 0 | H112: 0 | I112: 0 | J112: 0 | K112: 6245930 | L112: 7901614 | M112: 8296646
A113: ='Org structure'!E21 -> 03.6 - Assets Management | C113: 11318519 | D113: 6766219 | E113: 0 | F113: 0 | G113: 0 | H113: 0 | I113: 0 | J113: 0 | K113: 6766219 | L113: 13650935 | M113: 14219330
A114: ='Org structure'!E22 -> 03.7 - Expenditure | C114: 0 | D114: 0 | E114: 0 | F114: 0 | G114: 0 | H114: 0 | I114: 0 | J114: 0 | K114: 0 | L114: 0 | M114: 0
A115: ='Org structure'!A5 -> Vote 04 - Corporate Services | C115: =SUM(C116:C123) -> 137336122 | D115: 104950279.1 | E115: 0 | F115: 0 | G115: 0 | H115: 0 | I115: 268000 | J115: 268000 | K115: 105218279.1 | L115: =SUM(L116:L123) -> 90642312 | M115: =SUM(M116:M123) -> 94844362
A116: ='Org structure'!E24 -> 04.1 - Legal Services | C116: 1178495 | D116: 1148495.02 | E116: 0 | F116: 0 | G116: 0 | H116: 0 | I116: 0 | J116: =SUM(E116:I116) -> 0 | K116: =IF(D116=0,C116+J116,D116+J116) -> 1148495.02 | L116: 1309413 | M116: 1374883
A117: ='Org structure'!E25 -> 04.2 - Corporate Service Administration | C117: 44340818 | D117: 37316724.01 | E117: 0 | F117: 0 | G117: 0 | H117: 0 | I117: 0 | J117: 0 | K117: 37316724.01 | L117: 42153775 | M117: 44113667
A118: ='Org structure'!E26 -> 04.3 - Human Resources | C118: 16861620 | D118: 11699680.02 | E118: 0 | F118: 0 | G118: 0 | H118: 0 | I118: 268000 | J118: 268000 | K118: 11967680.02 | L118: 14849578 | M118: 15695857
A119: ='Org structure'!E27 -> 04.4 - Media & Communication | C119: 0 | D119: 0 | E119: 0 | F119: 0 | G119: 0 | H119: 0 | I119: 0 | J119: 0 | K119: 0 | L119: 0 | M119: 0
A120: ='Org structure'!E28 -> 04.5 - Organisational Development | C120: 0 | D120: 0 | E120: 0 | F120: 0 | G120: 0 | H120: 0 | I120: 0 | J120: 0 | K120: 0 | L120: 0 | M120: 0
A121: ='Org structure'!E29 -> 04.6 - Labour Relations | C121: 0 | D121: 0 | E121: 0 | F121: 0 | G121: 0 | H121: 0 | I121: 0 | J121: 0 | K121: 0 | L121: 0 | M121: 0
A122: ='Org structure'!E30 -> 04.7 - Legal Services | C122: 0 | D122: 0 | E122: 0 | F122: 0 | G122: 0 | H122: 0 | I122: 0 | J122: 0 | K122: 0 | L122: 0 | M122: 0
A123: ='Org structure'!E31 -> 04.8 - Information Technology Services | C123: 74955189 | D123: 54785380.04 | E123: 0 | F123: 0 | G123: 0 | H123: 0 | I123: 0 | J123: 0 | K123: 54785380.04 | L123: 32329546 | M123: 33659955
A124: ='Org structure'!A6 -> Vote 05 - Community Services | C124: =SUM(C125:C138) -> 182219774 | D124: 146158806.1 | E124: 0 | F124: 0 | G124: 0 | H124: 0 | I124: -179487 | J124: -179487 | K124: 145979319.1 | L124: =SUM(L125:L138) -> 166499408 | M124: =SUM(M125:M138) -> 175379400
A125: ='Org structure'!E33 -> 05.1 - Municipal Buildings | C125: 26561133 | D125: 19069214 | E125: 0 | F125: 0 | G125: 0 | H125: 0 | I125: 0 | J125: =SUM(E125:I125) -> 0 | K125: =IF(D125=0,C125+J125,D125+J125) -> 19069214 | L125: 9784996 | M125: 10271545
A126: ='Org structure'!E34 -> 05.2 - Fleet Management | C126: 17935850 | D126: 15293850.03 | E126: 0 | F126: 0 | G126: 0 | H126: 0 | I126: 0 | J126: 0 | K126: 15293850.03 | L126: 19271527 | M126: 20217468
A127: ='Org structure'!E35 -> 05.3 - Community Services Administration | C127: 1829793 | D127: 3161244 | E127: 0 | F127: 0 | G127: 0 | H127: 0 | I127: 0 | J127: 0 | K127: 3161244 | L127: 1981674 | M127: 2080758
A128: ='Org structure'!E36 -> 05.4 - Cemeteries | C128: 605000 | D128: 605000 | E128: 0 | F128: 0 | G128: 0 | H128: 0 | I128: 0 | J128: 0 | K128: 605000 | L128: 3978010 | M128: 4165699
A129: ='Org structure'!E37 -> 05.5 - Disaster Management | C129: 660000 | D129: 110000 | E129: 0 | F129: 0 | G129: 0 | H129: 0 | I129: 0 | J129: 0 | K129: 110000 | L129: 2486022 | M129: 2624448
A130: ='Org structure'!E38 -> 05.6 - Fires Service | C130: 0 | D130: 0 | E130: 0 | F130: 0 | G130: 0 | H130: 0 | I130: 0 | J130: 0 | K130: 0 | L130: 0 | M130: 0
A131: ='Org structure'!E39 -> 05.7 - Libraries | C131: 2656715 | D131: 3321202 | E131: 0 | F131: 0 | G131: 0 | H131: 0 | I131: -179487 | J131: -179487 | K131: 3141715 | L131: 1774148 | M131: 1869130
A132: ='Org structure'!E40 -> 05.8 - Municipal Buildings | C132: 0 | D132: 0 | E132: 0 | F132: 0 | G132: 0 | H132: 0 | I132: 0 | J132: 0 | K132: 0 | L132: 0 | M132: 0
A133: ='Org structure'!E41 -> 05.9 - Sports Recreation & Social Amenitie | C133: 29288851 | D133: 25715503.01 | E133: 0 | F133: 0 | G133: 0 | H133: 0 | I133: 0 | J133: 0 | K133: 25715503.01 | L133: 42725232 | M133: 44784178
A134: ='Org structure'!E42 -> 05.10 - Waste Management Solid Waste | C134: 60639445 | D134: 46599806.02 | E134: 0 | F134: 0 | G134: 0 | H134: 0 | I134: 0 | J134: 0 | K134: 46599806.02 | L134: 49531163 | M134: 52935124
A135: ='Org structure'!E43 -> 05.11 - Safety And Security | C135: 29150069 | D135: 21620069.02 | E135: 0 | F135: 0 | G135: 0 | H135: 0 | I135: 0 | J135: 0 | K135: 21620069.02 | L135: 24897500 | M135: 25944375
A136: ='Org structure'!E44 -> 05.12 - Traffic Service | C136: 0 | D136: 0 | E136: 0 | F136: 0 | G136: 0 | H136: 0 | I136: 0 | J136: 0 | K136: 0 | L136: 0 | M136: 0
A137: ='Org structure'!E45 -> 05.13 - Traffic Service | C137: 12892918 | D137: 10662918.01 | E137: 0 | F137: 0 | G137: 0 | H137: 0 | I137: 0 | J137: 0 | K137: 10662918.01 | L137: 10069136 | M137: 10486675
A138: ='Org structure'!E46 -> 05.14 - Fleet Management | C138: 0 | D138: 0 | E138: 0 | F138: 0 | G138: 0 | H138: 0 | I138: 0 | J138: 0 | K138: 0 | L138: 0 | M138: 0
A139: ='Org structure'!A7 -> Vote 06 - Planning & Development | C139: =SUM(C140:C149) -> 26201722 | D139: 21871968.02 | E139: 0 | F139: 0 | G139: 0 | H139: 0 | I139: 0 | J139: 0 | K139: 21871968.02 | L139: =SUM(L140:L149) -> 25289438 | M139: =SUM(M140:M149) -> 27330875
A140: ='Org structure'!E48 -> 06.1 - Planning And Development Admin | C140: 1909065 | D140: 3011311.01 | E140: 0 | F140: 0 | G140: 0 | H140: 0 | I140: 0 | J140: =SUM(E140:I140) -> 0 | K140: =IF(D140=0,C140+J140,D140+J140) -> 3011311.01 | L140: 2004633 | M140: 2103853
A141: ='Org structure'!E49 -> 06.2 - Municipal Planning Idp | C141: 0 | D141: 0 | E141: 0 | F141: 0 | G141: 0 | H141: 0 | I141: 0 | J141: 0 | K141: 0 | L141: 0 | M141: 0
A142: ='Org structure'!E50 -> 06.3 - Pms | C142: 0 | D142: 0 | E142: 0 | F142: 0 | G142: 0 | H142: 0 | I142: 0 | J142: 0 | K142: 0 | L142: 0 | M142: 0
A143: ='Org structure'!E51 -> 06.4 - Town Planning | C143: 4420858 | D143: 3493858.01 | E143: 0 | F143: 0 | G143: 0 | H143: 0 | I143: 0 | J143: 0 | K143: 3493858.01 | L143: 3969336 | M143: 4641303
A144: ='Org structure'!E52 -> 06.5 - Land Use And Housing Admin | C144: 5822286 | D144: 5522286 | E144: 0 | F144: 0 | G144: 0 | H144: 0 | I144: 0 | J144: 0 | K144: 5522286 | L144: 6677188 | M144: 7005524
A145: ='Org structure'!E53 -> 06.6 - Local Economic Development | C145: 14049513 | D145: 9844513 | E145: 0 | F145: 0 | G145: 0 | H145: 0 | I145: 0 | J145: 0 | K145: 9844513 | L145: 0 | M145: 0
A146: ='Org structure'!E54 -> 06.7 - Led | C146: 0 | D146: 0 | E146: 0 | F146: 0 | G146: 0 | H146: 0 | I146: 0 | J146: 0 | K146: 0 | L146: 4481031 | M146: 5015082
A147: ='Org structure'!E55 -> 06.8 - Agriculture & Rural Development | C147: 0 | D147: 0 | E147: 0 | F147: 0 | G147: 0 | H147: 0 | I147: 0 | J147: 0 | K147: 0 | L147: 8157250 | M147: 8565113
A148: ='Org structure'!E56 -> 06.9 - Tourism & Business Development | C148: 0 | D148: 0 | E148: 0 | F148: 0 | G148: 0 | H148: 0 | I148: 0 | J148: 0 | K148: 0 | L148: 0 | M148: 0
A149: ='Org structure'!E57 -> 06.10 - Arts & Culture | C149: 0 | D149: 0 | E149: 0 | F149: 0 | G149: 0 | H149: 0 | I149: 0 | J149: 0 | K149: 0 | L149: 0 | M149: 0
A150: ='Org structure'!A8 -> Vote 07 - Infrastructure & Technical Services | C150: =SUM(C151:C169) -> 383941084 | D150: 425182889.3 | E150: 0 | F150: 0 | G150: 0 | H150: 0 | I150: -2300000 | J150: =SUM(E150:I150) -> -2300000 | K150: =IF(D150=0,C150+J150,D150+J150) -> 422882889.3 | L150: =SUM(L151:L169) -> 415586746 | M150: =SUM(M151:M169) -> 428723092
A151: ='Org structure'!E59 -> 07.1 - Infrastructure Admin & Tech Admin | C151: 2586091 | D151: 2376103.01 | E151: 0 | F151: 0 | G151: 0 | H151: 0 | I151: 0 | J151: =SUM(E151:I151) -> 0 | K151: =IF(D151=0,C151+J151,D151+J151) -> 2376103.01 | L151: 2463847 | M151: 2585877
A152: ='Org structure'!E60 -> 07.2 - Fleet Management | C152: 0 | D152: 0 | E152: 0 | F152: 0 | G152: 0 | H152: 0 | I152: 0 | J152: 0 | K152: 0 | L152: 0 | M152: 0
A153: ='Org structure'!E61 -> 07.3 - Roads | C153: 83834249 | D153: 71782249.04 | E153: 0 | F153: 0 | G153: 0 | H153: 0 | I153: 0 | J153: 0 | K153: 71782249.04 | L153: 61628341 | M153: 64465015
A154: ='Org structure'!E62 -> 07.4 - Storm Water | C154: 0 | D154: 0 | E154: 0 | F154: 0 | G154: 0 | H154: 0 | I154: 0 | J154: 0 | K154: 0 | L154: 0 | M154: 0
A155: ='Org structure'!E63 -> 07.5 - Street Lighting | C155: 19208720 | D155: 13608720 | E155: 0 | F155: 0 | G155: 0 | H155: 0 | I155: 0 | J155: 0 | K155: 13608720 | L155: 8598588 | M155: 8878798
A156: ='Org structure'!E64 -> 07.6 - Project Management Unit | C156: 5167637 | D156: 3582637 | E156: 0 | F156: 0 | G156: 0 | H156: 0 | I156: 0 | J156: 0 | K156: 3582637 | L156: 4178767 | M156: 4404630
A157: ='Org structure'!E65 -> 07.7 - Sanitation Treatment Plant: Mogwase | C157: 2979877 | D157: 7635060.03 | E157: 0 | F157: 0 | G157: 0 | H157: 0 | I157: 0 | J157: 0 | K157: 7635060.03 | L157: 6330194 | M157: 6727353
A158: ='Org structure'!E66 -> 07.8 - Sanitation Treatment Plant: Madikwe | C158: 3878437 | D158: 5543359 | E158: 0 | F158: 0 | G158: 0 | H158: 0 | I158: 0 | J158: 0 | K158: 5543359 | L158: 8369184 | M158: 8787645
A159: ='Org structure'!E67 -> 07.9 - Sanitation Reticulation | C159: 11926146 | D159: 11611146 | E159: 0 | F159: 0 | G159: 0 | H159: 0 | I159: 0 | J159: 0 | K159: 11611146 | L159: 6528993 | M159: 7228339
A160: ='Org structure'!E68 -> 07.10 - Water Administration | C160: 17934502 | D160: 45791014.01 | E160: 0 | F160: 0 | G160: 0 | H160: 0 | I160: -2300000 | J160: -2300000 | K160: 43491014.01 | L160: 46037321 | M160: 48589188
A161: ='Org structure'!E69 -> 07.11 - Water Madikwe: Water Treatment Work | C161: 1552000 | D161: 1817737.01 | E161: 0 | F161: 0 | G161: 0 | H161: 0 | I161: 0 | J161: 0 | K161: 1817737.01 | L161: 1260000 | M161: 1780000
A162: ='Org structure'!E70 -> 07.12 - Water: Pella Water Treatment Works | C162: 504000 | D162: 1634714 | E162: 0 | F162: 0 | G162: 0 | H162: 0 | I162: 0 | J162: 0 | K162: 1634714 | L162: 300000 | M162: 370000
A163: ='Org structure'!E71 -> 07.13 - Water: Madikwe Retail & Bulk Lines | C163: 2004000 | D163: 3548178.01 | E163: 0 | F163: 0 | G163: 0 | H163: 0 | I163: 0 | J163: 0 | K163: 3548178.01 | L163: 2000000 | M163: 2500000
A164: ='Org structure'!E72 -> 07.14 - Water: Madikwe Rural | C164: 3403000 | D164: 4096667 | E164: 0 | F164: 0 | G164: 0 | H164: 0 | I164: 0 | J164: 0 | K164: 4096667 | L164: 4200000 | M164: 5000000
A165: ='Org structure'!E73 -> 07.15 - Water: Molatedi | C165: 260000 | D165: 306286 | E165: 0 | F165: 0 | G165: 0 | H165: 0 | I165: 0 | J165: 0 | K165: 306286 | L165: 210000 | M165: 240000
A166: ='Org structure'!E74 -> 07.16 - Water Eastern: Retail Mankwe | C166: 10904131 | D166: 0.07 | E166: 0 | F166: 0 | G166: 0 | H166: 0 | I166: 0 | J166: 0 | K166: 0.07 | L166: 0 | M166: 0
A167: ='Org structure'!E75 -> 07.17 - Water Vaalkopdam: Mankwe | C167: 1366665 | D167: 0.07 | E167: 0 | F167: 0 | G167: 0 | H167: 0 | I167: 0 | J167: 0 | K167: 0.07 | L167: 0 | M167: 0
A168: ='Org structure'!E76 -> 07.18 - Water Eastern: Retail Mankwe | C168: 203731629 | D168: 233703981.1 | E168: 0 | F168: 0 | G168: 0 | H168: 0 | I168: 0 | J168: 0 | K168: 233703981.1 | L168: 252481511 | M168: 255660247
A169: ='Org structure'!E77 -> 07.19 - Reporting Function Electricity | C169: 12700000 | D169: 18145038 | E169: 0 | F169: 0 | G169: 0 | H169: 0 | I169: 0 | J169: 0 | K169: 18145038 | L169: 11000000 | M169: 11506000
A170: ='Org structure'!A9 -> Vote 08 - | C170: 0 | D170: 0 | E170: 0 | F170: 0 | G170: 0 | H170: 0 | I170: 0 | J170: 0 | K170: 0 | L170: 0 | M170: 0
A171: ='Org structure'!A10 -> Vote 09 - | C171: 0 | D171: 0 | E171: 0 | F171: 0 | G171: 0 | H171: 0 | I171: 0 | J171: 0 | K171: 0 | L171: 0 | M171: 0
A172: ='Org structure'!A11 -> Vote 10 - | C172: 0 | D172: 0 | E172: 0 | F172: 0 | G172: 0 | H172: 0 | I172: 0 | J172: 0 | K172: 0 | L172: 0 | M172: 0
A173: ='Org structure'!A12 -> Vote 11 - | C173: 0 | D173: 0 | E173: 0 | F173: 0 | G173: 0 | H173: 0 | I173: 0 | J173: 0 | K173: 0 | L173: 0 | M173: 0
A174: ='Org structure'!A13 -> Vote 12 - | C174: 0 | D174: 0 | E174: 0 | F174: 0 | G174: 0 | H174: 0 | I174: 0 | J174: 0 | K174: 0 | L174: 0 | M174: 0
A175: ='Org structure'!A14 -> Vote 13 - | C175: 0 | D175: 0 | E175: 0 | F175: 0 | G175: 0 | H175: 0 | I175: 0 | J175: =SUM(E175:I175) -> 0 | K175: =IF(D175=0,C175+J175,D175+J175) -> 0 | L175: 0 | M175: 0
A176: ='Org structure'!A15 -> Vote 14 - | C176: 0 | D176: 0 | E176: 0 | F176: 0 | G176: 0 | H176: 0 | I176: 0 | J176: 0 | K176: 0 | L176: 0 | M176: 0
A177: ='Org structure'!A16 -> Vote 15 - Other | C177: 0 | D177: 0 | E177: 0 | F177: 0 | G177: 0 | H177: 0 | I177: 0 | J177: 0 | K177: 0 | L177: 0 | M177: 0
A178: Total Expenditure by Vote | B178: 2 | C178: =C94+C100+C107+C115+C124+C139+C150+C170+C171+C172+C173+C174+C175+C176+C177 -> 967240322 | D178: 905587234.9 | E178: 0 | F178: 0 | G178: 0 | H178: 0 | I178: 88513 | J178: 88513 | K178: 905675747.9 | L178: 938505262 | M178: 980288792
A180: =result -> Surplus/ (Deficit) for the year | B180: 2 | C180: =C91-C178 -> 68850206 | D180: 74423570.12 | E180: 0 | F180: 0 | G180: 0 | H180: 0 | I180: 290000 | J180: =SUM(E180:I180) -> 290000 | K180: =IF(D180=0,C180+J180,D180+J180) -> 74713570.12 | L180: =L91-L178 -> 160194654 | M180: =M91-M178 -> 178403878
A181: =head27a -> References
A182: 1. Insert 'Vote'; e.g. Department, if different to standard structure
A183: 2. Must reconcile to Financial Performance ('Revenue and Expenditure by Standard Classification' and 'Revenue and Expenditure')
A184: 3. Assign share in 'associate' to relevant Vote

Sheet B4-FinPerf RE
A1: =muni&" - "&_ADJ4&" - "&Date -> NW375 Moses Kotane - Table B4 Adjustments Budget Financial Performance (revenue and expenditure) - 44171
A2: =desc -> Description | B2: =head27 -> Ref | C2: =Head2 -> Budget Year 2019/20 | L2: =Head10 -> Budget Year +1 2020/21 | M2: =Head11 -> Budget Year +2 2021/22
C3: =Head6 -> Original Budget | D3: =Head54 -> Prior Adjusted | E3: =Head51 -> Accum. Funds | F3: =Head52 -> Multi-year capital | G3: =Head53 -> Unfore. Unavoid. | H3: =Head55 -> Nat. or Prov. Govt | I3: =Head50 -> Other Adjusts. | J3: =Head56 -> Total Adjusts. | K3: =Head7 -> Adjusted Budget | L3: =Head7 -> Adjusted Budget | M3: =Head7 -> Adjusted Budget
D4: 3 | E4: 4 | F4: 5 | G4: 6 | H4: 7 | I4: 8 | J4: 9 | K4: 10
A5: R thousands | B5: 1 | C5: A | D5: A1 | E5: B | F5: C | G5: D | H5: E | I5: F | J5: G | K5: H
A6: Revenue By Source
A7: Property rates | B7: 2 | C7: ='SB1'!C10 -> 142163600 | D7: ='SB1'!D10 -> 142163600 | E7: ='SB1'!E10 -> 0 | F7: ='SB1'!F10 -> 0 | G7: ='SB1'!G10 -> 0 | H7: ='SB1'!H10 -> 0 | I7: ='SB1'!I10 -> 0 | J7: =SUM(E7:I7) -> 0 | K7: =IF(D7=0,C7+J7,D7+J7) -> 142163600 | L7: ='SB1'!L10 -> 169026146 | M7: ='SB1'!M10 -> 176817777
A8: Service charges - electricity revenue | B8: 2 | C8: ='SB1'!C16 -> 0 | D8: ='SB1'!D16 -> 0 | E8: ='SB1'!E16 -> 0 | F8: ='SB1'!F16 -> 0 | G8: ='SB1'!G16 -> 0 | H8: ='SB1'!H16 -> 0 | I8: ='SB1'!I16 -> 0 | J8: 0 | K8: 0 | L8: ='SB1'!L16 -> 0 | M8: ='SB1'!M16 -> 0
A9: Service charges - water revenue | B9: 2 | C9: ='SB1'!C22 -> 171557000 | D9: ='SB1'!D22 -> 171557000 | E9: ='SB1'!E22 -> 0 | F9: ='SB1'!F22 -> 0 | G9: ='SB1'!G22 -> 0 | H9: ='SB1'!H22 -> 0 | I9: ='SB1'!I22 -> 0 | J9: 0 | K9: 171557000 | L9: ='SB1'!L22 -> 171527615 | M9: ='SB1'!M22 -> 171036225
A10: Service charges - sanitation revenue | B10: 2 | C10: ='SB1'!C28 -> 2750000 | D10: ='SB1'!D28 -> 2750000 | E10: ='SB1'!E28 -> 0 | F10: ='SB1'!F28 -> 0 | G10: ='SB1'!G28 -> 0 | H10: ='SB1'!H28 -> 0 | I10: ='SB1'!I28 -> 0 | J10: 0 | K10: 2750000 | L10: ='SB1'!L28 -> 2490398 | M10: ='SB1'!M28 -> 2595969
A11: Service charges - refuse revenue | B11: 2 | C11: ='SB1'!C35 -> 9944428 | D11: ='SB1'!D35 -> 9944428 | E11: ='SB1'!E35 -> 0 | F11: ='SB1'!F35 -> 0 | G11: ='SB1'!G35 -> 0 | H11: ='SB1'!H35 -> 0 | I11: ='SB1'!I35 -> 0 | J11: 0 | K11: 9944428 | L11: ='SB1'!L35 -> 12474707 | M11: ='SB1'!M35 -> 13048543
A13: Rental of facilities and equipment | C13: 51000 | D13: 71000 | E13: 0 | F13: 0 | G13: 0 | H13: 0 | I13: 0 | J13: 0 | K13: 71000 | L13: 30000 | M13: 30000
A14: Interest earned - external investments | C14: 5400000 | D14: 6400000 | E14: 0 | F14: 0 | G14: 0 | H14: 0 | I14: 0 | J14: 0 | K14: 6400000 | L14: 5400000 | M14: 5200000
A15: Interest earned - outstanding debtors | C15: 59790000 | D15: 59576790 | E15: 0 | F15: 0 | G15: 0 | H15: 0 | I15: 0 | J15: 0 | K15: 59576790 | L15: 62480550 | M15: 65354656
A16: Dividends received | C16: 0 | D16: 0 | E16: 0 | F16: 0 | G16: 0 | H16: 0 | I16: 0 | J16: 0 | K16: 0 | L16: 0 | M16: 0
A17: Fines, penalties and forfeits | C17: 4500000 | D17: 3500000 | E17: 0 | F17: 0 | G17: 0 | H17: 0 | I17: 0 | J17: 0 | K17: 3500000 | L17: 3000000 | M17: 3000000
A18: Licences and permits | C18: 50000 | D18: 50000 | E18: 0 | F18: 0 | G18: 0 | H18: 0 | I18: 0 | J18: 0 | K18: 50000 | L18: 50000 | M18: 50000
A19: Agency services | J19: 0 | K19: 0
A20: Transfers and subsidies | C20: 437829637 | D20: 374462124 | E20: 0 | F20: 0 | G20: 0 | H20: 0 | I20: 88513 | J20: 88513 | K20: 374550637 | L20: 467694767 | M20: 500553630
A21: Other revenue | B21: 2 | C21: ='SB1'!C50 -> 2530500 | D21: ='SB1'!D50 -> 3430500 | E21: ='SB1'!E50 -> 0 | F21: ='SB1'!F50 -> 0 | G21: ='SB1'!G50 -> 0 | H21: ='SB1'!H50 -> 0 | I21: ='SB1'!I50 -> 290000 | J21: 290000 | K21: 3720500 | L21: ='SB1'!L50 -> 2030500 | M21: ='SB1'!M50 -> 2080500
A22: Gains | C22: 0 | D22: 0 | E22: 0 | F22: 0 | G22: 0 | H22: 0 | I22: 0 | J22: 0 | K22: 0 | L22: 0 | M22: 0
A23: Total Revenue (excluding capital transfers and contributions) | C23: =SUM(C7:C11)+SUM(C13:C22) -> 836566165 | D23: =SUM(D7:D11)+SUM(D13:D22) -> 773905442 | E23: 0 | F23: 0 | G23: 0 | H23: 0 | I23: 378513 | J23: =SUM(J7:J11)+SUM(J13:J22) -> 378513 | K23: =SUM(K7:K11)+SUM(K13:K22) -> 774283955 | L23: =SUM(L7:L11)+SUM(L13:L22) -> 896204683 | M23: =SUM(M7:M11)+SUM(M13:M22) -> 939767300
A25: Expenditure By Type
A26: Employee related costs | C26: ='SB1'!C68 -> 270274660 | D26: ='SB1'!D68 -> 248852359.4 | E26: ='SB1'!E68 -> 0 | F26: ='SB1'!F68 -> 0 | G26: ='SB1'!G68 -> 0 | H26: ='SB1'!H68 -> 0 | I26: ='SB1'!I68 -> -2300000 | J26: =SUM(E26:I26) -> -2300000 | K26: =IF(D26=0,C26+J26,D26+J26) -> 246552359.4 | L26: ='SB1'!L68 -> 278331407 | M26: ='SB1'!M68 -> 293509032
A27: Remuneration of councillors | C27: 25371420 | D27: 25371420 | E27: 0 | F27: 0 | G27: 0 | H27: 0 | I27: 2300000 | J27: 2300000 | K27: 27671420 | L27: 24819114 | M27: 26060071
A28: Debt impairment | C28: 122540000 | D28: 180148200 | E28: 0 | F28: 0 | G28: 0 | H28: 0 | I28: 0 | J28: 0 | K28: 180148200 | L28: 194602817 | M28: 195274984
A29: Depreciation & asset impairment | C29: ='SB1'!C84 -> 154536733 | D29: ='SB1'!D84 -> 154536733 | E29: ='SB1'!E84 -> 0 | F29: ='SB1'!F84 -> 0 | G29: ='SB1'!G84 -> 0 | H29: ='SB1'!H84 -> 0 | I29: ='SB1'!I84 -> 0 | J29: 0 | K29: 154536733 | L29: ='SB1'!L84 -> 133503316 | M29: ='SB1'!M84 -> 139644469
A30: Finance charges | C30: 3688959 | D30: 3688959 | E30: 0 | F30: 0 | G30: 0 | H30: 0 | I30: 0 | J30: 0 | K30: 3688959 | L30: 3043808 | M30: 2729218
A31: Bulk purchases | C31: ='SB1'!C89 -> 103700000 | D31: ='SB1'!D89 -> 89145038 | E31: ='SB1'!E89 -> 0 | F31: ='SB1'!F89 -> 0 | G31: ='SB1'!G89 -> 0 | H31: ='SB1'!H89 -> 0 | I31: ='SB1'!I89 -> 0 | J31: 0 | K31: 89145038 | L31: ='SB1'!L89 -> 111000000 | M31: ='SB1'!M89 -> 116106000
A32: Other materials | C32: 5577250 | D32: 3159151.02 | E32: 0 | F32: 0 | G32: 0 | H32: 0 | I32: 268000 | J32: 268000 | K32: 3427151.02 | L32: 5127300 | M32: 5361500
A33: Contracted services | C33: ='SB1'!C128 -> 151836500 | D33: ='SB1'!D128 -> 111042019.1 | E33: ='SB1'!E128 -> 0 | F33: ='SB1'!F128 -> 0 | G33: ='SB1'!G128 -> 0 | H33: ='SB1'!H128 -> 0 | I33: ='SB1'!I128 -> 0 | J33: 0 | K33: 111042019.1 | L33: ='SB1'!L128 -> 121189200 | M33: ='SB1'!M128 -> 131288734
A34: Transfers and subsidies | C34: 0 | D34: 0 | E34: 0 | F34: 0 | G34: 0 | H34: 0 | I34: 0 | J34: 0 | K34: 0 | L34: 0 | M34: 0
A35: Other expenditure | C35: ='SB1'!C158 -> 129714800 | D35: ='SB1'!D158 -> 89643355.35 | E35: ='SB1'!E158 -> 0 | F35: ='SB1'!F158 -> 0 | G35: ='SB1'!G158 -> 0 | H35: ='SB1'!H158 -> 0 | I35: ='SB1'!I158 -> -179487 | J35: -179487 | K35: 89463868.35 | L35: ='SB1'!L158 -> 66888300 | M35: ='SB1'!M158 -> 70314784
A36: Losses | C36: 0 | D36: 0 | E36: 0 | F36: 0 | G36: 0 | H36: 0 | I36: 0 | J36: 0 | K36: 0 | L36: 0 | M36: 0
A37: Total Expenditure | C37: =SUM(C26:C36) -> 967240322 | D37: 905587234.9 | E37: 0 | F37: 0 | G37: 0 | H37: 0 | I37: 88513 | J37: 88513 | K37: 905675747.9 | L37: 938505262 | M37: 980288792
A39: Surplus/(Deficit) | C39: =C23-C37 -> -130674157 | D39: -131681792.9 | E39: 0 | F39: 0 | G39: 0 | H39: 0 | I39: 290000 | J39: 290000 | K39: -131391792.9 | L39: -42300579 | M39: -40521492
A40: Transfers and subsidies - capital (monetary allocations) (National / Provincial and District) | C40: 87086153 | D40: 93773318 | E40: 0 | F40: 0 | G40: 0 | H40: 0 | I40: 0 | J40: =SUM(E40:I40) -> 0 | K40: =IF(D40=0,C40+J40,D40+J40) -> 93773318 | L40: 202495233 | M40: 218925370
A41: Transfers and subsidies - capital (monetary allocations) (National / Provincial Departmental Agencies, Households, Non-profit Institutions, Private Enterprises, Public Corporatons, Higher Educational Institutions) | C41: 112438210 | D41: 112332045 | E41: 0 | F41: 0 | G41: 0 | H41: 0 | I41: 0 | J41: =SUM(E41:I41) -> 0 | K41: =IF(D41=0,C41+J41,D41+J41) -> 112332045 | L41: 0 | M41: 0
A42: Transfers and subsidies - capital (in-kind - all) | C42: 0 | D42: 0 | E42: 0 | F42: 0 | G42: 0 | H42: 0 | I42: 0 | J42: =SUM(E42:I42) -> 0 | K42: =IF(D42=0,C42+J42,D42+J42) -> 0 | L42: 0 | M42: 0
A43: Surplus/(Deficit) before taxation | C43: =SUM(C39:C42) -> 68850206 | D43: 74423570.12 | E43: 0 | F43: 0 | G43: 0 | H43: 0 | I43: 290000 | J43: 290000 | K43: 74713570.12 | L43: 160194654 | M43: 178403878
A44: Taxation | J44: =SUM(E44:I44) -> 0 | K44: =IF(D44=0,C44+J44,D44+J44) -> 0
A45: Surplus/(Deficit) after taxation | C45: =C43-C44 -> 68850206 | D45: 74423570.12 | E45: 0 | F45: 0 | G45: 0 | H45: 0 | I45: 290000 | J45: 290000 | K45: 74713570.12 | L45: 160194654 | M45: 178403878
A46: Attributable to minorities | J46: =SUM(E46:I46) -> 0 | K46: =IF(D46=0,C46+J46,D46+J46) -> 0
A47: Surplus/(Deficit) attributable to municipality | C47: =SUM(C45:C46) -> 68850206 | D47: 74423570.12 | E47: 0 | F47: 0 | G47: 0 | H47: 0 | I47: 290000 | J47: 290000 | K47: 74713570.12 | L47: 160194654 | M47: 178403878
A48: Share of surplus/ (deficit) of associate | J48: =SUM(E48:I48) -> 0 | K48: =IF(D48=0,C48+J48,D48+J48) -> 0
A49: Surplus/ (Deficit) for the year | C49: =C47+C48 -> 68850206 | D49: 74423570.12 | E49: 0 | F49: 0 | G49: 0 | H49: 0 | I49: 290000 | J49: 290000 | K49: 74713570.12 | L49: 160194654 | M49: 178403878
A50: =head27a -> References
A51: 1. Classifications are revenue sources and expenditure type
A52: 2. Detail to be provided in Table SB1
A53: 3. Only complete if a previous adjusted budget has been approved in the same financial year. Reflect most recent adjusted budget.
A54: 4. Additional cash-backed accumulated funds/unspent funds (MFMA section 18(1)(b) and section 28(2)(e)) identified after the Original Budget approved and after annual financial statements audited (note: only where underspending could not reasonably have been foreseen)
A55: 5. Increases of funds approved under MFMA section 31
A56: 6. Adjustments approved in accordance with MFMA section 29
A57: 7. Adjustments to transfers from National or Provincial Government
A58: 8. Adjusts. = 'Other' Adjustments proposed to be approved; including revenue under-collection (MFMA section 28(2)(a)); additional revenue appropriation on existing programmes (section 28(2))(b); projected savings (section 28(2)(d)); error correction (section 28(2)(f))
A59: 9. G = B + C + D + E + F
A60: 10. Adjusted Budget H = (A or A1/2 etc) + G
A62: Revenue total | C62: =C23+C40+C41+C42 -> 1036090528 | D62: 980010805 | E62: 0 | F62: 0 | G62: 0 | H62: 0 | I62: 378513 | J62: 378513 | K62: 980389318 | L62: 1098699916 | M62: 1158692670

Sheet B5-Capex
A1: =muni&" - "&_ADJ5&" - "&Date -> NW375 Moses Kotane - Table B5 Adjustments Capital Expenditure Budget by vote and funding - 44171
A2: =desc -> Description | B2: =head27 -> Ref | C2: =Head2 -> Budget Year 2019/20 | L2: =Head10 -> Budget Year +1 2020/21 | M2: =Head11 -> Budget Year +2 2021/22
C3: =Head6 -> Original Budget | D3: =Head54 -> Prior Adjusted | E3: =Head51 -> Accum. Funds | F3: =Head52 -> Multi-year capital | G3: =Head53 -> Unfore. Unavoid. | H3: =Head55 -> Nat. or Prov. Govt | I3: =Head50 -> Other Adjusts. | J3: =Head56 -> Total Adjusts. | K3: =Head7 -> Adjusted Budget | L3: =Head7 -> Adjusted Budget | M3: =Head7 -> Adjusted Budget
D4: 5 | E4: 6 | F4: 7 | G4: 8 | H4: 9 | I4: 10 | J4: 11 | K4: 12
A5: R thousands | C5: A | D5: A1 | E5: B | F5: C | G5: D | H5: E | I5: F | J5: G | K5: H
A6: Capital expenditure - Vote
A7: Multi-year expenditure to be adjusted | B7: 2
A8: =B5B!A8 -> Vote 01 - Municipal Council | C8: =B5B!C8 -> 0 | D8: =B5B!D8 -> 0 | E8: =B5B!E8 -> 0 | F8: =B5B!F8 -> 0 | G8: =B5B!G8 -> 0 | H8: =B5B!H8 -> 0 | I8: =B5B!I8 -> 0 | J8: =B5B!J8 -> 0 | K8: =B5B!K8 -> 0 | L8: =B5B!L8 -> 0 | M8: =B5B!M8 -> 0
A9: =B5B!A14 -> Vote 02 - Office Of The Accounting Officer | C9: =B5B!C14 -> 0 | D9: =B5B!D14 -> 0 | E9: =B5B!E14 -> 0 | F9: =B5B!F14 -> 0 | G9: =B5B!G14 -> 0 | H9: =B5B!H14 -> 0 | I9: =B5B!I14 -> 0 | J9: =B5B!J14 -> 0 | K9: =B5B!K14 -> 0 | L9: =B5B!L14 -> 0 | M9: =B5B!M14 -> 0
A10: =B5B!A21 -> Vote 03 - Budget And Treasury Office | C10: =B5B!C21 -> 0 | D10: =B5B!D21 -> 0 | E10: =B5B!E21 -> 0 | F10: =B5B!F21 -> 0 | G10: =B5B!G21 -> 0 | H10: =B5B!H21 -> 0 | I10: =B5B!I21 -> 0 | J10: =B5B!J21 -> 0 | K10: =B5B!K21 -> 0 | L10: =B5B!L21 -> 0 | M10: =B5B!M21 -> 0
A11: =B5B!A29 -> Vote 04 - Corporate Services | C11: =B5B!C29 -> 0 | D11: =B5B!D29 -> 0 | E11: =B5B!E29 -> 0 | F11: =B5B!F29 -> 0 | G11: =B5B!G29 -> 0 | H11: =B5B!H29 -> 0 | I11: =B5B!I29 -> 0 | J11: =B5B!J29 -> 0 | K11: =B5B!K29 -> 0 | L11: =B5B!L29 -> 0 | M11: =B5B!M29 -> 0
A12: =B5B!A38 -> Vote 05 - Community Services | C12: =B5B!C38 -> 0 | D12: =B5B!D38 -> 0 | E12: =B5B!E38 -> 0 | F12: =B5B!F38 -> 0 | G12: =B5B!G38 -> 0 | H12: =B5B!H38 -> 0 | I12: =B5B!I38 -> 0 | J12: =B5B!J38 -> 0 | K12: =B5B!K38 -> 0 | L12: =B5B!L38 -> 0 | M12: =B5B!M38 -> 0
A13: =B5B!A53 -> Vote 06 - Planning & Development | C13: =B5B!C53 -> 0 | D13: =B5B!D53 -> 0 | E13: =B5B!E53 -> 0 | F13: =B5B!F53 -> 0 | G13: =B5B!G53 -> 0 | H13: =B5B!H53 -> 0 | I13: =B5B!I53 -> 0 | J13: =B5B!J53 -> 0 | K13: =B5B!K53 -> 0 | L13: =B5B!L53 -> 0 | M13: =B5B!M53 -> 0
A14: =B5B!A64 -> Vote 07 - Infrastructure & Technical Services | C14: =B5B!C64 -> 73297563 | D14: =B5B!D64 -> 77790502.02 | E14: =B5B!E64 -> 0 | F14: =B5B!F64 -> 0 | G14: =B5B!G64 -> 0 | H14: =B5B!H64 -> 0 | I14: =B5B!I64 -> 0 | J14: =B5B!J64 -> 0 | K14: =B5B!K64 -> 77790502.02 | L14: =B5B!L64 -> 11375458 | M14: =B5B!M64 -> 17503825
A15: ='Org structure'!A9 -> Vote 08 - | C15: =B5B!C84 -> 0 | D15: =B5B!D84 -> 0 | E15: =B5B!E84 -> 0 | F15: =B5B!F84 -> 0 | G15: =B5B!G84 -> 0 | H15: =B5B!H84 -> 0 | I15: =B5B!I84 -> 0 | J15: =SUM(E15:I15) -> 0 | K15: =IF(D15=0,C15+J15,D15+J15) -> 0 | L15: =B5B!L84 -> 0 | M15: =B5B!M84 -> 0
A16: ='Org structure'!A10 -> Vote 09 - | C16: =B5B!C85 -> 0 | D16: =B5B!D85 -> 0 | E16: =B5B!E85 -> 0 | F16: =B5B!F85 -> 0 | G16: =B5B!G85 -> 0 | H16: =B5B!H85 -> 0 | I16: =B5B!I85 -> 0 | J16: 0 | K16: 0 | L16: =B5B!L85 -> 0 | M16: =B5B!M85 -> 0
A17: ='Org structure'!A11 -> Vote 10 - | C17: =B5B!C86 -> 0 | D17: =B5B!D86 -> 0 | E17: =B5B!E86 -> 0 | F17: =B5B!F86 -> 0 | G17: =B5B!G86 -> 0 | H17: =B5B!H86 -> 0 | I17: =B5B!I86 -> 0 | J17: 0 | K17: 0 | L17: =B5B!L86 -> 0 | M17: =B5B!M86 -> 0
A18: ='Org structure'!A12 -> Vote 11 - | C18: =B5B!C87 -> 0 | D18: =B5B!D87 -> 0 | E18: =B5B!E87 -> 0 | F18: =B5B!F87 -> 0 | G18: =B5B!G87 -> 0 | H18: =B5B!H87 -> 0 | I18: =B5B!I87 -> 0 | J18: 0 | K18: 0 | L18: =B5B!L87 -> 0 | M18: =B5B!M87 -> 0
A19: ='Org structure'!A13 -> Vote 12 - | C19: =B5B!C88 -> 0 | D19: =B5B!D88 -> 0 | E19: =B5B!E88 -> 0 | F19: =B5B!F88 -> 0 | G19: =B5B!G88 -> 0 | H19: =B5B!H88 -> 0 | I19: =B5B!I88 -> 0 | J19: 0 | K19: 0 | L19: =B5B!L88 -> 0 | M19: =B5B!M88 -> 0
A20: ='Org structure'!A14 -> Vote 13 - | C20: =B5B!C89 -> 0 | D20: =B5B!D89 -> 0 | E20: =B5B!E89 -> 0 | F20: =B5B!F89 -> 0 | G20: =B5B!G89 -> 0 | H20: =B5B!H89 -> 0 | I20: =B5B!I89 -> 0 | J20: 0 | K20: 0 | L20: =B5B!L89 -> 0 | M20: =B5B!M89 -> 0
A21: ='Org structure'!A15 -> Vote 14 - | C21: =B5B!C90 -> 0 | D21: =B5B!D90 -> 0 | E21: =B5B!E90 -> 0 | F21: =B5B!F90 -> 0 | G21: =B5B!G90 -> 0 | H21: =B5B!H90 -> 0 | I21: =B5B!I90 -> 0 | J21: 0 | K21: 0 | L21: =B5B!L90 -> 0 | M21: =B5B!M90 -> 0
A22: ='Org structure'!A16 -> Vote 15 - Other | C22: =B5B!C91 -> 0 | D22: =B5B!D91 -> 0 | E22: =B5B!E91 -> 0 | F22: =B5B!F91 -> 0 | G22: =B5B!G91 -> 0 | H22: =B5B!H91 -> 0 | I22: =B5B!I91 -> 0 | J22: 0 | K22: 0 | L22: =B5B!L91 -> 0 | M22: =B5B!M91 -> 0
A23: Capital multi-year expenditure sub-total | B23: 3 | C23: =SUM(C8:C22) -> 73297563 | D23: =SUM(D8:D22) -> 77790502.02 | E23: 0 | F23: 0 | G23: 0 | H23: 0 | I23: 0 | J23: =SUM(J8:J22) -> 0 | K23: =SUM(K8:K22) -> 77790502.02 | L23: =SUM(L8:L22) -> 11375458 | M23: =SUM(M8:M22) -> 17503825
A25: Single-year expenditure to be adjusted | B25: 2
A26: =B5B!A96 -> Vote 01 - Municipal Council | C26: =B5B!C96 -> 0 | D26: =B5B!D96 -> 0 | E26: =B5B!E96 -> 0 | F26: =B5B!F96 -> 0 | G26: =B5B!G96 -> 0 | H26: =B5B!H96 -> 0 | I26: =B5B!I96 -> 0 | J26: =B5B!J96 -> 0 | K26: =B5B!K96 -> 0 | L26: =B5B!L96 -> 0 | M26: =B5B!M96 -> 0
A27: =B5B!A102 -> Vote 02 - Office Of The Accounting Officer | C27: =B5B!C102 -> 0 | D27: =B5B!D102 -> 0 | E27: =B5B!E102 -> 0 | F27: =B5B!F102 -> 0 | G27: =B5B!G102 -> 0 | H27: =B5B!H102 -> 0 | I27: =B5B!I102 -> 0 | J27: =B5B!J102 -> 0 | K27: =B5B!K102 -> 0 | L27: =B5B!L102 -> 0 | M27: =B5B!M102 -> 0
A28: =B5B!A109 -> Vote 03 - Budget And Treasury Office | C28: =B5B!C109 -> 100000 | D28: =B5B!D109 -> 0.01 | E28: =B5B!E109 -> 0 | F28: =B5B!F109 -> 0 | G28: =B5B!G109 -> 0 | H28: =B5B!H109 -> 0 | I28: =B5B!I109 -> 0 | J28: =B5B!J109 -> 0 | K28: =B5B!K109 -> 0.01 | L28: =B5B!L109 -> 0 | M28: =B5B!M109 -> 0
A29: =B5B!A117 -> Vote 04 - Corporate Services | C29: =B5B!C117 -> 550000 | D29: =B5B!D117 -> 0.03 | E29: =B5B!E117 -> 0 | F29: =B5B!F117 -> 0 | G29: =B5B!G117 -> 0 | H29: =B5B!H117 -> 0 | I29: =B5B!I117 -> 113975 | J29: =B5B!J117 -> 113975 | K29: =B5B!K117 -> 113975.03 | L29: =B5B!L117 -> 0 | M29: =B5B!M117 -> 0
A30: =B5B!A126 -> Vote 05 - Community Services | C30: =B5B!C126 -> 30587162 | D30: =B5B!D126 -> 30726754.03 | E30: =B5B!E126 -> 0 | F30: =B5B!F126 -> 0 | G30: =B5B!G126 -> 0 | H30: =B5B!H126 -> 0 | I30: =B5B!I126 -> 0 | J30: =B5B!J126 -> 0 | K30: =B5B!K126 -> 30726754.03 | L30: =B5B!L126 -> 12864475 | M30: =B5B!M126 -> 27104155
A31: =B5B!A141 -> Vote 06 - Planning & Development | C31: =B5B!C141 -> 0 | D31: =B5B!D141 -> 0 | E31: =B5B!E141 -> 0 | F31: =B5B!F141 -> 0 | G31: =B5B!G141 -> 0 | H31: =B5B!H141 -> 0 | I31: =B5B!I141 -> 0 | J31: =B5B!J141 -> 0 | K31: =B5B!K141 -> 0 | L31: =B5B!L141 -> 0 | M31: =B5B!M141 -> 0
A32: =B5B!A152 -> Vote 07 - Infrastructure & Technical Services | C32: =B5B!C152 -> 100267422 | D32: =B5B!D152 -> 97588106.1 | E32: =B5B!E152 -> 0 | F32: =B5B!F152 -> 0 | G32: =B5B!G152 -> 0 | H32: =B5B!H152 -> 0 | I32: =B5B!I152 -> 0 | J32: =B5B!J152 -> 0 | K32: =B5B!K152 -> 97588106.1 | L32: =B5B!L152 -> 178255300 | M32: =B5B!M152 -> 174317389
A33: ='Org structure'!A9 -> Vote 08 - | C33: =B5B!C172 -> 0 | D33: =B5B!D172 -> 0 | E33: =B5B!E172 -> 0 | F33: =B5B!F172 -> 0 | G33: =B5B!G172 -> 0 | H33: =B5B!H172 -> 0 | I33: =B5B!I172 -> 0 | J33: =SUM(E33:I33) -> 0 | K33: =IF(D33=0,C33+J33,D33+J33) -> 0 | L33: =B5B!L172 -> 0 | M33: =B5B!M172 -> 0
A34: ='Org structure'!A10 -> Vote 09 - | C34: =B5B!C173 -> 0 | D34: =B5B!D173 -> 0 | E34: =B5B!E173 -> 0 | F34: =B5B!F173 -> 0 | G34: =B5B!G173 -> 0 | H34: =B5B!H173 -> 0 | I34: =B5B!I173 -> 0 | J34: 0 | K34: 0 | L34: =B5B!L173 -> 0 | M34: =B5B!M173 -> 0
A35: ='Org structure'!A11 -> Vote 10 - | C35: =B5B!C174 -> 0 | D35: =B5B!D174 -> 0 | E35: =B5B!E174 -> 0 | F35: =B5B!F174 -> 0 | G35: =B5B!G174 -> 0 | H35: =B5B!H174 -> 0 | I35: =B5B!I174 -> 0 | J35: 0 | K35: 0 | L35: =B5B!L174 -> 0 | M35: =B5B!M174 -> 0
A36: ='Org structure'!A12 -> Vote 11 - | C36: =B5B!C175 -> 0 | D36: =B5B!D175 -> 0 | E36: =B5B!E175 -> 0 | F36: =B5B!F175 -> 0 | G36: =B5B!G175 -> 0 | H36: =B5B!H175 -> 0 | I36: =B5B!I175 -> 0 | J36: 0 | K36: 0 | L36: =B5B!L175 -> 0 | M36: =B5B!M175 -> 0
A37: ='Org structure'!A13 -> Vote 12 - | C37: =B5B!C176 -> 0 | D37: =B5B!D176 -> 0 | E37: =B5B!E176 -> 0 | F37: =B5B!F176 -> 0 | G37: =B5B!G176 -> 0 | H37: =B5B!H176 -> 0 | I37: =B5B!I176 -> 0 | J37: 0 | K37: =IF(D37=0,C37+J37,D37+J37) -> 0 | L37: =B5B!L176 -> 0 | M37: =B5B!M176 -> 0
A38: ='Org structure'!A14 -> Vote 13 - | C38: =B5B!C177 -> 0 | D38: =B5B!D177 -> 0 | E38: =B5B!E177 -> 0 | F38: =B5B!F177 -> 0 | G38: =B5B!G177 -> 0 | H38: =B5B!H177 -> 0 | I38: =B5B!I177 -> 0 | J38: 0 | K38: 0 | L38: =B5B!L177 -> 0 | M38: =B5B!M177 -> 0
A39: ='Org structure'!A15 -> Vote 14 - | C39: =B5B!C178 -> 0 | D39: =B5B!D178 -> 0 | E39: =B5B!E178 -> 0 | F39: =B5B!F178 -> 0 | G39: =B5B!G178 -> 0 | H39: =B5B!H178 -> 0 | I39: =B5B!I178 -> 0 | J39: 0 | K39: 0 | L39: =B5B!L178 -> 0 | M39: =B5B!M178 -> 0
A40: ='Org structure'!A16 -> Vote 15 - Other | C40: =B5B!C179 -> 0 | D40: =B5B!D179 -> 0 | E40: =B5B!E179 -> 0 | F40: =B5B!F179 -> 0 | G40: =B5B!G179 -> 0 | H40: =B5B!H179 -> 0 | I40: =B5B!I179 -> 0 | J40: 0 | K40: 0 | L40: =B5B!L179 -> 0 | M40: =B5B!M179 -> 0
A41: Capital single-year expenditure sub-total | C41: =SUM(C26:C40) -> 131504584 | D41: =SUM(D26:D40) -> 128314860.2 | E41: 0 | F41: 0 | G41: 0 | H41: 0 | I41: 113975 | J41: =SUM(J26:J40) -> 113975 | K41: =SUM(K26:K40) -> 128428835.2 | L41: =SUM(L26:L40) -> 191119775 | M41: =SUM(M26:M40) -> 201421544
A42: Total Capital Expenditure - Vote | C42: =C41+C23 -> 204802147 | D42: =D41+D23 -> 206105362.2 | E42: 0 | F42: 0 | G42: 0 | H42: 0 | I42: 113975 | J42: =J23+J41 -> 113975 | K42: =K23+K41 -> 206219337.2 | L42: =L41+L23 -> 202495233 | M42: =M41+M23 -> 218925369
A44: Capital Expenditure - Functional
A45: Governance and administration | C45: =SUM(C46:C48) -> 650000 | D45: 0.04 | E45: 0 | F45: 0 | G45: 0 | H45: 0 | I45: 113975 | J45: =SUM(J46:J48) -> 113975 | K45: 113975.04 | L45: 0 | M45: 0
A46: Executive and council | J46: =SUM(E46:I46) -> 0 | K46: =IF(D46=0,C46+J46,D46+J46) -> 0
A47: Finance and administration | C47: 650000 | D47: 0.04 | E47: 0 | F47: 0 | G47: 0 | H47: 0 | I47: 113975 | J47: =SUM(E47:I47) -> 113975 | K47: =IF(D47=0,C47+J47,D47+J47) -> 113975.04 | L47: 0 | M47: 0
A48: Internal audit | J48: =SUM(E48:I48) -> 0 | K48: =IF(D48=0,C48+J48,D48+J48) -> 0
A49: Community and public safety | C49: =SUM(C50:C54) -> 14790253 | D49: 30726754.02 | E49: 0 | F49: 0 | G49: 0 | H49: 0 | I49: 0 | J49: =SUM(J50:J54) -> 0 | K49: 30726754.02 | L49: 9864475 | M49: 8000000
A50: Community and social services | C50: 14590253 | D50: 30726754.01 | E50: 0 | F50: 0 | G50: 0 | H50: 0 | I50: 0 | J50: =SUM(E50:I50) -> 0 | K50: =IF(D50=0,C50+J50,D50+J50) -> 30726754.01 | L50: 0 | M50: 8000000
A51: Sport and recreation | C51: 200000 | D51: 0.01 | E51: 0 | F51: 0 | G51: 0 | H51: 0 | I51: 0 | J51: =SUM(E51:I51) -> 0 | K51: =IF(D51=0,C51+J51,D51+J51) -> 0.01 | L51: 9864475 | M51: 0
A52: Public safety | C52: 0 | D52: 0 | E52: 0 | F52: 0 | G52: 0 | H52: 0 | I52: 0 | J52: =SUM(E52:I52) -> 0 | K52: =IF(D52=0,C52+J52,D52+J52) -> 0 | L52: 0 | M52: 0
A53: Housing | J53: =SUM(E53:I53) -> 0 | K53: =IF(D53=0,C53+J53,D53+J53) -> 0
A54: Health | J54: =SUM(E54:I54) -> 0 | K54: =IF(D54=0,C54+J54,D54+J54) -> 0
A55: Economic and environmental services | C55: =SUM(C56:C58) -> 62193238 | D55: 61188317.01 | E55: 0 | F55: 0 | G55: 0 | H55: 0 | I55: 0 | J55: 0 | K55: 61188317.01 | L55: 60981783 | M55: 60000000
A56: Planning and development | J56: =SUM(E56:I56) -> 0 | K56: =IF(D56=0,C56+J56,D56+J56) -> 0
A57: Road transport | C57: 62193238 | D57: 61188317.01 | E57: 0 | F57: 0 | G57: 0 | H57: 0 | I57: 0 | J57: =SUM(E57:I57) -> 0 | K57: =IF(D57=0,C57+J57,D57+J57) -> 61188317.01 | L57: 60981783 | M57: 60000000
A58: Environmental protection | J58: =SUM(E58:I58) -> 0 | K58: =IF(D58=0,C58+J58,D58+J58) -> 0
A59: Trading services | C59: =SUM(C60:C63) -> 127168656 | D59: =SUM(D60:D63) -> 114190291.1 | E59: 0 | F59: 0 | G59: 0 | H59: 0 | I59: =SUM(I60:I63) -> 0 | J59: =SUM(J60:J63) -> 0 | K59: 114190291.1 | L59: 131648975 | M59: 150925369
A60: Energy sources | C60: 22445688 | D60: 20416973.03 | E60: 0 | F60: 0 | G60: 0 | H60: 0 | I60: 0 | J60: =SUM(E60:I60) -> 0 | K60: =IF(D60=0,C60+J60,D60+J60) -> 20416973.03 | L60: 11577740 | M60: 12557370
A61: Water management | C61: 64814603 | D61: 81281082.01 | E61: 0 | F61: 0 | G61: 0 | H61: 0 | I61: 0 | J61: =SUM(E61:I61) -> 0 | K61: =IF(D61=0,C61+J61,D61+J61) -> 81281082.01 | L61: 91183878 | M61: 94263844
A62: Waste water management | C62: 24111456 | D62: 12492236.07 | E62: 0 | F62: 0 | G62: 0 | H62: 0 | I62: 0 | J62: =SUM(E62:I62) -> 0 | K62: =IF(D62=0,C62+J62,D62+J62) -> 12492236.07 | L62: 25887357 | M62: 25000000
A63: Waste management | C63: 15796909 | D63: 0.01 | E63: 0 | F63: 0 | G63: 0 | H63: 0 | I63: 0 | J63: =SUM(E63:I63) -> 0 | K63: =IF(D63=0,C63+J63,D63+J63) -> 0.01 | L63: 3000000 | M63: 19104155
A64: Other | J64: =SUM(E64:I64) -> 0 | K64: =IF(D64=0,C64+J64,D64+J64) -> 0
A65: Total Capital Expenditure - Functional | B65: 3 | C65: =C45+C49+C55+C59+C64 -> 204802147 | D65: =D45+D49+D55+D59+D64 -> 206105362.2 | E65: 0 | F65: 0 | G65: 0 | H65: 0 | I65: =I45+I49+I55+I59+I64 -> 113975 | J65: 113975 | K65: 206219337.2 | L65: 202495233 | M65: 218925369
A67: Funded by:
A68: National Government | C68: 201361894 | D68: 206105362.1 | E68: 0 | F68: 0 | G68: 0 | H68: 0 | I68: 0 | J68: =SUM(E68:I68) -> 0 | K68: =IF(D68=0,C68+J68,D68+J68) -> 206105362.1 | L68: 202495233 | M68: 218925369
A69: Provincial Government | J69: =SUM(E69:I69) -> 0 | K69: =IF(D69=0,C69+J69,D69+J69) -> 0
A70: District Municipality | J70: =SUM(E70:I70) -> 0 | K70: =IF(D70=0,C70+J70,D70+J70) -> 0
A71: ='B4-FinPerf RE'!A41 -> Transfers and subsidies - capital (monetary allocations) (National / Provincial Departmental Agencies, Households, Non-profit Institutions, Private Enterprises, Public Corporatons, Higher Educational Institutions) | C71: 0 | D71: 0 | E71: 0 | F71: 0 | G71: 0 | H71: 0 | I71: 0 | J71: =SUM(E71:I71) -> 0 | K71: =IF(D71=0,C71+J71,D71+J71) -> 0 | L71: 0 | M71: 0
A72: Transfers recognised - capital | B72: 4 | C72: =SUM(C68:C71) -> 201361894 | D72: 206105362.1 | E72: 0 | F72: 0 | G72: 0 | H72: 0 | I72: 0 | J72: 0 | K72: 206105362.1 | L72: 202495233 | M72: 218925369
A74: Borrowing | J74: =SUM(E74:I74) -> 0 | K74: =IF(D74=0,C74+J74,D74+J74) -> 0
A75: Internally generated funds | C75: 3440253 | D75: 0.06 | E75: 0 | F75: 0 | G75: 0 | H75: 0 | I75: 113975 | J75: =SUM(E75:I75) -> 113975 | K75: =IF(D75=0,C75+J75,D75+J75) -> 113975.06 | L75: 0 | M75: 0
A76: Total Capital Funding | C76: =+C72+C74+C75 -> 204802147 | D76: =+D72+D74+D75 -> 206105362.2 | E76: 0 | F76: 0 | G76: 0 | H76: 0 | I76: 113975 | J76: 113975 | K76: 206219337.2 | L76: 202495233 | M76: 218925369
A77: =head27a -> References
A78: 1. Municipalities may choose to appropriate for capital expenditure for three years or for one year (if one year appropriation projected expenditure required for yr2 and yr3).
A79: 2. Include capital component of PPP unitary payment. Note that capital transfers are only appropriated to municipalities for the budget year
A80: 3. Capital expenditure by standard classification must reconcile to the appropriations by vote
A81: 4. Must reconcile to supporting table SB7 and to Adjustments Budget Financial Performance (revenue and expenditure)
A82: 5. Only complete if a previous adjusted budget has been approved in the same financial year. Reflect most recent adjusted budget.
A83: 6. Additional cash-backed accumulated funds/unspent funds (MFMA section 18(1)(b) and section 28(2)(e)) identified after the Original Budget approved and after annual financial statements audited (note: only where underspending could not reasonably have been foreseen)
A84: 7. Increases of funds approved under MFMA section 31
A85: 8. Adjustments approved in accordance with MFMA section 29
A86: 9. Adjustments to transfers from National or Provincial Government
A87: 10. Adjusts. = 'Other' Adjustments proposed to be approved; including revenue under-collection (MFMA section 28(2)(a)); additional revenue appropriation on existing programmes (section 28(2))(b); projected savings (section 28(2)(d)); error correction (section 28(2)(f))
A88: 11. G = B + C + D + E + F
A89: 12. Adjusted Budget H = (A or A1/2 etc) + G
A91: check balance | C91: =C65-C76 -> 0 | D91: =D65-D76 -> 0 | E91: =E65-E76 -> 0 | H91: =H65-H76 -> 0 | I91: =I65-I76 -> 0 | J91: =J65-J76 -> 0 | K91: =K65-K76 -> 0 | L91: =L65-L76 -> 0 | M91: =K23-K76 -> -128428835.2

Sheet B5B
A1: =muni&" - "&_ADJ5&" - B"&" - "&Date -> NW375 Moses Kotane - Table B5 Adjustments Capital Expenditure Budget by vote and funding - B - 44171
A2: =Vdesc -> Vote Description | B2: =head27 -> Ref | C2: =Head2 -> Budget Year 2019/20 | L2: =Head10 -> Budget Year +1 2020/21 | M2: =Head11 -> Budget Year +2 2021/22
C3: =Head6 -> Original Budget | D3: =Head54 -> Prior Adjusted | E3: =Head51 -> Accum. Funds | F3: =Head52 -> Multi-year capital | G3: =Head53 -> Unfore. Unavoid. | H3: =Head55 -> Nat. or Prov. Govt | I3: =Head50 -> Other Adjusts. | J3: =Head56 -> Total Adjusts. | K3: =Head7 -> Adjusted Budget | L3: =Head7 -> Adjusted Budget | M3: =Head7 -> Adjusted Budget
A4: [Insert departmental structure etc] | D4: 3 | E4: 4 | F4: 5 | G4: 6 | H4: 7 | I4: 8 | J4: 9 | K4: 10
A5: R thousands | C5: A | D5: A1 | E5: B | F5: C | G5: D | H5: E | I5: F | J5: G | K5: H
A6: Capital expenditure - Municipal Vote
A7: Multi-year expenditure appropriation | B7: 2
A8: ='Org structure'!A2 -> Vote 01 - Municipal Council | C8: =SUM(C9:C13) -> 0 | D8: 0 | E8: 0 | F8: 0 | G8: 0 | H8: 0 | I8: 0 | J8: =SUM(E8:I8) -> 0 | K8: =IF(D8=0,C8+J8,D8+J8) -> 0 | L8: =SUM(L9:L13) -> 0 | M8: =SUM(M9:M13) -> 0
A9: ='Org structure'!E3 -> 01.1 - Office Of The Mayor | J9: 0 | K9: 0 | L9: 0 | M9: 0
A10: ='Org structure'!E4 -> 01.2 - Office Of The Speaker | J10: 0 | K10: 0 | L10: 0 | M10: 0
A11: ='Org structure'!E5 -> 01.3 - Office Of The Chief Whip | J11: 0 | K11: 0 | L11: 0 | M11: 0
A12: ='Org structure'!E6 -> 01.4 - Mpac | J12: 0 | K12: 0 | L12: 0 | M12: 0
A13: ='Org structure'!E7 -> 01.5 - Council General Administration | J13: 0 | K13: 0 | L13: 0 | M13: 0
A14: ='Org structure'!A3 -> Vote 02 - Office Of The Accounting Officer | C14: =SUM(C15:C20) -> 0 | D14: 0 | E14: 0 | F14: 0 | G14: 0 | H14: 0 | I14: 0 | J14: 0 | K14: 0 | L14: =SUM(L15:L20) -> 0 | M14: =SUM(M15:M20) -> 0
A15: ='Org structure'!E9 -> 02.1 - Office Of The Ao Admin | J15: 0 | K15: 0 | L15: 0 | M15: 0
A16: ='Org structure'!E10 -> 02.2 - Strategic Planning Monitoring & Evaluat | J16: 0 | K16: 0 | L16: 0 | M16: 0
A17: ='Org structure'!E11 -> 02.3 - Perfomance Management System | J17: 0 | K17: 0 | L17: 0 | M17: 0
A18: ='Org structure'!E12 -> 02.4 - Internal Audit | J18: 0 | K18: 0 | L18: 0 | M18: 0
A19: ='Org structure'!E13 -> 02.5 - Municipal Planning Idp | J19: 0 | K19: 0 | L19: 0 | M19: 0
A20: ='Org structure'!E14 -> 02.6 - Risk | J20: 0 | K20: 0 | L20: 0 | M20: 0
A21: ='Org structure'!A4 -> Vote 03 - Budget And Treasury Office | C21: =SUM(C22:C28) -> 0 | D21: 0 | E21: 0 | F21: 0 | G21: 0 | H21: 0 | I21: 0 | J21: 0 | K21: 0 | L21: =SUM(L22:L28) -> 0 | M21: =SUM(M22:M28) -> 0
A22: ='Org structure'!E16 -> 03.1 - Chief Financial Officer Admin | J22: 0 | K22: 0 | L22: 0 | M22: 0
A23: ='Org structure'!E17 -> 03.2 - Budget Expenditure & Reporting | J23: 0 | K23: 0 | L23: 0 | M23: 0
A24: ='Org structure'!E18 -> 03.3 - Budget Expenditure & Reporting | J24: 0 | K24: 0 | L24: 0 | M24: 0
A25: ='Org structure'!E19 -> 03.4 - Revenue Management | J25: 0 | K25: 0 | L25: 0 | M25: 0
A26: ='Org structure'!E20 -> 03.5 - Supply Chain Management | J26: 0 | K26: 0 | L26: 0 | M26: 0
A27: ='Org structure'!E21 -> 03.6 - Assets Management | J27: 0 | K27: 0 | L27: 0 | M27: 0
A28: ='Org structure'!E22 -> 03.7 - Expenditure | J28: 0 | K28: 0 | L28: 0 | M28: 0
A29: ='Org structure'!A5 -> Vote 04 - Corporate Services | C29: =SUM(C30:C37) -> 0 | D29: 0 | E29: 0 | F29: 0 | G29: 0 | H29: 0 | I29: 0 | J29: 0 | K29: 0 | L29: =SUM(L30:L37) -> 0 | M29: =SUM(M30:M37) -> 0
A30: ='Org structure'!E24 -> 04.1 - Legal Services | J30: 0 | K30: 0 | L30: 0 | M30: 0
A31: ='Org structure'!E25 -> 04.2 - Corporate Service Administration | C31: 0 | D31: 0 | E31: 0 | F31: 0 | G31: 0 | H31: 0 | I31: 0 | J31: =SUM(E31:I31) -> 0 | K31: =IF(D31=0,C31+J31,D31+J31) -> 0 | L31: 0 | M31: 0
A32: ='Org structure'!E26 -> 04.3 - Human Resources | J32: 0 | K32: 0 | L32: 0 | M32: 0
A33: ='Org structure'!E27 -> 04.4 - Media & Communication | J33: 0 | K33: 0 | L33: 0 | M33: 0
A34: ='Org structure'!E28 -> 04.5 - Organisational Development | J34: 0 | K34: 0 | L34: 0 | M34: 0
A35: ='Org structure'!E29 -> 04.6 - Labour Relations | J35: 0 | K35: 0 | L35: 0 | M35: 0
A36: ='Org structure'!E30 -> 04.7 - Legal Services | J36: 0 | K36: 0 | L36: 0 | M36: 0
A37: ='Org structure'!E31 -> 04.8 - Information Technology Services | C37: 0 | D37: 0 | E37: 0 | F37: 0 | G37: 0 | H37: 0 | I37: 0 | J37: =SUM(E37:I37) -> 0 | K37: =IF(D37=0,C37+J37,D37+J37) -> 0 | L37: 0 | M37: 0
A38: ='Org structure'!A6 -> Vote 05 - Community Services | C38: =SUM(C39:C52) -> 0 | D38: 0 | E38: 0 | F38: 0 | G38: 0 | H38: 0 | I38: 0 | J38: 0 | K38: 0 | L38: =SUM(L39:L52) -> 0 | M38: =SUM(M39:M52) -> 0
A39: ='Org structure'!E33 -> 05.1 - Municipal Buildings | J39: 0 | K39: 0 | L39: 0 | M39: 0
A40: ='Org structure'!E34 -> 05.2 - Fleet Management | J40: 0 | K40: 0 | L40: 0 | M40: 0
A41: ='Org structure'!E35 -> 05.3 - Community Services Administration | J41: 0 | K41: 0 | L41: 0 | M41: 0
A42: ='Org structure'!E36 -> 05.4 - Cemeteries | C42: 0 | D42: 0 | E42: 0 | F42: 0 | G42: 0 | H42: 0 | I42: 0 | J42: =SUM(E42:I42) -> 0 | K42: =IF(D42=0,C42+J42,D42+J42) -> 0 | L42: 0 | M42: 0
A43: ='Org structure'!E37 -> 05.5 - Disaster Management | J43: 0 | K43: 0 | L43: 0 | M43: 0
A44: ='Org structure'!E38 -> 05.6 - Fires Service | J44: 0 | K44: 0 | L44: 0 | M44: 0
A45: ='Org structure'!E39 -> 05.7 - Libraries | J45: 0 | K45: 0 | L45: 0 | M45: 0
A46: ='Org structure'!E40 -> 05.8 - Municipal Buildings | C46: 0 | D46: 0 | E46: 0 | F46: 0 | G46: 0 | H46: 0 | I46: 0 | J46: =SUM(E46:I46) -> 0 | K46: =IF(D46=0,C46+J46,D46+J46) -> 0 | L46: 0 | M46: 0
A47: ='Org structure'!E41 -> 05.9 - Sports Recreation & Social Amenitie | C47: 0 | D47: 0 | E47: 0 | F47: 0 | G47: 0 | H47: 0 | I47: 0 | J47: =SUM(E47:I47) -> 0 | K47: =IF(D47=0,C47+J47,D47+J47) -> 0 | L47: 0 | M47: 0
A48: ='Org structure'!E42 -> 05.10 - Waste Management Solid Waste | C48: 0 | D48: 0 | E48: 0 | F48: 0 | G48: 0 | H48: 0 | I48: 0 | J48: =SUM(E48:I48) -> 0 | K48: =IF(D48=0,C48+J48,D48+J48) -> 0 | L48: 0 | M48: 0
A49: ='Org structure'!E43 -> 05.11 - Safety And Security | C49: 0 | D49: 0 | E49: 0 | F49: 0 | G49: 0 | H49: 0 | I49: 0 | J49: =SUM(E49:I49) -> 0 | K49: =IF(D49=0,C49+J49,D49+J49) -> 0 | L49: 0 | M49: 0
A50: ='Org structure'!E44 -> 05.12 - Traffic Service | L50: 0 | M50: 0
A51: ='Org structure'!E45 -> 05.13 - Traffic Service | L51: 0 | M51: 0
A52: ='Org structure'!E46 -> 05.14 - Fleet Management | C52: 0 | D52: 0 | E52: 0 | F52: 0 | G52: 0 | H52: 0 | I52: 0 | J52: =SUM(E52:I52) -> 0 | K52: =IF(D52=0,C52+J52,D52+J52) -> 0 | L52: 0 | M52: 0
A53: ='Org structure'!A7 -> Vote 06 - Planning & Development | C53: =SUM(C54:C63) -> 0 | D53: 0 | E53: 0 | F53: 0 | G53: 0 | H53: 0 | I53: 0 | J53: 0 | K53: 0 | L53: =SUM(L54:L63) -> 0 | M53: =SUM(M54:M63) -> 0
A54: ='Org structure'!E48 -> 06.1 - Planning And Development Admin | J54: 0 | K54: 0 | L54: 0 | M54: 0
A55: ='Org structure'!E49 -> 06.2 - Municipal Planning Idp | J55: 0 | K55: 0 | L55: 0 | M55: 0
A56: ='Org structure'!E50 -> 06.3 - Pms | J56: 0 | K56: 0 | L56: 0 | M56: 0
A57: ='Org structure'!E51 -> 06.4 - Town Planning | J57: 0 | K57: 0 | L57: 0 | M57: 0
A58: ='Org structure'!E52 -> 06.5 - Land Use And Housing Admin | J58: 0 | K58: 0 | L58: 0 | M58: 0
A59: ='Org structure'!E53 -> 06.6 - Local Economic Development | J59: 0 | K59: 0 | L59: 0 | M59: 0
A60: ='Org structure'!E54 -> 06.7 - Led | J60: 0 | K60: 0 | L60: 0 | M60: 0
A61: ='Org structure'!E55 -> 06.8 - Agriculture & Rural Development | J61: 0 | K61: 0 | L61: 0 | M61: 0
A62: ='Org structure'!E56 -> 06.9 - Tourism & Business Development | J62: =SUM(E62:I62) -> 0 | K62: =IF(D62=0,C62+J62,D62+J62) -> 0 | L62: 0 | M62: 0
A63: ='Org structure'!E57 -> 06.10 - Arts & Culture | L63: 0 | M63: 0
A64: ='Org structure'!A8 -> Vote 07 - Infrastructure & Technical Services | C64: =SUM(C65:C83) -> 73297563 | D64: 77790502.02 | E64: 0 | F64: 0 | G64: 0 | H64: 0 | I64: 0 | J64: 0 | K64: 77790502.02 | L64: =SUM(L65:L83) -> 11375458 | M64: =SUM(M65:M83) -> 17503825
A65: ='Org structure'!E59 -> 07.1 - Infrastructure Admin & Tech Admin | J65: 0 | K65: 0 | L65: 0 | M65: 0
A66: ='Org structure'!E60 -> 07.2 - Fleet Management | C66: 0 | D66: 0 | E66: 0 | F66: 0 | G66: 0 | H66: 0 | I66: 0 | J66: =SUM(E66:I66) -> 0 | K66: =IF(D66=0,C66+J66,D66+J66) -> 0 | L66: 0 | M66: 0
A67: ='Org structure'!E61 -> 07.3 - Roads | C67: 62193238 | D67: 54731536.01 | E67: 0 | F67: 0 | G67: 0 | H67: 0 | I67: 0 | J67: =SUM(E67:I67) -> 0 | K67: =IF(D67=0,C67+J67,D67+J67) -> 54731536.01 | L67: 10456783 | M67: 0
A68: ='Org structure'!E62 -> 07.4 - Storm Water | J68: 0 | K68: 0 | L68: 0 | M68: 0
A69: ='Org structure'!E63 -> 07.5 - Street Lighting | C69: 5604325 | D69: 4767440.01 | E69: 0 | F69: 0 | G69: 0 | H69: 0 | I69: 0 | J69: =SUM(E69:I69) -> 0 | K69: =IF(D69=0,C69+J69,D69+J69) -> 4767440.01 | L69: 918675 | M69: 837158
A70: ='Org structure'!E64 -> 07.6 - Project Management Unit | J70: 0 | K70: 0 | L70: 0 | M70: 0
A71: ='Org structure'!E65 -> 07.7 - Sanitation Treatment Plant: Mogwase | J71: 0 | K71: 0 | L71: 0 | M71: 0
A72: ='Org structure'!E66 -> 07.8 - Sanitation Treatment Plant: Madikwe | J72: 0 | K72: 0 | L72: 0 | M72: 0
A73: ='Org structure'!E67 -> 07.9 - Sanitation Reticulation | C73: 0 | D73: 0 | E73: 0 | F73: 0 | G73: 0 | H73: 0 | I73: 0 | J73: =SUM(E73:I73) -> 0 | K73: =IF(D73=0,C73+J73,D73+J73) -> 0 | L73: 0 | M73: 16666667
A74: ='Org structure'!E68 -> 07.10 - Water Administration | C74: 5500000 | D74: 18291526 | E74: 0 | F74: 0 | G74: 0 | H74: 0 | I74: 0 | J74: =SUM(E74:I74) -> 0 | K74: =IF(D74=0,C74+J74,D74+J74) -> 18291526 | L74: 0 | M74: 0
A75: ='Org structure'!E69 -> 07.11 - Water Madikwe: Water Treatment Work | L75: 0 | M75: 0
A76: ='Org structure'!E70 -> 07.12 - Water: Pella Water Treatment Works | L76: 0 | M76: 0
A77: ='Org structure'!E71 -> 07.13 - Water: Madikwe Retail & Bulk Lines | L77: 0 | M77: 0
A78: ='Org structure'!E72 -> 07.14 - Water: Madikwe Rural | L78: 0 | M78: 0
A79: ='Org structure'!E73 -> 07.15 - Water: Molatedi | L79: 0 | M79: 0
A80: ='Org structure'!E74 -> 07.16 - Water Eastern: Retail Mankwe | L80: 0 | M80: 0
A81: ='Org structure'!E75 -> 07.17 - Water Vaalkopdam: Mankwe | L81: 0 | M81: 0
A82: ='Org structure'!E76 -> 07.18 - Water Eastern: Retail Mankwe | L82: 0 | M82: 0
A83: ='Org structure'!E77 -> 07.19 - Reporting Function Electricity | L83: 0 | M83: 0
A84: ='Org structure'!A9 -> Vote 08 - | C84: 0 | D84: 0 | E84: 0 | F84: 0 | G84: 0 | H84: 0 | I84: 0 | J84: 0 | K84: 0 | L84: 0 | M84: 0
A85: ='Org structure'!A10 -> Vote 09 - | C85: 0 | D85: 0 | E85: 0 | F85: 0 | G85: 0 | H85: 0 | I85: 0 | J85: 0 | K85: 0 | L85: 0 | M85: 0
A86: ='Org structure'!A11 -> Vote 10 - | C86: 0 | D86: 0 | E86: 0 | F86: 0 | G86: 0 | H86: 0 | I86: 0 | J86: 0 | K86: 0 | L86: 0 | M86: 0
A87: ='Org structure'!A12 -> Vote 11 - | C87: 0 | D87: 0 | E87: 0 | F87: 0 | G87: 0 | H87: 0 | I87: 0 | J87: 0 | K87: 0 | L87: 0 | M87: 0
A88: ='Org structure'!A13 -> Vote 12 - | C88: 0 | D88: 0 | E88: 0 | F88: 0 | G88: 0 | H88: 0 | I88: 0 | J88: 0 | K88: 0 | L88: 0 | M88: 0
A89: ='Org structure'!A14 -> Vote 13 - | C89: 0 | D89: 0 | E89: 0 | F89: 0 | G89: 0 | H89: 0 | I89: 0 | J89: =SUM(E89:I89) -> 0 | K89: =IF(D89=0,C89+J89,D89+J89) -> 0 | L89: 0 | M89: 0
A90: ='Org structure'!A15 -> Vote 14 - | C90: 0 | D90: 0 | E90: 0 | F90: 0 | G90: 0 | H90: 0 | I90: 0 | J90: 0 | K90: 0 | L90: 0 | M90: 0
A91: ='Org structure'!A16 -> Vote 15 - Other | C91: 0 | D91: 0 | E91: 0 | F91: 0 | G91: 0 | H91: 0 | I91: 0 | J91: 0 | K91: 0 | L91: 0 | M91: 0
A92: Capital multi-year expenditure sub-total | C92: =C8+C14+C21+C29+C38+C53+C64+C84+C85+C86+C87+C88+C89+C90+C91 -> 73297563 | D92: 77790502.02 | E92: 0 | F92: 0 | G92: 0 | H92: 0 | I92: 0 | J92: 0 | K92: 77790502.02 | L92: 11375458 | M92: 17503825
A94: Capital expenditure - Municipal Vote | B94: 2
A95: Single-year expenditure appropriation
A96: ='Org structure'!A2 -> Vote 01 - Municipal Council | C96: =SUM(C97:C101) -> 0 | D96: 0 | E96: 0 | F96: 0 | G96: 0 | H96: 0 | I96: 0 | J96: =SUM(E96:I96) -> 0 | K96: =IF(D96=0,C96+J96,D96+J96) -> 0 | L96: =SUM(L97:L101) -> 0 | M96: =SUM(M97:M101) -> 0
A97: ='Org structure'!E3 -> 01.1 - Office Of The Mayor | C97: 0 | D97: 0 | E97: 0 | F97: 0 | G97: 0 | H97: 0 | I97: 0 | J97: 0 | K97: 0 | L97: 0 | M97: 0
A98: ='Org structure'!E4 -> 01.2 - Office Of The Speaker | C98: 0 | D98: 0 | E98: 0 | F98: 0 | G98: 0 | H98: 0 | I98: 0 | J98: 0 | K98: 0 | L98: 0 | M98: 0
A99: ='Org structure'!E5 -> 01.3 - Office Of The Chief Whip | C99: 0 | D99: 0 | E99: 0 | F99: 0 | G99: 0 | H99: 0 | I99: 0 | J99: 0 | K99: 0 | L99: 0 | M99: 0
A100: ='Org structure'!E6 -> 01.4 - Mpac | C100: 0 | D100: 0 | E100: 0 | F100: 0 | G100: 0 | H100: 0 | I100: 0 | J100: 0 | K100: 0 | L100: 0 | M100: 0
A101: ='Org structure'!E7 -> 01.5 - Council General Administration | C101: 0 | D101: 0 | E101: 0 | F101: 0 | G101: 0 | H101: 0 | I101: 0 | J101: 0 | K101: 0 | L101: 0 | M101: 0
A102: ='Org structure'!A3 -> Vote 02 - Office Of The Accounting Officer | C102: =SUM(C103:C108) -> 0 | D102: 0 | E102: 0 | F102: 0 | G102: 0 | H102: 0 | I102: 0 | J102: 0 | K102: 0 | L102: =SUM(L103:L108) -> 0 | M102: =SUM(M103:M108) -> 0
A103: ='Org structure'!E9 -> 02.1 - Office Of The Ao Admin | C103: 0 | D103: 0 | E103: 0 | F103: 0 | G103: 0 | H103: 0 | I103: 0 | J103: 0 | K103: 0 | L103: 0 | M103: 0
A104: ='Org structure'!E10 -> 02.2 - Strategic Planning Monitoring & Evaluat | C104: 0 | D104: 0 | E104: 0 | F104: 0 | G104: 0 | H104: 0 | I104: 0 | J104: 0 | K104: 0 | L104: 0 | M104: 0
A105: ='Org structure'!E11 -> 02.3 - Perfomance Management System | C105: 0 | D105: 0 | E105: 0 | F105: 0 | G105: 0 | H105: 0 | I105: 0 | J105: 0 | K105: 0 | L105: 0 | M105: 0
A106: ='Org structure'!E12 -> 02.4 - Internal Audit | C106: 0 | D106: 0 | E106: 0 | F106: 0 | G106: 0 | H106: 0 | I106: 0 | J106: 0 | K106: 0 | L106: 0 | M106: 0
A107: ='Org structure'!E13 -> 02.5 - Municipal Planning Idp | C107: 0 | D107: 0 | E107: 0 | F107: 0 | G107: 0 | H107: 0 | I107: 0 | J107: 0 | K107: 0 | L107: 0 | M107: 0
A108: ='Org structure'!E14 -> 02.6 - Risk | C108: 0 | D108: 0 | E108: 0 | F108: 0 | G108: 0 | H108: 0 | I108: 0 | J108: 0 | K108: 0 | L108: 0 | M108: 0
A109: ='Org structure'!A4 -> Vote 03 - Budget And Treasury Office | C109: =SUM(C110:C116) -> 100000 | D109: 0.01 | E109: 0 | F109: 0 | G109: 0 | H109: 0 | I109: 0 | J109: 0 | K109: 0.01 | L109: =SUM(L110:L116) -> 0 | M109: =SUM(M110:M116) -> 0
A110: ='Org structure'!E16 -> 03.1 - Chief Financial Officer Admin | C110: 0 | D110: 0 | E110: 0 | F110: 0 | G110: 0 | H110: 0 | I110: 0 | J110: 0 | K110: 0 | L110: 0 | M110: 0
A111: ='Org structure'!E17 -> 03.2 - Budget Expenditure & Reporting | C111: 0 | D111: 0 | E111: 0 | F111: 0 | G111: 0 | H111: 0 | I111: 0 | J111: 0 | K111: 0 | L111: 0 | M111: 0
A112: ='Org structure'!E18 -> 03.3 - Budget Expenditure & Reporting | C112: 0 | D112: 0 | E112: 0 | F112: 0 | G112: 0 | H112: 0 | I112: 0 | J112: 0 | K112: 0 | L112: 0 | M112: 0
A113: ='Org structure'!E19 -> 03.4 - Revenue Management | C113: 100000 | D113: 0.01 | E113: 0 | F113: 0 | G113: 0 | H113: 0 | I113: 0 | J113: =SUM(E113:I113) -> 0 | K113: =IF(D113=0,C113+J113,D113+J113) -> 0.01 | L113: 0 | M113: 0
A114: ='Org structure'!E20 -> 03.5 - Supply Chain Management | C114: 0 | D114: 0 | E114: 0 | F114: 0 | G114: 0 | H114: 0 | I114: 0 | J114: 0 | K114: 0 | L114: 0 | M114: 0
A115: ='Org structure'!E21 -> 03.6 - Assets Management | C115: 0 | D115: 0 | E115: 0 | F115: 0 | G115: 0 | H115: 0 | I115: 0 | J115: 0 | K115: 0 | L115: 0 | M115: 0
A116: ='Org structure'!E22 -> 03.7 - Expenditure | C116: 0 | D116: 0 | E116: 0 | F116: 0 | G116: 0 | H116: 0 | I116: 0 | J116: 0 | K116: 0 | L116: 0 | M116: 0
A117: ='Org structure'!A5 -> Vote 04 - Corporate Services | C117: =SUM(C118:C125) -> 550000 | D117: 0.03 | E117: 0 | F117: 0 | G117: 0 | H117: 0 | I117: 113975 | J117: 113975 | K117: 113975.03 | L117: =SUM(L118:L125) -> 0 | M117: =SUM(M118:M125) -> 0
A118: ='Org structure'!E24 -> 04.1 - Legal Services | C118: 0 | D118: 0 | E118: 0 | F118: 0 | G118: 0 | H118: 0 | I118: 0 | J118: 0 | K118: 0 | L118: 0 | M118: 0
A119: ='Org structure'!E25 -> 04.2 - Corporate Service Administration | C119: 300000 | D119: 0.02 | E119: 0 | F119: 0 | G119: 0 | H119: 0 | I119: 113975 | J119: =SUM(E119:I119) -> 113975 | K119: =IF(D119=0,C119+J119,D119+J119) -> 113975.02 | L119: 0 | M119: 0
A120: ='Org structure'!E26 -> 04.3 - Human Resources | C120: 0 | D120: 0 | E120: 0 | F120: 0 | G120: 0 | H120: 0 | I120: 0 | J120: =SUM(E120:I120) -> 0 | K120: =IF(D120=0,C120+J120,D120+J120) -> 0 | L120: 0 | M120: 0
A121: ='Org structure'!E27 -> 04.4 - Media & Communication | C121: 0 | D121: 0 | E121: 0 | F121: 0 | G121: 0 | H121: 0 | I121: 0 | J121: 0 | K121: 0 | L121: 0 | M121: 0
A122: ='Org structure'!E28 -> 04.5 - Organisational Development | C122: 0 | D122: 0 | E122: 0 | F122: 0 | G122: 0 | H122: 0 | I122: 0 | J122: 0 | K122: 0 | L122: 0 | M122: 0
A123: ='Org structure'!E29 -> 04.6 - Labour Relations | C123: 0 | D123: 0 | E123: 0 | F123: 0 | G123: 0 | H123: 0 | I123: 0 | J123: 0 | K123: 0 | L123: 0 | M123: 0
A124: ='Org structure'!E30 -> 04.7 - Legal Services | C124: 0 | D124: 0 | E124: 0 | F124: 0 | G124: 0 | H124: 0 | I124: 0 | J124: 0 | K124: 0 | L124: 0 | M124: 0
A125: ='Org structure'!E31 -> 04.8 - Information Technology Services | C125: 250000 | D125: 0.01 | E125: 0 | F125: 0 | G125: 0 | H125: 0 | I125: 0 | J125: =SUM(E125:I125) -> 0 | K125: =IF(D125=0,C125+J125,D125+J125) -> 0.01 | L125: 0 | M125: 0
A126: ='Org structure'!A6 -> Vote 05 - Community Services | C126: =SUM(C127:C140) -> 30587162 | D126: 30726754.03 | E126: 0 | F126: 0 | G126: 0 | H126: 0 | I126: 0 | J126: 0 | K126: 30726754.03 | L126: =SUM(L127:L140) -> 12864475 | M126: =SUM(M127:M140) -> 27104155
A127: ='Org structure'!E33 -> 05.1 - Municipal Buildings | C127: 14590253 | D127: 30726754.01 | E127: 0 | F127: 0 | G127: 0 | H127: 0 | I127: 0 | J127: =SUM(E127:I127) -> 0 | K127: =IF(D127=0,C127+J127,D127+J127) -> 30726754.01 | L127: 0 | M127: 8000000
A128: ='Org structure'!E34 -> 05.2 - Fleet Management | C128: 0 | D128: 0 | E128: 0 | F128: 0 | G128: 0 | H128: 0 | I128: 0 | J128: =SUM(E128:I128) -> 0 | K128: =IF(D128=0,C128+J128,D128+J128) -> 0 | L128: 0 | M128: 0
A129: ='Org structure'!E35 -> 05.3 - Community Services Administration | C129: 0 | D129: 0 | E129: 0 | F129: 0 | G129: 0 | H129: 0 | I129: 0 | J129: 0 | K129: 0 | L129: 0 | M129: 0
A130: ='Org structure'!E36 -> 05.4 - Cemeteries | C130: 0 | D130: 0 | E130: 0 | F130: 0 | G130: 0 | H130: 0 | I130: 0 | J130: =SUM(E130:I130) -> 0 | K130: =IF(D130=0,C130+J130,D130+J130) -> 0 | L130: 0 | M130: 0
A131: ='Org structure'!E37 -> 05.5 - Disaster Management | C131: 0 | D131: 0 | E131: 0 | F131: 0 | G131: 0 | H131: 0 | I131: 0 | J131: 0 | K131: 0 | L131: 0 | M131: 0
A132: ='Org structure'!E38 -> 05.6 - Fires Service | C132: 0 | D132: 0 | E132: 0 | F132: 0 | G132: 0 | H132: 0 | I132: 0 | J132: 0 | K132: 0 | L132: 0 | M132: 0
A133: ='Org structure'!E39 -> 05.7 - Libraries | C133: 0 | D133: 0 | E133: 0 | F133: 0 | G133: 0 | H133: 0 | I133: 0 | J133: 0 | K133: 0 | L133: 0 | M133: 0
A134: ='Org structure'!E40 -> 05.8 - Municipal Buildings | C134: 0 | D134: 0 | E134: 0 | F134: 0 | G134: 0 | H134: 0 | I134: 0 | J134: 0 | K134: 0 | L134: 0 | M134: 0
A135: ='Org structure'!E41 -> 05.9 - Sports Recreation & Social Amenitie | C135: 200000 | D135: 0.01 | E135: 0 | F135: 0 | G135: 0 | H135: 0 | I135: 0 | J135: =SUM(E135:I135) -> 0 | K135: =IF(D135=0,C135+J135,D135+J135) -> 0.01 | L135: 9864475 | M135: 0
A136: ='Org structure'!E42 -> 05.10 - Waste Management Solid Waste | C136: 15796909 | D136: 0.01 | E136: 0 | F136: 0 | G136: 0 | H136: 0 | I136: 0 | J136: =SUM(E136:I136) -> 0 | K136: =IF(D136=0,C136+J136,D136+J136) -> 0.01 | L136: 3000000 | M136: 19104155
A137: ='Org structure'!E43 -> 05.11 - Safety And Security | C137: 0 | D137: 0 | E137: 0 | F137: 0 | G137: 0 | H137: 0 | I137: 0 | J137: 0 | K137: 0 | L137: 0 | M137: 0
A138: ='Org structure'!E44 -> 05.12 - Traffic Service | C138: 0 | D138: 0 | E138: 0 | F138: 0 | G138: 0 | H138: 0 | I138: 0 | J138: 0 | K138: 0 | L138: 0 | M138: 0
A139: ='Org structure'!E45 -> 05.13 - Traffic Service | C139: 0 | D139: 0 | E139: 0 | F139: 0 | G139: 0 | H139: 0 | I139: 0 | J139: 0 | K139: 0 | L139: 0 | M139: 0
A140: ='Org structure'!E46 -> 05.14 - Fleet Management | C140: 0 | D140: 0 | E140: 0 | F140: 0 | G140: 0 | H140: 0 | I140: 0 | J140: 0 | K140: 0 | L140: 0 | M140: 0
A141: ='Org structure'!A7 -> Vote 06 - Planning & Development | C141: =SUM(C142:C151) -> 0 | D141: 0 | E141: 0 | F141: 0 | G141: 0 | H141: 0 | I141: 0 | J141: 0 | K141: 0 | L141: =SUM(L142:L151) -> 0 | M141: =SUM(M142:M151) -> 0
A142: ='Org structure'!E48 -> 06.1 - Planning And Development Admin | C142: 0 | D142: 0 | E142: 0 | F142: 0 | G142: 0 | H142: 0 | I142: 0 | J142: 0 | K142: 0 | L142: 0 | M142: 0
A143: ='Org structure'!E49 -> 06.2 - Municipal Planning Idp | C143: 0 | D143: 0 | E143: 0 | F143: 0 | G143: 0 | H143: 0 | I143: 0 | J143: 0 | K143: 0 | L143: 0 | M143: 0
A144: ='Org structure'!E50 -> 06.3 - Pms | C144: 0 | D144: 0 | E144: 0 | F144: 0 | G144: 0 | H144: 0 | I144: 0 | J144: 0 | K144: 0 | L144: 0 | M144: 0
A145: ='Org structure'!E51 -> 06.4 - Town Planning | C145: 0 | D145: 0 | E145: 0 | F145: 0 | G145: 0 | H145: 0 | I145: 0 | J145: 0 | K145: 0 | L145: 0 | M145: 0
A146: ='Org structure'!E52 -> 06.5 - Land Use And Housing Admin | C146: 0 | D146: 0 | E146: 0 | F146: 0 | G146: 0 | H146: 0 | I146: 0 | J146: 0 | K146: 0 | L146: 0 | M146: 0
A147: ='Org structure'!E53 -> 06.6 - Local Economic Development | C147: 0 | D147: 0 | E147: 0 | F147: 0 | G147: 0 | H147: 0 | I147: 0 | J147: 0 | K147: 0 | L147: 0 | M147: 0
A148: ='Org structure'!E54 -> 06.7 - Led | C148: 0 | D148: 0 | E148: 0 | F148: 0 | G148: 0 | H148: 0 | I148: 0 | J148: 0 | K148: 0 | L148: 0 | M148: 0
A149: ='Org structure'!E55 -> 06.8 - Agriculture & Rural Development | C149: 0 | D149: 0 | E149: 0 | F149: 0 | G149: 0 | H149: 0 | I149: 0 | J149: 0 | K149: 0 | L149: 0 | M149: 0
A150: ='Org structure'!E56 -> 06.9 - Tourism & Business Development | C150: 0 | D150: 0 | E150: 0 | F150: 0 | G150: 0 | H150: 0 | I150: 0 | J150: 0 | K150: 0 | L150: 0 | M150: 0
A151: ='Org structure'!E57 -> 06.10 - Arts & Culture | C151: 0 | D151: 0 | E151: 0 | F151: 0 | G151: 0 | H151: 0 | I151: 0 | J151: 0 | K151: 0 | L151: 0 | M151: 0
A152: ='Org structure'!A8 -> Vote 07 - Infrastructure & Technical Services | C152: =SUM(C153:C171) -> 100267422 | D152: 97588106.1 | E152: 0 | F152: 0 | G152: 0 | H152: 0 | I152: 0 | J152: =SUM(E152:I152) -> 0 | K152: =IF(D152=0,C152+J152,D152+J152) -> 97588106.1 | L152: =SUM(L153:L171) -> 178255300 | M152: =SUM(M153:M171) -> 174317389
A153: ='Org structure'!E59 -> 07.1 - Infrastructure Admin & Tech Admin | C153: 0 | D153: 0 | E153: 0 | F153: 0 | G153: 0 | H153: 0 | I153: 0 | J153: 0 | K153: 0 | L153: 0 | M153: 0
A154: ='Org structure'!E60 -> 07.2 - Fleet Management | C154: 0 | D154: 0 | E154: 0 | F154: 0 | G154: 0 | H154: 0 | I154: 0 | J154: 0 | K154: 0 | L154: 0 | M154: 0
A155: ='Org structure'!E61 -> 07.3 - Roads | C155: 0 | D155: 6456781 | E155: 0 | F155: 0 | G155: 0 | H155: 0 | I155: 0 | J155: =SUM(E155:I155) -> 0 | K155: =IF(D155=0,C155+J155,D155+J155) -> 6456781 | L155: 50525000 | M155: 60000000
A156: ='Org structure'!E62 -> 07.4 - Storm Water | C156: 0 | D156: 0 | E156: 0 | F156: 0 | G156: 0 | H156: 0 | I156: 0 | J156: 0 | K156: 0 | L156: 0 | M156: 0
A157: ='Org structure'!E63 -> 07.5 - Street Lighting | C157: 16841363 | D157: 15649533.02 | E157: 0 | F157: 0 | G157: 0 | H157: 0 | I157: 0 | J157: =SUM(E157:I157) -> 0 | K157: =IF(D157=0,C157+J157,D157+J157) -> 15649533.02 | L157: 10659065 | M157: 11720212
A158: ='Org structure'!E64 -> 07.6 - Project Management Unit | C158: 0 | D158: 0 | E158: 0 | F158: 0 | G158: 0 | H158: 0 | I158: 0 | J158: 0 | K158: 0 | L158: 0 | M158: 0
A159: ='Org structure'!E65 -> 07.7 - Sanitation Treatment Plant: Mogwase | C159: 0 | D159: 0 | E159: 0 | F159: 0 | G159: 0 | H159: 0 | I159: 0 | J159: 0 | K159: 0 | L159: 0 | M159: 0
A160: ='Org structure'!E66 -> 07.8 - Sanitation Treatment Plant: Madikwe | C160: 0 | D160: 0 | E160: 0 | F160: 0 | G160: 0 | H160: 0 | I160: 0 | J160: 0 | K160: 0 | L160: 0 | M160: 0
A161: ='Org structure'!E67 -> 07.9 - Sanitation Reticulation | C161: 24111456 | D161: 12492236.07 | E161: 0 | F161: 0 | G161: 0 | H161: 0 | I161: 0 | J161: =SUM(E161:I161) -> 0 | K161: =IF(D161=0,C161+J161,D161+J161) -> 12492236.07 | L161: 25887357 | M161: 8333333
A162: ='Org structure'!E68 -> 07.10 - Water Administration | C162: 59314603 | D162: 62989556.01 | E162: 0 | F162: 0 | G162: 0 | H162: 0 | I162: 0 | J162: =SUM(E162:I162) -> 0 | K162: =IF(D162=0,C162+J162,D162+J162) -> 62989556.01 | L162: 91183878 | M162: 94263844
A163: ='Org structure'!E69 -> 07.11 - Water Madikwe: Water Treatment Work | C163: 0 | D163: 0 | E163: 0 | F163: 0 | G163: 0 | H163: 0 | I163: 0 | J163: 0 | K163: 0 | L163: 0 | M163: 0
A164: ='Org structure'!E70 -> 07.12 - Water: Pella Water Treatment Works | C164: 0 | D164: 0 | E164: 0 | F164: 0 | G164: 0 | H164: 0 | I164: 0 | J164: 0 | K164: 0 | L164: 0 | M164: 0
A165: ='Org structure'!E71 -> 07.13 - Water: Madikwe Retail & Bulk Lines | C165: 0 | D165: 0 | E165: 0 | F165: 0 | G165: 0 | H165: 0 | I165: 0 | J165: 0 | K165: 0 | L165: 0 | M165: 0
A166: ='Org structure'!E72 -> 07.14 - Water: Madikwe Rural | C166: 0 | D166: 0 | E166: 0 | F166: 0 | G166: 0 | H166: 0 | I166: 0 | J166: 0 | K166: 0 | L166: 0 | M166: 0
A167: ='Org structure'!E73 -> 07.15 - Water: Molatedi | C167: 0 | D167: 0 | E167: 0 | F167: 0 | G167: 0 | H167: 0 | I167: 0 | J167: 0 | K167: 0 | L167: 0 | M167: 0
A168: ='Org structure'!E74 -> 07.16 - Water Eastern: Retail Mankwe | C168: 0 | D168: 0 | E168: 0 | F168: 0 | G168: 0 | H168: 0 | I168: 0 | J168: 0 | K168: 0 | L168: 0 | M168: 0
A169: ='Org structure'!E75 -> 07.17 - Water Vaalkopdam: Mankwe | C169: 0 | D169: 0 | E169: 0 | F169: 0 | G169: 0 | H169: 0 | I169: 0 | J169: 0 | K169: 0 | L169: 0 | M169: 0
A170: ='Org structure'!E76 -> 07.18 - Water Eastern: Retail Mankwe | C170: 0 | D170: 0 | E170: 0 | F170: 0 | G170: 0 | H170: 0 | I170: 0 | J170: 0 | K170: 0 | L170: 0 | M170: 0
A171: ='Org structure'!E77 -> 07.19 - Reporting Function Electricity | C171: 0 | D171: 0 | E171: 0 | F171: 0 | G171: 0 | H171: 0 | I171: 0 | J171: 0 | K171: 0 | L171: 0 | M171: 0
A172: ='Org structure'!A9 -> Vote 08 - | C172: 0 | D172: 0 | E172: 0 | F172: 0 | G172: 0 | H172: 0 | I172: 0 | J172: 0 | K172: 0 | L172: 0 | M172: 0
A173: ='Org structure'!A10 -> Vote 09 - | C173: 0 | D173: 0 | E173: 0 | F173: 0 | G173: 0 | H173: 0 | I173: 0 | J173: 0 | K173: 0 | L173: 0 | M173: 0
A174: ='Org structure'!A11 -> Vote 10 - | C174: 0 | D174: 0 | E174: 0 | F174: 0 | G174: 0 | H174: 0 | I174: 0 | J174: 0 | K174: 0 | L174: 0 | M174: 0
A175: ='Org structure'!A12 -> Vote 11 - | C175: 0 | D175: 0 | E175: 0 | F175: 0 | G175: 0 | H175: 0 | I175: 0 | J175: 0 | K175: 0 | L175: 0 | M175: 0
A176: ='Org structure'!A13 -> Vote 12 - | C176: 0 | D176: 0 | E176: 0 | F176: 0 | G176: 0 | H176: 0 | I176: 0 | J176: 0 | K176: 0 | L176: 0 | M176: 0
A177: ='Org structure'!A14 -> Vote 13 - | C177: 0 | D177: 0 | E177: 0 | F177: 0 | G177: 0 | H177: 0 | I177: 0 | J177: =SUM(E177:I177) -> 0 | K177: =IF(D177=0,C177+J177,D177+J177) -> 0 | L177: 0 | M177: 0
A178: ='Org structure'!A15 -> Vote 14 - | C178: 0 | D178: 0 | E178: 0 | F178: 0 | G178: 0 | H178: 0 | I178: 0 | J178: 0 | K178: 0 | L178: 0 | M178: 0
A179: ='Org structure'!A16 -> Vote 15 - Other | C179: 0 | D179: 0 | E179: 0 | F179: 0 | G179: 0 | H179: 0 | I179: 0 | J179: 0 | K179: 0 | L179: 0 | M179: 0
A180: Capital single-year expenditure sub-total | C180: =C96+C102+C109+C117+C126+C141+C152+C172+C173+C174+C175+C176+C177+C178+C179 -> 131504584 | D180: 128314860.2 | E180: 0 | F180: 0 | G180: 0 | H180: 0 | I180: 113975 | J180: 113975 | K180: 128428835.2 | L180: 191119775 | M180: 201421544
A181: Total Capital Expenditure | C181: =C180+C92 -> 204802147 | D181: 206105362.2 | E181: 0 | F181: 0 | G181: 0 | H181: 0 | I181: 113975 | J181: =SUM(E181:I181) -> 113975 | K181: =IF(D181=0,C181+J181,D181+J181) -> 206219337.2 | L181: =L180+L92 -> 202495233 | M181: =M180+M92 -> 218925369
A184: =head27a -> References
A185: 1. Insert 'Vote'; e.g. Department, if different to standard structure
A186: 2. Must reconcile to Financial Performance ('Revenue and Expenditure by Standard Classification' and 'Revenue and Expenditure')
A187: 3. Assign share in 'associate' to relevant Vote

Sheet B6-FinPos
A1: =muni&" - "&_ADJ6&" - "&Date -> NW375 Moses Kotane - Table B6 Adjustments Budget Financial Position - 44171
A2: =desc -> Description | B2: =head27 -> Ref | C2: =Head2 -> Budget Year 2019/20 | L2: =Head10 -> Budget Year +1 2020/21 | M2: =Head11 -> Budget Year +2 2021/22
C3: =Head6 -> Original Budget | D3: =Head54 -> Prior Adjusted | E3: =Head51 -> Accum. Funds | F3: =Head52 -> Multi-year capital | G3: =Head53 -> Unfore. Unavoid. | H3: =Head55 -> Nat. or Prov. Govt | I3: =Head50 -> Other Adjusts. | J3: =Head56 -> Total Adjusts. | K3: =Head7 -> Adjusted Budget | L3: =Head7 -> Adjusted Budget | M3: =Head7 -> Adjusted Budget
D4: 3 | E4: 4 | F4: 5 | G4: 6 | H4: 7 | I4: 8 | J4: 9 | K4: 10
A5: R thousands | C5: A | D5: A1 | E5: B | F5: C | G5: D | H5: E | I5: F | J5: G | K5: H
A6: ASSETS
A7: Current assets
A8: Cash | C8: 10000000 | D8: 10000000 | E8: 0 | F8: 0 | G8: 0 | H8: 0 | I8: 0 | J8: =SUM(E8:I8) -> 0 | K8: =IF(D8=0,C8+J8,D8+J8) -> 10000000 | L8: 1000000 | M8: 1202678
A9: Call investment deposits | B9: 1 | C9: 14377000 | D9: 14377000 | E9: 0 | F9: 0 | G9: 0 | H9: 0 | I9: 0 | J9: 0 | K9: 14377000 | L9: 17712753 | M9: 23648411
A10: Consumer debtors | B10: 1 | C10: ='SB2'!C14 -> 475621000 | D10: ='SB2'!D14 -> 475621000 | E10: ='SB2'!E14 -> 0 | F10: ='SB2'!F14 -> 0 | G10: ='SB2'!G14 -> 0 | H10: ='SB2'!H14 -> 0 | I10: ='SB2'!I14 -> 0 | J10: 0 | K10: 475621000 | L10: ='SB2'!L14 -> 427384661 | M10: ='SB2'!M14 -> 727820042
A11: Other debtors | C11: 68100000 | D11: 68100000 | E11: 0 | F11: 0 | G11: 0 | H11: 0 | I11: 0 | J11: 0 | K11: 68100000 | L11: 18000000 | M11: 19734283
A12: Current portion of long-term receivables | J12: 0 | K12: 0
A13: Inventory | C13: 4000000 | D13: 4000000 | E13: 0 | F13: 0 | G13: 0 | H13: 0 | I13: 0 | J13: 0 | K13: 4000000 | L13: 5000000 | M13: 5073498
A14: Total current assets | C14: =SUM(C8:C13) -> 572098000 | D14: 572098000 | E14: 0 | F14: 0 | G14: 0 | H14: 0 | I14: 0 | J14: 0 | K14: 572098000 | L14: 469097414 | M14: 777478912
A16: Non current assets
A17: Long-term receivables | C17: 0 | D17: 0 | E17: 0 | F17: 0 | G17: 0 | H17: 0 | I17: 0 | J17: =SUM(E17:I17) -> 0 | K17: =IF(D17=0,C17+J17,D17+J17) -> 0 | L17: 0 | M17: 0
A18: Investments | C18: 0 | D18: 0 | E18: 0 | F18: 0 | G18: 0 | H18: 0 | I18: 0 | J18: 0 | K18: 0 | L18: 0 | M18: 0
A19: Investment property | C19: 0 | D19: 0 | E19: 0 | F19: 0 | G19: 0 | H19: 0 | I19: 0 | J19: 0 | K19: 0 | L19: 155209867 | M19: 17235257
A20: Investment in Associate | J20: 0 | K20: 0
A21: Property, plant and equipment | B21: 1 | C21: ='SB2'!C24 -> 1785177147 | D21: ='SB2'!D24 -> 1786730362 | E21: ='SB2'!E24 -> 0 | F21: ='SB2'!F24 -> 0 | G21: ='SB2'!G24 -> 0 | H21: ='SB2'!H24 -> 0 | I21: ='SB2'!I24 -> 113975 | J21: 113975 | K21: 1786844337 | L21: ='SB2'!L24 -> 3530746542 | M21: ='SB2'!M24 -> 3928329513
A23: Biological | J23: 0 | K23: 0
A24: Intangible | C24: 250000 | D24: 0.01 | E24: 0 | F24: 0 | G24: 0 | H24: 0 | I24: 0 | J24: 0 | K24: 0.01 | L24: 0 | M24: 0
A25: Other non-current assets | C25: 0 | D25: 0 | E25: 0 | F25: 0 | G25: 0 | H25: 0 | I25: 0 | J25: 0 | K25: 0 | L25: 14000 | M25: 14000
A26: Total non current assets | C26: =SUM(C17:C21)+SUM(C23:C25) -> 1785427147 | D26: =SUM(D17:D21)+SUM(D23:D25) -> 1786730362 | E26: 0 | F26: 0 | G26: 0 | H26: 0 | I26: 113975 | J26: 113975 | K26: 1786844337 | L26: 3685970409 | M26: 3945578770
A27: TOTAL ASSETS | C27: =C14+C26 -> 2357525147 | D27: 2358828362 | E27: 0 | F27: 0 | G27: 0 | H27: 0 | I27: 113975 | J27: 113975 | K27: 2358942337 | L27: 4155067823 | M27: 4723057682
A29: LIABILITIES
A30: Current liabilities
A31: Bank overdraft | J31: =SUM(E31:I31) -> 0 | K31: =IF(D31=0,C31+J31,D31+J31) -> 0
A32: Borrowing | C32: ='SB2'!C30 -> 132503000 | D32: ='SB2'!D30 -> 132503000 | E32: ='SB2'!E30 -> 0 | F32: ='SB2'!F30 -> 0 | G32: ='SB2'!G30 -> 0 | H32: ='SB2'!H30 -> 0 | I32: ='SB2'!I30 -> 0 | J32: =SUM(E32:I32) -> 0 | K32: =IF(D32=0,C32+J32,D32+J32) -> 132503000 | L32: ='SB2'!L30 -> 41362000 | M32: ='SB2'!M30 -> 43264652
A33: Consumer deposits | C33: 0 | D33: 0 | E33: 0 | F33: 0 | G33: 0 | H33: 0 | I33: 0 | J33: =SUM(E33:I33) -> 0 | K33: =IF(D33=0,C33+J33,D33+J33) -> 0 | L33: 0 | M33: 0
A34: Trade and other payables | C34: ='SB2'!C36 -> 40000000 | D34: ='SB2'!D36 -> 40000000 | E34: ='SB2'!E36 -> 0 | F34: ='SB2'!F36 -> 0 | G34: ='SB2'!G36 -> 0 | H34: ='SB2'!H36 -> 0 | I34: ='SB2'!I36 -> 0 | J34: =SUM(E34:I34) -> 0 | K34: =IF(D34=0,C34+J34,D34+J34) -> 40000000 | L34: ='SB2'!L36 -> 45000000 | M34: ='SB2'!M36 -> 45000000
A35: Provisions | C35: 0 | D35: 0 | E35: 0 | F35: 0 | G35: 0 | H35: 0 | I35: 0 | J35: =SUM(E35:I35) -> 0 | K35: =IF(D35=0,C35+J35,D35+J35) -> 0 | L35: 0 | M35: 0
A36: Total current liabilities | C36: =SUM(C31:C35) -> 172503000 | D36: 172503000 | E36: 0 | F36: 0 | G36: 0 | H36: 0 | I36: 0 | J36: 0 | K36: 172503000 | L36: 86362000 | M36: 88264652
A38: Non current liabilities
A39: Borrowing | B39: 1 | C39: ='SB2'!C40 -> 0 | D39: ='SB2'!D40 -> 0 | E39: ='SB2'!E40 -> 0 | F39: ='SB2'!F40 -> 0 | G39: ='SB2'!G40 -> 0 | H39: ='SB2'!H40 -> 0 | I39: ='SB2'!I40 -> 0 | J39: =SUM(E39:I39) -> 0 | K39: =IF(D39=0,C39+J39,D39+J39) -> 0 | L39: ='SB2'!L40 -> 0 | M39: ='SB2'!M40 -> 0
A40: Provisions | B40: 1 | C40: ='SB2'!C46 -> 24600000 | D40: ='SB2'!D46 -> 24600000 | E40: ='SB2'!E46 -> 0 | F40: ='SB2'!F46 -> 0 | G40: ='SB2'!G46 -> 0 | H40: ='SB2'!H46 -> 0 | I40: ='SB2'!I46 -> 0 | J40: =SUM(E40:I40) -> 0 | K40: =IF(D40=0,C40+J40,D40+J40) -> 24600000 | L40: ='SB2'!L46 -> 29829314 | M40: ='SB2'!M46 -> 31171633
A41: Total non current liabilities | C41: =SUM(C39:C40) -> 24600000 | D41: 24600000 | E41: 0 | F41: 0 | G41: 0 | H41: 0 | I41: 0 | J41: 0 | K41: 24600000 | L41: 29829314 | M41: 31171633
A42: TOTAL LIABILITIES | C42: =C36+C41 -> 197103000 | D42: 197103000 | E42: 0 | F42: 0 | G42: 0 | H42: 0 | I42: 0 | J42: 0 | K42: 197103000 | L42: 116191314 | M42: 119436285
A44: NET ASSETS | B44: 2 | C44: =C27-C42 -> 2160422147 | D44: 2161725362 | E44: 0 | F44: 0 | G44: 0 | H44: 0 | I44: 113975 | J44: 113975 | K44: 2161839337 | L44: 4038876509 | M44: 4603621397
A46: COMMUNITY WEALTH/EQUITY
A47: Accumulated Surplus/(Deficit) | C47: ='SB2'!C57 -> 2160422147 | D47: ='SB2'!D57 -> 2190922327 | E47: ='SB2'!E57 -> 0 | F47: ='SB2'!F57 -> 0 | G47: ='SB2'!G57 -> 0 | H47: ='SB2'!H57 -> 0 | I47: ='SB2'!I57 -> 290000 | J47: =SUM(E47:I47) -> 290000 | K47: =IF(D47=0,C47+J47,D47+J47) -> 2191212327 | L47: ='SB2'!L57 -> 4038876509 | M47: ='SB2'!M57 -> 4603621397
A48: Reserves | C48: ='SB2'!C64 -> 0 | D48: ='SB2'!D64 -> 0 | E48: ='SB2'!E64 -> 0 | F48: ='SB2'!F64 -> 0 | G48: ='SB2'!G64 -> 0 | H48: ='SB2'!H64 -> 0 | I48: ='SB2'!I64 -> 0 | J48: =SUM(E48:I48) -> 0 | K48: =IF(D48=0,C48+J48,D48+J48) -> 0 | L48: ='SB2'!L64 -> 0 | M48: ='SB2'!M64 -> 0
A50: TOTAL COMMUNITY WEALTH/EQUITY | C50: =SUM(C47:C48) -> 2160422147 | D50: =SUM(D47:D48) -> 2190922327 | E50: 0 | F50: 0 | G50: 0 | H50: 0 | I50: 290000 | J50: 290000 | K50: 2191212327 | L50: 4038876509 | M50: 4603621397
A51: =head27a -> References
A52: 1. Detail to be provided in Table SA3
A53: 2. Net assets must balance with Total Community Wealth/Equity
A54: 3. Only complete if a previous adjusted budget has been approved in the same financial year. Reflect most recent adjusted budget.
A55: 4. Additional cash-backed accumulated funds/unspent funds (MFMA section 18(1)(b) and section 28(2)(e)) identified after the Original Budget approved and after annual financial statements audited (note: only where underspending could not reasonably have been foreseen)
A56: 5. Increases of funds approved under MFMA section 31
A57: 6. Adjustments approved in accordance with MFMA section 29
A58: 7. Adjustments to transfers from National or Provincial Government
A59: 8. Adjusts. = 'Other' Adjustments proposed to be approved; including revenue under-collection (MFMA section 28(2)(a)); additional revenue appropriation on existing programmes (section 28(2))(b); projected savings (section 28(2)(d)); error correction (section 28(2)(f))
A60: 9. G = B + C + D + E + F
A61: 10. Adjusted Budget H = (A or A1/2 etc) + G
A63: check balance | C63: =C44-C50 -> 0 | D63: -29196964.93 | E63: 0 | F63: 0 | G63: 0 | H63: 0 | I63: -176025 | J63: -176025 | K63: -29372989.93 | L63: 0 | M63: 0

Sheet B7-CFlow
A1: =muni&" - "&_ADJ7&" - "&Date -> NW375 Moses Kotane - Table B7 Adjustments Budget Cash Flows - 44171
A2: =desc -> Description | B2: =head27 -> Ref | C2: =Head2 -> Budget Year 2019/20 | L2: =Head10 -> Budget Year +1 2020/21 | M2: =Head11 -> Budget Year +2 2021/22
C3: =Head6 -> Original Budget | D3: =Head54 -> Prior Adjusted | E3: =Head51 -> Accum. Funds | F3: =Head52 -> Multi-year capital | G3: =Head53 -> Unfore. Unavoid. | H3: =Head55 -> Nat. or Prov. Govt | I3: =Head50 -> Other Adjusts. | J3: =Head56 -> Total Adjusts. | K3: =Head7 -> Adjusted Budget | L3: =Head7 -> Adjusted Budget | M3: =Head7 -> Adjusted Budget
D4: 3 | E4: 4 | F4: 5 | G4: 6 | H4: 7 | I4: 8 | J4: 9 | K4: 10
A5: R thousands | C5: A | D5: A1 | E5: B | F5: C | G5: D | H5: E | I5: F | J5: G | K5: H
A6: CASH FLOW FROM OPERATING ACTIVITIES
A7: Receipts
A8: Property rates | C8: 130327000 | D8: 85298160 | I8: -7108180 | J8: =SUM(E8:I8) -> -7108180 | K8: =IF(D8=0,C8+J8,D8+J8) -> 78189980 | L8: =K8*5%+K8 -> 82099479 | M8: =L8*5%+L8 -> 86204452.95
A9: Service charges | C9: 113966000 | D9: 77385420 | I9: -24572766 | J9: =SUM(E9:I9) -> -24572766 | K9: =IF(D9=0,C9+J9,D9+J9) -> 52812654 | L9: =K9*5%+K9 -> 55453286.7 | M9: 58225951.04
A10: Other revenue | C10: 2841000 | D10: 2986154 | I10: 290000 | J10: 290000 | K10: 3276154 | L10: =K10*5%+K10 -> 3439961.7 | M10: 3611959.785
A11: Transfers and Subsidies - Operational | B11: 1 | C11: 437830000 | D11: 437830000 | I11: =-63367513+89000 -> -63278513 | J11: -63278513 | K11: 374551487 | L11: 467331000 | M11: 502264000
A12: Transfers and Subsidies - Capital | B12: 1 | C12: 199524000 | D12: 206106000 | J12: 0 | K12: 206106000 | L12: 0 | M12: 0
A13: Interest | C13: 17390000 | D13: 4689317 | I13: 1310683 | J13: 1310683 | K13: 6000000 | L13: =K13*5%+K13 -> 6300000 | M13: 6615000
A14: Dividends | J14: 0 | K14: 0
A15: Payments
A16: Suppliers and employees | C16: -686837000 | D16: -599505000 | E16: 0 | F16: 0 | G16: 0 | H16: 0 | I16: 32203000 | J16: =SUM(E16:I16) -> 32203000 | K16: =IF(D16=0,C16+J16,D16+J16) -> -567302000 | L16: =K16*5%+K16 -> -595667100 | M16: =L16*5%+L16 -> -625450455
A17: Finance charges | C17: 0 | D17: -3689000 | E17: 0 | F17: 0 | G17: 0 | H17: 0 | I17: 0 | J17: =SUM(E17:I17) -> 0 | K17: =IF(D17=0,C17+J17,D17+J17) -> -3689000 | L17: =K17*5%+K17 -> -3873450 | M17: =L17*5%+L17 -> -4067122.5
A18: Transfers and Grants | B18: 1 | E18: 0 | F18: 0 | G18: 0 | H18: 0 | J18: =SUM(E18:I18) -> 0 | K18: =IF(D18=0,C18+J18,D18+J18) -> 0
A19: NET CASH FROM/(USED) OPERATING ACTIVITIES | C19: =SUM(C8:C14)+SUM(C16:C18) -> 215041000 | D19: =SUM(D8:D14)+SUM(D16:D18) -> 211101051 | E19: 0 | F19: 0 | G19: 0 | H19: 0 | I19: -61155776 | J19: =SUM(J8:J18) -> -61155776 | K19: =SUM(K8:K18) -> 149945275 | L19: =SUM(L8:L14)+SUM(L16:L18) -> 15083177.4 | M19: =SUM(M8:M14)+SUM(M16:M18) -> 27403786.27
A21: CASH FLOWS FROM INVESTING ACTIVITIES
A22: Receipts
A23: Proceeds on disposal of PPE | J23: =SUM(E23:I23) -> 0 | K23: =IF(D23=0,C23+J23,D23+J23) -> 0
A25: Decrease (increase) in non-current receivables | J25: =SUM(E25:I25) -> 0 | K25: =IF(D25=0,C25+J25,D25+J25) -> 0
A26: Decrease (increase) in non-current investments | E26: 0 | F26: 0 | G26: 0 | H26: 0 | J26: =SUM(E26:I26) -> 0 | K26: =IF(D26=0,C26+J26,D26+J26) -> 0 | L26: 0 | M26: 0
A27: Payments
A28: Capital assets | C28: 200374000 | D28: -206106150 | I28: -113975 | J28: =SUM(E28:I28) -> -113975 | K28: =IF(D28=0,C28+J28,D28+J28) -> -206220125 | L28: 211771000 | M28: 227138000
A29: NET CASH FROM/(USED) INVESTING ACTIVITIES | C29: =+C23+C25+C26+C28 -> 200374000 | D29: =+D23+D25+D26+D28 -> -206106150 | E29: 0 | F29: 0 | G29: 0 | H29: 0 | I29: -113975 | J29: -113975 | K29: -206220125 | L29: 211771000 | M29: 227138000
A31: CASH FLOWS FROM FINANCING ACTIVITIES
A32: Receipts
A33: Short term loans | C33: 0 | I33: 0 | J33: =SUM(E33:I33) -> 0 | K33: =IF(D33=0,C33+J33,D33+J33) -> 0
A34: Borrowing long term/refinancing | J34: =SUM(E34:I34) -> 0 | K34: =IF(D34=0,C34+J34,D34+J34) -> 0
A35: Increase (decrease) in consumer deposits | E35: 0 | F35: 0 | G35: 0 | H35: 0 | J35: =SUM(E35:I35) -> 0 | K35: =IF(D35=0,C35+J35,D35+J35) -> 0 | L35: 0 | M35: 0
A36: Payments
A37: Repayment of borrowing | C37: -7960000 | E37: 0 | F37: 0 | G37: 0 | H37: 0 | I37: 0 | J37: =SUM(E37:I37) -> 0 | K37: =IF(D37=0,C37+J37,D37+J37) -> -7960000 | L37: -8425000 | M37: -8722000
A38: NET CASH FROM/(USED) FINANCING ACTIVITIES | C38: =SUM(C33:C35)+C37 -> -7960000 | D38: =SUM(D33:D35)+D37 -> 0 | E38: 0 | F38: 0 | G38: 0 | H38: 0 | I38: 0 | J38: =SUM(J33:J37) -> 0 | K38: =SUM(K33:K37) -> -7960000 | L38: =SUM(L33:L35)+L37 -> -8425000 | M38: =SUM(M33:M35)+M37 -> -8722000
A40: NET INCREASE/ (DECREASE) IN CASH HELD | C40: =C19+C29+C38 -> 407455000 | D40: =D19+D29+D38 -> 4994901 | E40: 0 | F40: 0 | G40: 0 | H40: 0 | I40: -61269751 | J40: -61269751 | K40: -64234850 | L40: 218429177.4 | M40: 245819786.3
A41: Cash/cash equivalents at the year begin: | B41: 2 | C41: 47399000 | D41: 64693146 | E41: 0 | F41: 0 | G41: 0 | H41: 0 | I41: 0 | J41: =SUM(E41:I41) -> 0 | K41: =IF(D41=0,C41+J41,D41+J41) -> 64693146 | L41: 458296 | M41: 644454296
A42: Cash/cash equivalents at the year end: | B42: 2 | C42: =C40+C41 -> 454854000 | D42: =D40+D41 -> 69688047 | E42: 0 | F42: 0 | G42: 0 | H42: 0 | I42: -61269751 | J42: -61269751 | K42: =K40+K41 -> 458296 | L42: =L40+L41 -> 218887473.4 | M42: =M40+M41 -> 890274082.3
A43: =head27a -> References
A44: 1. Local/District municipalities to include transfers from/to District/Local Municipalities
A45: 2. Cash equivalents includes investments with maturities of 3 months or less
A46: 3. Only complete if a previous adjusted budget has been approved in the same financial year. Reflect most recent adjusted budget.
A47: 4. Additional cash-backed accumulated funds/unspent funds (MFMA section 18(1)(b) and section 28(2)(e)) identified after the Original Budget approved and after annual financial statements audited (note: only where underspending could not reasonably have been foreseen)
A48: 5. Increases of funds approved under MFMA section 31
A49: 6. Adjustments approved in accordance with MFMA section 29
A50: 7. Adjustments to transfers from National or Provincial Government
A51: 8. Adjusts. = 'Other' Adjustments proposed to be approved; including revenue under-collection (MFMA section 28(2)(a)); additional revenue appropriation on existing programmes (section 28(2))(b); projected savings (section 28(2)(d)); error correction (section 28(2)(f))
A52: 9. G = B + C + D + E + F
A53: 10. Adjusted Budget H = (A or A1/2 etc) + G

Sheet B8-ResRecon
A1: =muni&" - "&_ADJ8&" - "&Date -> NW375 Moses Kotane - Table B8 Cash backed reserves/accumulated surplus reconciliation - 44171
A2: =desc -> Description | B2: =head27 -> Ref | C2: =Head2 -> Budget Year 2019/20 | L2: =Head10 -> Budget Year +1 2020/21 | M2: =Head11 -> Budget Year +2 2021/22
C3: =Head6 -> Original Budget | D3: =Head54 -> Prior Adjusted | E3: =Head51 -> Accum. Funds | F3: =Head52 -> Multi-year capital | G3: =Head53 -> Unfore. Unavoid. | H3: =Head55 -> Nat. or Prov. Govt | I3: =Head50 -> Other Adjusts. | J3: =Head56 -> Total Adjusts. | K3: =Head7 -> Adjusted Budget | L3: =Head7 -> Adjusted Budget | M3: =Head7 -> Adjusted Budget
D4: 3 | E4: 4 | F4: 5 | G4: 6 | H4: 7 | I4: 8 | J4: 9 | K4: 10
A5: R thousands | C5: A | D5: A1 | E5: B | F5: C | G5: D | H5: E | I5: F | J5: G | K5: H
A6: Cash and investments available
A7: Cash/cash equivalents at the year end | B7: 1 | C7: ='B7-CFlow'!C42 -> 454854000 | D7: ='B7-CFlow'!D42 -> 69688047 | E7: ='B7-CFlow'!E42 -> 0 | F7: ='B7-CFlow'!F42 -> 0 | G7: ='B7-CFlow'!G42 -> 0 | H7: ='B7-CFlow'!H42 -> 0 | I7: ='B7-CFlow'!I42 -> -61269751 | J7: =SUM(E7:I7) -> -61269751 | K7: =IF(D7=0,C7+J7,D7+J7) -> 8418296 | L7: ='B7-CFlow'!L42 -> 218887473.4 | M7: ='B7-CFlow'!M42 -> 890274082.3
A8: Other current investments > 90 days | C8: ='B6-FinPos'!C8+'B6-FinPos'!C9-'B6-FinPos'!C31-'B8-ResRecon'!C7 -> -430477000 | D8: ='B6-FinPos'!D8+'B6-FinPos'!D9-'B6-FinPos'!D31-'B8-ResRecon'!D7 -> -45311047 | E8: ='B6-FinPos'!E8+'B6-FinPos'!E9-'B6-FinPos'!E31-'B8-ResRecon'!E7 -> 0 | F8: ='B6-FinPos'!F8+'B6-FinPos'!F9-'B6-FinPos'!F31-'B8-ResRecon'!F7 -> 0 | G8: ='B6-FinPos'!G8+'B6-FinPos'!G9-'B6-FinPos'!G31-'B8-ResRecon'!G7 -> 0 | H8: ='B6-FinPos'!H8+'B6-FinPos'!H9-'B6-FinPos'!H31-'B8-ResRecon'!H7 -> 0 | I8: ='B6-FinPos'!I8+'B6-FinPos'!I9-'B6-FinPos'!I31-'B8-ResRecon'!I7 -> 61269751 | J8: =SUM(E8:I8) -> 61269751 | K8: =IF(D8=0,C8+J8,D8+J8) -> 15958704 | L8: ='B6-FinPos'!L8+'B6-FinPos'!L9-'B6-FinPos'!L31-'B8-ResRecon'!L7 -> -200174720.4 | M8: ='B6-FinPos'!M8+'B6-FinPos'!M9-'B6-FinPos'!M31-'B8-ResRecon'!M7 -> -865422993.3
A9: Non current assets - Investments | B9: 1 | C9: ='B6-FinPos'!C18 -> 0 | D9: ='B6-FinPos'!D18 -> 0 | E9: ='B6-FinPos'!E18 -> 0 | F9: ='B6-FinPos'!F18 -> 0 | G9: ='B6-FinPos'!G18 -> 0 | H9: ='B6-FinPos'!H18 -> 0 | I9: ='B6-FinPos'!I18 -> 0 | J9: =SUM(E9:I9) -> 0 | K9: =IF(D9=0,C9+J9,D9+J9) -> 0 | L9: ='B6-FinPos'!L18 -> 0 | M9: ='B6-FinPos'!M18 -> 0
A10: Cash and investments available: | C10: =SUM(C7:C9) -> 24377000 | D10: 24377000 | E10: 0 | F10: 0 | G10: 0 | H10: 0 | I10: 0 | J10: 0 | K10: 24377000 | L10: 18712753 | M10: 24851089
A12: Applications of cash and investments
A13: Unspent conditional transfers | C13: ='SB2'!C34 -> 0 | D13: ='SB2'!D34 -> 0 | E13: ='SB2'!E34 -> 0 | F13: ='SB2'!F34 -> 0 | G13: ='SB2'!G34 -> 0 | H13: ='SB2'!H34 -> 0 | I13: ='SB2'!I34 -> 0 | J13: =SUM(E13:I13) -> 0 | K13: =IF(D13=0,C13+J13,D13+J13) -> 0 | L13: ='SB2'!L34 -> 0 | M13: ='SB2'!M34 -> 0
A14: Unspent borrowing | J14: 0 | K14: =IF(D14=0,C14+J14,D14+J14) -> 0
A15: Statutory requirements | J15: 0 | K15: =IF(D15=0,C15+J15,D15+J15) -> 0
A16: Other working capital requirements | B16: 2 | C16: =-C40 -> -301620816 | D16: =-D40 -> -189181134 | I16: =IF(D16=0,(K16-C16)-SUM(E16:H16),(K16-D16)-SUM(E16:H16)) -> 43561982 | J16: 43561982 | K16: =-K40 -> -145619152 | L16: =-L40 -> -103415331 | M16: =-M40 -> -209991299
A17: Other provisions | C17: 0 | D17: 0 | E17: 0 | F17: 0 | G17: 0 | H17: 0 | I17: 0 | J17: 0 | K17: =IF(D17=0,C17+J17,D17+J17) -> 0 | L17: 25242000 | M17: 25929000
A18: Long term investments committed | C18: =C48 -> 0 | D18: =D48 -> 0 | E18: 0 | F18: 0 | G18: 0 | H18: 0 | I18: =IF(D18=0,(K18-C18)-SUM(E18:H18),(K18-D18)-SUM(E18:H18)) -> 0 | J18: 0 | K18: =K48 -> 0 | L18: =L48 -> 0 | M18: =M48 -> 0
A19: Reserves to be backed by cash/investments | C19: =C55 -> 0 | D19: =D55 -> 0 | I19: =IF(D19=0,(K19-C19)-SUM(E19:H19),(K19-D19)-SUM(E19:H19)) -> 0 | J19: 0 | K19: =K55 -> 0 | L19: =L55 -> 0 | M19: =M55 -> 0
A20: Total Application of cash and investments: | C20: =SUM(C13:C19) -> -301620816 | D20: -189181134 | E20: 0 | F20: 0 | G20: 0 | H20: 0 | I20: 43561982 | J20: 43561982 | K20: -145619152 | L20: -78173331 | M20: -184062299
A21: Surplus(shortfall) | C21: =C10-C20 -> 325997816 | D21: 213558134 | E21: 0 | F21: 0 | G21: 0 | H21: 0 | I21: -43561982 | J21: -43561982 | K21: 169996152 | L21: 96886084 | M21: 208913388
A22: =head27a -> References
A23: 1. Must reconcile with the Adjustments Budget Cash Flow and Adjustements Budget Financial Position
A24: 2. Council approval for policy required - include sufficient working capital (e.g. allowing for a % of current debtors > 90 days as uncollectable)
A25: 3. Only complete if a previous adjusted budget has been approved in the same financial year. Reflect most recent adjusted budget.
A26: 4. Additional cash-backed accumulated funds/unspent funds (MFMA section 18(1)(b) and section 28(2)(e)) identified after the Original Budget approved and after annual financial statements audited (note: only where underspending could not reasonably have been foreseen)
A27: 5. Increases of funds approved under MFMA section 31
A28: 6. Adjustments approved in accordance with MFMA section 29
A29: 7. Adjustments to transfers from National or Provincial Government
A30: 8. Adjusts. = 'Other' Adjustments proposed to be approved; including revenue under-collection (MFMA section 28(2)(a)); additional revenue appropriation on existing programmes (section 28(2))(b); projected savings (section 28(2)(d)); error correction (section 28(2)(f))
A31: 9. G = B + C + D + E + F
A32: 10. Adjusted Budget H = (A or A1/2 etc) + G
A37: =A16 -> Other working capital requirements
A38: Debtors | C38: =IF(ISERROR(ROUND(C43*C44,0)),0,(ROUND(C43*C44,0))) -> 341620816 | D38: =IF(ISERROR(ROUND(D43*D44,0)),0,(ROUND(D43*D44,0))) -> 229181134 | K38: =IF(ISERROR(ROUND(K43*K44,0)),0,(ROUND(K43*K44,0))) -> 185619152 | L38: =IF(ISERROR(ROUND(L43*L44,0)),0,(ROUND(L43*L44,0))) -> 148415331 | M38: =IF(ISERROR(ROUND(M43*M44,0)),0,(ROUND(M43*M44,0))) -> 254991299
A39: Creditors due | C39: ='SB2'!C32 -> 40000000 | D39: ='SB2'!D32 -> 40000000 | K39: ='SB2'!K32 -> 40000000 | L39: ='SB2'!L32 -> 45000000 | M39: ='SB2'!M32 -> 45000000
A40: Total | C40: =C38-C39 -> 301620816 | D40: =D38-D39 -> 189181134 | K40: =K38-K39 -> 145619152 | L40: =L38-L39 -> 103415331 | M40: =M38-M39 -> 209991299
A42: Debtors collection assumptions:
A43: Balance outstanding - debtors | C43: ='B6-FinPos'!C10+'B6-FinPos'!C11+'B6-FinPos'!C17 -> 543721000 | D43: ='B6-FinPos'!D10+'B6-FinPos'!D11+'B6-FinPos'!D17 -> 543721000 | K43: ='B6-FinPos'!K10+'B6-FinPos'!K11+'B6-FinPos'!K17 -> 543721000 | L43: ='B6-FinPos'!L10+'B6-FinPos'!L11+'B6-FinPos'!L17 -> 445384661 | M43: ='B6-FinPos'!M10+'B6-FinPos'!M11+'B6-FinPos'!M17 -> 747554325
A44: Estimate of debtors collection rate | C44: =IF(ISERROR('SB6'!G10),0,('SB6'!G10)) -> 0.6283016766 | D44: =IF(ISERROR('SB6'!H10),0,('SB6'!H10)) -> 0.4215050261 | K44: =IF(ISERROR('SB6'!I10),0,('SB6'!I10)) -> 0.3413867625 | L44: =IF(ISERROR('SB6'!J10),0,('SB6'!J10)) -> 0.3332295512 | M44: =IF(ISERROR('SB6'!K10),0,('SB6'!K10)) -> 0.3411006934
A46: =A18 -> Long term investments committed
A47: (Insert description; eg sinking fund)
C48: =SUM(C47:C47) -> 0 | D48: =SUM(D47:D47) -> 0 | K48: =SUM(K47:K47) -> 0 | L48: =SUM(L47:L47) -> 0 | M48: =SUM(M47:M47) -> 0
A50: =A19 -> Reserves to be backed by cash/investments
A51: ='SB2'!A59 -> Housing Development Fund | C51: ='SB2'!C59 -> 0 | D51: ='SB2'!D59 -> 0 | K51: ='SB2'!K59 -> 0 | L51: ='SB2'!L59 -> 0 | M51: ='SB2'!M59 -> 0
A52: ='SB2'!A60 -> Capital replacement | C52: ='SB2'!C60 -> 0 | D52: ='SB2'!D60 -> 0 | K52: ='SB2'!K60 -> 0 | L52: ='SB2'!L60 -> 0 | M52: ='SB2'!M60 -> 0
A53: ='SB2'!A61 -> Self-insurance | C53: ='SB2'!C61 -> 0 | D53: ='SB2'!D61 -> 0 | K53: ='SB2'!K61 -> 0 | L53: ='SB2'!L61 -> 0 | M53: ='SB2'!M61 -> 0
A54: ='SB2'!A62 -> Other reserves | C54: ='SB2'!C62 -> 0 | D54: ='SB2'!D62 -> 0 | K54: ='SB2'!K62 -> 0 | L54: ='SB2'!L62 -> 0 | M54: ='SB2'!M62 -> 0
C55: =SUM(C51:C54) -> 0 | D55: =SUM(D51:D54) -> 0 | K55: =SUM(K51:K54) -> 0 | L55: =SUM(L51:L54) -> 0 | M55: =SUM(M51:M54) -> 0

Sheet B9-Asset
A1: =muni&" - "&_ADJ9&" - "&Date -> NW375 Moses Kotane - Table B9 Asset Management - 44171
A2: =desc -> Description | B2: =head27 -> Ref | C2: =Head2 -> Budget Year 2019/20 | L2: =Head10 -> Budget Year +1 2020/21 | M2: =Head11 -> Budget Year +2 2021/22
C3: =Head6 -> Original Budget | D3: =Head54 -> Prior Adjusted | E3: =Head51 -> Accum. Funds | F3: =Head52 -> Multi-year capital | G3: =Head53 -> Unfore. Unavoid. | H3: =Head55 -> Nat. or Prov. Govt | I3: =Head50 -> Other Adjusts. | J3: =Head56 -> Total Adjusts. | K3: =Head7 -> Adjusted Budget | L3: =Head7 -> Adjusted Budget | M3: =Head7 -> Adjusted Budget
D4: 7 | E4: 8 | F4: 9 | G4: 10 | H4: 11 | I4: 12 | J4: 13 | K4: 14
A5: R thousands | C5: A | D5: A1 | E5: B | F5: C | G5: D | H5: E | I5: F | J5: G | K5: H
A6: CAPITAL EXPENDITURE
A7: Total New Assets to be adjusted | B7: 1 | C7: =C17+C20+C21+C24+C27+C28+SUM(C31:C37) -> 133961894 | D7: =D17+D20+D21+D24+D27+D28+SUM(D31:D37) -> 103266698.2 | E7: 0 | F7: 0 | G7: 0 | H7: 0 | I7: 113975 | J7: 113975 | K7: 103380673.2 | L7: 131648975 | M7: 150925369
A8: Roads Infrastructure | C8: =SB18a!C9 -> 0 | D8: =SB18a!D9 -> 0 | E8: =SB18a!E9 -> 0 | F8: =SB18a!F9 -> 0 | G8: =SB18a!G9 -> 0 | H8: =SB18a!H9 -> 0 | I8: =SB18a!I9 -> 0 | J8: =SB18a!J9 -> 0 | K8: =SB18a!K9 -> 0 | L8: =SB18a!L9 -> 0 | M8: =SB18a!M9 -> 0
A9: Storm water Infrastructure | C9: =SB18a!C14 -> 6193238 | D9: =SB18a!D14 -> 0.01 | E9: =SB18a!E14 -> 0 | F9: =SB18a!F14 -> 0 | G9: =SB18a!G14 -> 0 | H9: =SB18a!H14 -> 0 | I9: =SB18a!I14 -> 0 | J9: =SB18a!J14 -> 0 | K9: =SB18a!K14 -> 0.01 | L9: =SB18a!L14 -> 0 | M9: =SB18a!M14 -> 0
A10: Electrical Infrastructure | C10: =SB18a!C18 -> 22445688 | D10: =SB18a!D18 -> 20416973.03 | E10: =SB18a!E18 -> 0 | F10: =SB18a!F18 -> 0 | G10: =SB18a!G18 -> 0 | H10: =SB18a!H18 -> 0 | I10: =SB18a!I18 -> 0 | J10: =SB18a!J18 -> 0 | K10: =SB18a!K18 -> 20416973.03 | L10: =SB18a!L18 -> 11577740 | M10: =SB18a!M18 -> 12557370
A11: Water Supply Infrastructure | C11: =SB18a!C28 -> 64814603 | D11: =SB18a!D28 -> 70357489.01 | E11: =SB18a!E28 -> 0 | F11: =SB18a!F28 -> 0 | G11: =SB18a!G28 -> 0 | H11: =SB18a!H28 -> 0 | I11: =SB18a!I28 -> 0 | J11: =SB18a!J28 -> 0 | K11: =SB18a!K28 -> 70357489.01 | L11: =SB18a!L28 -> 91183878 | M11: =SB18a!M28 -> 94263844
A12: Sanitation Infrastructure | C12: =SB18a!C39 -> 24111456 | D12: =SB18a!D39 -> 12492236.07 | E12: =SB18a!E39 -> 0 | F12: =SB18a!F39 -> 0 | G12: =SB18a!G39 -> 0 | H12: =SB18a!H39 -> 0 | I12: =SB18a!I39 -> 0 | J12: =SB18a!J39 -> 0 | K12: =SB18a!K39 -> 12492236.07 | L12: =SB18a!L39 -> 25887357 | M12: =SB18a!M39 -> 25000000
A13: Solid Waste Infrastructure | C13: =SB18a!C46 -> 15796909 | D13: =SB18a!D46 -> 0.01 | E13: =SB18a!E46 -> 0 | F13: =SB18a!F46 -> 0 | G13: =SB18a!G46 -> 0 | H13: =SB18a!H46 -> 0 | I13: =SB18a!I46 -> 0 | J13: =SB18a!J46 -> 0 | K13: =SB18a!K46 -> 0.01 | L13: =SB18a!L46 -> 3000000 | M13: =SB18a!M46 -> 19104155
A14: Rail Infrastructure | C14: =SB18a!C54 -> 0 | D14: =SB18a!D54 -> 0 | E14: =SB18a!E54 -> 0 | F14: =SB18a!F54 -> 0 | G14: =SB18a!G54 -> 0 | H14: =SB18a!H54 -> 0 | I14: =SB18a!I54 -> 0 | J14: =SB18a!J54 -> 0 | K14: =SB18a!K54 -> 0 | L14: =SB18a!L54 -> 0 | M14: =SB18a!M54 -> 0
A15: Coastal Infrastructure | C15: =SB18a!C64 -> 0 | D15: =SB18a!D64 -> 0 | E15: =SB18a!E64 -> 0 | F15: =SB18a!F64 -> 0 | G15: =SB18a!G64 -> 0 | H15: =SB18a!H64 -> 0 | I15: =SB18a!I64 -> 0 | J15: =SB18a!J64 -> 0 | K15: =SB18a!K64 -> 0 | L15: =SB18a!L64 -> 0 | M15: =SB18a!M64 -> 0
A16: Information and Communication Infrastructure | C16: =SB18a!C70 -> 0 | D16: =SB18a!D70 -> 0 | E16: =SB18a!E70 -> 0 | F16: =SB18a!F70 -> 0 | G16: =SB18a!G70 -> 0 | H16: =SB18a!H70 -> 0 | I16: =SB18a!I70 -> 0 | J16: =SB18a!J70 -> 0 | K16: =SB18a!K70 -> 0 | L16: =SB18a!L70 -> 0 | M16: =SB18a!M70 -> 0
A17: Infrastructure | C17: =SUM(C8:C16) -> 133361894 | D17: =SUM(D8:D16) -> 103266698.1 | E17: 0 | F17: 0 | G17: 0 | H17: 0 | I17: 0 | J17: 0 | K17: 103266698.1 | L17: 131648975 | M17: 150925369
A18: Community Facilities | C18: =SB18a!C77 -> 0 | D18: =SB18a!D77 -> 0 | E18: =SB18a!E77 -> 0 | F18: =SB18a!F77 -> 0 | G18: =SB18a!G77 -> 0 | H18: =SB18a!H77 -> 0 | I18: =SB18a!I77 -> 0 | J18: =SB18a!J77 -> 0 | K18: =SB18a!K77 -> 0 | L18: =SB18a!L77 -> 0 | M18: =SB18a!M77 -> 0
A19: Sport and Recreation Facilities | C19: =SB18a!C100 -> 0 | D19: =SB18a!D100 -> 0 | E19: =SB18a!E100 -> 0 | F19: =SB18a!F100 -> 0 | G19: =SB18a!G100 -> 0 | H19: =SB18a!H100 -> 0 | I19: =SB18a!I100 -> 0 | J19: =SB18a!J100 -> 0 | K19: =SB18a!K100 -> 0 | L19: =SB18a!L100 -> 0 | M19: =SB18a!M100 -> 0
A20: Community Assets | C20: =SUM(C18:C19) -> 0 | D20: =SUM(D18:D19) -> 0 | E20: 0 | F20: 0 | G20: 0 | H20: 0 | I20: 0 | J20: 0 | K20: 0 | L20: 0 | M20: 0
A21: Heritage Assets | C21: =SB18a!C105 -> 0 | D21: =SB18a!D105 -> 0 | E21: =SB18a!E105 -> 0 | F21: =SB18a!F105 -> 0 | G21: =SB18a!G105 -> 0 | H21: =SB18a!H105 -> 0 | I21: =SB18a!I105 -> 0 | J21: =SB18a!J105 -> 0 | K21: =SB18a!K105 -> 0 | L21: =SB18a!L105 -> 0 | M21: =SB18a!M105 -> 0
A22: Revenue Generating | C22: =SB18a!C113 -> 0 | D22: =SB18a!D113 -> 0 | E22: =SB18a!E113 -> 0 | F22: =SB18a!F113 -> 0 | G22: =SB18a!G113 -> 0 | H22: =SB18a!H113 -> 0 | I22: =SB18a!I113 -> 0 | J22: =SB18a!J113 -> 0 | K22: =SB18a!K113 -> 0 | L22: =SB18a!L113 -> 0 | M22: =SB18a!M113 -> 0
A23: Non-revenue Generating | C23: =SB18a!C116 -> 0 | D23: =SB18a!D116 -> 0 | E23: =SB18a!E116 -> 0 | F23: =SB18a!F116 -> 0 | G23: =SB18a!G116 -> 0 | H23: =SB18a!H116 -> 0 | I23: =SB18a!I116 -> 0 | J23: =SB18a!J116 -> 0 | K23: =SB18a!K116 -> 0 | L23: =SB18a!L116 -> 0 | M23: =SB18a!M116 -> 0
A24: Investment properties | C24: =SUM(C22:C23) -> 0 | D24: =SUM(D22:D23) -> 0 | E24: 0 | F24: 0 | G24: 0 | H24: 0 | I24: 0 | J24: 0 | K24: 0 | L24: 0 | M24: 0
A25: Operational Buildings | C25: =SB18a!C121 -> 0 | D25: =SB18a!D121 -> 0 | E25: =SB18a!E121 -> 0 | F25: =SB18a!F121 -> 0 | G25: =SB18a!G121 -> 0 | H25: =SB18a!H121 -> 0 | I25: =SB18a!I121 -> 0 | J25: =SB18a!J121 -> 0 | K25: =SB18a!K121 -> 0 | L25: =SB18a!L121 -> 0 | M25: =SB18a!M121 -> 0
A26: Housing | C26: =SB18a!C133 -> 0 | D26: =SB18a!D133 -> 0 | E26: =SB18a!E133 -> 0 | F26: =SB18a!F133 -> 0 | G26: =SB18a!G133 -> 0 | H26: =SB18a!H133 -> 0 | I26: =SB18a!I133 -> 0 | J26: =SB18a!J133 -> 0 | K26: =SB18a!K133 -> 0 | L26: =SB18a!L133 -> 0 | M26: =SB18a!M133 -> 0
A27: Other Assets | B27: 6 | C27: =SUM(C25:C26) -> 0 | D27: =SUM(D25:D26) -> 0 | E27: 0 | F27: 0 | G27: 0 | H27: 0 | I27: 0 | J27: 0 | K27: 0 | L27: 0 | M27: 0
A28: Biological or Cultivated Assets | C28: =SB18a!C138 -> 0 | D28: =SB18a!D138 -> 0 | E28: =SB18a!E138 -> 0 | F28: =SB18a!F138 -> 0 | G28: =SB18a!G138 -> 0 | H28: =SB18a!H138 -> 0 | I28: =SB18a!I138 -> 0 | J28: =SB18a!J138 -> 0 | K28: =SB18a!K138 -> 0 | L28: =SB18a!L138 -> 0 | M28: =SB18a!M138 -> 0
A29: Servitudes | C29: =SB18a!C142 -> 0 | D29: =SB18a!D142 -> 0 | E29: =SB18a!E142 -> 0 | F29: =SB18a!F142 -> 0 | G29: =SB18a!G142 -> 0 | H29: =SB18a!H142 -> 0 | I29: =SB18a!I142 -> 0 | J29: =SB18a!J142 -> 0 | K29: =SB18a!K142 -> 0 | L29: =SB18a!L142 -> 0 | M29: =SB18a!M142 -> 0
A30: Licences and Rights | C30: =SB18a!C143 -> 0 | D30: =SB18a!D143 -> 0 | E30: =SB18a!E143 -> 0 | F30: =SB18a!F143 -> 0 | G30: =SB18a!G143 -> 0 | H30: =SB18a!H143 -> 0 | I30: =SB18a!I143 -> 0 | J30: =SB18a!J143 -> 0 | K30: =SB18a!K143 -> 0 | L30: =SB18a!L143 -> 0 | M30: =SB18a!M143 -> 0
A31: Intangible Assets | C31: =SUM(C29:C30) -> 0 | D31: =SUM(D29:D30) -> 0 | E31: 0 | F31: 0 | G31: 0 | H31: 0 | I31: 0 | J31: 0 | K31: 0 | L31: 0 | M31: 0
A32: Computer Equipment | C32: =SB18a!C151 -> 0 | D32: =SB18a!D151 -> 0 | E32: =SB18a!E151 -> 0 | F32: =SB18a!F151 -> 0 | G32: =SB18a!G151 -> 0 | H32: =SB18a!H151 -> 0 | I32: =SB18a!I151 -> 0 | J32: =SB18a!J151 -> 0 | K32: =SB18a!K151 -> 0 | L32: =SB18a!L151 -> 0 | M32: =SB18a!M151 -> 0
A33: Furniture and Office Equipment | C33: =SB18a!C154 -> 300000 | D33: =SB18a!D154 -> 0.02 | E33: =SB18a!E154 -> 0 | F33: =SB18a!F154 -> 0 | G33: =SB18a!G154 -> 0 | H33: =SB18a!H154 -> 0 | I33: =SB18a!I154 -> 113975 | J33: =SB18a!J154 -> 113975 | K33: =SB18a!K154 -> 113975.02 | L33: =SB18a!L154 -> 0 | M33: =SB18a!M154 -> 0
A34: Machinery and Equipment | C34: =SB18a!C157 -> 300000 | D34: =SB18a!D157 -> 0.02 | E34: =SB18a!E157 -> 0 | F34: =SB18a!F157 -> 0 | G34: =SB18a!G157 -> 0 | H34: =SB18a!H157 -> 0 | I34: =SB18a!I157 -> 0 | J34: =SB18a!J157 -> 0 | K34: =SB18a!K157 -> 0.02 | L34: =SB18a!L157 -> 0 | M34: =SB18a!M157 -> 0
A35: Transport Assets | C35: =SB18a!C160 -> 0 | D35: =SB18a!D160 -> 0 | E35: =SB18a!E160 -> 0 | F35: =SB18a!F160 -> 0 | G35: =SB18a!G160 -> 0 | H35: =SB18a!H160 -> 0 | I35: =SB18a!I160 -> 0 | J35: =SB18a!J160 -> 0 | K35: =SB18a!K160 -> 0 | L35: =SB18a!L160 -> 0 | M35: =SB18a!M160 -> 0
A36: Land | C36: =SB18a!C163 -> 0 | D36: =SB18a!D163 -> 0 | E36: =SB18a!E163 -> 0 | F36: =SB18a!F163 -> 0 | G36: =SB18a!G163 -> 0 | H36: =SB18a!H163 -> 0 | I36: =SB18a!I163 -> 0 | J36: =SB18a!J163 -> 0 | K36: =SB18a!K163 -> 0 | L36: =SB18a!L163 -> 0 | M36: =SB18a!M163 -> 0
A37: Zoo's, Marine and Non-biological Animals | C37: =SB18a!C166 -> 0 | D37: =SB18a!D166 -> 0 | E37: =SB18a!E166 -> 0 | F37: =SB18a!F166 -> 0 | G37: =SB18a!G166 -> 0 | H37: =SB18a!H166 -> 0 | I37: =SB18a!I166 -> 0 | J37: =SB18a!J166 -> 0 | K37: =SB18a!K166 -> 0 | L37: =SB18a!L166 -> 0 | M37: =SB18a!M166 -> 0
A39: Total Renewal of Existing Assets to be adjusted | B39: 2 | C39: =C49+C52+C53+C56+C59+C60+SUM(C63:C69) -> 14840253 | D39: =D49+D52+D53+D56+D59+D60+SUM(D63:D69) -> 41650347.02 | E39: 0 | F39: 0 | G39: 0 | H39: 0 | I39: 0 | J39: 0 | K39: 41650347.02 | L39: 9864475 | M39: 8000000
A40: Roads Infrastructure | C40: =SB18b!C9 -> 0 | D40: =SB18b!D9 -> 0 | E40: =SB18b!E9 -> 0 | F40: =SB18b!F9 -> 0 | G40: =SB18b!G9 -> 0 | H40: =SB18b!H9 -> 0 | I40: =SB18b!I9 -> 0 | J40: =SB18b!J9 -> 0 | K40: =SB18b!K9 -> 0 | L40: =SB18b!L9 -> 0 | M40: =SB18b!M9 -> 0
A41: Storm water Infrastructure | C41: =SB18b!C14 -> 0 | D41: =SB18b!D14 -> 0 | E41: =SB18b!E14 -> 0 | F41: =SB18b!F14 -> 0 | G41: =SB18b!G14 -> 0 | H41: =SB18b!H14 -> 0 | I41: =SB18b!I14 -> 0 | J41: =SB18b!J14 -> 0 | K41: =SB18b!K14 -> 0 | L41: =SB18b!L14 -> 0 | M41: =SB18b!M14 -> 0
A42: Electrical Infrastructure | C42: =SB18b!C18 -> 0 | D42: =SB18b!D18 -> 0 | E42: =SB18b!E18 -> 0 | F42: =SB18b!F18 -> 0 | G42: =SB18b!G18 -> 0 | H42: =SB18b!H18 -> 0 | I42: =SB18b!I18 -> 0 | J42: =SB18b!J18 -> 0 | K42: =SB18b!K18 -> 0 | L42: =SB18b!L18 -> 0 | M42: =SB18b!M18 -> 0
A43: Water Supply Infrastructure | C43: =SB18b!C28 -> 0 | D43: =SB18b!D28 -> 10923593 | E43: =SB18b!E28 -> 0 | F43: =SB18b!F28 -> 0 | G43: =SB18b!G28 -> 0 | H43: =SB18b!H28 -> 0 | I43: =SB18b!I28 -> 0 | J43: =SB18b!J28 -> 0 | K43: =SB18b!K28 -> 10923593 | L43: =SB18b!L28 -> 0 | M43: =SB18b!M28 -> 0
A44: Sanitation Infrastructure | C44: =SB18b!C39 -> 0 | D44: =SB18b!D39 -> 0 | E44: =SB18b!E39 -> 0 | F44: =SB18b!F39 -> 0 | G44: =SB18b!G39 -> 0 | H44: =SB18b!H39 -> 0 | I44: =SB18b!I39 -> 0 | J44: =SB18b!J39 -> 0 | K44: =SB18b!K39 -> 0 | L44: =SB18b!L39 -> 0 | M44: =SB18b!M39 -> 0
A45: Solid Waste Infrastructure | C45: =SB18b!C46 -> 0 | D45: =SB18b!D46 -> 0 | E45: =SB18b!E46 -> 0 | F45: =SB18b!F46 -> 0 | G45: =SB18b!G46 -> 0 | H45: =SB18b!H46 -> 0 | I45: =SB18b!I46 -> 0 | J45: =SB18b!J46 -> 0 | K45: =SB18b!K46 -> 0 | L45: =SB18b!L46 -> 0 | M45: =SB18b!M46 -> 0
A46: Rail Infrastructure | C46: =SB18b!C54 -> 0 | D46: =SB18b!D54 -> 0 | E46: =SB18b!E54 -> 0 | F46: =SB18b!F54 -> 0 | G46: =SB18b!G54 -> 0 | H46: =SB18b!H54 -> 0 | I46: =SB18b!I54 -> 0 | J46: =SB18b!J54 -> 0 | K46: =SB18b!K54 -> 0 | L46: =SB18b!L54 -> 0 | M46: =SB18b!M54 -> 0
A47: Coastal Infrastructure | C47: =SB18b!C64 -> 0 | D47: =SB18b!D64 -> 0 | E47: =SB18b!E64 -> 0 | F47: =SB18b!F64 -> 0 | G47: =SB18b!G64 -> 0 | H47: =SB18b!H64 -> 0 | I47: =SB18b!I64 -> 0 | J47: =SB18b!J64 -> 0 | K47: =SB18b!K64 -> 0 | L47: =SB18b!L64 -> 0 | M47: =SB18b!M64 -> 0
A48: Information and Communication Infrastructure | C48: =SB18b!C70 -> 0 | D48: =SB18b!D70 -> 0 | E48: =SB18b!E70 -> 0 | F48: =SB18b!F70 -> 0 | G48: =SB18b!G70 -> 0 | H48: =SB18b!H70 -> 0 | I48: =SB18b!I70 -> 0 | J48: =SB18b!J70 -> 0 | K48: =SB18b!K70 -> 0 | L48: =SB18b!L70 -> 0 | M48: =SB18b!M70 -> 0
A49: Infrastructure | C49: =SUM(C40:C48) -> 0 | D49: =SUM(D40:D48) -> 10923593 | E49: 0 | F49: 0 | G49: 0 | H49: 0 | I49: 0 | J49: 0 | K49: 10923593 | L49: 0 | M49: 0
A50: Community Facilities | C50: =SB18b!C77 -> 12000000 | D50: =SB18b!D77 -> 20106309 | E50: =SB18b!E77 -> 0 | F50: =SB18b!F77 -> 0 | G50: =SB18b!G77 -> 0 | H50: =SB18b!H77 -> 0 | I50: =SB18b!I77 -> 0 | J50: =SB18b!J77 -> 0 | K50: =SB18b!K77 -> 20106309 | L50: =SB18b!L77 -> 9864475 | M50: =SB18b!M77 -> 8000000
A51: Sport and Recreation Facilities | C51: =SB18b!C100 -> 0 | D51: =SB18b!D100 -> 0 | E51: =SB18b!E100 -> 0 | F51: =SB18b!F100 -> 0 | G51: =SB18b!G100 -> 0 | H51: =SB18b!H100 -> 0 | I51: =SB18b!I100 -> 0 | J51: =SB18b!J100 -> 0 | K51: =SB18b!K100 -> 0 | L51: =SB18b!L100 -> 0 | M51: =SB18b!M100 -> 0
A52: Community Assets | C52: =SUM(C50:C51) -> 12000000 | D52: =SUM(D50:D51) -> 20106309 | E52: 0 | F52: 0 | G52: 0 | H52: 0 | I52: 0 | J52: 0 | K52: 20106309 | L52: 9864475 | M52: 8000000
A53: Heritage Assets | C53: =SB18b!C105 -> 0 | D53: =SB18b!D105 -> 0 | E53: =SB18b!E105 -> 0 | F53: =SB18b!F105 -> 0 | G53: =SB18b!G105 -> 0 | H53: =SB18b!H105 -> 0 | I53: =SB18b!I105 -> 0 | J53: =SB18b!J105 -> 0 | K53: =SB18b!K105 -> 0 | L53: =SB18b!L105 -> 0 | M53: =SB18b!M105 -> 0
A54: Revenue Generating | C54: =SB18b!C113 -> 0 | D54: =SB18b!D113 -> 0 | E54: =SB18b!E113 -> 0 | F54: =SB18b!F113 -> 0 | G54: =SB18b!G113 -> 0 | H54: =SB18b!H113 -> 0 | I54: =SB18b!I113 -> 0 | J54: =SB18b!J113 -> 0 | K54: =SB18b!K113 -> 0 | L54: =SB18b!L113 -> 0 | M54: =SB18b!M113 -> 0
A55: Non-revenue Generating | C55: =SB18b!C116 -> 0 | D55: =SB18b!D116 -> 0 | E55: =SB18b!E116 -> 0 | F55: =SB18b!F116 -> 0 | G55: =SB18b!G116 -> 0 | H55: =SB18b!H116 -> 0 | I55: =SB18b!I116 -> 0 | J55: =SB18b!J116 -> 0 | K55: =SB18b!K116 -> 0 | L55: =SB18b!L116 -> 0 | M55: =SB18b!M116 -> 0
A56: Investment properties | C56: =SUM(C54:C55) -> 0 | D56: =SUM(D54:D55) -> 0 | E56: 0 | F56: 0 | G56: 0 | H56: 0 | I56: 0 | J56: 0 | K56: 0 | L56: 0 | M56: 0
A57: Operational Buildings | C57: =SB18b!C121 -> 2590253 | D57: =SB18b!D121 -> 10620445.01 | E57: =SB18b!E121 -> 0 | F57: =SB18b!F121 -> 0 | G57: =SB18b!G121 -> 0 | H57: =SB18b!H121 -> 0 | I57: =SB18b!I121 -> 0 | J57: =SB18b!J121 -> 0 | K57: =SB18b!K121 -> 10620445.01 | L57: =SB18b!L121 -> 0 | M57: =SB18b!M121 -> 0
A58: Housing | C58: =SB18b!C133 -> 0 | D58: =SB18b!D133 -> 0 | E58: =SB18b!E133 -> 0 | F58: =SB18b!F133 -> 0 | G58: =SB18b!G133 -> 0 | H58: =SB18b!H133 -> 0 | I58: =SB18b!I133 -> 0 | J58: =SB18b!J133 -> 0 | K58: =SB18b!K133 -> 0 | L58: =SB18b!L133 -> 0 | M58: =SB18b!M133 -> 0
A59: Other Assets | B59: 6 | C59: =SUM(C57:C58) -> 2590253 | D59: =SUM(D57:D58) -> 10620445.01 | E59: 0 | F59: 0 | G59: 0 | H59: 0 | I59: 0 | J59: 0 | K59: 10620445.01 | L59: 0 | M59: 0
A60: Biological or Cultivated Assets | C60: =SB18b!C138 -> 0 | D60: =SB18b!D138 -> 0 | E60: =SB18b!E138 -> 0 | F60: =SB18b!F138 -> 0 | G60: =SB18b!G138 -> 0 | H60: =SB18b!H138 -> 0 | I60: =SB18b!I138 -> 0 | J60: =SB18b!J138 -> 0 | K60: =SB18b!K138 -> 0 | L60: =SB18b!L138 -> 0 | M60: =SB18b!M138 -> 0
A61: Servitudes | C61: =SB18b!C142 -> 0 | D61: =SB18b!D142 -> 0 | E61: =SB18b!E142 -> 0 | F61: =SB18b!F142 -> 0 | G61: =SB18b!G142 -> 0 | H61: =SB18b!H142 -> 0 | I61: =SB18b!I142 -> 0 | J61: =SB18b!J142 -> 0 | K61: =SB18b!K142 -> 0 | L61: =SB18b!L142 -> 0 | M61: =SB18b!M142 -> 0
A62: Licences and Rights | C62: =SB18b!C143 -> 250000 | D62: =SB18b!D143 -> 0.01 | E62: =SB18b!E143 -> 0 | F62: =SB18b!F143 -> 0 | G62: =SB18b!G143 -> 0 | H62: =SB18b!H143 -> 0 | I62: =SB18b!I143 -> 0 | J62: =SB18b!J143 -> 0 | K62: =SB18b!K143 -> 0.01 | L62: =SB18b!L143 -> 0 | M62: =SB18b!M143 -> 0
A63: Intangible Assets | C63: =SUM(C61:C62) -> 250000 | D63: =SUM(D61:D62) -> 0.01 | E63: 0 | F63: 0 | G63: 0 | H63: 0 | I63: 0 | J63: 0 | K63: 0.01 | L63: 0 | M63: 0
A64: Computer Equipment | C64: =SB18b!C151 -> 0 | D64: =SB18b!D151 -> 0 | E64: =SB18b!E151 -> 0 | F64: =SB18b!F151 -> 0 | G64: =SB18b!G151 -> 0 | H64: =SB18b!H151 -> 0 | I64: =SB18b!I151 -> 0 | J64: =SB18b!J151 -> 0 | K64: =SB18b!K151 -> 0 | L64: =SB18b!L151 -> 0 | M64: =SB18b!M151 -> 0
A65: Furniture and Office Equipment | C65: =SB18b!C154 -> 0 | D65: =SB18b!D154 -> 0 | E65: =SB18b!E154 -> 0 | F65: =SB18b!F154 -> 0 | G65: =SB18b!G154 -> 0 | H65: =SB18b!H154 -> 0 | I65: =SB18b!I154 -> 0 | J65: =SB18b!J154 -> 0 | K65: =SB18b!K154 -> 0 | L65: =SB18b!L154 -> 0 | M65: =SB18b!M154 -> 0
A66: Machinery and Equipment | C66: =SB18b!C157 -> 0 | D66: =SB18b!D157 -> 0 | E66: =SB18b!E157 -> 0 | F66: =SB18b!F157 -> 0 | G66: =SB18b!G157 -> 0 | H66: =SB18b!H157 -> 0 | I66: =SB18b!I157 -> 0 | J66: =SB18b!J157 -> 0 | K66: =SB18b!K157 -> 0 | L66: =SB18b!L157 -> 0 | M66: =SB18b!M157 -> 0
A67: Transport Assets | C67: =SB18b!C160 -> 0 | D67: =SB18b!D160 -> 0 | E67: =SB18b!E160 -> 0 | F67: =SB18b!F160 -> 0 | G67: =SB18b!G160 -> 0 | H67: =SB18b!H160 -> 0 | I67: =SB18b!I160 -> 0 | J67: =SB18b!J160 -> 0 | K67: =SB18b!K160 -> 0 | L67: =SB18b!L160 -> 0 | M67: =SB18b!M160 -> 0
A68: Land | C68: =SB18b!C163 -> 0 | D68: =SB18b!D163 -> 0 | E68: =SB18b!E163 -> 0 | F68: =SB18b!F163 -> 0 | G68: =SB18b!G163 -> 0 | H68: =SB18b!H163 -> 0 | I68: =SB18b!I163 -> 0 | J68: =SB18b!J163 -> 0 | K68: =SB18b!K163 -> 0 | L68: =SB18b!L163 -> 0 | M68: =SB18b!M163 -> 0
A69: Zoo's, Marine and Non-biological Animals | C69: =SB18b!C166 -> 0 | D69: =SB18b!D166 -> 0 | E69: =SB18b!E166 -> 0 | F69: =SB18b!F166 -> 0 | G69: =SB18b!G166 -> 0 | H69: =SB18b!H166 -> 0 | I69: =SB18b!I166 -> 0 | J69: =SB18b!J166 -> 0 | K69: =SB18b!K166 -> 0 | L69: =SB18b!L166 -> 0 | M69: =SB18b!M166 -> 0
A71: Total Upgrading of Existing Assets to be adjusted | B71: 2a | C71: =C81+C84+C85+C88+C91+C92+SUM(C95:C101) -> 56000000 | D71: =D81+D84+D85+D88+D91+D92+SUM(D95:D101) -> 61188317 | E71: 0 | F71: 0 | G71: 0 | H71: 0 | I71: 0 | J71: 0 | K71: 61188317 | L71: 60981783 | M71: 60000000
A72: Roads Infrastructure | C72: =SB18e!C9 -> 56000000 | D72: =SB18e!D9 -> 61188317 | E72: =SB18e!E9 -> 0 | F72: =SB18e!F9 -> 0 | G72: =SB18e!G9 -> 0 | H72: =SB18e!H9 -> 0 | I72: =SB18e!I9 -> 0 | J72: =SB18e!J9 -> 0 | K72: =SB18e!K9 -> 61188317 | L72: =SB18e!L9 -> 60981783 | M72: =SB18e!M9 -> 60000000
A73: Storm water Infrastructure | C73: =SB18e!C14 -> 0 | D73: =SB18e!D14 -> 0 | E73: =SB18e!E14 -> 0 | F73: =SB18e!F14 -> 0 | G73: =SB18e!G14 -> 0 | H73: =SB18e!H14 -> 0 | I73: =SB18e!I14 -> 0 | J73: =SB18e!J14 -> 0 | K73: =SB18e!K14 -> 0 | L73: =SB18e!L14 -> 0 | M73: =SB18e!M14 -> 0
A74: Electrical Infrastructure | C74: =SB18e!C18 -> 0 | D74: =SB18e!D18 -> 0 | E74: =SB18e!E18 -> 0 | F74: =SB18e!F18 -> 0 | G74: =SB18e!G18 -> 0 | H74: =SB18e!H18 -> 0 | I74: =SB18e!I18 -> 0 | J74: =SB18e!J18 -> 0 | K74: =SB18e!K18 -> 0 | L74: =SB18e!L18 -> 0 | M74: =SB18e!M18 -> 0
A75: Water Supply Infrastructure | C75: =SB18e!C28 -> 0 | D75: =SB18e!D28 -> 0 | E75: =SB18e!E28 -> 0 | F75: =SB18e!F28 -> 0 | G75: =SB18e!G28 -> 0 | H75: =SB18e!H28 -> 0 | I75: =SB18e!I28 -> 0 | J75: =SB18e!J28 -> 0 | K75: =SB18e!K28 -> 0 | L75: =SB18e!L28 -> 0 | M75: =SB18e!M28 -> 0
A76: Sanitation Infrastructure | C76: =SB18e!C39 -> 0 | D76: =SB18e!D39 -> 0 | E76: =SB18e!E39 -> 0 | F76: =SB18e!F39 -> 0 | G76: =SB18e!G39 -> 0 | H76: =SB18e!H39 -> 0 | I76: =SB18e!I39 -> 0 | J76: =SB18e!J39 -> 0 | K76: =SB18e!K39 -> 0 | L76: =SB18e!L39 -> 0 | M76: =SB18e!M39 -> 0
A77: Solid Waste Infrastructure | C77: =SB18e!C46 -> 0 | D77: =SB18e!D46 -> 0 | E77: =SB18e!E46 -> 0 | F77: =SB18e!F46 -> 0 | G77: =SB18e!G46 -> 0 | H77: =SB18e!H46 -> 0 | I77: =SB18e!I46 -> 0 | J77: =SB18e!J46 -> 0 | K77: =SB18e!K46 -> 0 | L77: =SB18e!L46 -> 0 | M77: =SB18e!M46 -> 0
A78: Rail Infrastructure | C78: =SB18e!C54 -> 0 | D78: =SB18e!D54 -> 0 | E78: =SB18e!E54 -> 0 | F78: =SB18e!F54 -> 0 | G78: =SB18e!G54 -> 0 | H78: =SB18e!H54 -> 0 | I78: =SB18e!I54 -> 0 | J78: =SB18e!J54 -> 0 | K78: =SB18e!K54 -> 0 | L78: =SB18e!L54 -> 0 | M78: =SB18e!M54 -> 0
A79: Coastal Infrastructure | C79: =SB18e!C64 -> 0 | D79: =SB18e!D64 -> 0 | E79: =SB18e!E64 -> 0 | F79: =SB18e!F64 -> 0 | G79: =SB18e!G64 -> 0 | H79: =SB18e!H64 -> 0 | I79: =SB18e!I64 -> 0 | J79: =SB18e!J64 -> 0 | K79: =SB18e!K64 -> 0 | L79: =SB18e!L64 -> 0 | M79: =SB18e!M64 -> 0
A80: Information and Communication Infrastructure | C80: =SB18e!C70 -> 0 | D80: =SB18e!D70 -> 0 | E80: =SB18e!E70 -> 0 | F80: =SB18e!F70 -> 0 | G80: =SB18e!G70 -> 0 | H80: =SB18e!H70 -> 0 | I80: =SB18e!I70 -> 0 | J80: =SB18e!J70 -> 0 | K80: =SB18e!K70 -> 0 | L80: =SB18e!L70 -> 0 | M80: =SB18e!M70 -> 0
A81: Infrastructure | C81: =SUM(C72:C80) -> 56000000 | D81: =SUM(D72:D80) -> 61188317 | E81: 0 | F81: 0 | G81: 0 | H81: 0 | I81: 0 | J81: 0 | K81: 61188317 | L81: 60981783 | M81: 60000000
A82: Community Facilities | C82: =SB18e!C77 -> 0 | D82: =SB18e!D77 -> 0 | E82: =SB18e!E77 -> 0 | F82: =SB18e!F77 -> 0 | G82: =SB18e!G77 -> 0 | H82: =SB18e!H77 -> 0 | I82: =SB18e!I77 -> 0 | J82: =SB18e!J77 -> 0 | K82: =SB18e!K77 -> 0 | L82: =SB18e!L77 -> 0 | M82: =SB18e!M77 -> 0
A83: Sport and Recreation Facilities | C83: =SB18e!C100 -> 0 | D83: =SB18e!D100 -> 0 | E83: =SB18e!E100 -> 0 | F83: =SB18e!F100 -> 0 | G83: =SB18e!G100 -> 0 | H83: =SB18e!H100 -> 0 | I83: =SB18e!I100 -> 0 | J83: =SB18e!J100 -> 0 | K83: =SB18e!K100 -> 0 | L83: =SB18e!L100 -> 0 | M83: =SB18e!M100 -> 0
A84: Community Assets | C84: =SUM(C82:C83) -> 0 | D84: =SUM(D82:D83) -> 0 | E84: 0 | F84: 0 | G84: 0 | H84: 0 | I84: 0 | J84: 0 | K84: 0 | L84: 0 | M84: 0
A85: Heritage Assets | C85: =SB18e!C105 -> 0 | D85: =SB18e!D105 -> 0 | E85: =SB18e!E105 -> 0 | F85: =SB18e!F105 -> 0 | G85: =SB18e!G105 -> 0 | H85: =SB18e!H105 -> 0 | I85: =SB18e!I105 -> 0 | J85: =SB18e!J105 -> 0 | K85: =SB18e!K105 -> 0 | L85: =SB18e!L105 -> 0 | M85: =SB18e!M105 -> 0
A86: Revenue Generating | C86: =SB18e!C113 -> 0 | D86: =SB18e!D113 -> 0 | E86: =SB18e!E113 -> 0 | F86: =SB18e!F113 -> 0 | G86: =SB18e!G113 -> 0 | H86: =SB18e!H113 -> 0 | I86: =SB18e!I113 -> 0 | J86: =SB18e!J113 -> 0 | K86: =SB18e!K113 -> 0 | L86: =SB18e!L113 -> 0 | M86: =SB18e!M113 -> 0
A87: Non-revenue Generating | C87: =SB18e!C116 -> 0 | D87: =SB18e!D116 -> 0 | E87: =SB18e!E116 -> 0 | F87: =SB18e!F116 -> 0 | G87: =SB18e!G116 -> 0 | H87: =SB18e!H116 -> 0 | I87: =SB18e!I116 -> 0 | J87: =SB18e!J116 -> 0 | K87: =SB18e!K116 -> 0 | L87: =SB18e!L116 -> 0 | M87: =SB18e!M116 -> 0
A88: Investment properties | C88: =SUM(C86:C87) -> 0 | D88: =SUM(D86:D87) -> 0 | E88: 0 | F88: 0 | G88: 0 | H88: 0 | I88: 0 | J88: 0 | K88: 0 | L88: 0 | M88: 0
A89: Operational Buildings | C89: =SB18e!C121 -> 0 | D89: =SB18e!D121 -> 0 | E89: =SB18e!E121 -> 0 | F89: =SB18e!F121 -> 0 | G89: =SB18e!G121 -> 0 | H89: =SB18e!H121 -> 0 | I89: =SB18e!I121 -> 0 | J89: =SB18e!J121 -> 0 | K89: =SB18e!K121 -> 0 | L89: =SB18e!L121 -> 0 | M89: =SB18e!M121 -> 0
A90: Housing | C90: =SB18e!C133 -> 0 | D90: =SB18e!D133 -> 0 | E90: =SB18e!E133 -> 0 | F90: =SB18e!F133 -> 0 | G90: =SB18e!G133 -> 0 | H90: =SB18e!H133 -> 0 | I90: =SB18e!I133 -> 0 | J90: =SB18e!J133 -> 0 | K90: =SB18e!K133 -> 0 | L90: =SB18e!L133 -> 0 | M90: =SB18e!M133 -> 0
A91: Other Assets | B91: 6 | C91: =SUM(C89:C90) -> 0 | D91: =SUM(D89:D90) -> 0 | E91: 0 | F91: 0 | G91: 0 | H91: 0 | I91: 0 | J91: 0 | K91: 0 | L91: 0 | M91: 0
A92: Biological or Cultivated Assets | C92: =SB18e!C138 -> 0 | D92: =SB18e!D138 -> 0 | E92: =SB18e!E138 -> 0 | F92: =SB18e!F138 -> 0 | G92: =SB18e!G138 -> 0 | H92: =SB18e!H138 -> 0 | I92: =SB18e!I138 -> 0 | J92: =SB18e!J138 -> 0 | K92: =SB18e!K138 -> 0 | L92: =SB18e!L138 -> 0 | M92: =SB18e!M138 -> 0
A93: Servitudes | C93: =SB18e!C142 -> 0 | D93: =SB18e!D142 -> 0 | E93: =SB18e!E142 -> 0 | F93: =SB18e!F142 -> 0 | G93: =SB18e!G142 -> 0 | H93: =SB18e!H142 -> 0 | I93: =SB18e!I142 -> 0 | J93: =SB18e!J142 -> 0 | K93: =SB18e!K142 -> 0 | L93: =SB18e!L142 -> 0 | M93: =SB18e!M142 -> 0
A94: Licences and Rights | C94: =SB18e!C143 -> 0 | D94: =SB18e!D143 -> 0 | E94: =SB18e!E143 -> 0 | F94: =SB18e!F143 -> 0 | G94: =SB18e!G143 -> 0 | H94: =SB18e!H143 -> 0 | I94: =SB18e!I143 -> 0 | J94: =SB18e!J143 -> 0 | K94: =SB18e!K143 -> 0 | L94: =SB18e!L143 -> 0 | M94: =SB18e!M143 -> 0
A95: Intangible Assets | C95: =SUM(C93:C94) -> 0 | D95: =SUM(D93:D94) -> 0 | E95: 0 | F95: 0 | G95: 0 | H95: 0 | I95: 0 | J95: 0 | K95: 0 | L95: 0 | M95: 0
A96: Computer Equipment | C96: =SB18e!C151 -> 0 | D96: =SB18e!D151 -> 0 | E96: =SB18e!E151 -> 0 | F96: =SB18e!F151 -> 0 | G96: =SB18e!G151 -> 0 | H96: =SB18e!H151 -> 0 | I96: =SB18e!I151 -> 0 | J96: =SB18e!J151 -> 0 | K96: =SB18e!K151 -> 0 | L96: =SB18e!L151 -> 0 | M96: =SB18e!M151 -> 0
A97: Furniture and Office Equipment | C97: =SB18e!C154 -> 0 | D97: =SB18e!D154 -> 0 | E97: =SB18e!E154 -> 0 | F97: =SB18e!F154 -> 0 | G97: =SB18e!G154 -> 0 | H97: =SB18e!H154 -> 0 | I97: =SB18e!I154 -> 0 | J97: =SB18e!J154 -> 0 | K97: =SB18e!K154 -> 0 | L97: =SB18e!L154 -> 0 | M97: =SB18e!M154 -> 0
A98: Machinery and Equipment | C98: =SB18e!C157 -> 0 | D98: =SB18e!D157 -> 0 | E98: =SB18e!E157 -> 0 | F98: =SB18e!F157 -> 0 | G98: =SB18e!G157 -> 0 | H98: =SB18e!H157 -> 0 | I98: =SB18e!I157 -> 0 | J98: =SB18e!J157 -> 0 | K98: =SB18e!K157 -> 0 | L98: =SB18e!L157 -> 0 | M98: =SB18e!M157 -> 0
A99: Transport Assets | C99: =SB18e!C160 -> 0 | D99: =SB18e!D160 -> 0 | E99: =SB18e!E160 -> 0 | F99: =SB18e!F160 -> 0 | G99: =SB18e!G160 -> 0 | H99: =SB18e!H160 -> 0 | I99: =SB18e!I160 -> 0 | J99: =SB18e!J160 -> 0 | K99: =SB18e!K160 -> 0 | L99: =SB18e!L160 -> 0 | M99: =SB18e!M160 -> 0
A100: Land | C100: =SB18e!C163 -> 0 | D100: =SB18e!D163 -> 0 | E100: =SB18e!E163 -> 0 | F100: =SB18e!F163 -> 0 | G100: =SB18e!G163 -> 0 | H100: =SB18e!H163 -> 0 | I100: =SB18e!I163 -> 0 | J100: =SB18e!J163 -> 0 | K100: =SB18e!K163 -> 0 | L100: =SB18e!L163 -> 0 | M100: =SB18e!M163 -> 0
A101: Zoo's, Marine and Non-biological Animals | C101: =SB18e!C166 -> 0 | D101: =SB18e!D166 -> 0 | E101: =SB18e!E166 -> 0 | F101: =SB18e!F166 -> 0 | G101: =SB18e!G166 -> 0 | H101: =SB18e!H166 -> 0 | I101: =SB18e!I166 -> 0 | J101: =SB18e!J166 -> 0 | K101: =SB18e!K166 -> 0 | L101: =SB18e!L166 -> 0 | M101: =SB18e!M166 -> 0
A103: Total Capital Expenditure to be adjusted | B103: 4 | C103: =C7+C39+C71 -> 204802147 | D103: =D7+D39+D71 -> 206105362.2 | E103: 0 | F103: 0 | G103: 0 | H103: 0 | I103: 113975 | J103: 113975 | K103: 206219337.2 | L103: 202495233 | M103: 218925369
A104: Roads Infrastructure | C104: =C8+C40+C72 -> 56000000 | D104: =D8+D40+D72 -> 61188317 | E104: 0 | F104: 0 | G104: 0 | H104: 0 | I104: 0 | J104: 0 | K104: 61188317 | L104: 60981783 | M104: 60000000
A105: Storm water Infrastructure | C105: 6193238 | D105: 0.01 | E105: 0 | F105: 0 | G105: 0 | H105: 0 | I105: 0 | J105: 0 | K105: 0.01 | L105: 0 | M105: 0
A106: Electrical Infrastructure | C106: 22445688 | D106: 20416973.03 | E106: 0 | F106: 0 | G106: 0 | H106: 0 | I106: 0 | J106: 0 | K106: 20416973.03 | L106: 11577740 | M106: 12557370
A107: Water Supply Infrastructure | C107: 64814603 | D107: =D11+D43+D75 -> 81281082.01 | E107: 0 | F107: 0 | G107: 0 | H107: 0 | I107: 0 | J107: 0 | K107: 81281082.01 | L107: 91183878 | M107: 94263844
A108: Sanitation Infrastructure | C108: 24111456 | D108: =D12+D44+D76 -> 12492236.07 | E108: 0 | F108: 0 | G108: 0 | H108: 0 | I108: 0 | J108: 0 | K108: 12492236.07 | L108: 25887357 | M108: 25000000
A109: Solid Waste Infrastructure | C109: 15796909 | D109: =D13+D45+D77 -> 0.01 | E109: 0 | F109: 0 | G109: 0 | H109: 0 | I109: 0 | J109: 0 | K109: 0.01 | L109: 3000000 | M109: 19104155
A110: Rail Infrastructure | C110: 0 | D110: =D14+D46+D78 -> 0 | E110: 0 | F110: 0 | G110: 0 | H110: 0 | I110: 0 | J110: 0 | K110: 0 | L110: 0 | M110: 0
A111: Coastal Infrastructure | C111: 0 | D111: =D15+D47+D79 -> 0 | E111: 0 | F111: 0 | G111: 0 | H111: 0 | I111: 0 | J111: 0 | K111: 0 | L111: 0 | M111: 0
A112: Information and Communication Infrastructure | C112: 0 | D112: =D16+D48+D80 -> 0 | E112: 0 | F112: 0 | G112: 0 | H112: 0 | I112: 0 | J112: 0 | K112: 0 | L112: 0 | M112: 0
A113: Infrastructure | C113: 189361894 | D113: =D17+D49+D81 -> 175378608.1 | E113: 0 | F113: 0 | G113: 0 | H113: 0 | I113: 0 | J113: 0 | K113: 175378608.1 | L113: 192630758 | M113: 210925369
A114: Community Facilities | C114: 12000000 | D114: =D18+D50+D82 -> 20106309 | E114: 0 | F114: 0 | G114: 0 | H114: 0 | I114: 0 | J114: 0 | K114: 20106309 | L114: 9864475 | M114: 8000000
A115: Sport and Recreation Facilities | C115: 0 | D115: =D19+D51+D83 -> 0 | E115: 0 | F115: 0 | G115: 0 | H115: 0 | I115: 0 | J115: 0 | K115: 0 | L115: 0 | M115: 0
A116: Community Assets | C116: 12000000 | D116: =D20+D52+D84 -> 20106309 | E116: 0 | F116: 0 | G116: 0 | H116: 0 | I116: 0 | J116: 0 | K116: 20106309 | L116: 9864475 | M116: 8000000
A117: Heritage Assets | C117: 0 | D117: =D21+D53+D85 -> 0 | E117: 0 | F117: 0 | G117: 0 | H117: 0 | I117: 0 | J117: 0 | K117: 0 | L117: 0 | M117: 0
A118: Revenue Generating | C118: 0 | D118: =D22+D54+D86 -> 0 | E118: 0 | F118: 0 | G118: 0 | H118: 0 | I118: 0 | J118: 0 | K118: 0 | L118: 0 | M118: 0
A119: Non-revenue Generating | C119: 0 | D119: =D23+D55+D87 -> 0 | E119: 0 | F119: 0 | G119: 0 | H119: 0 | I119: 0 | J119: 0 | K119: 0 | L119: 0 | M119: 0
A120: Investment properties | C120: 0 | D120: =D24+D56+D88 -> 0 | E120: 0 | F120: 0 | G120: 0 | H120: 0 | I120: 0 | J120: 0 | K120: 0 | L120: 0 | M120: 0
A121: Operational Buildings | C121: 2590253 | D121: =D25+D57+D89 -> 10620445.01 | E121: 0 | F121: 0 | G121: 0 | H121: 0 | I121: 0 | J121: 0 | K121: 10620445.01 | L121: 0 | M121: 0
A122: Housing | C122: 0 | D122: =D26+D58+D90 -> 0 | E122: 0 | F122: 0 | G122: 0 | H122: 0 | I122: 0 | J122: 0 | K122: 0 | L122: 0 | M122: 0
A123: Other Assets | C123: 2590253 | D123: =D27+D59+D91 -> 10620445.01 | E123: 0 | F123: 0 | G123: 0 | H123: 0 | I123: 0 | J123: 0 | K123: 10620445.01 | L123: 0 | M123: 0
A124: Biological or Cultivated Assets | C124: 0 | D124: =D28+D60+D92 -> 0 | E124: 0 | F124: 0 | G124: 0 | H124: 0 | I124: 0 | J124: 0 | K124: 0 | L124: 0 | M124: 0
A125: Servitudes | C125: 0 | D125: =D29+D61+D93 -> 0 | E125: 0 | F125: 0 | G125: 0 | H125: 0 | I125: 0 | J125: 0 | K125: 0 | L125: 0 | M125: 0
A126: Licences and Rights | C126: 250000 | D126: =D30+D62+D94 -> 0.01 | E126: 0 | F126: 0 | G126: 0 | H126: 0 | I126: 0 | J126: 0 | K126: 0.01 | L126: 0 | M126: 0
A127: Intangible Assets | C127: 250000 | D127: =D31+D63+D95 -> 0.01 | E127: 0 | F127: 0 | G127: 0 | H127: 0 | I127: 0 | J127: 0 | K127: 0.01 | L127: 0 | M127: 0
A128: Computer Equipment | C128: 0 | D128: =D32+D64+D96 -> 0 | E128: 0 | F128: 0 | G128: 0 | H128: 0 | I128: 0 | J128: 0 | K128: 0 | L128: 0 | M128: 0
A129: Furniture and Office Equipment | C129: 300000 | D129: =D33+D65+D97 -> 0.02 | E129: 0 | F129: 0 | G129: 0 | H129: 0 | I129: 113975 | J129: 113975 | K129: 113975.02 | L129: 0 | M129: 0
A130: Machinery and Equipment | C130: 300000 | D130: =D34+D66+D98 -> 0.02 | E130: 0 | F130: 0 | G130: 0 | H130: 0 | I130: 0 | J130: 0 | K130: 0.02 | L130: 0 | M130: 0
A131: Transport Assets | C131: 0 | D131: =D35+D67+D99 -> 0 | E131: 0 | F131: 0 | G131: 0 | H131: 0 | I131: 0 | J131: 0 | K131: 0 | L131: 0 | M131: 0
A132: Land | C132: 0 | D132: =D36+D68+D100 -> 0 | E132: 0 | F132: 0 | G132: 0 | H132: 0 | I132: 0 | J132: 0 | K132: 0 | L132: 0 | M132: 0
A133: Zoo's, Marine and Non-biological Animals | C133: 0 | D133: =D37+D69+D101 -> 0 | E133: 0 | F133: 0 | G133: 0 | H133: 0 | I133: 0 | J133: 0 | K133: 0 | L133: 0 | M133: 0
A134: TOTAL CAPITAL EXPENDITURE to be adjusted | B134: 4 | C134: =C7+C39+C71 -> 204802147 | D134: =D7+D39+D71 -> 206105362.2 | E134: 0 | F134: 0 | G134: 0 | H134: 0 | I134: 113975 | J134: 113975 | K134: 206219337.2 | L134: 202495233 | M134: 218925369
A136: ASSET REGISTER SUMMARY - PPE (WDV) | B136: 5 | C136: =C146+C149+C150+C153+C156+C157+SUM(C160:C166) -> 1785427147 | D136: =D146+D149+D150+D153+D156+D157+SUM(D160:D166) -> 1786730362 | E136: 0 | F136: 0 | G136: 0 | H136: 0 | I136: 113975 | J136: 113975 | K136: 1786844337 | L136: 3685970409 | M136: 3945578770
A137: =+A8 -> Roads Infrastructure | C137: 56000000 | D137: 61188317 | E137: 0 | F137: 0 | G137: 0 | H137: 0 | I137: 0 | J137: =SUM(E137:I137) -> 0 | K137: =IF(D137=0,C137+J137,D137+J137) -> 61188317 | L137: 60981783 | M137: 60000000
A138: =+A9 -> Storm water Infrastructure | C138: 6193238 | D138: 0.01 | E138: 0 | F138: 0 | G138: 0 | H138: 0 | I138: 0 | J138: 0 | K138: =IF(D138=0,C138+J138,D138+J138) -> 0.01 | L138: 0 | M138: 0
A139: Electrical Infrastructure | C139: 22445688 | D139: 20416973.03 | E139: 0 | F139: 0 | G139: 0 | H139: 0 | I139: 0 | J139: 0 | K139: =IF(D139=0,C139+J139,D139+J139) -> 20416973.03 | L139: 11577740 | M139: 12557370
A140: Water Supply Infrastructure | C140: 64814603 | D140: 81281082.01 | E140: 0 | F140: 0 | G140: 0 | H140: 0 | I140: 0 | J140: 0 | K140: =IF(D140=0,C140+J140,D140+J140) -> 81281082.01 | L140: 91183878 | M140: 94263844
A141: Sanitation Infrastructure | C141: 24111456 | D141: 12492236.07 | E141: 0 | F141: 0 | G141: 0 | H141: 0 | I141: 0 | J141: 0 | K141: =IF(D141=0,C141+J141,D141+J141) -> 12492236.07 | L141: 25887357 | M141: 25000000
A142: Solid Waste Infrastructure | C142: 15796909 | D142: 0.01 | E142: 0 | F142: 0 | G142: 0 | H142: 0 | I142: 0 | J142: 0 | K142: 0.01 | L142: 3000000 | M142: 19104155
A143: Rail Infrastructure | J143: 0 | K143: 0
A144: Coastal Infrastructure | J144: 0 | K144: 0
A145: Information and Communication Infrastructure | C145: 0 | D145: 0 | E145: 0 | F145: 0 | G145: 0 | H145: 0 | I145: 0 | J145: 0 | K145: 0 | L145: 0 | M145: 0
A146: Infrastructure | C146: =SUM(C137:C145) -> 189361894 | D146: 175378608.1 | E146: 0 | F146: 0 | G146: 0 | H146: 0 | I146: 0 | J146: 0 | K146: 175378608.1 | L146: =SUM(L137:L145) -> 192630758 | M146: =SUM(M137:M145) -> 210925369
A149: Community Assets | C149: 12000000 | D149: 20106309 | E149: 0 | F149: 0 | G149: 0 | H149: 0 | I149: 0 | J149: =SUM(E149:I149) -> 0 | K149: =IF(D149=0,C149+J149,D149+J149) -> 20106309 | L149: 9864475 | M149: 8000000
A150: Heritage Assets | C150: 0 | D150: 0 | E150: 0 | F150: 0 | G150: 0 | H150: 0 | I150: 0 | J150: =SUM(E150:I150) -> 0 | K150: 0 | L150: 14000 | M150: 14000
A153: Investment properties | C153: 0 | D153: 0 | E153: 0 | F153: 0 | G153: 0 | H153: 0 | I153: 0 | J153: =SUM(E153:I153) -> 0 | K153: =IF(D153=0,C153+J153,D153+J153) -> 0 | L153: 155209867 | M153: 17235257
A156: Other Assets | C156: 2590253 | D156: 10620445.01 | E156: 0 | F156: 0 | G156: 0 | H156: 0 | I156: 0 | J156: =SUM(E156:I156) -> 0 | K156: =IF(D156=0,C156+J156,D156+J156) -> 10620445.01 | L156: 0 | M156: 0
A157: Biological or Cultivated Assets | J157: =SUM(E157:I157) -> 0 | K157: =IF(D157=0,C157+J157,D157+J157) -> 0
A160: Intangible Assets | C160: 250000 | D160: 0.01 | E160: 0 | F160: 0 | G160: 0 | H160: 0 | I160: 0 | J160: =SUM(E160:I160) -> 0 | K160: =IF(D160=0,C160+J160,D160+J160) -> 0.01 | L160: 0 | M160: 0
A161: Computer Equipment | C161: 0 | D161: 0 | E161: 0 | F161: 0 | G161: 0 | H161: 0 | I161: 0 | J161: =SUM(E161:I161) -> 0 | K161: =IF(D161=0,C161+J161,D161+J161) -> 0 | L161: 0 | M161: 0
A162: Furniture and Office Equipment | C162: 1580925000 | D162: 1580625000 | E162: 0 | F162: 0 | G162: 0 | H162: 0 | I162: 113975 | J162: 113975 | K162: 1580738975 | L162: 3328251309 | M162: 3709404144
A163: Machinery and Equipment | C163: 300000 | D163: 0.02 | E163: 0 | F163: 0 | G163: 0 | H163: 0 | I163: 0 | J163: 0 | K163: 0.02 | L163: 0 | M163: 0
A164: Transport Assets | C164: 0 | D164: 0 | E164: 0 | F164: 0 | G164: 0 | H164: 0 | I164: 0 | J164: 0 | K164: 0 | L164: 0 | M164: 0
A165: Land | J165: 0 | K165: 0
A166: Zoo's, Marine and Non-biological Animals | J166: 0 | K166: 0
A167: TOTAL ASSET REGISTER SUMMARY - PPE (WDV) | B167: 5 | C167: =C146+C149+C150+C153+C156+C157+SUM(C160:C166) -> 1785427147 | D167: =D146+D149+D150+D153+D156+D157+SUM(D160:D166) -> 1786730362 | E167: 0 | F167: 0 | G167: 0 | H167: 0 | I167: 113975 | J167: 113975 | K167: 1786844337 | L167: 3685970409 | M167: 3945578770
A169: EXPENDITURE OTHER ITEMS
A170: Depreciation & asset impairment | C170: =SB18d!C169 -> 154536733 | D170: =SB18d!D169 -> 154536733 | E170: =SB18d!E169 -> 0 | F170: =SB18d!F169 -> 0 | G170: =SB18d!G169 -> 0 | H170: =SB18d!H169 -> 0 | I170: =SB18d!I169 -> 0 | J170: =SB18d!J169 -> 0 | K170: =SB18d!K169 -> 154536733 | L170: =SB18d!L169 -> 133503316 | M170: =SB18d!M169 -> 139644469
A171: Repairs and Maintenance by asset class | B171: 3 | C171: =C181+C184+C185+C188+C191+C192+SUM(C195:C201) -> 65140000 | D171: =D181+D184+D185+D188+D191+D192+SUM(D195:D201) -> 47038475.02 | E171: =E181+E184+E185+E188+E191+E192+SUM(E195:E201) -> 0 | F171: =F181+F184+F185+F188+F191+F192+SUM(F195:F201) -> 0 | G171: 0 | H171: 0 | I171: 0 | J171: 0 | K171: 47038475.02 | L171: =L181+L184+L185+L188+L191+L192+SUM(L195:L201) -> 42480000 | M171: =M181+M184+M185+M188+M191+M192+SUM(M195:M201) -> 46588800
A172: =+A8 -> Roads Infrastructure | C172: =SB18c!C9 -> 9400000 | D172: =SB18c!D9 -> 1050000 | E172: =SB18c!E9 -> 0 | F172: =SB18c!F9 -> 0 | G172: =SB18c!G9 -> 0 | H172: =SB18c!H9 -> 0 | I172: =SB18c!I9 -> 0 | J172: =SB18c!J9 -> 0 | K172: =SB18c!K9 -> 1050000 | L172: =SB18c!L9 -> 1700000 | M172: =SB18c!M9 -> 1789000
A173: =+A9 -> Storm water Infrastructure | C173: =SB18c!C14 -> 2000000 | D173: =SB18c!D14 -> 450000 | E173: =SB18c!E14 -> 0 | F173: =SB18c!F14 -> 0 | G173: =SB18c!G14 -> 0 | H173: =SB18c!H14 -> 0 | I173: =SB18c!I14 -> 0 | J173: =SB18c!J14 -> 0 | K173: =SB18c!K14 -> 450000 | L173: =SB18c!L14 -> 760000 | M173: =SB18c!M14 -> 820000
A174: Electrical Infrastructure | C174: =SB18c!C18 -> 6000000 | D174: =SB18c!D18 -> 1000000 | E174: =SB18c!E18 -> 0 | F174: =SB18c!F18 -> 0 | G174: =SB18c!G18 -> 0 | H174: =SB18c!H18 -> 0 | I174: =SB18c!I18 -> 0 | J174: =SB18c!J18 -> 0 | K174: =SB18c!K18 -> 1000000 | L174: =SB18c!L18 -> 2000000 | M174: =SB18c!M18 -> 2092000
A175: Water Supply Infrastructure | C175: =SB18c!C28 -> 300000 | D175: =SB18c!D28 -> 150000 | E175: =SB18c!E28 -> 0 | F175: =SB18c!F28 -> 0 | G175: =SB18c!G28 -> 0 | H175: =SB18c!H28 -> 0 | I175: =SB18c!I28 -> 0 | J175: =SB18c!J28 -> 0 | K175: =SB18c!K28 -> 150000 | L175: =SB18c!L28 -> 300000 | M175: =SB18c!M28 -> 320000
A176: Sanitation Infrastructure | C176: =SB18c!C39 -> 0 | D176: =SB18c!D39 -> 0 | E176: =SB18c!E39 -> 0 | F176: =SB18c!F39 -> 0 | G176: =SB18c!G39 -> 0 | H176: =SB18c!H39 -> 0 | I176: =SB18c!I39 -> 0 | J176: =SB18c!J39 -> 0 | K176: =SB18c!K39 -> 0 | L176: =SB18c!L39 -> 0 | M176: =SB18c!M39 -> 0
A177: Solid Waste Infrastructure | C177: =SB18c!C46 -> 30210000 | D177: =SB18c!D46 -> 33688475 | E177: =SB18c!E46 -> 0 | F177: =SB18c!F46 -> 0 | G177: =SB18c!G46 -> 0 | H177: =SB18c!H46 -> 0 | I177: =SB18c!I46 -> 0 | J177: =SB18c!J46 -> 0 | K177: =SB18c!K46 -> 33688475 | L177: =SB18c!L46 -> 24310000 | M177: =SB18c!M46 -> 27106000
A178: Rail Infrastructure | C178: =SB18c!C54 -> 0 | D178: =SB18c!D54 -> 0 | E178: =SB18c!E54 -> 0 | F178: =SB18c!F54 -> 0 | G178: =SB18c!G54 -> 0 | H178: =SB18c!H54 -> 0 | I178: =SB18c!I54 -> 0 | J178: =SB18c!J54 -> 0 | K178: =SB18c!K54 -> 0 | L178: =SB18c!L54 -> 0 | M178: =SB18c!M54 -> 0
A179: Coastal Infrastructure | C179: =SB18c!C64 -> 0 | D179: =SB18c!D64 -> 0 | E179: =SB18c!E64 -> 0 | F179: =SB18c!F64 -> 0 | G179: =SB18c!G64 -> 0 | H179: =SB18c!H64 -> 0 | I179: =SB18c!I64 -> 0 | J179: =SB18c!J64 -> 0 | K179: =SB18c!K64 -> 0 | L179: =SB18c!L64 -> 0 | M179: =SB18c!M64 -> 0
A180: Information and Communication Infrastructure | C180: =SB18c!C70 -> 0 | D180: =SB18c!D70 -> 0 | E180: =SB18c!E70 -> 0 | F180: =SB18c!F70 -> 0 | G180: =SB18c!G70 -> 0 | H180: =SB18c!H70 -> 0 | I180: =SB18c!I70 -> 0 | J180: =SB18c!J70 -> 0 | K180: =SB18c!K70 -> 0 | L180: =SB18c!L70 -> 0 | M180: =SB18c!M70 -> 0
A181: Infrastructure | C181: =SUM(C172:C180) -> 47910000 | D181: =SUM(D172:D180) -> 36338475 | E181: 0 | F181: 0 | G181: 0 | H181: 0 | I181: 0 | J181: 0 | K181: 36338475 | L181: 29070000 | M181: 32127000
A182: Community Facilities | C182: =SB18c!C77 -> 0 | D182: =SB18c!D77 -> 0 | E182: =SB18c!E77 -> 0 | F182: =SB18c!F77 -> 0 | G182: =SB18c!G77 -> 0 | H182: =SB18c!H77 -> 0 | I182: =SB18c!I77 -> 0 | J182: =SB18c!J77 -> 0 | K182: =SB18c!K77 -> 0 | L182: =SB18c!L77 -> 0 | M182: =SB18c!M77 -> 0
A183: Sport and Recreation Facilities | C183: =SB18c!C100 -> 500000 | D183: =SB18c!D100 -> 200000 | E183: =SB18c!E100 -> 0 | F183: =SB18c!F100 -> 0 | G183: =SB18c!G100 -> 0 | H183: =SB18c!H100 -> 0 | I183: =SB18c!I100 -> 0 | J183: =SB18c!J100 -> 0 | K183: =SB18c!K100 -> 200000 | L183: =SB18c!L100 -> 400000 | M183: =SB18c!M100 -> 420000
A184: Community Assets | C184: =SUM(C182:C183) -> 500000 | D184: =SUM(D182:D183) -> 200000 | E184: 0 | F184: 0 | G184: 0 | H184: 0 | I184: 0 | J184: 0 | K184: 200000 | L184: 400000 | M184: 420000
A185: Heritage Assets | C185: =SB18c!C105 -> 0 | D185: =SB18c!D105 -> 0 | E185: =SB18c!E105 -> 0 | F185: =SB18c!F105 -> 0 | G185: =SB18c!G105 -> 0 | H185: =SB18c!H105 -> 0 | I185: =SB18c!I105 -> 0 | J185: =SB18c!J105 -> 0 | K185: =SB18c!K105 -> 0 | L185: =SB18c!L105 -> 0 | M185: =SB18c!M105 -> 0
A186: Revenue Generating | C186: =SB18c!C113 -> 0 | D186: =SB18c!D113 -> 0 | E186: =SB18c!E113 -> 0 | F186: =SB18c!F113 -> 0 | G186: =SB18c!G113 -> 0 | H186: =SB18c!H113 -> 0 | I186: =SB18c!I113 -> 0 | J186: =SB18c!J113 -> 0 | K186: =SB18c!K113 -> 0 | L186: =SB18c!L113 -> 0 | M186: =SB18c!M113 -> 0
A187: Non-revenue Generating | C187: =SB18c!C116 -> 0 | D187: =SB18c!D116 -> 0 | E187: =SB18c!E116 -> 0 | F187: =SB18c!F116 -> 0 | G187: =SB18c!G116 -> 0 | H187: =SB18c!H116 -> 0 | I187: =SB18c!I116 -> 0 | J187: =SB18c!J116 -> 0 | K187: =SB18c!K116 -> 0 | L187: =SB18c!L116 -> 0 | M187: =SB18c!M116 -> 0
A188: Investment properties | C188: =SUM(C186:C187) -> 0 | D188: =SUM(D186:D187) -> 0 | E188: 0 | F188: 0 | G188: 0 | H188: 0 | I188: 0 | J188: 0 | K188: 0 | L188: 0 | M188: 0
A189: Operational Buildings | C189: =SB18c!C121 -> 7800000 | D189: =SB18c!D121 -> 2500000 | E189: =SB18c!E121 -> 0 | F189: =SB18c!F121 -> 0 | G189: =SB18c!G121 -> 0 | H189: =SB18c!H121 -> 0 | I189: =SB18c!I121 -> 0 | J189: =SB18c!J121 -> 0 | K189: =SB18c!K121 -> 2500000 | L189: =SB18c!L121 -> 5800000 | M189: =SB18c!M121 -> 6066800
A190: Housing | C190: =SB18c!C133 -> 0 | D190: =SB18c!D133 -> 0 | E190: =SB18c!E133 -> 0 | F190: =SB18c!F133 -> 0 | G190: =SB18c!G133 -> 0 | H190: =SB18c!H133 -> 0 | I190: =SB18c!I133 -> 0 | J190: =SB18c!J133 -> 0 | K190: =SB18c!K133 -> 0 | L190: =SB18c!L133 -> 0 | M190: =SB18c!M133 -> 0
A191: Other Assets | C191: =SUM(C189:C190) -> 7800000 | D191: =SUM(D189:D190) -> 2500000 | E191: 0 | F191: 0 | G191: 0 | H191: 0 | I191: 0 | J191: 0 | K191: 2500000 | L191: 5800000 | M191: 6066800
A192: Biological or Cultivated Assets | C192: =SB18c!C138 -> 0 | D192: =SB18c!D138 -> 0 | E192: =SB18c!E138 -> 0 | F192: =SB18c!F138 -> 0 | G192: =SB18c!G138 -> 0 | H192: =SB18c!H138 -> 0 | I192: =SB18c!I138 -> 0 | J192: =SB18c!J138 -> 0 | K192: =SB18c!K138 -> 0 | L192: =SB18c!L138 -> 0 | M192: =SB18c!M138 -> 0
A193: Servitudes | C193: =SB18c!C142 -> 0 | D193: =SB18c!D142 -> 0 | E193: =SB18c!E142 -> 0 | F193: =SB18c!F142 -> 0 | G193: =SB18c!G142 -> 0 | H193: =SB18c!H142 -> 0 | I193: =SB18c!I142 -> 0 | J193: =SB18c!J142 -> 0 | K193: =SB18c!K142 -> 0 | L193: =SB18c!L142 -> 0 | M193: =SB18c!M142 -> 0
A194: Licences and Rights | C194: =SB18c!C143 -> 3000000 | D194: =SB18c!D143 -> 2000000 | E194: =SB18c!E143 -> 0 | F194: =SB18c!F143 -> 0 | G194: =SB18c!G143 -> 0 | H194: =SB18c!H143 -> 0 | I194: =SB18c!I143 -> 0 | J194: =SB18c!J143 -> 0 | K194: =SB18c!K143 -> 2000000 | L194: =SB18c!L143 -> 0 | M194: =SB18c!M143 -> 0
A195: Intangible Assets | C195: =SUM(C193:C194) -> 3000000 | D195: =SUM(D193:D194) -> 2000000 | E195: 0 | F195: 0 | G195: 0 | H195: 0 | I195: 0 | J195: 0 | K195: 2000000 | L195: 0 | M195: 0
A196: Computer Equipment | C196: =SB18c!C151 -> 80000 | D196: =SB18c!D151 -> 50000.01 | E196: =SB18c!E151 -> 0 | F196: =SB18c!F151 -> 0 | G196: =SB18c!G151 -> 0 | H196: =SB18c!H151 -> 0 | I196: =SB18c!I151 -> 0 | J196: =SB18c!J151 -> 0 | K196: =SB18c!K151 -> 50000.01 | L196: =SB18c!L151 -> 50000 | M196: =SB18c!M151 -> 55000
A197: Furniture and Office Equipment | C197: =SB18c!C154 -> 0 | D197: =SB18c!D154 -> 0 | E197: =SB18c!E154 -> 0 | F197: =SB18c!F154 -> 0 | G197: =SB18c!G154 -> 0 | H197: =SB18c!H154 -> 0 | I197: =SB18c!I154 -> 0 | J197: =SB18c!J154 -> 0 | K197: =SB18c!K154 -> 0 | L197: =SB18c!L154 -> 0 | M197: =SB18c!M154 -> 0
A198: Machinery and Equipment | C198: =SB18c!C157 -> 0 | D198: =SB18c!D157 -> 0 | E198: =SB18c!E157 -> 0 | F198: =SB18c!F157 -> 0 | G198: =SB18c!G157 -> 0 | H198: =SB18c!H157 -> 0 | I198: =SB18c!I157 -> 0 | J198: =SB18c!J157 -> 0 | K198: =SB18c!K157 -> 0 | L198: =SB18c!L157 -> 0 | M198: =SB18c!M157 -> 0
A199: Transport Assets | C199: =SB18c!C160 -> 5850000 | D199: =SB18c!D160 -> 5950000.01 | E199: =SB18c!E160 -> 0 | F199: =SB18c!F160 -> 0 | G199: =SB18c!G160 -> 0 | H199: =SB18c!H160 -> 0 | I199: =SB18c!I160 -> 0 | J199: =SB18c!J160 -> 0 | K199: =SB18c!K160 -> 5950000.01 | L199: =SB18c!L160 -> 7160000 | M199: =SB18c!M160 -> 7920000
A200: Land | C200: =SB18c!C163 -> 0 | D200: =SB18c!D163 -> 0 | E200: =SB18c!E163 -> 0 | F200: =SB18c!F163 -> 0 | G200: =SB18c!G163 -> 0 | H200: =SB18c!H163 -> 0 | I200: =SB18c!I163 -> 0 | J200: =SB18c!J163 -> 0 | K200: =SB18c!K163 -> 0 | L200: =SB18c!L163 -> 0 | M200: =SB18c!M163 -> 0
A201: Zoo's, Marine and Non-biological Animals | B201: 6 | C201: =SB18c!C166 -> 0 | D201: =SB18c!D166 -> 0 | E201: =SB18c!E166 -> 0 | F201: =SB18c!F166 -> 0 | G201: =SB18c!G166 -> 0 | H201: =SB18c!H166 -> 0 | I201: =SB18c!I166 -> 0 | J201: =SB18c!J166 -> 0 | K201: =SB18c!K166 -> 0 | L201: =SB18c!L166 -> 0 | M201: =SB18c!M166 -> 0
A202: TOTAL EXPENDITURE OTHER ITEMS to be adjusted | C202: =+C170+C171 -> 219676733 | D202: =+D170+D171 -> 201575208 | E202: 0 | F202: 0 | G202: 0 | H202: 0 | I202: 0 | J202: 0 | K202: 201575208 | L202: 175983316 | M202: 186233269
A204: Renewal and upgrading of Existing Assets as % of total capex | C204: =IF(ISERROR((C39+C71)/C134),0,((C39+C71)/C134)) -> 0.3458960467 | D204: =IF(ISERROR((D39+D71)/D134),0,((D39+D71)/D134)) -> 0.4989616133 | K204: =IF(ISERROR((K39+K71)/K134),0,((K39+K71)/K134)) -> 0.4986858431 | L204: =IF(ISERROR((L39+L71)/L134),0,((L39+L71)/L134)) -> 0.3498663003 | M204: =IF(ISERROR((M39+M71)/M134),0,((M39+M71)/M134)) -> 0.3106081324
A205: Renewal and upgrading of Existing Assets as % of deprecn" | C205: =IF(ISERROR((C39+C71)/C170),0,((C39+C71)/C170)) -> 0.458403977 | D205: =IF(ISERROR((D39+D71)/D170),0,((D39+D71)/D170)) -> 0.665464204 | K205: =IF(ISERROR((K39+K71)/K170),0,((K39+K71)/K170)) -> 0.665464204 | L205: =IF(ISERROR((L39+L71)/L170),0,((L39+L71)/L170)) -> 0.5306703992 | M205: =IF(ISERROR((M39+M71)/M170),0,((M39+M71)/M170)) -> 0.486950901
A206: R&M as a % of PPE | C206: =IF(ISERROR(C171/C167),0,(C171/C167)) -> 0.03648426659 | D206: =IF(ISERROR(D171/D167),0,(D171/D167)) -> 0.02632656612 | K206: =IF(ISERROR(K171/K167),0,(K171/K167)) -> 0.02632488686 | L206: =IF(ISERROR(L171/L167),0,(L171/L167)) -> 0.01152478053 | M206: =IF(ISERROR(M171/M167),0,(M171/M167)) -> 0.01180784942
A207: Renewal and upgrading and R&M as a % of PPE | C207: =IF(ISERROR((C39+C71+C171)/C167),0,((C39+C71+C171)/C167)) -> 0.07616118822 | D207: =IF(ISERROR((D39+D71+D171)/D167),0,((D39+D71+D171)/D167)) -> 0.08388346793 | K207: =IF(ISERROR((K39+K71+K171)/K167),0,((K39+K71+K171)/K167)) -> 0.08387811737 | L207: =IF(ISERROR((L39+L71+L171)/L167),0,((L39+L71+L171)/L167)) -> 0.03074529783 | M207: =IF(ISERROR((M39+M71+M171)/M167),0,((M39+M71+M171)/M167)) -> 0.02904232983
A209: =head27a -> References
A210: 1. Detail of new assets provided in Table SB18a
A211: 2. Detail of renewal of existing assets provided in Table SB18b
A212: 2a. Detail of upgrading of existing assets provided in Table SB18e
A213: 3. Detail of Repairs and Maintenance by Asset Class provided in Table SB18c
A214: 4. Must reconcile to total capital expenditure on Budgeted Capital Expenditure
A215: 5. Must reconcile to Adjustments Budget Financial Position (written down value)
... 10 more rows

Sheet B10-SerDel
A1: =muni&" - "&_ADJ10&" - "&Date -> NW375 Moses Kotane - Table B10 Basic service delivery measurement - 44171
A2: =desc -> Description | B2: =head27 -> Ref | C2: =Head2 -> Budget Year 2019/20 | L2: =Head10 -> Budget Year +1 2020/21 | M2: =Head11 -> Budget Year +2 2021/22
C3: =Head6 -> Original Budget | D3: =Head54 -> Prior Adjusted | E3: =Head51 -> Accum. Funds | F3: =Head52 -> Multi-year capital | G3: =Head53 -> Unfore. Unavoid. | H3: =Head55 -> Nat. or Prov. Govt | I3: =Head50 -> Other Adjusts. | J3: =Head56 -> Total Adjusts. | K3: =Head7 -> Adjusted Budget | L3: =Head7 -> Adjusted Budget | M3: =Head7 -> Adjusted Budget
D4: 7 | E4: 8 | F4: 9 | G4: 10 | H4: 11 | I4: 12 | J4: 13 | K4: 14
C5: A | D5: A1 | E5: B | F5: C | G5: D | H5: E | I5: F | J5: G | K5: H
A6: Household service targets | B6: 1
A7: Water:
A8: Piped water inside dwelling | C8: 5700 | D8: 0 | E8: 0 | F8: 0 | G8: 0 | H8: 0 | I8: 0 | J8: =SUM(E8:I8) -> 0 | K8: =IF(D8=0,C8+J8,D8+J8) -> 5700 | L8: 5700 | M8: 5700
A9: Piped water inside yard (but not in dwelling) | C9: 10000 | D9: 0 | E9: 0 | F9: 0 | G9: 0 | H9: 0 | I9: 0 | J9: 0 | K9: 10000 | L9: 10000 | M9: 10000
A10: Using public tap (at least min.service level) | B10: 2 | C10: 52000 | D10: 0 | E10: 0 | F10: 0 | G10: 0 | H10: 0 | I10: 0 | J10: 0 | K10: 52000 | L10: 52000 | M10: 52000
A11: Other water supply (at least min.service level) | J11: 0 | K11: 0
A12: Minimum Service Level and Above sub-total | C12: =SUM(C8:C11) -> 67700 | D12: 0 | E12: 0 | F12: 0 | G12: 0 | H12: 0 | I12: 0 | J12: 0 | K12: 67700 | L12: 67700 | M12: 67700
A13: Using public tap (< min.service level) | B13: 3 | C13: 12000 | D13: 0 | E13: 0 | F13: 0 | G13: 0 | H13: 0 | I13: 0 | J13: 0 | K13: 12000 | L13: 12000 | M13: 12000
A14: Other water supply (< min.service level) | B14: 3,4 | J14: 0 | K14: 0
A15: No water supply | J15: 0 | K15: 0
A16: Below Minimum Servic Level sub-total | C16: =SUM(C13:C15) -> 12000 | D16: 0 | E16: 0 | F16: 0 | G16: 0 | H16: 0 | I16: 0 | J16: 0 | K16: 12000 | L16: 12000 | M16: 12000
A17: Total number of households | B17: 5 | C17: =C12+C16 -> 79700 | D17: 0 | E17: 0 | F17: 0 | G17: 0 | H17: 0 | I17: 0 | J17: 0 | K17: 79700 | L17: 79700 | M17: 79700
A18: Sanitation/sewerage:
A19: Flush toilet (connected to sewerage) | C19: 7000 | D19: 0 | E19: 0 | F19: 0 | G19: 0 | H19: 0 | I19: 0 | J19: =SUM(E19:I19) -> 0 | K19: =IF(D19=0,C19+J19,D19+J19) -> 7000 | L19: 7000 | M19: 7000
A20: Flush toilet (with septic tank) | C20: 5000 | D20: 0 | E20: 0 | F20: 0 | G20: 0 | H20: 0 | I20: 0 | J20: 0 | K20: 5000 | L20: 5000 | M20: 5000
A21: Chemical toilet | J21: 0 | K21: 0
A22: Pit toilet (ventilated) | J22: 0 | K22: 0
A23: Other toilet provisions (> min.service level) | J23: 0 | K23: 0
A24: =$A$12 -> Minimum Service Level and Above sub-total | C24: =SUM(C19:C23) -> 12000 | D24: 0 | E24: 0 | F24: 0 | G24: 0 | H24: 0 | I24: 0 | J24: 0 | K24: 12000 | L24: 12000 | M24: 12000
A25: Bucket toilet | J25: 0 | K25: 0
A26: Other toilet provisions (< min.service level) | J26: 0 | K26: 0
A27: No toilet provisions | C27: 39000 | D27: 0 | E27: 0 | F27: 0 | G27: 0 | H27: 0 | I27: 0 | J27: 0 | K27: 39000 | L27: 39000 | M27: 39000
A28: =$A$16 -> Below Minimum Servic Level sub-total | C28: =SUM(C25:C27) -> 39000 | D28: 0 | E28: 0 | F28: 0 | G28: 0 | H28: 0 | I28: 0 | J28: 0 | K28: 39000 | L28: 39000 | M28: 39000
A29: =$A$17 -> Total number of households | B29: =$B$17 -> 5 | C29: =C24+C28 -> 51000 | D29: 0 | E29: 0 | F29: 0 | G29: 0 | H29: 0 | I29: 0 | J29: 0 | K29: 51000 | L29: 51000 | M29: 51000
A30: Energy:
A31: Electricity (at least min. service level) | J31: =SUM(E31:I31) -> 0 | K31: =IF(D31=0,C31+J31,D31+J31) -> 0
A32: Electricity - prepaid (> min.service level) | J32: 0 | K32: 0
A33: =$A$12 -> Minimum Service Level and Above sub-total | C33: =SUM(C31:C32) -> 0 | D33: 0 | E33: 0 | F33: 0 | G33: 0 | H33: 0 | I33: 0 | J33: 0 | K33: 0 | L33: 0 | M33: 0
A34: Electricity (< min.service level) | J34: 0 | K34: 0
A35: Electricity - prepaid (< min. service level) | J35: 0 | K35: 0
A36: Other energy sources | J36: 0 | K36: 0
A37: =$A$16 -> Below Minimum Servic Level sub-total | C37: =SUM(C34:C36) -> 0 | D37: 0 | E37: 0 | F37: 0 | G37: 0 | H37: 0 | I37: 0 | J37: 0 | K37: 0 | L37: 0 | M37: 0
A38: =$A$17 -> Total number of households | B38: =$B$17 -> 5 | C38: =C33+C37 -> 0 | D38: 0 | E38: 0 | F38: 0 | G38: 0 | H38: 0 | I38: 0 | J38: 0 | K38: 0 | L38: 0 | M38: 0
A39: Refuse:
A40: Removed at least once a week (min.service) | C40: 75125 | D40: 0 | E40: 0 | F40: 0 | G40: 0 | H40: 0 | I40: 0 | J40: =SUM(E40:I40) -> 0 | K40: =IF(D40=0,C40+J40,D40+J40) -> 75125 | L40: 75125 | M40: 75125
A41: =$A$12 -> Minimum Service Level and Above sub-total | C41: =SUM(C40) -> 75125 | D41: 0 | E41: 0 | F41: 0 | G41: 0 | H41: 0 | I41: 0 | J41: =SUM(E41:I41) -> 0 | K41: 75125 | L41: =SUM(L40) -> 75125 | M41: =SUM(M40) -> 75125
A42: Removed less frequently than once a week | J42: 0 | K42: 0
A43: Using communal refuse dump | J43: 0 | K43: 0
A44: Using own refuse dump | J44: 0 | K44: 0
A45: Other rubbish disposal | J45: 0 | K45: 0
A46: No rubbish disposal | J46: 0 | K46: 0
A47: =$A$16 -> Below Minimum Servic Level sub-total | C47: =SUM(C42:C46) -> 0 | D47: 0 | E47: 0 | F47: 0 | G47: 0 | H47: 0 | I47: 0 | J47: 0 | K47: 0 | L47: 0 | M47: 0
A48: =$A$17 -> Total number of households | B48: =$B$17 -> 5 | C48: =C41+C47 -> 75125 | D48: 0 | E48: 0 | F48: 0 | G48: 0 | H48: 0 | I48: 0 | J48: =J40+J47 -> 0 | K48: =K40+K47 -> 75125 | L48: =L41+L47 -> 75125 | M48: =M41+M47 -> 75125
A50: Households receiving Free Basic Service | B50: 15
A51: Water (6 kilolitres per household per month) | C51: 19000 | D51: 0 | E51: 0 | F51: 0 | G51: 0 | H51: 0 | I51: 0 | J51: =SUM(E51:I51) -> 0 | K51: =IF(D51=0,C51+J51,D51+J51) -> 19000 | L51: 19000 | M51: 0
A52: Sanitation (free minimum level service) | C52: ='SB5'!E274 -> 330 | D52: ='SB5'!F274 -> 0 | E52: ='SB5'!G274 -> 0 | F52: ='SB5'!H274 -> 0 | G52: ='SB5'!I274 -> 0 | H52: ='SB5'!J274 -> 0 | I52: ='SB5'!K274 -> 0 | J52: =SUM(E52:I52) -> 0 | K52: =IF(D52=0,C52+J52,D52+J52) -> 330 | L52: ='SB5'!N274 -> 330 | M52: ='SB5'!O274 -> 0
A53: Electricity/other energy (50kwh per household per month) | C53: ='SB5'!E250 -> 0 | D53: ='SB5'!F250 -> 0 | E53: ='SB5'!G250 -> 0 | F53: ='SB5'!H250 -> 0 | G53: ='SB5'!I250 -> 0 | H53: ='SB5'!J250 -> 0 | I53: ='SB5'!K250 -> 0 | J53: =SUM(E53:I53) -> 0 | K53: =IF(D53=0,C53+J53,D53+J53) -> 0 | L53: ='SB5'!N250 -> 0 | M53: ='SB5'!O250 -> 0
A54: Refuse (removed at least once a week) | C54: ='SB5'!E286 -> 58114 | D54: ='SB5'!F286 -> 0 | E54: ='SB5'!G286 -> 0 | F54: ='SB5'!H286 -> 0 | G54: ='SB5'!I286 -> 0 | H54: ='SB5'!J286 -> 0 | I54: ='SB5'!K286 -> 0 | J54: =SUM(E54:I54) -> 0 | K54: =IF(D54=0,C54+J54,D54+J54) -> 58114 | L54: ='SB5'!N286 -> 58114 | M54: ='SB5'!O286 -> 0
A56: Cost of Free Basic Services provided (R'000) | B56: 16
A57: Water (6 kilolitres per indigent household per month) | C57: ='SB1'!C21 -> 10653000 | D57: ='SB1'!D21 -> 10653000 | E57: ='SB1'!E21 -> 0 | F57: ='SB1'!F21 -> 0 | G57: ='SB1'!G21 -> 0 | H57: ='SB1'!H21 -> 0 | I57: ='SB1'!I21 -> 0 | J57: =SUM(E57:I57) -> 0 | K57: =IF(D57=0,C57+J57,D57+J57) -> 10653000 | L57: ='SB1'!L21 -> 10682385 | M57: ='SB1'!M21 -> 11173775
A58: Sanitation (free sanitation service to indigent households) | C58: ='SB1'!C27 -> 350000 | D58: ='SB1'!D27 -> 350000 | E58: ='SB1'!E27 -> 0 | F58: ='SB1'!F27 -> 0 | G58: ='SB1'!G27 -> 0 | H58: ='SB1'!H27 -> 0 | I58: ='SB1'!I27 -> 0 | J58: =SUM(E58:I58) -> 0 | K58: =IF(D58=0,C58+J58,D58+J58) -> 350000 | L58: ='SB1'!L27 -> 374500 | M58: ='SB1'!M27 -> 400715
A59: Electricity/other energy (50kwh per indigent household per month) | C59: ='SB1'!C15 -> 4000000 | D59: ='SB1'!D15 -> 4000000 | E59: ='SB1'!E15 -> 0 | F59: ='SB1'!F15 -> 0 | G59: ='SB1'!G15 -> 0 | H59: ='SB1'!H15 -> 0 | I59: ='SB1'!I15 -> 0 | J59: =SUM(E59:I59) -> 0 | K59: =IF(D59=0,C59+J59,D59+J59) -> 4000000 | L59: ='SB1'!L15 -> 4000000 | M59: ='SB1'!M15 -> 4000000
A60: Refuse (removed once a week for indigent households) | C60: ='SB1'!C34 -> 20530000 | D60: ='SB1'!D34 -> 20530000 | E60: ='SB1'!E34 -> 0 | F60: ='SB1'!F34 -> 0 | G60: ='SB1'!G34 -> 0 | H60: ='SB1'!H34 -> 0 | I60: ='SB1'!I34 -> 0 | J60: =SUM(E60:I60) -> 0 | K60: =IF(D60=0,C60+J60,D60+J60) -> 20530000 | L60: ='SB1'!L34 -> 21453850 | M60: ='SB1'!M34 -> 22440727
A61: Cost of Free Basic Services provided - Informal Formal Settlements (R'000) | C61: ='SB5'!E259+'SB5'!E271+'SB5'!E283+'SB5'!E295 -> 30500000 | D61: ='SB5'!F259+'SB5'!F271+'SB5'!F283+'SB5'!F295 -> 0 | E61: ='SB5'!G259+'SB5'!G271+'SB5'!G283+'SB5'!G295 -> 0 | F61: ='SB5'!H259+'SB5'!H271+'SB5'!H283+'SB5'!H295 -> 0 | G61: ='SB5'!I259+'SB5'!I271+'SB5'!I283+'SB5'!I295 -> 0 | H61: ='SB5'!J259+'SB5'!J271+'SB5'!J283+'SB5'!J295 -> 0 | I61: ='SB5'!K259+'SB5'!K271+'SB5'!K283+'SB5'!K295 -> 0 | J61: =SUM(E61:I61) -> 0 | K61: =IF(D61=0,C61+J61,D61+J61) -> 30500000 | L61: ='SB5'!N259+'SB5'!N271+'SB5'!N283+'SB5'!N295 -> 30500000 | M61: ='SB5'!O259+'SB5'!O271+'SB5'!O283+'SB5'!O295 -> 0
A62: Total cost of FBS provided | C62: =SUM(C57:C61) -> 66033000 | D62: =SUM(D57:D61) -> 35533000 | E62: 0 | F62: 0 | G62: 0 | H62: 0 | I62: 0 | J62: 0 | K62: 66033000 | L62: 67010735 | M62: 38015217
A64: Highest level of free service provided
A65: Property rates (R'000 value threshold) | J65: =SUM(E65:I65) -> 0 | K65: =IF(D65=0,C65+J65,D65+J65) -> 0
A66: Water (kilolitres per household per month) | J66: 0 | K66: 0
A67: Sanitation (kilolitres per household per month) | J67: 0 | K67: 0
A68: Sanitation (Rand per household per month) | J68: 0 | K68: 0
A69: Electricity (kw per household per month) | J69: 0 | K69: 0
A70: Refuse (average litres per week) | J70: 0 | K70: 0
A71: Revenue cost of free services provided (R'000) | B71: 17
A72: Property rates (tariff adjustment) ( impermissable values per section 17 of MPRA) | C72: 1593000 | D72: 0 | E72: 0 | F72: 0 | G72: 0 | H72: 0 | I72: 0 | J72: =SUM(E72:I72) -> 0 | K72: =IF(D72=0,C72+J72,D72+J72) -> 1593000 | L72: 1593000 | M72: 1593000
A73: Property rates exemptions, reductions and rebates and impermissable values in excess of section 17 of MPRA) | C73: ='SB1'!C9 -> 2668000 | D73: ='SB1'!D9 -> 2668000 | E73: ='SB1'!E9 -> 0 | F73: ='SB1'!F9 -> 0 | G73: ='SB1'!G9 -> 0 | H73: ='SB1'!H9 -> 0 | I73: ='SB1'!I9 -> 0 | J73: 0 | K73: 2668000 | L73: ='SB1'!L9 -> 2746947 | M73: ='SB1'!M9 -> 2856879
A74: Water (in excess of 6 kilolitres per indigent household per month) | C74: ='SB1'!C20 -> 0 | D74: ='SB1'!D20 -> 0 | E74: ='SB1'!E20 -> 0 | F74: ='SB1'!F20 -> 0 | G74: ='SB1'!G20 -> 0 | H74: ='SB1'!H20 -> 0 | I74: ='SB1'!I20 -> 0 | J74: 0 | K74: 0 | L74: ='SB1'!L20 -> 0 | M74: ='SB1'!M20 -> 0
A75: Sanitation (in excess of free sanitation service to indigent households) | C75: ='SB1'!C26 -> 0 | D75: ='SB1'!D26 -> 0 | E75: ='SB1'!E26 -> 0 | F75: ='SB1'!F26 -> 0 | G75: ='SB1'!G26 -> 0 | H75: ='SB1'!H26 -> 0 | I75: ='SB1'!I26 -> 0 | J75: 0 | K75: 0 | L75: ='SB1'!L26 -> 0 | M75: ='SB1'!M26 -> 0
A76: Electricity/other energy (in excess of 50 kwh per indigent household per month) | C76: ='SB1'!C14 -> 0 | D76: ='SB1'!D14 -> 0 | E76: ='SB1'!E14 -> 0 | F76: ='SB1'!F14 -> 0 | G76: ='SB1'!G14 -> 0 | H76: ='SB1'!H14 -> 0 | I76: ='SB1'!I14 -> 0 | J76: 0 | K76: 0 | L76: ='SB1'!L14 -> 0 | M76: ='SB1'!M14 -> 0
A77: Refuse (in excess of one removal a week for indigent households) | C77: ='SB1'!C33 -> 0 | D77: ='SB1'!D33 -> 0 | E77: ='SB1'!E33 -> 0 | F77: ='SB1'!F33 -> 0 | G77: ='SB1'!G33 -> 0 | H77: ='SB1'!H33 -> 0 | I77: ='SB1'!I33 -> 0 | J77: 0 | K77: 0 | L77: ='SB1'!L33 -> 0 | M77: ='SB1'!M33 -> 0
A78: Municipal Housing - rental rebates | J78: 0 | K78: 0
A79: Housing - top structure subsidies | B79: 6 | J79: 0 | K79: 0
A80: Other | J80: 0 | K80: 0
A81: Total revenue cost of subsidised services provided | C81: =SUM(C72:C80) -> 4261000 | D81: 2668000 | E81: 0 | F81: 0 | G81: 0 | H81: 0 | I81: 0 | J81: 0 | K81: 4261000 | L81: 4339947 | M81: 4449879
A82: =head27a -> References
A83: 1. Include services provided by another entity; e.g. Eskom
A84: 2. Stand distance > 200m from dwelling
A85: 3. Stand distance <= 200m from dwelling
A86: 4. Borehole, spring, rain-water tank etc.
A87: 5. Must agree to total number of households in municipal area
A88: 6. Include value of subsidy provided by municipality above provincial subsidy level
A89: 7. Only complete if a previous adjusted budget has been approved in the same financial year. Reflect most recent adjusted budget.
A90: 8. Additional cash-backed accumulated funds/unspent funds (MFMA section 18(1)(b) and section 28(2)(e)) identified after the Original Budget approved and after annual financial statements audited (note: only where underspending could not reasonably have been foreseen)
A91: 9. Increases of funds approved under MFMA section 31
A92: 10. Adjustments approved in accordance with MFMA section 29
A93: 11. Adjustments to transfers from National or Provincial Government
A94: 12. Adjusts. = 'Other' Adjustments proposed to be approved; including revenue under-collection (MFMA section 28(2)(a)); additional revenue appropriation on existing programmes (section 28(2))(b); projected savings (section 28(2)(d)); error correction (section 28(2)(f))
A95: 13. G = B + C + D + E + F
A96: 14. Adjusted Budget H = (A or A1/2 etc) + G
A97: 15. Show number of households receiving at least these levels of services completely free
A98: 16. Must reflect the cost to the municipality of providing the Free Basic Service
A99: 17. Reflect the cost to the municipality in terms of 'revenue foregone' of providing free services (note this will not equal 'Revenue Foregone' on SA1)

Sheet SB1
A1: =muni&" - "&ADJB1&" - "&Date -> NW375 Moses Kotane - Supporting Table SB1 Supporting detail to 'Budgeted Financial Performance' - 44171
A2: =desc -> Description | B2: =head27 -> Ref | C2: =Head2 -> Budget Year 2019/20 | L2: =Head10 -> Budget Year +1 2020/21 | M2: =Head11 -> Budget Year +2 2021/22
C3: =Head6 -> Original Budget | D3: =Head54 -> Prior Adjusted | E3: =Head51 -> Accum. Funds | F3: =Head52 -> Multi-year capital | G3: =Head53 -> Unfore. Unavoid. | H3: =Head55 -> Nat. or Prov. Govt | I3: =Head50 -> Other Adjusts. | J3: =Head56 -> Total Adjusts. | K3: =Head7 -> Adjusted Budget | L3: =Head7 -> Adjusted Budget | M3: =Head7 -> Adjusted Budget
D4: 6 | E4: 7 | F4: 8 | G4: 9 | H4: 10 | I4: 11 | J4: 12 | K4: 13
A5: R thousands | C5: A | D5: A1 | E5: B | F5: C | G5: D | H5: E | I5: F | J5: G | K5: H
A6: REVENUE ITEMS
A7: Property rates
A8: Total Property Rates | C8: 144831600 | D8: 144831600 | E8: 0 | F8: 0 | G8: 0 | H8: 0 | I8: 0 | J8: =SUM(E8:I8) -> 0 | K8: =IF(D8=0,C8+J8,D8+J8) -> 144831600 | L8: 171773093 | M8: 179674656
A9: less Revenue Foregone (exemptions, reductions and rebates and impermissable values in excess of section 17 of MPRA) | C9: 2668000 | D9: 2668000 | E9: 0 | F9: 0 | G9: 0 | H9: 0 | I9: 0 | J9: =SUM(E9:I9) -> 0 | K9: =IF(D9=0,C9+J9,D9+J9) -> 2668000 | L9: 2746947 | M9: 2856879
A10: Net Property Rates | C10: =C8-C9 -> 142163600 | D10: =D8-D9 -> 142163600 | E10: 0 | F10: 0 | G10: 0 | H10: 0 | I10: 0 | J10: 0 | K10: 142163600 | L10: 169026146 | M10: 176817777
A12: Service charges - electricity revenue
A13: Total Service charges - electricity revenue | C13: 4000000 | D13: 4000000 | E13: 0 | F13: 0 | G13: 0 | H13: 0 | I13: 0 | J13: =SUM(E13:I13) -> 0 | K13: =IF(D13=0,C13+J13,D13+J13) -> 4000000 | L13: 4000000 | M13: 4000000
A14: less Revenue Foregone (in excess of 50 kwh per indigent household per month) | J14: =SUM(E14:I14) -> 0 | K14: =IF(D14=0,C14+J14,D14+J14) -> 0
A15: less Cost of Free Basis Services (50 kwh per indigent household per month) | C15: ='SB5'!E249 -> 4000000 | D15: ='SB5'!F249 -> 4000000 | E15: ='SB5'!G249 -> 0 | F15: ='SB5'!H249 -> 0 | G15: ='SB5'!I249 -> 0 | H15: ='SB5'!J249 -> 0 | I15: ='SB5'!K249 -> 0 | J15: =SUM(E15:I15) -> 0 | K15: =IF(D15=0,C15+J15,D15+J15) -> 4000000 | L15: ='SB5'!N249 -> 4000000 | M15: ='SB5'!O249 -> 4000000
A16: Net Service charges - electricity revenue | C16: =C13-C14-C15 -> 0 | D16: =D13-D14-D15 -> 0 | E16: 0 | F16: 0 | G16: 0 | H16: 0 | I16: 0 | J16: 0 | K16: 0 | L16: 0 | M16: 0
A18: Service charges - water revenue
A19: Total Service charges - water revenue | C19: 182210000 | D19: 182210000 | E19: 0 | F19: 0 | G19: 0 | H19: 0 | I19: 0 | J19: =SUM(E19:I19) -> 0 | K19: =IF(D19=0,C19+J19,D19+J19) -> 182210000 | L19: 182210000 | M19: 182210000
A20: less Revenue Foregone (in excess of 6 kilolitres per indigent household per month) | J20: =SUM(E20:I20) -> 0 | K20: =IF(D20=0,C20+J20,D20+J20) -> 0
A21: less Cost of Free Basis Services (6 kilolitres per indigent household per month) | C21: ='SB5'!E261 -> 10653000 | D21: ='SB5'!F261 -> 10653000 | E21: ='SB5'!G261 -> 0 | F21: ='SB5'!H261 -> 0 | G21: ='SB5'!I261 -> 0 | H21: ='SB5'!J261 -> 0 | I21: ='SB5'!K261 -> 0 | J21: =SUM(E21:I21) -> 0 | K21: =IF(D21=0,C21+J21,D21+J21) -> 10653000 | L21: ='SB5'!N261 -> 10682385 | M21: ='SB5'!O261 -> 11173775
A22: Net Service charges - water revenue | C22: =C19-C20-C21 -> 171557000 | D22: =D19-D20-D21 -> 171557000 | E22: 0 | F22: 0 | G22: 0 | H22: 0 | I22: 0 | J22: =J19-J20-J21 -> 0 | K22: 171557000 | L22: 171527615 | M22: 171036225
A24: Service charges - sanitation revenue
A25: Total Service charges - sanitation revenue | C25: 3100000 | D25: 3100000 | E25: 0 | F25: 0 | G25: 0 | H25: 0 | I25: 0 | J25: =SUM(E25:I25) -> 0 | K25: =IF(D25=0,C25+J25,D25+J25) -> 3100000 | L25: 2864898 | M25: 2996684
A26: less Revenue Foregone (in excess of free sanitation service to indigent households) | J26: =SUM(E26:I26) -> 0 | K26: =IF(D26=0,C26+J26,D26+J26) -> 0
A27: less Cost of Free Basis Services (free sanitation service to indigent households) | C27: ='SB5'!E273 -> 350000 | D27: ='SB5'!F273 -> 350000 | E27: ='SB5'!G273 -> 0 | F27: ='SB5'!H273 -> 0 | G27: ='SB5'!I273 -> 0 | H27: ='SB5'!J273 -> 0 | I27: ='SB5'!K273 -> 0 | J27: =SUM(E27:I27) -> 0 | K27: =IF(D27=0,C27+J27,D27+J27) -> 350000 | L27: ='SB5'!N273 -> 374500 | M27: ='SB5'!O273 -> 400715
